Workbook

Sheet PI vs gap
A1: Measurement | B1: Hall
A2: Type | B2: Off-axis
A4: PS type | B4: HXR
A5: PS serial no | B5: 16305
A7: Measurement date | B7: ='DF raw data'!B2 -> 4. jul 2017
C11: Nominal gap [mm] | D11: Encoder [counts] | E11: Encoder [mm] | F11: PI [T^2mm^3] | G11: x [mm] | H11: Encoder offset
C12: 10 | D12: =' 10 x=-2'!B3 -> 17890870 | E12: =(D12-$H$12)*-0.00025+10 -> 10.002 | F12: =' 10 x=-2'!Q3 -> 701.7504451 | G12: -2 | H12: 17890878
C13: 10 | D13: ='10 x=-1'!B3 -> 17890866 | E13: =(D13-$H$12)*-0.00025+10 -> 10.003 | F13: ='10 x=-1'!Q3 -> 701.9640724 | G13: -1
C14: 10 | D14: ='10 x=0'!B3 -> 17890872 | E14: 10.0015 | F14: ='10 x=0'!Q3 -> 702.2456932 | G14: 0
C15: 10 | D15: ='10 x=1'!B3 -> 17890876 | E15: 10.0005 | F15: ='10 x=1'!Q3 -> 702.0950697 | G15: 1
C16: 10 | D16: ='10 x=2'!B3 -> 17890877 | E16: 10.00025 | F16: ='10 x=2'!Q3 -> 701.9639828 | G16: 2
C17: 30 | D17: ='30 x=-2'!B3 -> 17810794 | E17: 30.021 | F17: ='30 x=-2'!Q3 -> 67.45828542 | G17: -2
C18: 30 | D18: ='30 x=-1'!B3 -> 17810794 | E18: 30.021 | F18: ='30 x=-1'!Q3 -> 67.53512799 | G18: -1
C19: 30 | D19: ='30 x=0'!B3 -> 17810804 | E19: 30.0185 | F19: ='30 x=0'!Q3 -> 67.54362446 | G19: 0
C20: 30 | D20: ='30 x=1'!B3 -> 17810783 | E20: 30.02375 | F20: ='30 x=1'!Q3 -> 67.52134446 | G20: 1
C21: 30 | D21: ='30 x=2'!B3 -> 17810770 | E21: 30.027 | F21: ='30 x=2'!Q3 -> 67.43766639 | G21: 2
A41: Measuring series at 10 mm gap:
A42: Reference magnet
A43: Tref | B43: 21.365 | C43: degC
A44: Hall ref field | B44: 0.50517 | C44: T
A45: NMR ref field | B45: 0.50627 | C45: T
A47: Measuring series at larger gaps:
A48: Reference magnet
A49: Tref | B49: 21.205 | C49: degC
A50: Hall ref field | B50: 0.50515 | C50: T
A51: NMR ref field | B51: 0.50634 | C51: T
A53: Offset from Faro

Sheet 10 x=-2
A1: dz | B1: ='DF raw data'!B7 -> 0.50017 | C1: mm | F1: T_coeff | G1: -0.0008 | H1: /degC | L1: Hallref | M1: ='PI vs gap'!B44 -> 0.50517 | N1: T | P1: IBy total | Q1: =L1203*1000 -> -9.666871414 | R1: muTm | X1: DF ref | Y1: 18
A2: Tref | B2: ='DF raw data'!B8 -> 21.85 | C2: degC | F2: Tcorr | G2: 20 | H2: degC | L2: NMRref | M2: ='PI vs gap'!B45 -> 0.50627 | N2: T | P2: JBy total | Q2: =M1203 -> -2.750728566 | R2: muTm^2
A3: Encoder | B3: ='DF raw data'!B9 -> 17890870 | P3: PI total | Q3: =N1203 -> 701.7504451 | R3: T^2mm^3
A5: z [mm] | B5: Bx | C5: By | D5: Bz | F5: Bx_corr | G5: By_corr | H5: Bz_corr | J5: Ix | K5: Jx | L5: Iy | M5: Jy | N5: PI
A6: ='[1]PI vs x'!B53 -> -0.068 | B6: ='DF raw data'!A11 -> 2.5555761e-07 | C6: ='DF raw data'!B11 -> 4.2945653e-06 | D6: ='DF raw data'!C11 -> 8.2898105e-06 | F6: =(1-$G$1*($B$2-$G$2))*B6 -> 2.559358353e-07 | G6: =(1-$G$1*($B$2-$G$2))*C6*$M$2/$M$1 -> 4.310286447e-06 | H6: =(1-$G$1*($B$2-$G$2))*D6 -> 8.30207942e-06 | J6: =F6*$B$1 -> 1.280114267e-07 | K6: =J6*$B$1 -> 6.40274753e-08 | L6: =G6*$B$1 -> 2.155875972e-06 | M6: =L6*$B$1 -> 1.078304485e-06 | N6: =(J6^2+L6)^2*$B$1 -> 2.324690766e-12
A7: =A6+$B$1 -> 0.43217 | B7: ='DF raw data'!A12 -> 5.5487595e-07 | C7: ='DF raw data'!B12 -> -3.6023214e-06 | D7: ='DF raw data'!C12 -> 9.3194021e-06 | F7: =(1-$G$1*($B$2-$G$2))*B7 -> 5.556971664e-07 | G7: =(1-$G$1*($B$2-$G$2))*C7*$M$2/$M$1 -> -3.615508445e-06 | H7: =(1-$G$1*($B$2-$G$2))*D7 -> 9.333194815e-06 | J7: =F7*$B$1+J6 -> 4.059544784e-07 | K7: =J7*$B$1+K6 -> 2.670737268e-07 | L7: =G7*$B$1+L6 -> 3.475071135e-07 | M7: =L7*$B$1+M6 -> 1.252117118e-06 | N7: =(J7^2+L7^2)*$B$1+N6 -> 2.467519427e-12
A8: =A7+$B$1 -> 0.93234 | B8: ='DF raw data'!A13 -> 4.5714529e-07 | C8: ='DF raw data'!B13 -> -1.8304086e-06 | D8: ='DF raw data'!C13 -> 3.1432489e-06 | F8: 4.57821865e-07 | G8: -1.83710919e-06 | H8: 3.147900908e-06 | J8: =F8*$B$1+J7 -> 6.349432407e-07 | K8: =J8*$B$1+K7 -> 5.846532875e-07 | L8: =G8*$B$1+L7 -> -5.713597903e-07 | M8: =L8*$B$1+M7 -> 9.663400917e-07 | N8: =(J8^2+L8^2)*$B$1+N7 -> 2.832445924e-12
A9: 1.43251 | B9: ='DF raw data'!A14 -> -1.3065022e-07 | C9: ='DF raw data'!B14 -> 1.3213505e-05 | D9: ='DF raw data'!C14 -> -2.6470746e-06 | F9: -1.308435823e-07 | G9: 1.326187578e-05 | H9: -2.65099227e-06 | J9: 5.694992061e-07 | K9: 8.694997054e-07 | L9: 6.061832617e-06 | M9: 3.998286912e-06 | N9: 2.137381986e-11
A10: 1.93268 | B10: ='DF raw data'!A15 -> -4.0922168e-09 | C10: ='DF raw data'!B15 -> 1.0000578e-05 | D10: ='DF raw data'!C15 -> -5.013801e-07 | F10: -4.098273281e-09 | G10: 1.003718719e-05 | H10: -5.021221425e-07 | J10: 5.674493728e-07 | K10: 1.153320858e-06 | L10: 1.108213253e-05 | M10: 9.541237141e-06 | N10: 8.296258307e-11
A11: 2.43285 | B11: ='DF raw data'!A16 -> 3.6249963e-07 | C11: ='DF raw data'!B16 -> 1.3737551e-07 | D11: ='DF raw data'!C16 -> 4.6019588e-07 | F11: =(1-$G$1*($B$2-$G$2))*B11 -> 3.630361295e-07 | G11: 1.378784016e-07 | H11: =(1-$G$1*($B$2-$G$2))*D11 -> 4.608769699e-07 | J11: 7.490291536e-07 | K11: 1.52796277e-06 | L11: 1.115109517e-05 | M11: 1.511868041e-05 | N11: 1.454378016e-10
A12: 2.93302 | B12: ='DF raw data'!A17 -> 1.4695667e-07 | C12: ='DF raw data'!B17 -> 5.6184304e-06 | D12: ='DF raw data'!C17 -> -2.286027e-06 | F12: 1.471741659e-07 | G12: 5.63899783e-06 | H12: -2.28941032e-06 | J12: 8.226412562e-07 | K12: 1.939423247e-06 | L12: 1.397155272e-05 | M12: 2.210683194e-05 | N12: 2.434116133e-10
A13: 3.43319 | B13: ='DF raw data'!A18 -> 1.6699465e-07 | C13: ='DF raw data'!B18 -> 4.8184006e-06 | D13: ='DF raw data'!C18 -> -4.0773243e-06 | F13: 1.672418021e-07 | G13: 4.836039355e-06 | H13: -4.08335874e-06 | J13: 9.062905883e-07 | K13: 2.392722611e-06 | L13: 1.639039452e-05 | M13: 3.030481557e-05 | N13: 3.781906202e-10
A14: 3.93336 | B14: ='DF raw data'!A19 -> 1.2607467e-07 | C14: ='DF raw data'!B19 -> 5.6823415e-06 | D14: ='DF raw data'!C19 -> -5.5835785e-06 | F14: 1.262612605e-07 | G14: 5.70314289e-06 | H14: -5.591842196e-06 | J14: 9.69442683e-07 | K14: 2.877608757e-06 | L14: 1.92429355e-05 | M14: 3.992955462e-05 | N14: 5.638689223e-10
A15: 4.43353 | B15: ='DF raw data'!A20 -> -7.3242916e-08 | C15: ='DF raw data'!B20 -> 1.14057e-05 | D15: ='DF raw data'!C20 -> -3.4793422e-06 | F15: -7.335131552e-08 | G15: 1.144745293e-05 | H15: -3.484491626e-06 | J15: 9.327545555e-07 | K15: 3.344144603e-06 | L15: 2.496860804e-05 | M15: 5.24181033e-05 | N15: 8.761257627e-10
A16: 4.9337 | B16: ='DF raw data'!A21 -> -1.1630109e-08 | C16: ='DF raw data'!B21 -> 9.2449809e-06 | D16: ='DF raw data'!C21 -> -5.8796809e-06 | F16: -1.164732156e-08 | G16: 9.278824071e-06 | H16: -5.888382828e-06 | J16: 9.269289147e-07 | K16: 3.807766639e-06 | L16: 2.960959747e-05 | M16: 6.722793566e-05 | N16: 1.315068682e-09
A17: 5.43387 | B17: ='DF raw data'!A22 -> 4.3605957e-07 | C17: ='DF raw data'!B22 -> -2.2246859e-06 | D17: ='DF raw data'!C22 -> -1.456626e-06 | F17: 4.367049382e-07 | G17: -2.232829824e-06 | H17: -1.458781806e-06 | J17: 1.145355624e-06 | K17: 4.380639161e-06 | L17: 2.849280298e-05 | M17: 8.147918093e-05 | N17: 1.721782749e-09
A18: 5.93404 | B18: ='DF raw data'!A23 -> 2.8994378e-07 | C18: ='DF raw data'!B23 -> 3.1182722e-06 | D18: ='DF raw data'!C23 -> 6.5025001e-06 | F18: 2.903728968e-07 | G18: 3.129687282e-06 | H18: 6.5121238e-06 | J18: 1.290591435e-06 | K18: 5.026154279e-06 | L18: 3.005817867e-05 | M18: 9.651338015e-05 | N18: 2.174516491e-09
A19: 6.43421 | B19: ='DF raw data'!A24 -> 3.5068348e-07 | C19: ='DF raw data'!B24 -> 2.1868168e-06 | D19: ='DF raw data'!C24 -> 1.1104515e-05 | F19: 3.512024916e-07 | G19: 2.194822097e-06 | H19: 1.112094968e-05 | J19: 1.466252386e-06 | K19: 5.759529735e-06 | L19: 3.115596283e-05 | M19: 0.0001120966581 | N19: 2.661103833e-09
A20: 6.93438 | B20: ='DF raw data'!A25 -> 5.2930824e-07 | C20: ='DF raw data'!B25 -> -3.6145966e-06 | D20: ='DF raw data'!C25 -> 5.5374753e-06 | F20: 5.300916162e-07 | G20: -3.627828581e-06 | H20: 5.545670763e-06 | J20: 1.731388309e-06 | K20: 6.625518225e-06 | L20: 2.934143181e-05 | M20: 0.000126772362 | N20: 3.093209362e-09
A21: 7.43455 | B21: ='DF raw data'!A26 -> 8.9915972e-07 | C21: ='DF raw data'!B26 -> -1.5782487e-05 | D21: ='DF raw data'!C26 -> -7.6439546e-06 | F21: 9.004904764e-07 | G21: -1.584026207e-05 | H21: -7.655267653e-06 | J21: 2.181786631e-06 | K21: 7.716782445e-06 | L21: 2.141860793e-05 | M21: 0.0001374853072 | N21: 3.325046639e-09
A22: 7.93472 | B22: ='DF raw data'!A27 -> 1.1357156e-06 | C22: ='DF raw data'!B27 -> 1.0776371e-06 | D22: ='DF raw data'!C27 -> -7.4701179e-06 | F22: 1.137396459e-06 | G22: 1.081582014e-06 | H22: -7.481173674e-06 | J22: 2.750678218e-06 | K22: 9.092589169e-06 | L22: 2.195958281e-05 | M22: 0.0001484688317 | N22: 3.570024657e-09
A23: 8.43489 | B23: ='DF raw data'!A28 -> 4.977494e-06 | C23: ='DF raw data'!B28 -> 1.3386202e-06 | D23: ='DF raw data'!C28 -> 4.9683151e-09 | F23: 4.984860691e-06 | G23: 1.343520497e-06 | H23: 4.975668206e-09 | J23: 5.24395599e-06 | K23: 1.171545864e-05 | L23: 2.263157146e-05 | M23: 0.0001597884648 | N23: 3.839959955e-09
A24: 8.93506 | B24: ='DF raw data'!A29 -> 8.7286726e-06 | C24: ='DF raw data'!B29 -> 7.3486211e-07 | D24: ='DF raw data'!C29 -> -2.9492305e-06 | F24: 8.741591035e-06 | G24: 7.375522252e-07 | H24: -2.953595361e-06 | J24: 9.616237578e-06 | K24: 1.652521219e-05 | L24: 2.300047295e-05 | M24: 0.0001712926113 | N24: 4.150812499e-09
A25: 9.43523 | B25: ='DF raw data'!A30 -> 6.7023616e-06 | C25: ='DF raw data'!B30 -> -2.7504805e-07 | D25: ='DF raw data'!C30 -> 1.1566797e-06 | F25: 6.712281095e-06 | G25: -2.760549205e-07 | H25: 1.158391586e-06 | J25: 1.297351921e-05 | K25: 2.301417729e-05 | L25: 2.286239856e-05 | M25: 0.0001827276972 | N25: 4.496430704e-09
A26: 9.9354 | B26: ='DF raw data'!A31 -> 5.0834901e-06 | C26: ='DF raw data'!B31 -> 3.5964745e-06 | D26: ='DF raw data'!C31 -> -3.2237087e-06 | F26: 5.091013665e-06 | G26: 3.609640141e-06 | H26: -3.228479789e-06 | J26: 1.551989152e-05 | K26: 3.077676143e-05 | L26: 2.466783227e-05 | M26: 0.0001950658069 | N26: 4.921259587e-09
A27: 10.43557 | B27: ='DF raw data'!A32 -> 8.8273928e-06 | C27: ='DF raw data'!B32 -> 2.3487969e-06 | D27: ='DF raw data'!C32 -> 1.2020671e-06 | F27: 8.840457341e-06 | G27: 2.357395158e-06 | H27: 1.203846159e-06 | J27: 1.994162307e-05 | K27: 4.075096304e-05 | L27: 2.584693061e-05 | M27: 0.0002079936662 | N27: 5.454306838e-09
A28: 10.93574 | B28: ='DF raw data'!A33 -> 1.2733374e-05 | C28: ='DF raw data'!B33 -> 1.4509616e-05 | D28: ='DF raw data'!C33 -> 3.3507738e-06 | F28: 1.275221939e-05 | G28: 1.456273146e-05 | H28: 3.355732945e-06 | J28: 2.631990064e-05 | K28: 5.391538774e-05 | L28: 3.3130772e-05 | M28: 0.0002245646844 | N28: 6.349803815e-09
A29: 11.43591 | B29: ='DF raw data'!A34 -> 1.4843395e-05 | C29: ='DF raw data'!B34 -> -9.2298797e-06 | D29: ='DF raw data'!C34 -> -1.1214663e-06 | F29: 1.486536322e-05 | G29: -9.26366759e-06 | H29: -1.12312607e-06 | J29: 3.375510936e-05 | K29: 7.079868079e-05 | L29: 2.849736339e-05 | M29: 0.0002388182107 | N29: 7.325889136e-09
A30: 11.93608 | B30: ='DF raw data'!A35 -> 9.8040155e-06 | C30: ='DF raw data'!B35 -> 6.3185638e-07 | D30: ='DF raw data'!C35 -> -2.6267892e-06 | F30: 9.818525443e-06 | G30: 6.341694214e-07 | H30: -2.630676848e-06 | J30: 3.866604124e-05 | K30: 9.013827464e-05 | L30: 2.88145559e-05 | M30: 0.0002532303871 | N30: 8.488955132e-09
A31: 12.43625 | B31: ='DF raw data'!A36 -> 8.2610322e-06 | C31: ='DF raw data'!B36 -> 1.0461168e-05 | D31: ='DF raw data'!C36 -> 1.1004511e-06 | F31: 8.273258528e-06 | G31: 1.049946328e-05 | H31: 1.102079768e-06 | J31: 4.280407695e-05 | K31: 0.0001115475898 | L31: 3.406607245e-05 | M31: 0.0002702692146 | N31: 9.985807037e-09
A32: 12.93642 | B32: ='DF raw data'!A37 -> 7.6777769e-06 | C32: ='DF raw data'!B37 -> 1.2714887e-05 | D32: ='DF raw data'!C37 -> 8.0940144e-06 | F32: 7.68914001e-06 | G32: 1.276143248e-05 | H32: 8.105993541e-06 | J32: 4.664995411e-05 | K32: 0.0001348804974 | L32: 4.044895814e-05 | M32: 0.0002905005699 | N32: 1.189262335e-08
A33: 13.43659 | B33: ='DF raw data'!A38 -> 2.597601e-06 | C33: ='DF raw data'!B38 -> 4.3431332e-06 | D33: ='DF raw data'!C38 -> -2.8347975e-07 | F33: 2.601445449e-06 | G33: 4.35903214e-06 | H33: -2.838993e-07 | J33: 4.795111908e-05 | K33: 0.0001588642086 | L33: 4.262921524e-05 | M33: 0.0003118224245 | N33: 1.395160307e-08
A34: 13.93676 | B34: ='DF raw data'!A39 -> 4.870213e-08 | C34: ='DF raw data'!B39 -> -2.8277768e-06 | D34: ='DF raw data'!C39 -> 2.2393098e-07 | F34: 4.877420915e-08 | G34: -2.838128464e-06 | H34: 2.242623979e-07 | J34: 4.797551448e-05 | K34: 0.0001828601217 | L34: 4.120966853e-05 | M34: 0.0003324342644 | N34: 1.595222644e-08
A35: 14.43693 | B35: ='DF raw data'!A40 -> -1.4801949e-06 | C35: ='DF raw data'!B40 -> -1.3133781e-06 | D35: ='DF raw data'!C40 -> 2.3603122e-06 | F35: -1.482385588e-06 | G35: -1.318185993e-06 | H35: 2.363805462e-06 | J35: 4.723406968e-05 | K35: 0.0002064851863 | L35: 4.055035144e-05 | M35: 0.0003527163337 | N35: 1.789057942e-08
A36: 14.9371 | B36: ='DF raw data'!A41 -> -1.5055589e-06 | C36: ='DF raw data'!B41 -> -1.9214058e-06 | D36: ='DF raw data'!C41 -> 8.5028505e-06 | F36: -1.507787127e-06 | G36: -1.928439505e-06 | H36: 8.515434719e-06 | J36: 4.647991979e-05 | K36: 0.0002297330478 | L36: 3.958580385e-05 | M36: 0.0003725159652 | N36: 1.975492249e-08
A37: 15.43727 | B37: ='DF raw data'!A42 -> -4.8354872e-07 | C37: ='DF raw data'!B42 -> -3.9700038e-07 | D37: ='DF raw data'!C42 -> 4.8961579e-06 | F37: -4.842643721e-07 | G37: -3.984536823e-07 | H37: 4.903404214e-06 | J37: 4.623770528e-05 | K37: 0.0002528597608 | L37: 3.938650927e-05 | M37: 0.0003922159156 | N37: 2.160016091e-08
A38: 15.93744 | B38: ='DF raw data'!A43 -> 4.0822175e-07 | C38: ='DF raw data'!B43 -> -2.6181624e-06 | D38: ='DF raw data'!C43 -> -4.6588771e-06 | F38: 4.088259182e-07 | G38: -2.627746727e-06 | H38: -4.665772238e-06 | J38: 4.644218774e-05 | K38: 0.0002760887499 | L38: 3.807218919e-05 | M38: 0.0004112584824 | N38: 2.340395819e-08
A39: 16.43761 | B39: ='DF raw data'!A44 -> 3.5431117e-06 | C39: ='DF raw data'!B44 -> -5.4609618e-06 | D39: ='DF raw data'!C44 -> -1.8793737e-06 | F39: 3.548355505e-06 | G39: -5.480952784e-06 | H39: -1.882155173e-06 | J39: 4.821696871e-05 | K39: 0.0003002054311 | L39: 3.533078104e-05 | M39: 0.0004289298792 | N39: 2.51911357e-08
A40: 16.93778 | B40: ='DF raw data'!A45 -> 4.6008176e-06 | C40: ='DF raw data'!B45 -> 6.5904474e-06 | D40: ='DF raw data'!C45 -> 2.2600786e-06 | F40: 4.60762681e-06 | G40: 6.6145731e-06 | H40: 2.263423516e-06 | J40: 5.052156541e-05 | K40: 0.0003254748025 | L40: 3.863919207e-05 | M40: 0.0004482560439 | N40: 2.721453129e-08
A41: 17.43795 | B41: ='DF raw data'!A46 -> 1.5476949e-06 | C41: ='DF raw data'!B46 -> 1.3002689e-05 | D41: ='DF raw data'!C46 -> 2.9620921e-06 | F41: 1.549985488e-06 | G41: 1.305028804e-05 | H41: 2.966475996e-06 | J41: 5.129682166e-05 | K41: 0.0003511319338 | L41: 4.516655464e-05 | M41: 0.0004708469995 | N41: 2.955101621e-08
A42: 17.93812 | B42: ='DF raw data'!A47 -> -1.2555715e-06 | C42: ='DF raw data'!B47 -> -3.1744203e-06 | D42: ='DF raw data'!C47 -> 8.3928785e-07 | F42: -1.257429746e-06 | G42: -3.186040924e-06 | H42: 8.40529996e-07 | J42: 5.066789302e-05 | K42: 0.0003764744938 | L42: 4.357299255e-05 | M42: 0.0004926409032 | N42: 3.178469594e-08
A43: 18.43829 | B43: ='DF raw data'!A48 -> -3.0751721e-06 | C43: ='DF raw data'!B48 -> -1.0484895e-05 | D43: ='DF raw data'!C48 -> -3.5462956e-06 | F43: -3.079723355e-06 | G43: -1.052327713e-05 | H43: -3.551544117e-06 | J43: 4.912750779e-05 | K43: 0.0004010465994 | L43: 3.830956502e-05 | M43: 0.0005118021983 | N43: 3.372592312e-08
A44: 18.93846 | B44: ='DF raw data'!A49 -> 4.4867608e-07 | C44: ='DF raw data'!B49 -> -3.3350668e-06 | D44: ='DF raw data'!C49 -> -5.7843804e-06 | F44: 4.493401206e-07 | G44: -3.347275504e-06 | H44: -5.792941283e-06 | J44: 4.935225424e-05 | K44: 0.0004257311164 | L44: 3.663535824e-05 | M44: 0.0005301261055 | N44: 3.561546259e-08
A45: 19.43863 | B45: ='DF raw data'!A50 -> 5.3647641e-06 | C45: ='DF raw data'!B50 -> -1.7754364e-06 | D45: ='DF raw data'!C50 -> -2.4398262e-06 | F45: 5.372703951e-06 | G45: -1.781935753e-06 | H45: -2.443437143e-06 | J45: 5.203951957e-05 | K45: 0.0004517597229 | L45: 3.574408743e-05 | M45: 0.0005480042257 | N45: 3.760901586e-08
A46: 19.9388 | B46: ='DF raw data'!A51 -> 4.6366008e-06 | C46: ='DF raw data'!B51 -> 9.8229866e-06 | D46: ='DF raw data'!C51 -> -7.0359906e-06 | F46: 4.643462969e-06 | G46: 9.858945681e-06 | H46: -7.046403866e-06 | J46: 5.436204045e-05 | K46: 0.0004789499847 | L46: 4.067523629e-05 | M46: 0.0005683487586 | N46: 3.991465265e-08
A47: 20.43897 | B47: ='DF raw data'!A52 -> 4.9980413e-06 | C47: ='DF raw data'!B52 -> 2.4734186e-06 | D47: ='DF raw data'!C52 -> -3.5592032e-06 | F47: 5.005438401e-06 | G47: 2.482473062e-06 | H47: -3.564470821e-06 | J47: 5.686561057e-05 | K47: 0.0005073924571 | L47: 4.191689484e-05 | M47: 0.0005893143319 | N47: 4.241086294e-08
A48: 20.93914 | B48: ='DF raw data'!A53 -> 5.175531e-06 | C48: ='DF raw data'!B53 -> 9.6489066e-07 | D48: ='DF raw data'!C53 -> 3.3585591e-06 | F48: 5.183190786e-06 | G48: 9.684228425e-07 | H48: 3.363529767e-06 | J48: 5.945808711e-05 | K48: 0.0005371316085 | L48: 4.24012709e-05 | M48: 0.0006105221756 | N48: 4.507833552e-08
A49: 21.43931 | B49: ='DF raw data'!A54 -> 3.7650575e-06 | C49: ='DF raw data'!B54 -> -2.6317323e-07 | D49: ='DF raw data'!C54 -> -1.0491142e-06 | F49: 3.770629785e-06 | G49: -2.641366302e-07 | H49: -1.050666889e-06 | J49: 6.134404301e-05 | K49: 0.0005678140585 | L49: 4.226915768e-05 | M49: 0.0006316639402 | N49: 4.785416564e-08
A50: 21.93948 | B50: ='DF raw data'!A55 -> 4.019163e-06 | C50: ='DF raw data'!B55 -> 2.872232e-06 | D50: ='DF raw data'!C55 -> 1.0531865e-06 | F50: 4.025111361e-06 | G50: 2.882746401e-06 | H50: 1.054745216e-06 | J50: 6.335728296e-05 | K50: 0.0005995034707 | L50: 4.371102094e-05 | M50: 0.0006535268815 | N50: 5.081757218e-08
A51: 22.43965 | B51: ='DF raw data'!A56 -> 1.6189847e-06 | C51: ='DF raw data'!B56 -> -2.0953948e-06 | D51: ='DF raw data'!C56 -> 7.6664646e-06 | F51: 1.621380797e-06 | G51: -2.103065427e-06 | H51: 7.677810968e-06 | J51: 6.416824899e-05 | K51: 0.0006315985038 | L51: 4.265913071e-05 | M51: 0.0006748636989 | N51: 5.378726434e-08
A52: 22.93982 | B52: ='DF raw data'!A57 -> -2.2978088e-06 | C52: ='DF raw data'!B57 -> -1.3457119e-05 | D52: ='DF raw data'!C57 -> 5.1533921e-06 | F52: -2.301209557e-06 | G52: -1.350638158e-05 | H52: 5.16101912e-06 | J52: 6.301725301e-05 | K52: 0.0006631178433 | L52: 3.590364384e-05 | M52: 0.0006928216245 | N52: 5.641828149e-08
A53: 23.43999 | B53: ='DF raw data'!A58 -> -4.8896795e-06 | C53: ='DF raw data'!B58 -> -3.668101e-06 | D53: ='DF raw data'!C58 -> 5.5136393e-06 | F53: -4.896916226e-06 | G53: -3.681528845e-06 | H53: 5.521799486e-06 | J53: 6.056796242e-05 | K53: 0.000693412121 | L53: 3.406225355e-05 | M53: 0.0007098585418 | N53: 5.883345996e-08
A54: 23.94016 | B54: ='DF raw data'!A59 -> -5.4742736e-06 | C54: ='DF raw data'!B59 -> 1.316934e-05 | D54: ='DF raw data'!C59 -> 7.0278825e-06 | F54: -5.482375525e-06 | G54: 1.32175491e-05 | H54: 7.038283766e-06 | J54: 5.782584265e-05 | K54: 0.0007223348728 | L54: 4.067327509e-05 | M54: 0.0007302020938 | N54: 6.133338134e-08
A55: 24.44033 | B55: ='DF raw data'!A60 -> -2.0389448e-06 | C55: ='DF raw data'!B60 -> 7.5690018e-06 | D55: ='DF raw data'!C60 -> 8.717564e-06 | F55: -2.041962438e-06 | G55: 7.596709702e-06 | H55: 8.730465995e-06 | J55: 5.68045143e-05 | K55: 0.0007507467867 | L55: 4.447292138e-05 | M55: 0.0007524461149 | N55: 6.393656291e-08
A56: 24.9405 | B56: ='DF raw data'!A61 -> 1.3237554e-06 | C56: ='DF raw data'!B61 -> 4.4570802e-06 | D56: ='DF raw data'!C61 -> 3.1535662e-06 | F56: 1.325714558e-06 | G56: 4.473396267e-06 | H56: 3.158233478e-06 | J56: 5.746759695e-05 | K56: 0.0007794903546 | L56: 4.671037999e-05 | M56: 0.0007758092457 | N56: 6.667968741e-08
A57: 25.44067 | B57: ='DF raw data'!A62 -> 1.6865357e-07 | C57: ='DF raw data'!B62 -> 1.3650383e-06 | D57: ='DF raw data'!C62 -> -7.5647517e-07 | F57: 1.689031773e-07 | G57: 1.370035306e-06 | H57: -7.575947533e-07 | J57: 5.755207725e-05 | K57: 0.0008082761771 | L57: 4.739563055e-05 | M57: 0.0007995151182 | N57: 6.945992606e-08
A58: 25.94084 | B58: ='DF raw data'!A63 -> -1.5829896e-06 | C58: ='DF raw data'!B63 -> 1.0715881e-05 | D58: ='DF raw data'!C63 -> 7.4650075e-06 | F58: -1.585332425e-06 | G58: 1.075510871e-05 | H58: 7.476055711e-06 | J58: 5.675914153e-05 | K58: 0.0008366653969 | L58: 5.277501327e-05 | M58: 0.0008259115966 | N58: 7.24643483e-08
A59: 26.44101 | B59: ='DF raw data'!A64 -> 6.2453694e-08 | C59: ='DF raw data'!B64 -> -8.2490129e-07 | D59: ='DF raw data'!C64 -> 1.4691314e-05 | F59: 6.254612547e-08 | G59: -8.279210123e-07 | H59: 1.471305714e-05 | J59: 5.679042523e-05 | K59: 0.0008650702639 | L59: 5.236091202e-05 | M59: 0.000852100954 | N59: 7.544877142e-08
A60: 26.94118 | B60: ='DF raw data'!A65 -> 9.8840655e-07 | C60: ='DF raw data'!B65 -> -9.2757782e-06 | D60: ='DF raw data'!C65 -> 1.3316973e-05 | F60: 9.898693917e-07 | G60: -9.309734111e-06 | H60: 1.333668212e-05 | J60: 5.72855282e-05 | K60: 0.0008937227666 | L60: 4.770446231e-05 | M60: 0.0008759612949 | N60: 7.82283899e-08
A61: 27.44135 | B61: ='DF raw data'!A66 -> 1.6557897e-09 | C61: ='DF raw data'!B66 -> -4.2685233e-06 | D61: ='DF raw data'!C66 -> 3.4685101e-07 | F61: 1.658240269e-09 | G61: -4.284149115e-06 | H61: 3.473643495e-07 | J61: 5.72863576e-05 | K61: 0.0009223756841 | L61: 4.556165945e-05 | M61: 0.0008987498701 | N61: 8.090809648e-08
A62: 27.94152 | B62: ='DF raw data'!A67 -> 2.080033e-06 | C62: ='DF raw data'!B67 -> -1.1975635e-06 | D62: ='DF raw data'!C67 -> -1.1723861e-05 | F62: 2.083111449e-06 | G62: -1.20194743e-06 | H62: -1.174121231e-05 | J62: 5.832826746e-05 | K62: 0.0009515497336 | L62: 4.49604814e-05 | M62: 0.0009212377541 | N62: 8.362083433e-08
A63: 28.44169 | B63: ='DF raw data'!A68 -> 3.8600961e-06 | C63: ='DF raw data'!B68 -> -5.1388275e-07 | D63: ='DF raw data'!C68 -> -3.5101486e-06 | F63: 3.865809042e-06 | G63: -5.157639244e-07 | H63: -3.51534362e-06 | J63: 6.026182917e-05 | K63: 0.0009816908927 | L63: 4.470251176e-05 | M63: 0.0009435966094 | N63: 8.64366927e-08
A64: 28.94186 | B64: ='DF raw data'!A69 -> 1.7360694e-06 | C64: ='DF raw data'!B69 -> -2.0216098e-06 | D64: ='DF raw data'!C69 -> -5.6330987e-06 | F64: 1.738638783e-06 | G64: -2.029010322e-06 | H64: -5.641435686e-06 | J64: 6.113144412e-05 | K64: 0.001012267007 | L64: 4.368766166e-05 | M64: 0.0009654478671 | N64: 8.926048509e-08
A65: 29.44203 | B65: ='DF raw data'!A70 -> -1.153519e-06 | C65: ='DF raw data'!B70 -> 5.5411761e-06 | D65: ='DF raw data'!C70 -> -7.6690567e-06 | F65: -1.155226208e-06 | G65: 5.561460725e-06 | H65: -7.680406904e-06 | J65: 6.055363463e-05 | K65: 0.001042554119 | L65: 4.646933748e-05 | M65: 0.0009886904356 | N65: 9.217454653e-08
A66: 29.9422 | B66: ='DF raw data'!A71 -> -7.8024772e-07 | C66: ='DF raw data'!B71 -> 7.2746611e-06 | D66: ='DF raw data'!C71 -> -7.4600771e-06 | F66: -7.814024866e-07 | G66: 7.301291506e-06 | H66: -7.471118014e-06 | J66: 6.016280055e-05 | K66: 0.001072645746 | L66: 5.012122445e-05 | M66: 0.001013759568 | N66: 9.524143877e-08
A67: 30.44237 | B67: ='DF raw data'!A72 -> -1.2177355e-07 | C67: ='DF raw data'!B72 -> 3.2873236e-06 | D67: ='DF raw data'!C72 -> -7.0110923e-06 | F67: -1.219537749e-07 | G67: 3.29935753e-06 | H67: -7.021468717e-06 | J67: 6.010180293e-05 | K67: 0.001102706865 | L67: 5.17714641e-05 | M67: 0.001039654102 | N67: 9.83887641e-08
A68: 30.94254 | B68: ='DF raw data'!A73 -> -8.8451219e-07 | C68: ='DF raw data'!B73 -> -4.0967601e-07 | D68: ='DF raw data'!C73 -> -3.7393445e-07 | F68: -8.85821268e-07 | G68: -4.11175714e-07 | H68: -3.74487873e-07 | J68: 5.965874171e-05 | K68: 0.001132546378 | L68: 5.156580635e-05 | M68: 0.001065445771 | N68: 1.014989201e-07
A69: 31.44271 | B69: ='DF raw data'!A74 -> -3.7139575e-06 | C69: ='DF raw data'!B74 -> 3.0309181e-07 | D69: ='DF raw data'!C74 -> -2.7945728e-06 | F69: -3.719454157e-06 | G69: 3.042013405e-07 | H69: -2.798708768e-06 | J69: 5.779838232e-05 | K69: 0.001161455395 | L69: 5.171795873e-05 | M69: 0.001091313542 | N69: 1.045076429e-07
A70: 31.94288 | B70: ='DF raw data'!A75 -> -8.5509555e-06 | C70: ='DF raw data'!B75 -> 6.9229477e-06 | D70: ='DF raw data'!C75 -> 1.4834575e-06 | F70: -8.563610914e-06 | G70: 6.948290586e-06 | H70: 1.485653017e-06 | J70: 5.351512105e-05 | K70: 0.001188222053 | L70: 5.519328523e-05 | M70: 0.001118919568 | N70: 1.074637311e-07
A71: 32.44305 | B71: ='DF raw data'!A76 -> -1.2058782e-05 | C71: ='DF raw data'!B76 -> -5.8761871e-06 | D71: ='DF raw data'!C76 -> 4.6170958e-06 | F71: -1.2076629e-05 | G71: =(1-$G$1*($B$2-$G$2))*C71*$M$2/$M$1 -> -5.897698102e-06 | H71: 4.623929102e-06 | J71: 4.747475353e-05 | K71: 0.001211967501 | L71: 5.224343357e-05 | M71: 0.001145050166 | N71: 1.099561925e-07
A72: =A71+$B$1 -> 32.94322 | B72: ='DF raw data'!A77 -> -1.2608131e-05 | C72: ='DF raw data'!B77 -> -9.2869859e-06 | D72: ='DF raw data'!C77 -> 8.7706057e-06 | F72: -1.262679103e-05 | G72: -9.320982839e-06 | H72: 8.783586196e-06 | J72: =F72*$B$1+J71 -> 4.115921145e-05 | K72: =J72*$B$1+K71 -> 0.001232554103 | L72: =G72*$B$1+L71 -> 4.758135759e-05 | M72: =L72*$B$1+M71 -> 0.001168848934 | N72: =(J72^2+L72^2)*$B$1+N71 -> 1.119358985e-07
A73: 33.44339 | B73: ='DF raw data'!A78 -> -6.5945383e-06 | C73: ='DF raw data'!B78 -> -9.135546e-06 | D73: ='DF raw data'!C78 -> 8.6904683e-06 | F73: -6.604298217e-06 | G73: -9.168988562e-06 | H73: 8.703330193e-06 | J73: 3.785593961e-05 | K73: 0.001251488509 | L73: 4.299530458e-05 | M73: 0.001190353895 | N73: 1.135772906e-07
A74: 33.94356 | B74: ='DF raw data'!A79 -> -1.2694541e-06 | C74: ='DF raw data'!B79 -> -9.2342825e-06 | D74: ='DF raw data'!C79 -> 1.3401793e-06 | F74: -1.271332892e-06 | G74: -9.268086507e-06 | H74: 1.342162765e-06 | J74: 3.722005704e-05 | K74: 0.001270104865 | L74: 3.835968575e-05 | M74: 0.001209540259 | N74: 1.150061753e-07
A75: 34.44373 | B75: ='DF raw data'!A80 -> -3.1732957e-06 | C75: ='DF raw data'!B80 -> -3.8797166e-06 | D75: ='DF raw data'!C80 -> -1.4865946e-08 | F75: =(1-$G$1*($B$2-$G$2))*B75 -> -3.177992178e-06 | G75: -3.893919108e-06 | H75: =(1-$G$1*($B$2-$G$2))*D75 -> -1.48879476e-08 | J75: 3.563052069e-05 | K75: 0.001287926182 | L75: 3.641206423e-05 | M75: 0.001227752481 | N75: 1.163043027e-07
A76: 34.9439 | B76: ='DF raw data'!A81 -> -4.6771488e-06 | C76: ='DF raw data'!B81 -> -7.2902485e-06 | D76: ='DF raw data'!C81 -> 3.0210565e-06 | F76: -4.68407098e-06 | G76: -7.316935967e-06 | H76: 3.025527664e-06 | J76: 3.328768891e-05 | K76: 0.001304575685 | L76: 3.275235237e-05 | M76: 0.001244134225 | N76: 1.173950669e-07
A77: 35.44407 | B77: ='DF raw data'!A82 -> -4.8015822e-06 | C77: ='DF raw data'!B82 -> -1.2122405e-06 | D77: ='DF raw data'!C82 -> -6.0827965e-06 | F77: -4.808688542e-06 | G77: -1.216678158e-06 | H77: -6.091799039e-06 | J77: 3.088252716e-05 | K77: 0.001320022199 | L77: 3.214380645e-05 | M77: 0.001260211593 | N77: 1.18388882e-07
A78: 35.94424 | B78: ='DF raw data'!A83 -> -5.9222252e-06 | C78: ='DF raw data'!B83 -> -6.4543274e-06 | D78: ='DF raw data'!C83 -> -7.7928353e-06 | F78: -5.930990093e-06 | G78: -6.477954805e-06 | H78: -7.804368696e-06 | J78: 2.791602385e-05 | K78: 0.001333984957 | L78: 2.89037278e-05 | M78: 0.001274668371 | N78: 1.191965215e-07
A79: 36.44441 | B79: ='DF raw data'!A84 -> -5.0416015e-06 | C79: ='DF raw data'!B84 -> -3.1882969e-06 | D79: ='DF raw data'!C84 -> 1.4427267e-06 | F79: -5.04906307e-06 | G79: -3.199968322e-06 | H79: 1.444861936e-06 | J79: 2.539063397e-05 | K79: 0.00134668459 | L79: 2.730319964e-05 | M79: 0.001288324612 | N79: 1.198918323e-07
A80: 36.94458 | B80: ='DF raw data'!A85 -> -3.839788e-06 | C80: ='DF raw data'!B85 -> -6.3089834e-07 | D80: ='DF raw data'!C85 -> 7.3406904e-06 | F80: -3.845470886e-06 | G80: -6.332078743e-07 | H80: 7.351554622e-06 | J80: 2.34672448e-05 | K80: 0.001358422202 | L80: 2.698648806e-05 | M80: 0.001301822444 | N80: 1.205315408e-07
A81: 37.44475 | B81: ='DF raw data'!A86 -> 2.0136628e-07 | C81: ='DF raw data'!B86 -> -5.8213486e-06 | D81: ='DF raw data'!C86 -> 1.0151262e-05 | F81: 2.016643021e-07 | G81: -5.842658854e-06 | H81: 1.016628587e-05 | J81: 2.356811123e-05 | K81: 0.001370210264 | L81: 2.406416538e-05 | M81: 0.001313858617 | N81: 1.210990036e-07
A82: 37.94492 | B82: ='DF raw data'!A87 -> 4.1813732e-06 | C82: ='DF raw data'!B87 -> 3.7862078e-06 | D82: ='DF raw data'!C87 -> 1.306441e-05 | F82: 4.187561632e-06 | G82: 3.800067999e-06 | H82: 1.308374533e-05 | J82: 2.566260394e-05 | K82: 0.001383045929 | L82: 2.596484539e-05 | M82: 0.001326845454 | N82: 1.217656014e-07
A83: 38.44509 | B83: ='DF raw data'!A88 -> 2.9113257e-06 | C83: ='DF raw data'!B88 -> -3.3250597e-06 | D83: ='DF raw data'!C88 -> 1.5080389e-05 | F83: 2.915634462e-06 | G83: -3.337231771e-06 | H83: 1.510270798e-05 | J83: 2.712091683e-05 | K83: 0.001396610998 | L83: 2.429566218e-05 | M83: 0.001338997415 | N83: 1.224287385e-07
A84: 38.94526 | B84: ='DF raw data'!A89 -> 1.4109942e-06 | C84: ='DF raw data'!B89 -> -1.8057244e-06 | D84: ='DF raw data'!C89 -> 1.4040291e-05 | F84: 1.413082471e-06 | G84: -1.812334629e-06 | H84: 1.406107063e-05 | J84: 2.782769828e-05 | K84: 0.001410529578 | L84: 2.338918677e-05 | M84: 0.001350695985 | N84: 1.230896805e-07
A85: 39.44543 | B85: ='DF raw data'!A90 -> -1.2250125e-06 | C85: ='DF raw data'!B90 -> 3.1883607e-07 | D85: ='DF raw data'!C90 -> -4.5826687e-06 | F85: -1.226825518e-06 | G85: 3.200032356e-07 | H85: -4.58945105e-06 | J85: 2.721407697e-05 | K85: 0.001424141242 | L85: 2.354924278e-05 | M85: 0.00136247461 | N85: 1.237374871e-07
A86: 39.9456 | B86: ='DF raw data'!A91 -> -7.1606951e-06 | C86: ='DF raw data'!B91 -> 6.5337404e-06 | D86: ='DF raw data'!C91 -> -6.2549166e-06 | F86: -7.171292929e-06 | G86: 6.557658512e-06 | H86: -6.264173877e-06 | J86: 2.362721138e-05 | K86: 0.001435958865 | L86: 2.682918684e-05 | M86: 0.001375893764 | N86: 1.243767296e-07
A87: 40.44577 | B87: ='DF raw data'!A92 -> -8.6944665e-06 | C87: ='DF raw data'!B92 -> 6.0356973e-07 | D87: ='DF raw data'!C92 -> 4.5981201e-06 | F87: -8.70733431e-06 | G87: 6.057792222e-07 | H87: 4.604925318e-06 | J87: 1.927206398e-05 | K87: 0.001445598173 | L87: 2.713217944e-05 | M87: 0.001389464466 | N87: 1.249307017e-07
A88: 40.94594 | B88: ='DF raw data'!A93 -> -3.4701256e-06 | C88: ='DF raw data'!B93 -> -6.5762797e-06 | D88: ='DF raw data'!C93 -> 3.75376e-06 | F88: -3.475261386e-06 | G88: -6.600353536e-06 | H88: 3.759315565e-06 | J88: 1.753384249e-05 | K88: 0.001454368075 | L88: 2.383088061e-05 | M88: 0.001401383958 | N88: 1.253685237e-07
A89: 41.44611 | B89: ='DF raw data'!A94 -> 2.1887649e-06 | C89: ='DF raw data'!B94 -> -4.1316271e-06 | D89: ='DF raw data'!C94 -> 1.5647299e-06 | F89: 2.192004272e-06 | G89: -4.146751778e-06 | H89: 1.5670457e-06 | J89: 1.863021727e-05 | K89: 0.001463686351 | L89: 2.175679977e-05 | M89: 0.001412266056 | N89: 1.257788849e-07
A90: 41.94628 | B90: ='DF raw data'!A95 -> 2.7803003e-06 | C90: ='DF raw data'!B95 -> 3.1393533e-06 | D90: ='DF raw data'!C95 -> -4.623676e-06 | F90: 2.784415144e-06 | G90: 3.150845554e-06 | H90: -4.63051904e-06 | J90: 2.002289819e-05 | K90: 0.001473701204 | L90: 2.333275819e-05 | M90: 0.001423936402 | N90: 1.262517126e-07
A91: 42.44645 | B91: ='DF raw data'!A96 -> -1.7927118e-06 | C91: ='DF raw data'!B96 -> 1.4070374e-05 | D91: ='DF raw data'!C96 -> 1.888641e-06 | F91: -1.795365013e-06 | G91: 1.412188152e-05 | H91: 1.891436189e-06 | J91: 1.912491047e-05 | K91: 0.00148326691 | L91: 3.039609967e-05 | M91: 0.001439139619 | N91: 1.268967744e-07
A92: 42.94662 | B92: ='DF raw data'!A97 -> -3.0897822e-06 | C92: ='DF raw data'!B97 -> 5.6539216e-06 | D92: ='DF raw data'!C97 -> -2.8338338e-06 | F92: -3.094355078e-06 | G92: 5.674618953e-06 | H92: -2.838027874e-06 | J92: 1.757720689e-05 | K92: 0.001492058502 | L92: 3.323437384e-05 | M92: 0.001455762456 | N92: 1.276037556e-07
A93: 43.44679 | B93: ='DF raw data'!A98 -> -2.0876064e-06 | C93: ='DF raw data'!B98 -> -1.1307166e-06 | D93: ='DF raw data'!C98 -> -1.2163983e-05 | F93: -2.090696057e-06 | G93: -1.134855823e-06 | H93: -1.218198569e-05 | J93: 1.653150345e-05 | K93: 0.001500327064 | L93: 3.2666753e-05 | M93: 0.001472101386 | N93: 1.282741871e-07
A94: 43.94696 | B94: ='DF raw data'!A99 -> -1.418844e-06 | C94: ='DF raw data'!B99 -> 1.1119631e-05 | D94: ='DF raw data'!C99 -> -1.1730176e-05 | F94: -1.420943889e-06 | G94: 1.116033672e-05 | H94: -1.174753666e-05 | J94: 1.582078994e-05 | K94: 0.001508240148 | L94: 3.824881861e-05 | M94: 0.001491232297 | N94: 1.291311132e-07
A95: 44.44713 | B95: ='DF raw data'!A100 -> 5.109247e-06 | C95: ='DF raw data'!B100 -> 4.1603375e-06 | D95: ='DF raw data'!C100 -> -3.5072237e-06 | F95: 5.116808686e-06 | G95: 4.175567279e-06 | H95: -3.512414391e-06 | J95: 1.838006414e-05 | K95: 0.001517433305 | L95: 4.03373121e-05 | M95: 0.001511407811 | N95: 1.301139099e-07
A96: 44.9473 | B96: ='DF raw data'!A101 -> 1.1667927e-05 | C96: ='DF raw data'!B101 -> -1.0341461e-05 | D96: ='DF raw data'!C101 -> 2.0309442e-06 | F96: 1.168519553e-05 | G96: -1.037931806e-05 | H96: 2.033949997e-06 | J96: 2.422464839e-05 | K96: 0.001529549747 | L96: 3.514588858e-05 | M96: 0.00152898673 | N96: 1.310252532e-07
A97: 45.44747 | B97: ='DF raw data'!A102 -> 7.7154227e-06 | C97: ='DF raw data'!B102 -> -7.2890475e-06 | D97: ='DF raw data'!C102 -> 2.3177915e-06 | F97: 7.726841526e-06 | G97: -7.315730571e-06 | H97: 2.321221831e-06 | J97: 2.808938272e-05 | K97: 0.001543599214 | L97: 3.148677962e-05 | M97: 0.001544735473 | N97: 1.319157713e-07
A98: 45.94764 | B98: ='DF raw data'!A103 -> 2.1971759e-06 | C98: ='DF raw data'!B103 -> 5.3402341e-06 | D98: ='DF raw data'!C103 -> -5.5360665e-06 | F98: 2.20042772e-06 | G98: 5.359783135e-06 | H98: -5.544259878e-06 | J98: 2.918997065e-05 | K98: 0.001558199162 | L98: 3.416758235e-05 | M98: 0.001561825072 | N98: 1.329258536e-07
A99: 46.44781 | B99: ='DF raw data'!A104 -> 7.2060772e-07 | C99: ='DF raw data'!B104 -> 8.8910423e-07 | D99: ='DF raw data'!C104 -> -4.2323313e-06 | F99: 7.216742194e-07 | G99: 8.923589805e-07 | H99: -4.23859515e-06 | J99: 2.955093044e-05 | K99: 0.001572979651 | L99: 3.461391355e-05 | M99: 0.001579137913 | N99: 1.33961896e-07
A100: 46.94798 | B100: ='DF raw data'!A105 -> -4.2861524e-07 | C100: ='DF raw data'!B105 -> 2.1430528e-06 | D100: ='DF raw data'!C105 -> -2.9687446e-06 | F100: -4.292495906e-07 | G100: 2.150897889e-06 | H100: -2.973138342e-06 | J100: 2.933623268e-05 | K100: 0.001587652754 | L100: 3.568972814e-05 | M100: 0.001596988845 | N100: 1.350294445e-07
A101: 47.44815 | B101: ='DF raw data'!A106 -> 1.458317e-06 | C101: ='DF raw data'!B106 -> 3.8996209e-06 | D101: ='DF raw data'!C106 -> -1.8113581e-06 | F101: 1.460475309e-06 | G101: 3.913896271e-06 | H101: -1.81403891e-06 | J101: 3.006671861e-05 | K101: 0.001602691225 | L101: 3.764734164e-05 | M101: 0.001615818916 | N101: 1.36190504e-07
A102: 47.94832 | B102: ='DF raw data'!A107 -> 3.9257106e-06 | C102: ='DF raw data'!B107 -> 3.3362917e-06 | D102: ='DF raw data'!C107 -> 1.9338651e-07 | F102: 3.931520652e-06 | G102: 3.348504888e-06 | H102: 1.93672722e-07 | J102: 3.20331473e-05 | K102: 0.001618713244 | L102: 3.932216333e-05 | M102: 0.001635486682 | N102: 1.374771189e-07
A103: 48.44849 | B103: ='DF raw data'!A108 -> 2.5899321e-06 | C103: ='DF raw data'!B108 -> -1.4748252e-06 | D103: ='DF raw data'!C108 -> 2.4698591e-06 | F103: 2.5937652e-06 | G103: -1.480224104e-06 | H103: 2.473514491e-06 | J103: 3.333047084e-05 | K103: 0.001635384146 | L103: 3.858179964e-05 | M103: 0.001654784141 | N103: 1.387772985e-07
A104: 48.94866 | B104: ='DF raw data'!A109 -> -1.0887629e-06 | C104: ='DF raw data'!B109 -> -3.4930445e-06 | D104: ='DF raw data'!C109 -> -2.1875251e-06 | F104: -1.090374269e-06 | G104: -3.505831514e-06 | H104: -2.190762637e-06 | J104: 3.278509834e-05 | K104: 0.001651782268 | L104: 3.682828789e-05 | M104: 0.001673204545 | N104: 1.399933046e-07
A105: 49.44883 | B105: ='DF raw data'!A110 -> -2.729666e-06 | C105: ='DF raw data'!B110 -> -1.150197e-06 | D105: ='DF raw data'!C110 -> -1.2094629e-05 | F105: -2.733705906e-06 | G105: -1.154407535e-06 | H105: -1.211252905e-05 | J105: 3.141778065e-05 | K105: 0.0016674965 | L105: 3.625088788e-05 | M105: 0.001691336152 | N105: 1.411442977e-07
A106: 49.949 | B106: ='DF raw data'!A111 -> -3.0352562e-06 | C106: ='DF raw data'!B111 -> -5.4405477e-06 | D106: ='DF raw data'!C111 -> -7.2560156e-06 | F106: -3.039748379e-06 | G106: -5.460463954e-06 | H106: -7.266754503e-06 | J106: 2.989738971e-05 | K106: 0.001682450277 | L106: 3.351972762e-05 | M106: 0.001708101714 | N106: 1.421533537e-07
A107: 50.44917 | B107: ='DF raw data'!A112 -> -1.668162e-06 | C107: ='DF raw data'!B112 -> -1.5149867e-06 | D107: ='DF raw data'!C112 -> -5.6772201e-06 | F107: -1.67063088e-06 | G107: -1.520532623e-06 | H107: -5.685622386e-06 | J107: 2.906179026e-05 | K107: 0.001696986113 | L107: 3.275920282e-05 | M107: 0.001724486885 | N107: 1.431125562e-07
A108: 50.94934 | B108: ='DF raw data'!A113 -> 2.3928119e-06 | C108: ='DF raw data'!B113 -> -8.5760857e-06 | D108: ='DF raw data'!C113 -> -2.8930601e-06 | F108: 2.396353262e-06 | G108: -8.607480241e-06 | H108: -2.897341829e-06 | J108: 3.026037427e-05 | K108: 0.001712121444 | L108: 2.845399943e-05 | M108: 0.001738718722 | N108: 1.439755097e-07
A109: 51.44951 | B109: ='DF raw data'!A114 -> -2.0096518e-06 | C109: ='DF raw data'!B114 -> -1.2040576e-07 | D109: ='DF raw data'!C114 -> -9.2847122e-06 | F109: -2.012626085e-06 | G109: -1.208465303e-07 | H109: -9.298453574e-06 | J109: 2.925371908e-05 | K109: 0.001726753277 | L109: 2.839355562e-05 | M109: 0.001752920326 | N109: 1.448067793e-07
A110: 51.94968 | B110: ='DF raw data'!A115 -> -1.2002175e-05 | C110: ='DF raw data'!B115 -> 7.4357081e-06 | D110: ='DF raw data'!C115 -> -9.8516257e-06 | F110: -1.201993822e-05 | G110: 7.462928052e-06 | H110: -9.866206106e-06 | J110: 2.324170658e-05 | K110: 0.001738378081 | L110: 3.212628834e-05 | M110: 0.001768988932 | N110: 1.455931842e-07
A111: 52.44985 | B111: ='DF raw data'!A116 -> -1.2991327e-05 | C111: ='DF raw data'!B116 -> -2.2154384e-07 | D111: ='DF raw data'!C116 -> -3.8867233e-06 | F111: -1.301055416e-05 | G111: -2.223548472e-07 | H111: -3.89247565e-06 | J111: 1.673421771e-05 | K111: 0.001746748035 | L111: 3.201507312e-05 | M111: 0.001785001911 | N111: 1.462459055e-07
A112: 52.95002 | B112: ='DF raw data'!A117 -> -5.7771863e-06 | C112: ='DF raw data'!B117 -> -2.087656e-06 | D112: ='DF raw data'!C117 -> -5.4201168e-06 | F112: -5.785736536e-06 | G112: -2.095298298e-06 | H112: -5.428138573e-06 | J112: 1.384036586e-05 | K112: 0.001753670571 | L112: 3.096706777e-05 | M112: 0.001800490709 | N112: 1.468213586e-07
A113: 53.45019 | B113: ='DF raw data'!A118 -> -1.0320396e-06 | C113: ='DF raw data'!B118 -> -1.4493407e-06 | D113: ='DF raw data'!C118 -> 7.5503226e-07 | F113: -1.033567019e-06 | G113: -1.454646312e-06 | H113: 7.561497077e-07 | J113: 1.332340665e-05 | K113: 0.001760334539 | L113: 3.023949732e-05 | M113: 0.001815615599 | N113: 1.473675144e-07
A114: 53.95036 | B114: ='DF raw data'!A119 -> -1.3087151e-06 | C114: ='DF raw data'!B119 -> -6.104081e-06 | D114: ='DF raw data'!C119 -> 1.2103326e-06 | F114: -1.310651998e-06 | G114: -6.126426255e-06 | H114: 1.212123892e-06 | J114: 1.266785784e-05 | K114: 0.001766670621 | L114: 2.71752427e-05 | M114: 0.00182920784 | N114: 1.478171515e-07
A115: 54.45053 | B115: ='DF raw data'!A120 -> -1.5649598e-06 | C115: ='DF raw data'!B120 -> -8.0006148e-06 | D115: ='DF raw data'!C120 -> -5.7923548e-06 | F115: -1.567275941e-06 | G115: -8.02990271e-06 | H115: -5.800927485e-06 | J115: 1.188395343e-05 | K115: 0.001772614618 | L115: 2.315892626e-05 | M115: 0.00184079124 | N115: 1.481560488e-07
A116: 54.9507 | B116: ='DF raw data'!A121 -> -1.6753652e-06 | C116: ='DF raw data'!B121 -> -2.4133519e-06 | D116: ='DF raw data'!C121 -> -2.9518935e-06 | F116: -1.67784474e-06 | G116: -2.422186475e-06 | H116: -2.956262302e-06 | J116: 1.104474583e-05 | K116: 0.001778138869 | L116: 2.194742125e-05 | M116: 0.001851768682 | N116: 1.484579893e-07
A117: 55.45087 | B117: ='DF raw data'!A122 -> 2.6076719e-07 | C117: ='DF raw data'!B122 -> 1.621886e-06 | D117: ='DF raw data'!C122 -> 2.0326613e-06 | F117: 2.611531254e-07 | G117: 1.62782325e-06 | H117: 2.035669639e-06 | J117: 1.117536679e-05 | K117: 0.001783728452 | L117: 2.276160961e-05 | M117: 0.001863153356 | N117: 1.487795884e-07
A118: 55.95104 | B118: ='DF raw data'!A123 -> 5.2086366e-06 | C118: ='DF raw data'!B123 -> -3.5556218e-06 | D118: ='DF raw data'!C123 -> -5.9158133e-06 | F118: 5.216345382e-06 | G118: -3.568637891e-06 | H118: -5.924568704e-06 | J118: 1.378442626e-05 | K118: 0.001790623008 | L118: 2.097668399e-05 | M118: 0.001873645264 | N118: 1.490947114e-07
A119: 56.45121 | B119: ='DF raw data'!A124 -> 1.1072651e-05 | C119: ='DF raw data'!B124 -> -3.1869627e-06 | D119: ='DF raw data'!C124 -> -2.9389278e-06 | F119: 1.108903852e-05 | G119: -3.198629238e-06 | H119: -2.943277413e-06 | J119: 1.933083065e-05 | K119: 0.00180029171 | L119: 1.937682561e-05 | M119: 0.001883336971 | N119: 1.494694099e-07
A120: 56.95138 | B120: ='DF raw data'!A125 -> 1.0972258e-05 | C120: ='DF raw data'!B125 -> -6.0008083e-06 | D120: ='DF raw data'!C125 -> 6.5560075e-06 | F120: 1.098849694e-05 | G120: -6.022775504e-06 | H120: 6.565710391e-06 | J120: 2.482694717e-05 | K120: 0.001812709404 | L120: 1.636441398e-05 | M120: 0.00189152196 | N120: 1.499116459e-07
A121: 57.45155 | B121: ='DF raw data'!A126 -> 7.2955714e-07 | C121: ='DF raw data'!B126 -> 2.1989586e-06 | D121: ='DF raw data'!C126 -> 1.5848989e-06 | F121: 7.306368846e-07 | G121: 2.207008344e-06 | H121: 1.58724455e-06 | J121: 2.519238982e-05 | K121: 0.001825309882 | L121: 1.746829335e-05 | M121: 0.001900259076 | N121: 1.503817045e-07
A122: 57.95172 | B122: ='DF raw data'!A127 -> -5.6304739e-06 | C122: ='DF raw data'!B127 -> 7.5337771e-06 | D122: ='DF raw data'!C127 -> -1.564252e-06 | F122: -5.638807001e-06 | G122: 7.561356054e-06 | H122: -1.566567093e-06 | J122: 2.237202772e-05 | K122: 0.001836499699 | L122: 2.125025681e-05 | M122: 0.001910887817 | N122: 1.508579069e-07
A123: 58.45189 | B123: ='DF raw data'!A128 -> -9.2547589e-06 | C123: ='DF raw data'!B128 -> -7.4745112e-06 | D123: ='DF raw data'!C128 -> 7.9662163e-07 | F123: -9.268455943e-06 | G123: -7.501873199e-06 | H123: 7.9780063e-07 | J123: 1.773622411e-05 | K123: 0.001845370826 | L123: 1.749804489e-05 | M123: 0.001919639814 | N123: 1.5116839e-07
A124: 58.95206 | B124: ='DF raw data'!A129 -> -7.8129697e-06 | C124: ='DF raw data'!B129 -> 2.4044361e-06 | D124: ='DF raw data'!C129 -> 1.8348717e-06 | F124: -7.824532895e-06 | G124: 2.413238037e-06 | H124: 1.83758731e-06 | J124: 1.38226275e-05 | K124: 0.00185228449 | L124: 1.870507416e-05 | M124: 0.001928995531 | N124: 1.514389544e-07
A125: 59.45223 | B125: ='DF raw data'!A130 -> -1.6951267e-06 | C125: ='DF raw data'!B130 -> 8.2815022e-06 | D125: ='DF raw data'!C130 -> 1.0445976e-07 | F125: -1.697635488e-06 | G125: 8.311818357e-06 | H125: 1.046143604e-07 | J125: 1.297352115e-05 | K125: 0.001858773456 | L125: 2.286239634e-05 | M125: 0.001940430616 | N125: 1.517845726e-07
A126: 59.9524 | B126: ='DF raw data'!A131 -> -2.3389907e-06 | C126: ='DF raw data'!B131 -> 6.8126033e-06 | D126: ='DF raw data'!C131 -> 2.5408255e-07 | F126: -2.342452406e-06 | G126: 6.837542248e-06 | H126: 2.544585922e-07 | J126: 1.180189673e-05 | K126: 0.00186467641 | L126: 2.628232985e-05 | M126: 0.001953576249 | N126: 1.521997365e-07
A127: 60.45257 | B127: ='DF raw data'!A132 -> -2.8920072e-06 | C127: ='DF raw data'!B132 -> -3.4075176e-06 | D127: ='DF raw data'!C132 -> 6.6341513e-06 | F127: -2.896287371e-06 | G127: -3.419991525e-06 | H127: 6.643969844e-06 | J127: 1.035326068e-05 | K127: 0.001869854801 | L127: 2.457175269e-05 | M127: 0.001965866302 | N127: 1.525553379e-07
A128: 60.95274 | B128: ='DF raw data'!A133 -> -2.5543882e-06 | C128: ='DF raw data'!B133 -> -6.5246431e-06 | D128: ='DF raw data'!C133 -> 1.3706048e-05 | F128: -2.558168695e-06 | G128: -6.54852791e-06 | H128: 1.372633295e-05 | J128: 9.073741443e-06 | K128: 0.001874393214 | L128: 2.129637548e-05 | M128: 0.00197651811 | N128: 1.528233632e-07
A129: 61.45291 | B129: ='DF raw data'!A134 -> -2.4716169e-06 | C129: ='DF raw data'!B134 -> -1.0475689e-05 | D129: ='DF raw data'!C134 -> 1.1252275e-05 | F129: -2.475274893e-06 | G129: -1.051403743e-05 | H129: 1.126892837e-05 | J129: 7.8356832e-06 | K129: 0.001878312388 | L129: 1.603756938e-05 | M129: 0.001984539622 | N129: 1.529827181e-07
A130: 61.95308 | B130: ='DF raw data'!A135 -> -2.6054062e-07 | C130: ='DF raw data'!B135 -> -2.1231476e-06 | D130: ='DF raw data'!C135 -> 4.700682e-06 | F130: -2.609262201e-07 | G130: -2.130919822e-06 | H130: 4.707639009e-06 | J130: 7.705175733e-06 | K130: 0.001882166286 | L130: 1.497174721e-05 | M130: 0.00199202804 | N130: 1.531245278e-07
A131: 62.45325 | B131: ='DF raw data'!A136 -> 1.8823889e-06 | C131: ='DF raw data'!B136 -> 7.4420171e-07 | D131: ='DF raw data'!C136 -> 1.5126777e-06 | F131: 1.885174836e-06 | G131: 7.469260148e-07 | H131: 1.514916463e-06 | J131: 8.64808363e-06 | K131: 0.001886491798 | L131: 1.53453372e-05 | M131: 0.001999703318 | N131: 1.532797149e-07
A132: 62.95342 | B132: ='DF raw data'!A137 -> 9.9955332e-07 | C132: ='DF raw data'!B137 -> 4.2784629e-07 | D132: ='DF raw data'!C137 -> 9.133571e-07 | F132: 1.001032659e-06 | G132: 4.294125101e-07 | H132: 9.147088685e-07 | J132: 9.148770135e-06 | K132: 0.001891067738 | L132: 1.556011645e-05 | M132: 0.002007486021 | N132: 1.534426789e-07
A133: 63.45359 | B133: ='DF raw data'!A138 -> 9.0483496e-07 | C133: ='DF raw data'!B138 -> 1.0054882e-05 | D133: ='DF raw data'!C138 -> 7.7222421e-06 | F133: 9.061741157e-07 | G133: 1.009168998e-05 | H133: 7.733671018e-06 | J133: 9.602011243e-06 | K133: 0.001895870376 | L133: 2.060767703e-05 | M133: 0.002017793363 | N133: 1.537012043e-07
A134: 63.95376 | B134: ='DF raw data'!A139 -> 2.3252037e-06 | C134: ='DF raw data'!B139 -> -2.043892e-06 | D134: ='DF raw data'!C139 -> 8.5140409e-06 | F134: 2.328645001e-06 | G134: -2.051374091e-06 | H134: 8.526641681e-06 | J134: 1.076672961e-05 | K134: 0.001901255571 | L134: 1.958164125e-05 | M134: 0.002027587512 | N134: 1.539509707e-07
A135: 64.45393 | B135: ='DF raw data'!A140 -> -1.7923044e-06 | C135: ='DF raw data'!B140 -> -5.2776331e-06 | D135: ='DF raw data'!C140 -> -3.6063223e-06 | F135: -1.794957011e-06 | G135: =(1-$G$1*($B$2-$G$2))*C135*$M$2/$M$1 -> -5.296952971e-06 | H135: -3.611659657e-06 | J135: 9.868945965e-06 | K135: 0.001906191722 | L135: 1.693226429e-05 | M135: 0.002036056523 | N135: 1.541430849e-07
A136: =A135+$B$1 -> 64.9541 | B136: ='DF raw data'!A141 -> -7.7745963e-06 | C136: ='DF raw data'!B141 -> 2.726129e-06 | D136: ='DF raw data'!C141 -> -2.95217e-06 | F136: -7.786102703e-06 | G136: 2.736108561e-06 | H136: -2.956539212e-06 | J136: =F136*$B$1+J135 -> 5.974570976e-06 | K136: =J136*$B$1+K135 -> 0.001909180023 | L136: =G136*$B$1+L135 -> 1.830078371e-05 | M136: =L136*$B$1+M135 -> 0.002045210026 | N136: =(J136^2+L136^2)*$B$1+N135 -> 1.54328455e-07
A137: 65.45427 | B137: ='DF raw data'!A142 -> -8.0021446e-06 | C137: ='DF raw data'!B142 -> 3.7991508e-06 | D137: ='DF raw data'!C142 -> 4.4266112e-06 | F137: -8.013987774e-06 | G137: 3.81305838e-06 | H137: 4.433162585e-06 | J137: 1.966214711e-06 | K137: 0.001910163464 | L137: 2.020796111e-05 | M137: 0.002055317442 | N137: 1.545346389e-07
A138: 65.95444 | B138: ='DF raw data'!A143 -> -3.7664317e-06 | C138: ='DF raw data'!B143 -> 1.0270902e-05 | D138: ='DF raw data'!C143 -> -1.3045585e-06 | F138: -3.772006019e-06 | G138: 1.030850077e-05 | H138: -1.306489247e-06 | J138: 7.957046099e-08 | K138: 0.001910203263 | L138: 2.536396394e-05 | M138: 0.002068003736 | N138: 1.548564168e-07
A139: 66.45461 | B139: ='DF raw data'!A144 -> 6.2222222e-07 | C139: ='DF raw data'!B144 -> 8.4137781e-08 | D139: ='DF raw data'!C144 -> -2.9274026e-06 | F139: =(1-$G$1*($B$2-$G$2))*B139 -> 6.231431089e-07 | G139: 8.44457848e-08 | H139: =(1-$G$1*($B$2-$G$2))*D139 -> -2.931735156e-06 | J139: 3.912479498e-07 | K139: 0.001910398954 | L139: 2.540620119e-05 | M139: 0.002080711155 | N139: 1.551793406e-07
A140: 66.95478 | B140: ='DF raw data'!A145 -> 2.5462629e-07 | C140: ='DF raw data'!B145 -> -5.4436164e-06 | D140: ='DF raw data'!C145 -> 1.0676365e-06 | F140: 2.550031369e-07 | G140: -5.463543887e-06 | H140: 1.069216602e-06 | J140: 5.187928688e-07 | K140: 0.001910658438 | L140: 2.267350045e-05 | M140: 0.00209205176 | N140: 1.554366064e-07
A141: 67.45495 | B141: ='DF raw data'!A146 -> -3.7275781e-06 | C141: ='DF raw data'!B146 -> -3.0647434e-06 | D141: ='DF raw data'!C146 -> -2.4464182e-06 | F141: -3.733094916e-06 | G141: -3.075962529e-06 | H141: -2.450038899e-06 | J141: -1.348389215e-06 | K141: 0.001909984015 | L141: 2.113499627e-05 | M141: 0.002102622851 | N141: 1.556609358e-07
A142: 67.95512 | B142: ='DF raw data'!A147 -> -7.8990879e-06 | C142: ='DF raw data'!B147 -> -2.5735981e-06 | D142: ='DF raw data'!C147 -> -4.8793677e-06 | F142: -7.91077855e-06 | G142: -2.58301929e-06 | H142: -4.886589164e-06 | J142: -5.305123323e-06 | K142: 0.001907330551 | L142: 1.984304751e-05 | M142: 0.002112547748 | N142: 1.558719529e-07
A143: 68.45529 | B143: ='DF raw data'!A148 -> -8.3465011e-06 | C143: ='DF raw data'!B148 -> 3.4889322e-06 | D143: ='DF raw data'!C148 -> -6.1875558e-06 | F143: -8.358853922e-06 | G143: 3.50170416e-06 | H143: -6.196713383e-06 | J143: -9.485971289e-06 | K143: 0.001902585953 | L143: 2.159449488e-05 | M143: 0.002123348667 | N143: 1.561502004e-07
A144: 68.95546 | B144: ='DF raw data'!A149 -> -8.4110534e-06 | C144: ='DF raw data'!B149 -> 5.4276293e-06 | D144: ='DF raw data'!C149 -> -2.7415165e-06 | F144: -8.423501759e-06 | G144: 5.447498263e-06 | H144: -2.745573944e-06 | J144: -1.369915416e-05 | K144: 0.001895734047 | L144: 2.431917009e-05 | M144: 0.002135512386 | N144: 1.565398773e-07
A145: 69.45563 | B145: ='DF raw data'!A150 -> -6.7474498e-06 | C145: ='DF raw data'!B150 -> 8.7062017e-06 | D145: ='DF raw data'!C150 -> 4.8841089e-06 | F145: -6.757436026e-06 | G145: 8.738072558e-06 | H145: 4.891337381e-06 | J145: -1.707902094e-05 | K145: 0.001887191633 | L145: 2.868969184e-05 | M145: 0.002149862109 | N145: 1.570974625e-07
A146: 69.9558 | B146: ='DF raw data'!A151 -> -2.0180628e-06 | C146: ='DF raw data'!B151 -> 4.6080274e-07 | D146: ='DF raw data'!C151 -> 6.5286645e-06 | F146: -2.021049533e-06 | G146: 4.62489604e-07 | H146: 6.538326923e-06 | J146: -1.808988929e-05 | K146: 0.001878143613 | L146: 2.892101526e-05 | M146: 0.002164327533 | N146: 1.576794949e-07
A147: 70.45597 | B147: ='DF raw data'!A152 -> 4.8155603e-06 | C147: ='DF raw data'!B152 -> -3.9296183e-06 | D147: ='DF raw data'!C152 -> 6.4770779e-06 | F147: 4.822687329e-06 | G147: -3.944003483e-06 | H147: 6.486663975e-06 | J147: -1.567772576e-05 | K147: 0.001870302085 | L147: 2.694834304e-05 | M147: 0.002177806286 | N147: 1.581656623e-07
A148: 70.95614 | B148: ='DF raw data'!A153 -> 8.9515497e-06 | C148: ='DF raw data'!B153 -> -2.486295e-07 | D148: ='DF raw data'!C153 -> 7.5660996e-06 | F148: 8.964797994e-06 | G148: -2.495396599e-07 | H148: 7.577297427e-06 | J148: -1.119380275e-05 | K148: 0.001864703281 | L148: 2.682353079e-05 | M148: 0.002191222612 | N148: 1.585882074e-07
A149: 71.45631 | B149: ='DF raw data'!A154 -> 5.4279194e-06 | C149: ='DF raw data'!B154 -> -1.0451895e-06 | D149: ='DF raw data'!C154 -> 6.3871616e-06 | F149: 5.435952721e-06 | G149: -1.049015633e-06 | H149: 6.396614599e-06 | J149: -8.474902279e-06 | K149: 0.001860464389 | L149: 2.629884464e-05 | M149: 0.002204376505 | N149: 1.589700638e-07
A150: 71.95648 | B150: ='DF raw data'!A155 -> -2.142016e-06 | C150: ='DF raw data'!B155 -> 6.0179113e-06 | D150: ='DF raw data'!C155 -> -3.5693895e-06 | F150: -2.145186184e-06 | G150: 6.039941113e-06 | H150: -3.574672196e-06 | J150: -9.547860053e-06 | K150: 0.001855688836 | L150: 2.931984199e-05 | M150: 0.00221904141 | N150: 1.594456328e-07
A151: 72.45665 | B151: ='DF raw data'!A156 -> -3.6023589e-06 | C151: ='DF raw data'!B156 -> -4.320827e-06 | D151: ='DF raw data'!C156 -> 4.5932276e-07 | F151: -3.607690391e-06 | G151: -4.336644284e-06 | H151: 4.600025577e-07 | J151: -1.135231856e-05 | K151: 0.001850010746 | L151: 2.715078261e-05 | M151: 0.002232621417 | N151: 1.598788001e-07
A152: 72.95682 | B152: ='DF raw data'!A157 -> -1.5818546e-06 | C152: ='DF raw data'!B157 -> 4.1904011e-07 | D152: ='DF raw data'!C157 -> 6.352991e-07 | F152: -1.584195745e-06 | G152: 4.205740933e-07 | H152: 6.362393427e-07 | J152: -1.214468574e-05 | K152: 0.001843936339 | L152: 2.736114116e-05 | M152: 0.002246306639 | N152: 1.603270152e-07
A153: 73.45699 | B153: ='DF raw data'!A158 -> 4.3931919e-07 | C153: ='DF raw data'!B158 -> -1.4704219e-06 | D153: ='DF raw data'!C158 -> -3.2794135e-06 | F153: 4.399693824e-07 | G153: -1.475804684e-06 | H153: -3.284267032e-06 | J153: -1.192462626e-05 | K153: 0.001837971999 | L153: 2.662298793e-05 | M153: 0.002259622659 | N153: 1.6075265e-07
A154: 73.95716 | B154: ='DF raw data'!A159 -> 5.7037219e-06 | C154: ='DF raw data'!B159 -> -1.0716792e-05 | D154: ='DF raw data'!C159 -> -3.2278997e-06 | F154: 5.712163408e-06 | G154: -1.075602304e-05 | H154: -3.232676992e-06 | J154: -9.067573483e-06 | K154: 0.00183343667 | L154: 2.124314789e-05 | M154: 0.002270247844 | N154: 1.610194868e-07
A155: 74.45733 | B155: ='DF raw data'!A160 -> 8.8548959e-06 | C155: ='DF raw data'!B160 -> 3.1473587e-06 | D155: ='DF raw data'!C160 -> -1.7065406e-06 | F155: 8.868001146e-06 | G155: 3.15888026e-06 | H155: -1.70906628e-06 | J155: -4.63206535e-06 | K155: 0.00183111985 | L155: 2.282312502e-05 | M155: 0.002281663287 | N155: 1.612907545e-07
A156: 74.9575 | B156: ='DF raw data'!A161 -> 1.0336732e-05 | C156: ='DF raw data'!B161 -> 2.4008336e-06 | D156: ='DF raw data'!C161 -> 4.582957e-06 | F156: 1.035203036e-05 | G156: 2.40962235e-06 | H156: 4.589739776e-06 | J156: 5.457096768e-07 | K156: 0.001831392798 | L156: 2.402834584e-05 | M156: 0.002293681544 | N156: 1.615796823e-07
A157: 75.45767 | B157: ='DF raw data'!A162 -> 1.3398673e-05 | C157: ='DF raw data'!B162 -> -1.0147724e-05 | D157: ='DF raw data'!C162 -> 7.3581964e-06 | F157: 1.341850304e-05 | G157: -1.018487185e-05 | H157: 7.369086531e-06 | J157: 7.25724234e-06 | K157: 0.001835022653 | L157: 1.893417848e-05 | M157: 0.002303151852 | N157: 1.617853375e-07
A158: 75.95784 | B158: ='DF raw data'!A163 -> 1.2950038e-05 | C158: ='DF raw data'!B163 -> -9.4868601e-06 | D158: ='DF raw data'!C163 -> 3.7056368e-06 | F158: 1.296920406e-05 | G158: -9.52158872e-06 | H158: 3.711121142e-06 | J158: 1.374404913e-05 | K158: 0.001841897014 | L158: 1.417176545e-05 | M158: 0.002310240144 | N158: 1.619802727e-07
A159: 76.45801 | B159: ='DF raw data'!A164 -> 1.0528846e-05 | C159: ='DF raw data'!B164 -> -6.6293837e-06 | D159: ='DF raw data'!C164 -> 2.4168173e-06 | F159: 1.054442869e-05 | G159: -6.653651935e-06 | H159: 2.42039419e-06 | J159: 1.901805603e-05 | K159: 0.001851409275 | L159: 1.084380836e-05 | M159: 0.002315663892 | N159: 1.622199915e-07
A160: 76.95818 | B160: ='DF raw data'!A165 -> 8.2412707e-06 | C160: ='DF raw data'!B165 -> -2.8928889e-06 | D160: ='DF raw data'!C165 -> 2.3449454e-06 | F160: 8.253467781e-06 | G160: -2.90347892e-06 | H160: 2.348415919e-06 | J160: 2.314619301e-05 | K160: 0.001862986306 | L160: 9.391575313e-06 | M160: 0.002320361276 | N160: 1.625320715e-07
A161: 77.45835 | B161: ='DF raw data'!A166 -> 3.7428222e-06 | C161: ='DF raw data'!B166 -> 3.4673171e-06 | D161: ='DF raw data'!C166 -> 7.8084736e-07 | F161: 3.748361577e-06 | G161: 3.480009934e-06 | H161: 7.820030141e-07 | J161: 2.502101102e-05 | K161: 0.001875501065 | L161: 1.113217188e-05 | M161: 0.002325929255 | N161: 1.629071872e-07
A162: 77.95852 | B162: ='DF raw data'!A167 -> -4.3142376e-07 | C162: ='DF raw data'!B167 -> 6.4502151e-06 | D162: ='DF raw data'!C167 -> -7.9115239e-07 | F162: -4.320622672e-07 | G162: 6.473827451e-06 | H162: -7.923232955e-07 | J162: 2.480490644e-05 | K162: 0.001887907735 | L162: 1.437018616e-05 | M162: 0.002333116791 | N162: 1.633182197e-07
A163: 78.45869 | B163: ='DF raw data'!A168 -> -8.1236379e-07 | C163: ='DF raw data'!B168 -> -8.6721539e-06 | D163: ='DF raw data'!C168 -> 1.2346197e-06 | F163: -8.135660884e-07 | G163: -8.703900119e-06 | H163: 1.236446937e-06 | J163: 2.439798509e-05 | K163: 0.001900110876 | L163: 1.001675644e-05 | M163: 0.002338126872 | N163: 1.636661365e-07
A164: 78.95886 | B164: ='DF raw data'!A169 -> 6.3216117e-07 | C164: ='DF raw data'!B169 -> -1.6686949e-06 | D164: ='DF raw data'!C169 -> 3.2777668e-06 | F164: 6.330967685e-07 | G164: -1.674803504e-06 | H164: 3.282617895e-06 | J164: 2.47146411e-05 | K164: 0.001912472398 | L164: 9.179069967e-06 | M164: 0.002342717967 | N164: 1.64013789e-07
A165: 79.45903 | B165: ='DF raw data'!A170 -> -1.3394197e-06 | C165: ='DF raw data'!B170 -> -1.6059839e-06 | D165: ='DF raw data'!C170 -> 8.9492305e-06 | F165: -1.341402041e-06 | G165: -1.611862937e-06 | H165: 8.962475361e-06 | J165: 2.404371204e-05 | K165: 0.001924498341 | L165: 8.372864481e-06 | M165: 0.002346905823 | N165: 1.643380017e-07
A166: 79.9592 | B166: ='DF raw data'!A171 -> -4.7625249e-06 | C166: ='DF raw data'!B171 -> -8.7917042e-06 | D166: ='DF raw data'!C171 -> 9.9956587e-06 | F166: -4.769573437e-06 | G166: -8.823888057e-06 | H166: 1.001045227e-05 | J166: 2.165811449e-05 | K166: 0.00193533108 | L166: 3.959420392e-06 | M166: 0.002348886206 | N166: 1.645804596e-07
A167: 80.45937 | B167: ='DF raw data'!A172 -> -8.6621612e-06 | C167: ='DF raw data'!B172 -> 6.07039e-07 | D167: ='DF raw data'!C172 -> 4.4459216e-06 | F167: -8.674981199e-06 | G167: 6.092611922e-07 | H167: 4.452501564e-06 | J167: 1.731914915e-05 | K167: 0.001943993599 | L167: 4.264154562e-06 | M167: 0.002351019008 | N167: 1.647395816e-07
A168: 80.95954 | B168: ='DF raw data'!A173 -> -7.4502636e-06 | C168: ='DF raw data'!B173 -> -2.5254308e-06 | D168: ='DF raw data'!C173 -> 3.3586431e-07 | F168: -7.46128999e-06 | G168: -2.534675663e-06 | H168: 3.363613892e-07 | J168: 1.358723573e-05 | K168: 0.001950789527 | L168: 2.996385835e-06 | M168: 0.002352517711 | N168: 1.648364102e-07
A169: 81.45971 | B169: ='DF raw data'!A174 -> -3.7034937e-07 | C169: ='DF raw data'!B174 -> -5.8619107e-06 | D169: ='DF raw data'!C174 -> 5.2255086e-07 | F169: -3.708974871e-07 | G169: -5.88336944e-06 | H169: 5.233242353e-07 | J169: 1.340172394e-05 | K169: 0.001957492667 | L169: 5.370094248e-08 | M169: 0.00235254457 | N169: 1.649262453e-07
A170: 81.95988 | B170: ='DF raw data'!A175 -> 4.2632714e-06 | C170: ='DF raw data'!B175 -> -2.531835e-06 | D170: ='DF raw data'!C175 -> 1.1357249e-06 | F170: 4.269581042e-06 | G170: -2.541103307e-06 | H170: 1.137405773e-06 | J170: 1.553724029e-05 | K170: 0.001965263928 | L170: -1.217282699e-06 | M170: 0.002351935722 | N170: 1.650477304e-07
A171: 82.46005 | B171: ='DF raw data'!A176 -> 2.5640297e-06 | C171: ='DF raw data'!B176 -> -1.3954002e-05 | D171: ='DF raw data'!C176 -> -5.6926478e-07 | F171: 2.567824464e-06 | G171: -1.400508352e-05 | H171: -5.701072919e-07 | J171: 1.682158905e-05 | K171: 0.001973677583 | L171: -8.222205323e-06 | M171: 0.002347823221 | N171: 1.652230752e-07
A172: 82.96022 | B172: ='DF raw data'!A177 -> 6.6379704e-07 | C172: ='DF raw data'!B177 -> -1.2649443e-06 | D172: ='DF raw data'!C177 -> -2.4560661e-06 | F172: 6.647794596e-07 | G172: -1.269574891e-06 | H172: -2.459701078e-06 | J172: 1.715409179e-05 | K172: 0.001982257545 | L172: -8.857208596e-06 | M172: 0.002343393111 | N172: 1.654094951e-07
A173: 83.46039 | B173: ='DF raw data'!A178 -> 5.2861983e-06 | C173: ='DF raw data'!B178 -> 3.1853856e-06 | D173: ='DF raw data'!C178 -> -2.06347e-06 | F173: 5.294021873e-06 | G173: 3.197046365e-06 | H173: -2.066523936e-06 | J173: 1.980200271e-05 | K173: 0.001992161912 | L173: -7.258141916e-06 | M173: 0.002339762807 | N173: 1.656319707e-07
A174: 83.96056 | B174: ='DF raw data'!A179 -> 7.8481216e-06 | C174: ='DF raw data'!B179 -> 5.9357203e-06 | D174: ='DF raw data'!C179 -> 4.6178234e-06 | F174: 7.85973682e-06 | G174: 5.957449236e-06 | H174: 4.624657779e-06 | J174: 2.373320728e-05 | K174: 0.002004032551 | L174: -4.278404531e-06 | M174: 0.002337622877 | N174: 1.659228545e-07
A175: 84.46073 | B175: ='DF raw data'!A180 -> 4.1963908e-06 | C175: ='DF raw data'!B180 -> 2.6822322e-06 | D175: ='DF raw data'!C180 -> 8.71564e-07 | F175: 4.202601458e-06 | G175: 2.692051067e-06 | H175: 8.728539147e-07 | J175: 2.583522245e-05 | K175: 0.002016954554 | L175: -2.931921349e-06 | M175: 0.002336156418 | N175: 1.662609969e-07
A176: 84.9609 | B176: ='DF raw data'!A181 -> 7.1459777e-07 | C176: ='DF raw data'!B181 -> -5.9250215e-06 | D176: ='DF raw data'!C181 -> -4.8786401e-06 | F176: 7.156553747e-07 | G176: -5.946711271e-06 | H176: -4.885860487e-06 | J176: 2.61931718e-05 | K176: 0.002030055593 | L176: -5.906287925e-06 | M176: 0.00233320227 | N176: 1.666216027e-07
A177: 85.46107 | B177: ='DF raw data'!A182 -> -1.6766312e-06 | C177: ='DF raw data'!B182 -> 3.5421704e-06 | D177: ='DF raw data'!C182 -> -8.7102899e-06 | F177: -1.679112614e-06 | G177: 3.55513725e-06 | H177: -8.723181129e-06 | J177: 2.535333004e-05 | K177: 0.002042736568 | L177: -4.128114927e-06 | M177: 0.002331137511 | N177: 1.669516312e-07
A178: 85.96124 | B178: ='DF raw data'!A183 -> -3.90386e-06 | C178: ='DF raw data'!B183 -> 7.4888126e-06 | D178: ='DF raw data'!C183 -> -2.132155e-06 | F178: -3.909637713e-06 | G178: 7.516226952e-06 | H178: -2.135310589e-06 | J178: 2.339784655e-05 | K178: 0.002054439469 | L178: -3.687236923e-07 | M178: 0.002330953086 | N178: 1.672255219e-07
A179: 86.46141 | B179: ='DF raw data'!A184 -> -3.5103035e-06 | C179: ='DF raw data'!B184 -> 6.3996463e-06 | D179: ='DF raw data'!C184 -> 2.0658106e-06 | F179: -3.515498749e-06 | G179: 6.423073533e-06 | H179: 2.068868e-06 | J179: 2.163949954e-05 | K179: 0.002065262897 | L179: 2.843904997e-06 | M179: 0.002332375522 | N179: 1.674637807e-07
A180: 86.96158 | B180: ='DF raw data'!A185 -> -4.241479e-06 | C180: ='DF raw data'!B185 -> 1.2454571e-05 | D180: ='DF raw data'!C185 -> -7.1077316e-06 | F180: -4.247756389e-06 | G180: 1.250016354e-05 | H180: -7.118251043e-06 | J180: 1.951489922e-05 | K180: 0.002075023664 | L180: 9.096111795e-06 | M180: 0.002336925124 | N180: 1.676956448e-07
A181: 87.46175 | B181: ='DF raw data'!A186 -> -5.2331775e-06 | C181: ='DF raw data'!B186 -> 1.6268987e-05 | D181: ='DF raw data'!C186 -> -6.8608147e-06 | F181: -5.240922603e-06 | G181: 1.6328543e-05 | H181: -6.870968706e-06 | J181: 1.689354696e-05 | K181: 0.00208347331 | L181: 1.726315915e-05 | M181: 0.002345559639 | N181: 1.679874483e-07
A182: 87.96192 | B182: ='DF raw data'!A187 -> -1.7337766e-06 | C182: ='DF raw data'!B187 -> -8.8510797e-06 | D182: ='DF raw data'!C187 -> -5.4650559e-07 | F182: -1.736342589e-06 | G182: -8.883480914e-06 | H182: -5.473144183e-07 | J182: 1.602508049e-05 | K182: 0.002091488574 | L182: 1.28199085e-05 | M182: 0.002351971772 | N182: 1.681980965e-07
A183: 88.46209 | B183: ='DF raw data'!A188 -> 1.3718204e-06 | C183: ='DF raw data'!B188 -> -4.3210935e-06 | D183: ='DF raw data'!C188 -> 1.5460307e-06 | F183: 1.373850694e-06 | G183: -4.336911759e-06 | H183: 1.548318825e-06 | J183: 1.671223939e-05 | K183: 0.002099847535 | L183: 1.065071535e-05 | M183: 0.00235729894 | N183: 1.683945316e-07
A184: 88.96226 | B184: ='DF raw data'!A189 -> -1.3730491e-06 | C184: ='DF raw data'!B189 -> -5.1383349e-06 | D184: ='DF raw data'!C189 -> -5.7432421e-06 | F184: -1.375081213e-06 | G184: -5.157144841e-06 | H184: -5.751742098e-06 | J184: 1.602446502e-05 | K184: 0.002107862492 | L184: 8.07126621e-06 | M184: 0.002361335946 | N184: 1.685555507e-07
A185: 89.46243 | B185: ='DF raw data'!A190 -> -2.9544203e-06 | C185: ='DF raw data'!B190 -> -3.53881e-06 | D185: ='DF raw data'!C190 -> -6.2244303e-06 | F185: -2.958792842e-06 | G185: -3.551764548e-06 | H185: -6.233642457e-06 | J185: 1.454456561e-05 | K185: 0.002115137247 | L185: 6.294780136e-06 | M185: 0.002364484406 | N185: 1.686811777e-07
A186: 89.9626 | B186: ='DF raw data'!A191 -> 1.5371593e-06 | C186: ='DF raw data'!B191 -> -2.4987453e-06 | D186: ='DF raw data'!C191 -> -1.433157e-07 | F186: 1.539434296e-06 | G186: -2.507892476e-06 | H186: -1.435278072e-07 | J186: 1.531454446e-05 | K186: 0.002122797123 | L186: 5.040407557e-06 | M186: 0.002367005467 | N186: 1.688111924e-07
A187: 90.46277 | B187: ='DF raw data'!A192 -> 4.836646e-06 | C187: ='DF raw data'!B192 -> -2.1879932e-06 | D187: ='DF raw data'!C192 -> -1.0379383e-06 | F187: 4.843804236e-06 | G187: -2.196002803e-06 | H187: -1.039474449e-06 | J187: 1.773727002e-05 | K187: 0.002131668773 | L187: 3.942032835e-06 | M187: 0.002368977153 | N187: 1.689763237e-07
A188: 90.96294 | B188: ='DF raw data'!A193 -> 7.4169344e-07 | C188: ='DF raw data'!B193 -> 4.5989132e-06 | D188: ='DF raw data'!C193 -> -7.4781797e-06 | F188: 7.427911463e-07 | G188: 4.615748476e-06 | H188: -7.489247406e-06 | J188: 1.810879187e-05 | K188: 0.002140726247 | L188: 6.25069175e-06 | M188: 0.002372103562 | N188: 1.691598859e-07
A189: 91.46311 | B189: ='DF raw data'!A194 -> -4.0259506e-06 | C189: ='DF raw data'!B194 -> -8.7420694e-06 | D189: ='DF raw data'!C194 -> -3.5952773e-06 | F189: -4.031909007e-06 | G189: -8.774071559e-06 | H189: -3.60059831e-06 | J189: 1.609215194e-05 | K189: 0.002148775059 | L189: 1.862164378e-06 | M189: 0.00237303496 | N189: 1.69291143e-07
A190: 91.96328 | B190: ='DF raw data'!A195 -> -2.7058445e-06 | C190: ='DF raw data'!B195 -> -8.9426103e-06 | D190: ='DF raw data'!C195 -> -1.483518e-06 | F190: -2.70984915e-06 | G190: -8.97534658e-06 | H190: -1.485713607e-06 | J190: 1.473676669e-05 | K190: 0.002156145948 | L190: -2.627034721e-06 | M190: 0.002371720996 | N190: 1.694032179e-07
A191: 92.46345 | B191: ='DF raw data'!A196 -> -1.6279114e-06 | C191: ='DF raw data'!B196 -> 4.0894879e-06 | D191: ='DF raw data'!C196 -> -7.8683161e-06 | F191: -1.630320709e-06 | G191: 4.104458319e-06 | H191: -7.879961208e-06 | J191: 1.392132919e-05 | K191: 0.002163108979 | L191: -5.741078034e-07 | M191: 0.002371433845 | N191: 1.695003174e-07
A192: 92.96362 | B192: ='DF raw data'!A197 -> 4.9166243e-07 | C192: ='DF raw data'!B197 -> -2.2076069e-06 | D192: ='DF raw data'!C197 -> -7.2321213e-06 | F192: 4.923900904e-07 | G192: -2.215688303e-06 | H192: -7.24282484e-06 | J192: 1.416760794e-05 | K192: 0.002170195191 | L192: -1.682328622e-06 | M192: 0.002370592395 | N192: 1.696021277e-07
A193: 93.46379 | B193: ='DF raw data'!A198 -> 4.6584287e-06 | C193: ='DF raw data'!B198 -> -1.3494036e-06 | D193: ='DF raw data'!C198 -> 2.1079384e-06 | F193: 4.665323174e-06 | G193: -1.354343372e-06 | H193: 2.111058149e-06 | J193: 1.650106263e-05 | K193: 0.002178448528 | L193: -2.359730546e-06 | M193: 0.002369412128 | N193: 1.697411016e-07
A194: 93.96396 | B194: ='DF raw data'!A199 -> 5.9663839e-06 | C194: ='DF raw data'!B199 -> 5.6951508e-06 | D194: ='DF raw data'!C199 -> 8.1957032e-06 | F194: 5.975214148e-06 | G194: 5.715999081e-06 | H194: 8.207832841e-06 | J194: 1.948968549e-05 | K194: 0.002188196684 | L194: 4.992407142e-07 | M194: 0.002369661833 | N194: 1.699312148e-07
A195: 94.46413 | B195: ='DF raw data'!A200 -> 3.697231e-06 | C195: ='DF raw data'!B200 -> -5.8924652e-06 | D195: ='DF raw data'!C200 -> 8.4414851e-06 | F195: 3.702702902e-06 | G195: -5.914035791e-06 | H195: 8.453978498e-06 | J195: 2.13416664e-05 | K195: 0.002198871145 | L195: -2.458782568e-06 | M195: 0.002368432024 | N195: 1.701620494e-07
A196: 94.9643 | B196: ='DF raw data'!A201 -> 2.8547915e-06 | C196: ='DF raw data'!B201 -> -8.969696e-06 | D196: ='DF raw data'!C201 -> 4.3414243e-06 | F196: 2.859016591e-06 | G196: -9.002531433e-06 | H196: 4.347849608e-06 | J196: 2.277166073e-05 | K196: 0.002210260847 | L196: -6.961578715e-06 | M196: 0.002364950051 | N196: 1.704456518e-07
A197: 95.46447 | B197: ='DF raw data'!A202 -> 4.5858001e-06 | C197: ='DF raw data'!B202 -> 7.0337359e-07 | D197: ='DF raw data'!C202 -> 1.2234439e-06 | F197: 4.592587084e-06 | G197: 7.05948435e-07 | H197: 1.225254597e-06 | J197: 2.506873501e-05 | K197: 0.002222799476 | L197: -6.608484486e-06 | M197: 0.002361644686 | N197: 1.707818229e-07
A198: 95.96464 | B198: ='DF raw data'!A203 -> 2.2627178e-06 | C198: ='DF raw data'!B203 -> -2.685143e-06 | D198: ='DF raw data'!C203 -> 3.2639862e-06 | F198: 2.266066622e-06 | G198: -2.694972523e-06 | H198: 3.2688169e-06 | J198: 2.620215355e-05 | K198: 0.002235905007 | L198: -7.956428893e-06 | M198: 0.002357665119 | N198: 1.711568791e-07
A199: 96.46481 | B199: ='DF raw data'!A204 -> -2.0268667e-06 | C199: ='DF raw data'!B204 -> -2.8345812e-06 | D199: ='DF raw data'!C204 -> 1.4208781e-08 | F199: -2.029866463e-06 | G199: =(1-$G$1*($B$2-$G$2))*C199*$M$2/$M$1 -> -2.844957773e-06 | H199: 1.422981e-08 | J199: 2.518687524e-05 | K199: 0.002248502726 | L199: -9.379391422e-06 | M199: 0.002352973828 | N199: 1.715181778e-07
A200: =A199+$B$1 -> 96.96498 | B200: ='DF raw data'!A205 -> 5.7596168e-07 | C200: ='DF raw data'!B205 -> 2.2927575e-06 | D200: ='DF raw data'!C205 -> 1.2390144e-06 | F200: 5.768141033e-07 | G200: 2.301150615e-06 | H200: 1.240848141e-06 | J200: =F200*$B$1+J199 -> 2.547538035e-05 | K200: =J200*$B$1+K199 -> 0.002261244747 | L200: =G200*$B$1+L199 -> -8.228424919e-06 | M200: =L200*$B$1+M199 -> 0.002348858217 | N200: =(J200^2+L200^2)*$B$1+N199 -> 1.718766506e-07
A201: 97.46515 | B201: ='DF raw data'!A206 -> 6.9637576e-06 | C201: ='DF raw data'!B206 -> 3.0989245e-06 | D201: ='DF raw data'!C206 -> -4.7869339e-06 | F201: 6.974063961e-06 | G201: 3.110268756e-06 | H201: -4.794018562e-06 | J201: 2.896359793e-05 | K201: 0.00227573147 | L201: -6.672761795e-06 | M201: 0.002345520702 | N201: 1.723185087e-07
... 1002 more rows

Sheet 10 x=-1
A1: dz | B1: ='DF raw data'!E7 -> 0.50015 | C1: mm | F1: T_coeff | G1: -0.0008 | H1: /degC | L1: Hallref | M1: ='PI vs gap'!B44 -> 0.50517 | N1: T | P1: IBy total | Q1: =L1203*1000 -> -10.36517974 | R1: muTm | X1: DF ref | Y1: 19
A2: Tref | B2: ='DF raw data'!E8 -> 21.98 | C2: degC | F2: Tcorr | G2: 20 | H2: degC | L2: NMRref | M2: ='PI vs gap'!B45 -> 0.50627 | N2: T | P2: JBy total | Q2: =M1203 -> -2.981138331 | R2: muTm^2
A3: Encoder | B3: ='DF raw data'!E9 -> 17890866 | P3: PI total | Q3: =N1203 -> 701.9640724 | R3: T^2mm^3
A5: z [mm] | B5: Bx | C5: By | D5: Bz | F5: Bx_corr | G5: By_corr | H5: Bz_corr | J5: Ix | K5: Jx | L5: Iy | M5: Jy | N5: PI
A6: ='[1]PI vs x'!B53 -> -0.068 | B6: ='DF raw data'!D11 -> -1.5386568e-06 | C6: ='DF raw data'!E11 -> 7.9444399e-06 | D6: ='DF raw data'!F11 -> 1.1761096e-05 | F6: =(1-$G$1*($B$2-$G$2))*B6 -> -1.541094032e-06 | G6: =(1-$G$1*($B$2-$G$2))*C6*$M$2/$M$1 -> 7.974350191e-06 | H6: =(1-$G$1*($B$2-$G$2))*D6 -> 1.177972558e-05 | J6: =F6*$B$1 -> -7.707781803e-07 | K6: =J6*$B$1 -> -3.855047069e-07 | L6: =G6*$B$1 -> 3.988371248e-06 | M6: =L6*$B$1 -> 1.99478388e-06 | N6: =(J6^2+L6)^2*$B$1 -> 7.955941043e-12
A7: =A6+$B$1 -> 0.43215 | B7: ='DF raw data'!D12 -> -1.2697228e-06 | C7: ='DF raw data'!E12 -> -5.6007383e-07 | D7: ='DF raw data'!F12 -> 4.2753582e-06 | F7: =(1-$G$1*($B$2-$G$2))*B7 -> -1.271734041e-06 | G7: =(1-$G$1*($B$2-$G$2))*C7*$M$2/$M$1 -> -5.62182471e-07 | H7: 4.282130367e-06 | J7: =F7*$B$1+J6 -> -1.406835961e-06 | K7: =J7*$B$1+K6 -> -1.089133713e-06 | L7: =G7*$B$1+L6 -> 3.707195685e-06 | M7: =L7*$B$1+M6 -> 3.848937802e-06 | N7: =(J7^2+L7^2)*$B$1+N6 -> 1.581954305e-11
A8: =A7+$B$1 -> 0.9323 | B8: ='DF raw data'!D13 -> -1.3466879e-06 | C8: ='DF raw data'!E13 -> 1.5604841e-06 | D8: ='DF raw data'!F13 -> 3.6875624e-06 | F8: -1.348821054e-06 | G8: 1.56635922e-06 | H8: 3.693403499e-06 | J8: =F8*$B$1+J7 -> -2.081448811e-06 | K8: =J8*$B$1+K7 -> -2.130170335e-06 | L8: =G8*$B$1+L7 -> 4.490610249e-06 | M8: =L8*$B$1+M7 -> 6.094916518e-06 | N8: =(J8^2+L8^2)*$B$1+N7 -> 2.807222253e-11
A9: 1.43245 | B9: ='DF raw data'!D14 -> -1.7687371e-06 | C9: ='DF raw data'!E14 -> 1.2959968e-05 | D9: ='DF raw data'!F14 -> 3.2156292e-06 | F9: -1.77153878e-06 | G9: 1.300876142e-05 | H9: 3.220722757e-06 | J9: -2.967483931e-06 | K9: -3.614357424e-06 | L9: 1.099694227e-05 | M9: 1.15950372e-05 | N9: 9.296103348e-11
A10: 1.9326 | B10: ='DF raw data'!D15 -> -1.6295626e-06 | C10: ='DF raw data'!E15 -> 8.7448698e-06 | D10: ='DF raw data'!F15 -> 1.3766601e-06 | F10: -1.632143827e-06 | G10: 8.777793657e-06 | H10: 1.37884073e-06 | J10: -3.783800667e-06 | K10: -5.506825327e-06 | L10: 1.538715577e-05 | M10: 1.929092316e-05 | N10: 2.185395509e-10
A11: 2.43275 | B11: ='DF raw data'!D16 -> -1.2456248e-06 | C11: ='DF raw data'!E16 -> -1.7990784e-06 | D11: ='DF raw data'!F16 -> 8.5680745e-07 | F11: -1.24759787e-06 | G11: -1.805851811e-06 | H11: 8.58164633e-07 | J11: -4.407786741e-06 | K11: -7.711379866e-06 | L11: 1.448395899e-05 | M11: 2.653507524e-05 | N11: 3.331807589e-10
A12: 2.9329 | B12: ='DF raw data'!D17 -> -1.3045601e-06 | C12: ='DF raw data'!E17 -> 3.7952015e-07 | D12: ='DF raw data'!F17 -> 3.4027669e-06 | F12: -1.306626523e-06 | G12: 3.809490183e-07 | H12: 3.408156883e-06 | J12: -5.061295997e-06 | K12: -1.024278706e-05 | L12: 1.467449064e-05 | M12: 3.387452174e-05 | N12: 4.536955989e-10
A13: 3.43305 | B13: ='DF raw data'!D18 -> -1.4404022e-06 | C13: ='DF raw data'!E18 -> 4.3397727e-06 | D13: ='DF raw data'!F18 -> 4.5969555e-06 | F13: -1.442683797e-06 | G13: 4.356111658e-06 | H13: 4.604237078e-06 | J13: -5.782854298e-06 | K13: -1.313508164e-05 | L13: 1.685319989e-05 | M13: 4.230364966e-05 | N13: 6.124790947e-10
A14: 3.9332 | B14: ='DF raw data'!D19 -> -2.0234538e-06 | C14: ='DF raw data'!E19 -> 1.9599036e-05 | D14: ='DF raw data'!F19 -> 1.5786552e-06 | F14: -2.026658951e-06 | G14: 1.967282508e-05 | H14: 1.58115579e-06 | J14: -6.796487772e-06 | K14: -1.653434499e-05 | L14: 2.669256335e-05 | M14: 5.565393522e-05 | N14: 9.919354896e-10
A15: 4.43335 | B15: ='DF raw data'!D20 -> -1.5371143e-06 | C15: ='DF raw data'!E20 -> 5.780385e-06 | D15: ='DF raw data'!F20 -> -7.8614744e-07 | F15: -1.539549089e-06 | G15: 5.802147768e-06 | H15: -7.873926975e-07 | J15: -7.566493249e-06 | K15: -2.031872659e-05 | L15: 2.959450755e-05 | M15: 7.045562817e-05 | N15: 1.458618801e-09
A16: 4.9335 | B16: ='DF raw data'!D21 -> -1.2392802e-06 | C16: ='DF raw data'!E21 -> -2.7765661e-06 | D16: ='DF raw data'!F21 -> -3.5732903e-06 | F16: -1.24124322e-06 | G16: -2.787019688e-06 | H16: -3.578950392e-06 | J16: -8.187301045e-06 | K16: -2.441360521e-05 | L16: 2.820057966e-05 | M16: 8.456014809e-05 | N16: 1.889900443e-09
A17: 5.43365 | B17: ='DF raw data'!D22 -> -1.1394977e-06 | C17: ='DF raw data'!E22 -> -4.8385496e-06 | D17: ='DF raw data'!F22 -> -4.8099378e-07 | F17: -1.141302664e-06 | G17: -4.85676642e-06 | H17: -4.817556741e-07 | J17: -8.758123573e-06 | K17: -2.879398072e-05 | L17: 2.577146793e-05 | M17: 9.744974778e-05 | N17: 2.260448218e-09
A18: 5.9338 | B18: ='DF raw data'!D23 -> -1.4629577e-06 | C18: ='DF raw data'!E23 -> 5.0849626e-06 | D18: ='DF raw data'!F23 -> 5.6769986e-06 | F18: -1.465275025e-06 | G18: 5.104107148e-06 | H18: 5.685990966e-06 | J18: -9.490980877e-06 | K18: -3.35408948e-05 | L18: 2.832428712e-05 | M18: 0.00011161614 | N18: 2.706754049e-09
A19: 6.43395 | B19: ='DF raw data'!D24 -> -1.3596391e-06 | C19: ='DF raw data'!E24 -> 1.8852455e-06 | D19: ='DF raw data'!F24 -> 3.5582395e-06 | F19: -1.361792768e-06 | G19: 1.892343325e-06 | H19: 3.563875751e-06 | J19: -1.017208153e-05 | K19: -3.862846138e-05 | L19: 2.927074264e-05 | M19: 0.0001262559019 | N19: 3.187021894e-09
A20: 6.9341 | B20: ='DF raw data'!D25 -> -1.5853102e-06 | C20: ='DF raw data'!E25 -> 7.3161323e-06 | D20: ='DF raw data'!F25 -> -5.2604651e-07 | F20: -1.587821331e-06 | G20: 7.343677055e-06 | H20: -5.268797677e-07 | J20: -1.096623037e-05 | K20: -4.41132215e-05 | L20: 3.294368272e-05 | M20: 0.0001427326848 | N20: 3.789974946e-09
A21: 7.43425 | B21: ='DF raw data'!D26 -> -1.4163043e-06 | C21: ='DF raw data'!E26 -> 2.5051488e-06 | D21: ='DF raw data'!F26 -> -1.5861244e-06 | F21: -1.418547726e-06 | G21: 2.51458052e-06 | H21: -1.588636821e-06 | J21: -1.167571701e-05 | K21: -4.995283136e-05 | L21: 3.420135016e-05 | M21: 0.0001598384901 | N21: 4.443198214e-09
A22: 7.9344 | B22: ='DF raw data'!D27 -> 6.3216891e-07 | C22: ='DF raw data'!E27 -> 4.2423703e-06 | D22: ='DF raw data'!F27 -> 3.238112e-06 | F22: 6.331702656e-07 | G22: 4.258342544e-06 | H22: 3.243241169e-06 | J22: -1.135903691e-05 | K22: -5.563405367e-05 | L22: 3.633116019e-05 | M22: 0.0001780095199 | N22: 5.167906021e-09
A23: 8.43455 | B23: ='DF raw data'!D28 -> 3.0269484e-06 | C23: ='DF raw data'!E28 -> 6.2165586e-06 | D23: ='DF raw data'!F28 -> 3.5284954e-06 | F23: =(1-$G$1*($B$2-$G$2))*B23 -> 3.031743086e-06 | G23: 6.239963532e-06 | H23: 3.534084537e-06 | J23: -9.842710601e-06 | K23: -6.055688538e-05 | L23: 3.945207795e-05 | M23: 0.0001977414767 | N23: 5.994826726e-09
A24: 8.9347 | B24: ='DF raw data'!D29 -> -1.323725e-06 | C24: ='DF raw data'!E29 -> -6.43167e-06 | D24: ='DF raw data'!F29 -> -2.0373502e-06 | F24: -1.32582178e-06 | G24: -6.455884813e-06 | H24: -2.040577363e-06 | J24: -1.050582036e-05 | K24: -6.581137143e-05 | L24: 3.622316716e-05 | M24: 0.0002158584937 | N24: 6.70628515e-09
A25: 9.43485 | B25: ='DF raw data'!D30 -> -6.033627e-06 | C25: ='DF raw data'!E30 -> -3.0717069e-06 | D25: ='DF raw data'!F30 -> -5.8371897e-06 | F25: -6.043184265e-06 | G25: -3.083271674e-06 | H25: -5.846435808e-06 | J25: -1.352831897e-05 | K25: -7.257756017e-05 | L25: 3.468106883e-05 | M25: 0.0002332042303 | N25: 7.399388994e-09
A26: 9.935 | B26: ='DF raw data'!D31 -> -4.8984903e-06 | C26: ='DF raw data'!E31 -> -2.7600213e-06 | D26: ='DF raw data'!F31 -> -3.1472102e-06 | F26: -4.906249509e-06 | G26: -2.770412598e-06 | H26: -3.152195381e-06 | J26: -1.598217967e-05 | K26: -8.057104733e-05 | L26: 3.329544697e-05 | M26: 0.0002498569481 | N26: 8.081602024e-09
A27: 10.43515 | B27: ='DF raw data'!D32 -> -3.2947673e-06 | C27: ='DF raw data'!E32 -> 1.1500675e-05 | D27: ='DF raw data'!F32 -> 1.9525521e-06 | F27: -3.299986211e-06 | G27: 1.154397428e-05 | H27: 1.955644943e-06 | J27: -1.763266777e-05 | K27: -8.939002611e-05 | L27: 3.906916571e-05 | M27: 0.0002693973913 | N27: 9.000532961e-09
A28: 10.9353 | B28: ='DF raw data'!D33 -> -1.3060298e-06 | C28: ='DF raw data'!E33 -> 5.7574357e-06 | D28: ='DF raw data'!F33 -> 7.2000166e-06 | F28: -1.308098551e-06 | G28: 5.779112065e-06 | H28: 7.211421426e-06 | J28: -1.828691326e-05 | K28: -9.853622578e-05 | L28: 4.195958861e-05 | M28: 0.0002903834796 | N28: 1.004835635e-08
A29: 11.43545 | B29: ='DF raw data'!D34 -> -2.7510205e-06 | C29: ='DF raw data'!E34 -> 5.7777165e-06 | D29: ='DF raw data'!F34 -> 7.5197368e-06 | F29: -2.755378116e-06 | G29: 5.799469221e-06 | H29: 7.531648063e-06 | J29: -1.966501563e-05 | K29: -0.0001083716833 | L29: 4.486019314e-05 | M29: 0.0003128203052 | N29: 1.124829111e-08
A30: 11.9356 | B30: ='DF raw data'!D35 -> -7.2951325e-06 | C30: ='DF raw data'!E35 -> -1.2146676e-06 | D30: ='DF raw data'!F35 -> 7.9843971e-07 | F30: -7.30668799e-06 | G30: -1.219240743e-06 | H30: 7.997044385e-07 | J30: -2.331945562e-05 | K30: -0.0001200349091 | L30: 4.425038988e-05 | M30: 0.0003349521376 | N30: 1.24996134e-08
A31: 12.43575 | B31: ='DF raw data'!D36 -> -1.1473642e-05 | C31: ='DF raw data'!E36 -> -8.900206e-06 | D31: ='DF raw data'!F36 -> -3.7396042e-06 | F31: -1.149181625e-05 | G31: -8.933714688e-06 | H31: -3.745527733e-06 | J31: -2.906708752e-05 | K31: -0.0001345728129 | L31: 3.978219248e-05 | M31: 0.0003548492012 | N31: 1.371373673e-08
A32: 12.9359 | B32: ='DF raw data'!D37 -> -9.0740023e-06 | C32: ='DF raw data'!E37 -> -1.4433618e-06 | D32: ='DF raw data'!F37 -> -2.9891473e-06 | F32: -9.08837552e-06 | G32: -1.448795962e-06 | H32: -2.993882109e-06 | J32: -3.361263854e-05 | K32: -0.0001513841741 | L32: 3.905757718e-05 | M32: 0.0003743838484 | N32: 1.504178693e-08
A33: 13.43605 | B33: ='DF raw data'!D38 -> -3.3826755e-06 | C33: ='DF raw data'!E38 -> 2.2615106e-06 | D33: ='DF raw data'!F38 -> 9.3288486e-07 | F33: -3.388033658e-06 | G33: 2.270025038e-06 | H33: 9.343625496e-07 | J33: -3.530716357e-05 | K33: -0.0001690430519 | L33: 4.01929302e-05 | M33: 0.0003944863425 | N33: 1.647324996e-08
A34: 13.9362 | B34: ='DF raw data'!D39 -> -1.1822076e-06 | C34: ='DF raw data'!E39 -> 1.2090371e-06 | D34: ='DF raw data'!F39 -> 1.3376027e-06 | F34: -1.184080217e-06 | G34: 1.213589045e-06 | H34: 1.339721463e-06 | J34: -3.589938129e-05 | K34: -0.0001869981275 | L34: 4.079990676e-05 | M34: 0.0004148924158 | N34: 1.795039195e-08
A35: 14.43635 | B35: ='DF raw data'!D40 -> -1.8008532e-06 | C35: ='DF raw data'!E40 -> -1.4787198e-06 | D35: ='DF raw data'!F40 -> -1.7610203e-07 | F35: -1.803705751e-06 | G35: -1.484287082e-06 | H35: -1.763809756e-07 | J35: -3.680150472e-05 | K35: -0.0002054044001 | L35: 4.005754058e-05 | M35: 0.0004349271948 | N35: 1.943031445e-08
A36: 14.9365 | B36: ='DF raw data'!D41 -> 2.4763452e-07 | C36: ='DF raw data'!E41 -> -9.0982121e-06 | D36: ='DF raw data'!F41 -> -1.7642835e-06 | F36: 2.480267731e-07 | G36: -9.132466268e-06 | H36: -1.767078125e-06 | J36: -3.667745413e-05 | K36: -0.0002237486287 | L36: 3.548993757e-05 | M36: 0.000452677487 | N36: 2.073309082e-08
A37: 15.43665 | B37: ='DF raw data'!D42 -> 4.6623339e-07 | C37: ='DF raw data'!E42 -> -6.2592821e-06 | D37: ='DF raw data'!F42 -> -4.8022139e-06 | F37: 4.669719037e-07 | G37: -6.282847884e-06 | H37: -4.809820607e-06 | J37: -3.644389813e-05 | K37: -0.0002419760444 | L37: 3.23475712e-05 | M37: 0.0004688561248 | N37: 2.192070854e-08
A38: 15.9368 | B38: ='DF raw data'!D43 -> -9.4524658e-08 | C38: ='DF raw data'!E43 -> 7.4146014e-06 | D38: ='DF raw data'!F43 -> 2.4909148e-06 | F38: -9.467438506e-08 | G38: 7.442516884e-06 | H38: 2.494860409e-06 | J38: -3.649124953e-05 | K38: -0.0002602271428 | L38: 3.606994602e-05 | M38: 0.0004868965083 | N38: 2.323742958e-08
A39: 16.43695 | B39: ='DF raw data'!D44 -> -4.1349367e-06 | C39: ='DF raw data'!E44 -> 9.716754e-06 | D39: ='DF raw data'!F44 -> 5.872329e-06 | F39: -4.14148644e-06 | G39: 9.753336937e-06 | H39: 5.881630769e-06 | J39: -3.856261397e-05 | K39: -0.0002795142342 | L39: 4.094807749e-05 | M39: 0.0005073766892 | N39: 2.481981428e-08
A40: 16.9371 | B40: ='DF raw data'!D45 -> -7.894133e-06 | C40: ='DF raw data'!E45 -> 1.1613954e-05 | D40: ='DF raw data'!F45 -> 5.0003346e-06 | F40: -7.906637307e-06 | G40: 1.165767977e-05 | H40: 5.00825513e-06 | J40: -4.251711862e-05 | K40: -0.0003007791711 | L40: 4.677866603e-05 | M40: 0.0005307730391 | N40: 2.681838816e-08
A41: 17.43725 | B41: ='DF raw data'!D46 -> -6.9663174e-06 | C41: ='DF raw data'!E46 -> 7.5655075e-06 | D41: ='DF raw data'!F46 -> 6.3591051e-06 | F41: -6.977352047e-06 | G41: 7.593991136e-06 | H41: 6.369177922e-06 | J41: -4.600684125e-05 | K41: -0.0003237894928 | L41: 5.05768007e-05 | M41: 0.0005560690259 | N41: 2.915641046e-08
A42: 17.9374 | B42: ='DF raw data'!D47 -> -5.7574171e-06 | C42: ='DF raw data'!E47 -> -1.2671045e-06 | D42: ='DF raw data'!F47 -> 8.3352438e-07 | F42: -5.766536849e-06 | G42: -1.271875065e-06 | H42: 8.348446826e-07 | J42: -4.889097465e-05 | K42: -0.0003482423137 | L42: 4.994067238e-05 | M42: 0.0005810468532 | N42: 3.15993422e-08
A43: 18.43755 | B43: ='DF raw data'!D48 -> -9.861642e-07 | C43: ='DF raw data'!E48 -> -8.4118628e-06 | D43: ='DF raw data'!F48 -> 1.5338062e-06 | F43: -9.877262841e-07 | G43: -8.443532908e-06 | H43: 1.536235749e-06 | J43: -4.938498595e-05 | K43: -0.0003729422144 | L43: 4.57176394e-05 | M43: 0.0006039125306 | N43: 3.386451124e-08
A44: 18.9377 | B44: ='DF raw data'!D49 -> -4.1166595e-06 | C44: ='DF raw data'!E49 -> 1.2335876e-06 | D44: ='DF raw data'!F49 -> 2.8457778e-06 | F44: -4.123180289e-06 | G44: 1.238231976e-06 | H44: 2.850285512e-06 | J44: -5.144719457e-05 | K44: -0.0003986735288 | L44: 4.633694112e-05 | M44: 0.0006270879517 | N44: 3.62621933e-08
A45: 19.43785 | B45: ='DF raw data'!D50 -> -7.1209752e-06 | C45: ='DF raw data'!E50 -> 9.8065502e-06 | D45: ='DF raw data'!F50 -> -6.4043652e-06 | F45: -7.132254825e-06 | G45: 9.843471214e-06 | H45: -6.414509714e-06 | J45: -5.501439182e-05 | K45: -0.0004261889769 | L45: 5.126015325e-05 | M45: 0.0006527257173 | N45: 3.909013474e-08
A46: 19.938 | B46: ='DF raw data'!D51 -> 1.3433937e-06 | C46: ='DF raw data'!E51 -> 1.3817371e-05 | D46: ='DF raw data'!F51 -> -5.5773653e-06 | F46: 1.345521636e-06 | G46: 1.386939249e-05 | H46: -5.586199847e-06 | J46: -5.434142918e-05 | K46: -0.0004533678427 | L46: 5.81969299e-05 | M46: 0.0006818329118 | N46: 4.226102251e-08
A47: 20.43815 | B47: ='DF raw data'!D52 -> 5.5290484e-06 | C47: ='DF raw data'!E52 -> 3.2764913e-06 | D47: ='DF raw data'!F52 -> 6.2541421e-06 | F47: 5.537806413e-06 | G47: 3.288827073e-06 | H47: 6.264048661e-06 | J47: -5.15716953e-05 | K47: -0.0004791614261 | L47: 5.984183676e-05 | M47: 0.0007117628065 | N47: 4.53823012e-08
A48: 20.9383 | B48: ='DF raw data'!D53 -> -1.0689355e-06 | C48: ='DF raw data'!E53 -> -8.2183933e-06 | D48: ='DF raw data'!F53 -> 1.9544875e-06 | F48: -1.070628694e-06 | G48: -8.249335008e-06 | H48: 1.957583408e-06 | J48: -5.210717024e-05 | K48: -0.0005052228273 | L48: 5.571593186e-05 | M48: 0.0007396291298 | N48: 4.829288524e-08
A49: 21.43845 | B49: ='DF raw data'!D54 -> -2.3444545e-06 | C49: ='DF raw data'!E54 -> 1.5799645e-06 | D49: ='DF raw data'!F54 -> -2.1316612e-06 | F49: -2.348168116e-06 | G49: 1.585912962e-06 | H49: -2.135037751e-06 | J49: -5.328160652e-05 | K49: -0.0005318716228 | L49: 5.650912623e-05 | M49: 0.0007678921693 | N49: 5.130989554e-08
A50: 21.9386 | B50: ='DF raw data'!D55 -> 6.0139182e-06 | C50: ='DF raw data'!E55 -> -7.5356465e-06 | D50: ='DF raw data'!F55 -> -1.1781813e-08 | F50: 6.023444246e-06 | G50: -7.564017711e-06 | H50: -1.180047539e-08 | J50: -5.026898089e-05 | K50: -0.0005570136536 | L50: 5.272598277e-05 | M50: 0.0007942630695 | N50: 5.396419144e-08
A51: 22.43875 | B51: ='DF raw data'!D56 -> 9.432556e-06 | C51: ='DF raw data'!E56 -> -4.501379e-06 | D51: ='DF raw data'!F56 -> 7.4081236e-06 | F51: 9.447497169e-06 | G51: -4.518326395e-06 | H51: 7.419858068e-06 | J51: -4.554381518e-05 | K51: -0.0005797923927 | L51: 5.046614182e-05 | M51: 0.0008195037104 | N51: 5.627541989e-08
A52: 22.9389 | B52: ='DF raw data'!D57 -> 4.3166119e-06 | C52: ='DF raw data'!E57 -> 6.515782e-07 | D52: ='DF raw data'!F57 -> 1.3662275e-05 | F52: 4.323449413e-06 | G52: 6.540313489e-07 | H52: 1.368391604e-05 | J52: -4.338144195e-05 | K52: -0.0006014896209 | L52: 5.07932556e-05 | M52: 0.0008449079572 | N52: 5.850704134e-08
A53: 23.43905 | B53: ='DF raw data'!D58 -> 6.5440423e-07 | C53: ='DF raw data'!E58 -> 2.7209001e-06 | D53: ='DF raw data'!F58 -> 1.2600814e-05 | F53: 6.554408063e-07 | G53: 2.731144109e-06 | H53: 1.262077369e-05 | J53: -4.305362323e-05 | K53: -0.0006230228906 | L53: 5.215923733e-05 | M53: 0.0008709953997 | N53: 6.079482772e-08
A54: 23.9392 | B54: ='DF raw data'!D59 -> -2.3045651e-08 | C54: ='DF raw data'!E59 -> 6.0047552e-07 | D54: ='DF raw data'!F59 -> 7.0307051e-06 | F54: -2.308215531e-08 | G54: 6.027362707e-07 | H54: 7.041841737e-06 | J54: -4.306516777e-05 | K54: -0.0006445619343 | L54: 5.246069587e-05 | M54: 0.0008972336168 | N54: 6.309888537e-08
A55: 24.43935 | B55: ='DF raw data'!D60 -> 1.5796732e-06 | C55: ='DF raw data'!E60 -> -4.9444907e-06 | D55: ='DF raw data'!F60 -> -1.86085e-06 | F55: 1.582175402e-06 | G55: -4.963106381e-06 | H55: -1.863797586e-06 | J55: -4.227384275e-05 | K55: -0.0006657051967 | L55: 4.997839822e-05 | M55: 0.0009222303126 | N55: 6.524198715e-08
A56: 24.9395 | B56: ='DF raw data'!D61 -> 2.9567937e-06 | C56: ='DF raw data'!E61 -> -1.1044915e-05 | D56: ='DF raw data'!F61 -> -1.3265002e-07 | F56: 2.961477261e-06 | G56: -1.108649838e-05 | H56: -1.328601376e-07 | J56: -4.079265989e-05 | K56: -0.0006861076456 | L56: 4.443348605e-05 | M56: 0.0009444537207 | N56: 6.70617208e-08
A57: 25.43965 | B57: ='DF raw data'!D62 -> 7.6120241e-06 | C57: ='DF raw data'!E62 -> -9.7574757e-06 | D57: ='DF raw data'!F62 -> 1.4556624e-06 | F57: 7.624081546e-06 | G57: -9.794211951e-06 | H57: 1.457968169e-06 | J57: -3.697947551e-05 | K57: -0.0007046029302 | L57: 3.953491095e-05 | M57: 0.0009642271064 | N57: 6.852740577e-08
A58: 25.9398 | B58: ='DF raw data'!D63 -> 5.8040505e-06 | C58: ='DF raw data'!E63 -> 5.8903292e-06 | D58: ='DF raw data'!F63 -> 3.0837161e-06 | F58: 5.813244116e-06 | G58: 5.9125059e-06 | H58: 3.088600706e-06 | J58: -3.407198146e-05 | K58: -0.0007216440318 | L58: 4.249205077e-05 | M58: 0.0009854795056 | N58: 7.001108789e-08
A59: 26.43995 | B59: ='DF raw data'!D64 -> -8.5887854e-07 | C59: ='DF raw data'!E64 -> 5.7993325e-06 | D59: ='DF raw data'!F64 -> 3.4779857e-06 | F59: -8.602390036e-07 | G59: 5.821166604e-06 | H59: 3.483494829e-06 | J59: -3.450223e-05 | K59: -0.0007389003221 | L59: 4.540350725e-05 | M59: 0.00100818807 | N59: 7.163751684e-08
A60: 26.9401 | B60: ='DF raw data'!D65 -> 5.8085325e-06 | C60: ='DF raw data'!E65 -> -6.218508e-07 | D60: ='DF raw data'!F65 -> 1.4731102e-06 | F60: 5.817733215e-06 | G60: -6.241920272e-07 | H60: 1.475443607e-06 | J60: -3.159249073e-05 | K60: -0.0007547013063 | L60: 4.509131761e-05 | M60: 0.001030740492 | N60: 7.315362774e-08
A61: 27.44025 | B61: ='DF raw data'!D66 -> 1.1617934e-05 | C61: ='DF raw data'!E66 -> -5.6554444e-07 | D61: ='DF raw data'!F66 -> -4.4926655e-06 | F61: 1.163633681e-05 | G61: -5.676736775e-07 | H61: -4.499781882e-06 | J61: -2.577257688e-05 | K61: -0.0007675914607 | L61: 4.480739562e-05 | M61: 0.001053150911 | N61: 7.448999274e-08
A62: 27.9404 | B62: ='DF raw data'!D67 -> 7.7013437e-06 | C62: ='DF raw data'!E67 -> 4.4930249e-07 | D62: ='DF raw data'!F67 -> -4.8551246e-06 | F62: 7.713542628e-06 | G62: 4.509940842e-07 | H62: -4.862815117e-06 | J62: -2.191464853e-05 | K62: -0.0007785520721 | L62: 4.503296031e-05 | M62: 0.001075674146 | N62: 7.574447864e-08
A63: 28.44055 | B63: ='DF raw data'!D68 -> 3.9131746e-06 | C63: ='DF raw data'!E68 -> 1.3990291e-05 | D63: ='DF raw data'!F68 -> 5.7256489e-07 | F63: 3.919373069e-06 | G63: 1.404296352e-05 | H63: 5.734718328e-07 | J63: -1.995437409e-05 | K63: -0.0007885322523 | L63: 5.205654851e-05 | M63: 0.001101710229 | N63: 7.729897549e-08
A64: 28.9407 | B64: ='DF raw data'!D69 -> -6.6644401e-07 | C64: ='DF raw data'!E69 -> 2.1575761e-05 | D64: ='DF raw data'!F69 -> 2.4696108e-06 | F64: -6.674996573e-07 | G64: 2.165699231e-05 | H64: 2.473522664e-06 | J64: -2.028822405e-05 | K64: -0.0007986794076 | L64: 6.288829322e-05 | M64: 0.001133163809 | N64: 7.94829052e-08
A65: 29.44085 | B65: ='DF raw data'!D70 -> -7.2885259e-06 | C65: ='DF raw data'!E70 -> 9.5028699e-06 | D65: ='DF raw data'!F70 -> 4.706968e-06 | F65: -7.300070925e-06 | G65: 9.538647577e-06 | H65: 4.714423837e-06 | J65: -2.393935452e-05 | K65: -0.0008106526757 | L65: 6.765904781e-05 | M65: 0.001167003482 | N65: 8.205909755e-08
A66: 29.941 | B66: ='DF raw data'!D71 -> -9.2169748e-06 | C66: ='DF raw data'!E71 -> 2.0749796e-06 | D66: ='DF raw data'!F71 -> 7.1932936e-06 | F66: -9.231574488e-06 | G66: 2.082791761e-06 | H66: 7.204687777e-06 | J66: -2.85565265e-05 | K66: -0.0008249352225 | L66: 6.870075611e-05 | M66: 0.001201364165 | N66: 8.482756239e-08
A67: 30.44115 | B67: ='DF raw data'!D72 -> -6.5056183e-06 | C67: ='DF raw data'!E72 -> 6.7529359e-06 | D67: ='DF raw data'!F72 -> 6.7102428e-06 | F67: -6.515923199e-06 | G67: 6.778360258e-06 | H67: 6.720871825e-06 | J67: -3.181546549e-05 | K67: -0.0008408477275 | L67: 7.209095299e-05 | M67: 0.001237420455 | N67: 8.793315846e-08
A68: 30.9413 | B68: ='DF raw data'!D73 -> -2.8010936e-06 | C68: ='DF raw data'!E73 -> -1.0621684e-05 | D68: ='DF raw data'!F73 -> 4.5281395e-06 | F68: -2.805530532e-06 | G68: -1.066167394e-05 | H68: 4.535312073e-06 | J68: -3.321865158e-05 | K68: -0.0008574620361 | L68: 6.675851677e-05 | M68: 0.001270809727 | N68: 9.071408167e-08
A69: 31.44145 | B69: ='DF raw data'!D74 -> -1.5700889e-06 | C69: ='DF raw data'!E74 -> -1.9546493e-05 | D69: ='DF raw data'!F74 -> 1.7722684e-06 | F69: -1.572575921e-06 | G69: -1.962008425e-05 | H69: 1.775075673e-06 | J69: -3.400517543e-05 | K69: -0.0008744697246 | L69: 5.694553163e-05 | M69: 0.001299291035 | N69: 9.291431431e-08
A70: 31.9416 | B70: ='DF raw data'!D75 -> -2.6563748e-06 | C70: ='DF raw data'!E75 -> -2.4796185e-05 | D70: ='DF raw data'!F75 -> 5.0134781e-07 | F70: -2.660582498e-06 | G70: -2.4889541e-05 | H70: 5.021419449e-07 | J70: -3.533586577e-05 | K70: -0.0008921429579 | L70: 4.44970277e-05 | M70: 0.001321546223 | N70: 9.452910304e-08
A71: 32.44175 | B71: ='DF raw data'!D76 -> -6.0501143e-06 | C71: ='DF raw data'!E76 -> -8.1571498e-06 | D71: ='DF raw data'!F76 -> -1.9884994e-06 | F71: -6.059697681e-06 | G71: =(1-$G$1*($B$2-$G$2))*C71*$M$2/$M$1 -> -8.18786093e-06 | H71: -1.991649183e-06 | J71: -3.836662356e-05 | K71: -0.0009113320247 | L71: 4.040186905e-05 | M71: 0.001341753218 | N71: 9.60817231e-08
A72: =A71+$B$1 -> 32.9419 | B72: ='DF raw data'!D77 -> -4.2538841e-06 | C72: ='DF raw data'!E77 -> -6.7962463e-07 | D72: ='DF raw data'!F77 -> -8.061159e-06 | F72: -4.260622252e-06 | G72: -6.821833718e-07 | H72: -8.073927876e-06 | J72: =F72*$B$1+J71 -> -4.049757378e-05 | K72: =J72*$B$1+K71 -> -0.0009315868862 | L72: =G72*$B$1+L71 -> 4.006067504e-05 | M72: =L72*$B$1+M71 -> 0.001361789565 | N72: =(J72^2+L72^2)*$B$1+N71 -> 9.770466542e-08
A73: 33.44205 | B73: ='DF raw data'!D78 -> 1.2351857e-06 | C73: ='DF raw data'!E78 -> 3.9502979e-06 | D73: ='DF raw data'!F78 -> -6.5831937e-06 | F73: 1.237142234e-06 | G73: 3.965170511e-06 | H73: -6.593621479e-06 | J73: -3.987881709e-05 | K73: -0.0009515322766 | L73: 4.204385507e-05 | M73: 0.001382817799 | N73: 9.938417202e-08
A74: 33.9422 | B74: ='DF raw data'!D79 -> 6.2682835e-07 | C74: ='DF raw data'!E79 -> 1.0526255e-05 | D74: ='DF raw data'!F79 -> -3.2101036e-06 | F74: 6.278212461e-07 | G74: 1.056588565e-05 | H74: -3.215188404e-06 | J74: -3.95648123e-05 | K74: -0.0009713206174 | L74: 4.732838278e-05 | M74: 0.001406489089 | N74: 1.012874179e-07
A75: 34.44235 | B75: ='DF raw data'!D80 -> -1.5558717e-06 | C75: ='DF raw data'!E80 -> 5.4899142e-06 | D75: ='DF raw data'!F80 -> -3.0553731e-06 | F75: -1.558336201e-06 | G75: 5.510583364e-06 | H75: -3.060212811e-06 | J75: -4.034421415e-05 | K75: -0.0009914987761 | L75: 5.008450105e-05 | M75: 0.001431538852 | N75: 1.033560948e-07
A76: 34.9425 | B76: ='DF raw data'!D81 -> -4.5295701e-06 | C76: ='DF raw data'!E81 -> 1.1477592e-05 | D76: ='DF raw data'!F81 -> 1.7865002e-06 | F76: -4.536744939e-06 | G76: 1.152080438e-05 | H76: 1.789330016e-06 | J76: -4.261326713e-05 | K76: -0.001012811802 | L76: 5.584663136e-05 | M76: 0.001459470545 | N76: 1.058242034e-07
A77: 35.44265 | B77: ='DF raw data'!D82 -> -1.9513054e-06 | C77: ='DF raw data'!E82 -> 8.0147565e-06 | D77: ='DF raw data'!F82 -> 6.0811053e-06 | F77: -1.954396268e-06 | G77: 8.044931529e-06 | H77: 6.090737771e-06 | J77: -4.359075842e-05 | K77: -0.00103461372 | L77: 5.987030386e-05 | M77: 0.001489414678 | N77: 1.085673298e-07
A78: 35.9428 | B78: ='DF raw data'!D83 -> -1.9836689e-06 | C78: ='DF raw data'!E83 -> 6.4944875e-06 | D78: ='DF raw data'!F83 -> 5.8358619e-06 | F78: -1.986811032e-06 | G78: 6.518938816e-06 | H78: 5.845105905e-06 | J78: -4.458446196e-05 | K78: -0.001056912638 | L78: 6.313075111e-05 | M78: 0.001520989523 | N78: 1.115548588e-07
A79: 36.44295 | B79: ='DF raw data'!D84 -> -7.4128138e-06 | C79: ='DF raw data'!E84 -> 4.7864864e-06 | D79: ='DF raw data'!F84 -> -3.9519164e-06 | F79: -7.424555697e-06 | G79: 4.804507205e-06 | H79: -3.958176236e-06 | J79: -4.829785349e-05 | K79: -0.00108106881 | L79: 6.553372539e-05 | M79: 0.001553766216 | N79: 1.148695288e-07
A80: 36.9431 | B80: ='DF raw data'!D85 -> -2.9641624e-06 | C80: ='DF raw data'!E85 -> -7.3836727e-06 | D80: ='DF raw data'!F85 -> -1.5779844e-05 | F80: -2.968857633e-06 | G80: -7.41147174e-06 | H80: -1.580483927e-05 | J80: -4.978272764e-05 | K80: -0.001105967641 | L80: 6.18268778e-05 | M80: 0.001584688929 | N80: 1.180209153e-07
A81: 37.44325 | B81: ='DF raw data'!D86 -> 6.6781986e-06 | C81: ='DF raw data'!E86 -> 5.3278004e-06 | D81: ='DF raw data'!F86 -> -1.8669418e-05 | F81: 6.688776867e-06 | G81: 5.347859217e-06 | H81: -1.869899036e-05 | J81: -4.643733589e-05 | K81: -0.001129193274 | L81: 6.450160959e-05 | M81: 0.001616949409 | N81: 1.211803048e-07
A82: 37.9434 | B82: ='DF raw data'!D87 -> 7.8847706e-06 | C82: ='DF raw data'!E87 -> 4.1282906e-06 | D82: ='DF raw data'!F87 -> -1.2071245e-05 | F82: 7.897260077e-06 | G82: 4.143833341e-06 | H82: -1.209036585e-05 | J82: -4.248752126e-05 | K82: -0.001150443408 | L82: 6.657414783e-05 | M82: 0.001650246469 | N82: 1.242998937e-07
A83: 38.44355 | B83: ='DF raw data'!D88 -> -2.4585003e-07 | C83: ='DF raw data'!E88 -> -1.0410787e-06 | D83: ='DF raw data'!F88 -> -3.7889206e-06 | F83: -2.462394564e-07 | G83: -1.044998293e-06 | H83: -3.79492225e-06 | J83: -4.261067792e-05 | K83: -0.001171755139 | L83: 6.605149194e-05 | M83: 0.001683282122 | N83: 1.273900552e-07
A84: 38.9437 | B84: ='DF raw data'!D89 -> -2.4634019e-06 | C84: ='DF raw data'!E89 -> 1.2146862e-05 | D84: ='DF raw data'!F89 -> -1.8416852e-06 | F84: -2.467303929e-06 | G84: 1.219259413e-05 | H84: -1.844602429e-06 | J84: -4.384469998e-05 | K84: -0.001193684065 | L84: 7.214961789e-05 | M84: 0.001719367754 | N84: 1.309550869e-07
A85: 39.44385 | B85: ='DF raw data'!D90 -> 2.6832467e-06 | C85: ='DF raw data'!E90 -> -1.0338737e-06 | D85: ='DF raw data'!F90 -> -5.3701897e-06 | F85: 2.687496963e-06 | G85: -1.037766166e-06 | H85: -5.37869608e-06 | J85: -4.250054838e-05 | K85: -0.001214940715 | L85: 7.163057914e-05 | M85: 0.001755193788 | N85: 1.344247457e-07
A86: 39.944 | B86: ='DF raw data'!D91 -> 1.2523424e-06 | C86: ='DF raw data'!E91 -> -8.2808374e-06 | D86: ='DF raw data'!F91 -> -1.0849384e-07 | F86: 1.25432611e-06 | G86: -8.312014206e-06 | H86: -1.086656942e-07 | J86: -4.187319717e-05 | K86: -0.001235883594 | L86: 6.747332524e-05 | M86: 0.001788940571 | N86: 1.375786988e-07
A87: 40.44415 | B87: ='DF raw data'!D92 -> -4.6351588e-06 | C87: ='DF raw data'!E92 -> 6.0575251e-09 | D87: ='DF raw data'!F92 -> -7.1439194e-07 | F87: =(1-$G$1*($B$2-$G$2))*B87 -> -4.642500892e-06 | G87: 6.080331282e-09 | H87: -7.155235368e-07 | J87: -4.419514399e-05 | K87: -0.001257987795 | L87: 6.747636632e-05 | M87: 0.001822688876 | N87: 1.408328101e-07
A88: 40.9443 | B88: ='DF raw data'!D93 -> -3.8248209e-06 | C88: ='DF raw data'!E93 -> 4.8306506e-06 | D88: ='DF raw data'!F93 -> -2.1650724e-06 | F88: -3.830879416e-06 | G88: 4.84883768e-06 | H88: -2.168501875e-06 | J88: -4.611115833e-05 | K88: -0.001281050291 | L88: 6.990151248e-05 | M88: 0.001857650118 | N88: 1.443400921e-07
A89: 41.44445 | B89: ='DF raw data'!D94 -> -8.3651224e-07 | C89: ='DF raw data'!E94 -> -3.2036664e-06 | D89: ='DF raw data'!F94 -> 3.6447652e-06 | F89: -8.378372754e-07 | G89: -3.215727992e-06 | H89: 3.650538508e-06 | J89: -4.653020265e-05 | K89: -0.001304322372 | L89: 6.829316613e-05 | M89: 0.001891806945 | N89: 1.477556246e-07
A90: 41.9446 | B90: ='DF raw data'!D95 -> -3.8232201e-06 | C90: ='DF raw data'!E95 -> -5.6531226e-06 | D90: ='DF raw data'!F95 -> -2.1377694e-07 | F90: -3.829276081e-06 | G90: -5.674406233e-06 | H90: -2.141155627e-07 | J90: -4.844541508e-05 | K90: -0.001328552347 | L90: 6.545511185e-05 | M90: 0.001924544319 | N90: 1.510722843e-07
A91: 42.44475 | B91: ='DF raw data'!D96 -> -3.4930081e-06 | C91: ='DF raw data'!E96 -> -1.2376694e-07 | D91: ='DF raw data'!F96 -> -7.3425854e-06 | F91: -3.498541025e-06 | G91: -1.242329144e-07 | H91: -7.354216055e-06 | J91: -5.019521037e-05 | K91: -0.001353657481 | L91: 6.539297676e-05 | M91: 0.001957250616 | N91: 1.544712039e-07
A92: 42.9449 | B92: ='DF raw data'!D97 -> -3.9591178e-08 | C92: ='DF raw data'!E97 -> -1.9206307e-06 | D92: ='DF raw data'!F97 -> -4.4315038e-06 | F92: -3.965389043e-08 | G92: -1.927861748e-06 | H92: -4.438523302e-06 | J92: -5.021504327e-05 | K92: -0.001378772535 | L92: 6.44287567e-05 | M92: 0.001989474659 | N92: 1.578085125e-07
A93: 43.44505 | B93: ='DF raw data'!D98 -> 2.8681434e-06 | C93: ='DF raw data'!E98 -> -4.4610842e-06 | D93: ='DF raw data'!F98 -> 4.742169e-06 | F93: 2.872686539e-06 | G93: -4.477879887e-06 | H93: 4.749680596e-06 | J93: -4.877826909e-05 | K93: -0.001403168986 | L93: 6.218914508e-05 | M93: 0.00202057856 | N93: 1.609328541e-07
A94: 43.9452 | B94: ='DF raw data'!D99 -> 3.4733575e-06 | C94: ='DF raw data'!E99 -> -8.6602239e-07 | D94: ='DF raw data'!F99 -> 7.2078019e-06 | F94: 3.478859298e-06 | G94: -8.692829071e-07 | H94: 7.219219058e-06 | J94: -4.703831762e-05 | K94: -0.001426695201 | L94: 6.175437323e-05 | M94: 0.002051465009 | N94: 1.63946861e-07
A95: 44.44535 | B95: ='DF raw data'!D100 -> 6.5890245e-06 | C95: ='DF raw data'!E100 -> 1.20837e-06 | D95: ='DF raw data'!F100 -> 6.8172576e-06 | F95: 6.599461515e-06 | G95: 1.212919433e-06 | H95: 6.828056136e-06 | J95: -4.373759694e-05 | K95: -0.00144857056 | L95: 6.236101489e-05 | M95: 0.002082654871 | N95: 1.668486681e-07
A96: 44.9455 | B96: ='DF raw data'!D101 -> 7.0845026e-06 | C96: ='DF raw data'!E101 -> -1.2168026e-06 | D96: ='DF raw data'!F101 -> 5.33823e-06 | F96: 7.095724452e-06 | G96: -1.221383781e-06 | H96: 5.346685756e-06 | J96: -4.018867035e-05 | K96: -0.001468670923 | L96: 6.175013979e-05 | M96: 0.002113539203 | N96: 1.695635868e-07
A97: 45.44565 | B97: ='DF raw data'!D102 -> 2.6458047e-06 | C97: ='DF raw data'!E102 -> 1.0537277e-06 | D97: ='DF raw data'!F102 -> 1.4123996e-06 | F97: 2.649995655e-06 | G97: 1.057694915e-06 | H97: 1.414636841e-06 | J97: -3.886327503e-05 | K97: -0.00148810839 | L97: 6.22791459e-05 | M97: 0.002144688118 | N97: 1.722589183e-07
A98: 45.9458 | B98: ='DF raw data'!D103 -> -4.2399698e-08 | C98: ='DF raw data'!E103 -> 7.9501234e-07 | D98: ='DF raw data'!F103 -> -2.9837631e-06 | F98: -4.246685912e-08 | G98: 7.980055089e-07 | H98: -2.988489381e-06 | J98: -3.888451483e-05 | K98: -0.00150755648 | L98: 6.267826836e-05 | M98: 0.002176036654 | N98: 1.749800197e-07
A99: 46.44595 | B99: ='DF raw data'!D104 -> 2.9916285e-07 | C99: ='DF raw data'!E104 -> -8.9843988e-06 | D99: ='DF raw data'!F104 -> -4.2577394e-06 | F99: 2.99636724e-07 | G99: -9.018224468e-06 | H99: -4.264483659e-06 | J99: -3.873465152e-05 | K99: -0.001526929616 | L99: 5.816780339e-05 | M99: 0.002205129281 | N99: 1.774226856e-07
A100: 46.9461 | B100: ='DF raw data'!D105 -> -5.7338451e-07 | C100: ='DF raw data'!E105 -> -8.1269955e-06 | D100: ='DF raw data'!F105 -> -1.7973018e-06 | F100: -5.742927511e-07 | G100: -8.157593101e-06 | H100: -1.800148726e-06 | J100: -3.902188404e-05 | K100: -0.001546446412 | L100: 5.40877832e-05 | M100: 0.002232181286 | N100: 1.796474507e-07
A101: 47.44625 | B101: ='DF raw data'!D106 -> -4.8910833e-06 | C101: ='DF raw data'!E106 -> 4.1974058e-06 | D101: ='DF raw data'!F106 -> 4.5890918e-09 | F101: -4.898830776e-06 | G101: 4.213208756e-06 | H101: 4.596360921e-09 | J101: -4.147203425e-05 | K101: -0.00156718865 | L101: 5.619501956e-05 | M101: 0.002260287225 | N101: 1.820870873e-07
A102: 47.9464 | B102: ='DF raw data'!D107 -> -2.3092825e-06 | C102: ='DF raw data'!E107 -> 6.3610088e-07 | D102: ='DF raw data'!F107 -> -1.8042867e-06 | F102: -2.312940403e-06 | G102: 6.384957578e-07 | H102: -1.80714469e-06 | J102: -4.262885139e-05 | K102: -0.00158850947 | L102: 5.651436321e-05 | M102: 0.002288552884 | N102: 1.845933851e-07
A103: 48.44655 | B103: ='DF raw data'!D108 -> 1.6123859e-06 | C103: ='DF raw data'!E108 -> -7.4497193e-06 | D103: ='DF raw data'!F108 -> -2.9125461e-06 | F103: 1.614939919e-06 | G103: -7.477767001e-06 | H103: -2.917159573e-06 | J103: -4.182113919e-05 | K103: -0.001609426312 | L103: 5.277435805e-05 | M103: 0.002314947979 | N103: 1.868611355e-07
A104: 48.9467 | B104: ='DF raw data'!D109 -> -6.168334e-06 | C104: ='DF raw data'!E109 -> 1.9506253e-06 | D104: ='DF raw data'!F109 -> -4.5618162e-06 | F104: -6.178104641e-06 | G104: 1.957969275e-06 | H104: -4.569042117e-06 | J104: -4.491111823e-05 | K104: -0.001631888608 | L104: 5.375363638e-05 | M104: 0.00234183286 | N104: 1.893151024e-07
A105: 49.44685 | B105: ='DF raw data'!D110 -> -9.298742e-06 | C105: ='DF raw data'!E110 -> 7.6583719e-06 | D105: ='DF raw data'!F110 -> -1.7254154e-06 | F105: -9.313471207e-06 | G105: 7.687205164e-06 | H105: -1.728148458e-06 | J105: -4.956925085e-05 | K105: -0.001656680669 | L105: 5.759839204e-05 | M105: 0.002370640696 | N105: 1.922033113e-07
A106: 49.947 | B106: ='DF raw data'!D111 -> -4.426106e-06 | C106: ='DF raw data'!E111 -> 6.1207579e-06 | D106: ='DF raw data'!F111 -> -3.5524665e-06 | F106: -4.433116952e-06 | G106: 6.143802149e-06 | H106: -3.558093607e-06 | J106: -5.17864743e-05 | K106: -0.001682581674 | L106: 6.067121469e-05 | M106: 0.002400985404 | N106: 1.953856834e-07
A107: 50.44715 | B107: ='DF raw data'!D112 -> 2.7895194e-06 | C107: ='DF raw data'!E112 -> 6.8850291e-06 | D107: ='DF raw data'!F112 -> -2.9321766e-06 | F107: 2.793937999e-06 | G107: 6.91095078e-06 | H107: -2.936821168e-06 | J107: -5.038908621e-05 | K107: -0.001707783776 | L107: 6.412772672e-05 | M107: 0.002433058886 | N107: 1.987123937e-07
A108: 50.9473 | B108: ='DF raw data'!D113 -> 6.6524417e-06 | C108: ='DF raw data'!E113 -> 7.2507532e-06 | D108: ='DF raw data'!F113 -> 5.9173235e-06 | F108: 6.662979168e-06 | G108: 7.278051807e-06 | H108: 5.92669654e-06 | J108: -4.705659718e-05 | K108: -0.001731319133 | L108: 6.776784433e-05 | M108: 0.002466952974 | N108: 2.021168168e-07
A109: 51.44745 | B109: ='DF raw data'!D114 -> 1.1135072e-05 | C109: ='DF raw data'!E114 -> 1.0458874e-05 | D109: ='DF raw data'!F114 -> 5.4067841e-06 | F109: 1.115270995e-05 | G109: 1.049825097e-05 | H109: 5.415348446e-06 | J109: -4.147856929e-05 | K109: -0.001752064639 | L109: 7.301854455e-05 | M109: 0.002503473199 | N109: 2.056439644e-07
A110: 51.9476 | B110: ='DF raw data'!D115 -> 1.4588147e-05 | C110: ='DF raw data'!E115 -> -5.7413176e-06 | D110: ='DF raw data'!F115 -> -2.4472888e-07 | F110: 1.461125462e-05 | G110: -5.762933282e-06 | H110: -2.451165305e-07 | J110: -3.417075029e-05 | K110: -0.00176915514 | L110: 7.013621347e-05 | M110: 0.002538551826 | N110: 2.086882417e-07
A111: 52.44775 | B111: ='DF raw data'!D116 -> 8.9195864e-06 | C111: ='DF raw data'!E116 -> 2.6337723e-06 | D111: ='DF raw data'!F116 -> -2.6544533e-06 | F111: 8.933715025e-06 | G111: 2.643688279e-06 | H111: -2.658657954e-06 | J111: -2.970255272e-05 | K111: -0.001784010872 | L111: 7.145845417e-05 | M111: 0.002574291772 | N111: 2.116834162e-07
A112: 52.9479 | B112: ='DF raw data'!D117 -> 6.6249386e-06 | C112: ='DF raw data'!E117 -> 4.8177085e-06 | D112: ='DF raw data'!F117 -> 3.5347125e-07 | F112: 6.635432503e-06 | G112: 4.835846854e-06 | H112: 3.540311485e-07 | J112: -2.638384116e-05 | K112: -0.00179720675 | L112: 7.387710297e-05 | M112: 0.002611241405 | N112: 2.14761306e-07
A113: 53.44805 | B113: ='DF raw data'!D118 -> 1.0310982e-05 | C113: ='DF raw data'!E118 -> -6.6101957e-06 | D113: ='DF raw data'!F118 -> 1.3435254e-06 | F113: 1.03273146e-05 | G113: -6.63508265e-06 | H113: 1.345653544e-06 | J113: -2.121863476e-05 | K113: -0.00180781925 | L113: 7.055856638e-05 | M113: 0.002646531272 | N113: 2.174764911e-07
A114: 53.9482 | B114: ='DF raw data'!D119 -> 9.2463933e-06 | C114: ='DF raw data'!E119 -> -6.5941845e-06 | D114: ='DF raw data'!F119 -> -6.7766291e-07 | F114: 9.261039587e-06 | G114: -6.619011169e-06 | H114: -6.78736328e-07 | J114: -1.658672581e-05 | K114: -0.001816115101 | L114: 6.724806795e-05 | M114: 0.002680165393 | N114: 2.198759218e-07
A115: 54.44835 | B115: ='DF raw data'!D120 -> 2.9590637e-06 | C115: ='DF raw data'!E120 -> -1.2149558e-05 | D115: ='DF raw data'!F120 -> -5.2142514e-06 | F115: 2.963750857e-06 | G115: -1.219530028e-05 | H115: -5.222510774e-06 | J115: -1.510440582e-05 | K115: -0.001823669569 | L115: 6.114858851e-05 | M115: 0.00271074886 | N115: 2.218601634e-07
A116: 54.9485 | B116: ='DF raw data'!D121 -> 1.8452747e-06 | C116: ='DF raw data'!E121 -> -1.4858397e-05 | D116: ='DF raw data'!F121 -> -2.2873376e-06 | F116: 1.848197615e-06 | G116: -1.491433788e-05 | H116: -2.290960743e-06 | J116: -1.418002978e-05 | K116: -0.001830761711 | L116: 5.368918242e-05 | M116: 0.002737601504 | N116: 2.234024267e-07
A117: 55.44865 | B117: ='DF raw data'!D122 -> 1.2266437e-06 | C117: ='DF raw data'!E122 -> 1.4919027e-06 | D117: ='DF raw data'!F122 -> 5.1958687e-06 | F117: 1.228586704e-06 | G117: 1.497519615e-06 | H117: 5.204098956e-06 | J117: -1.356555215e-05 | K117: -0.001837546522 | L117: 5.443816685e-05 | M117: 0.002764828753 | N117: 2.249766679e-07
A118: 55.9488 | B118: ='DF raw data'!D123 -> 8.422258e-07 | C118: ='DF raw data'!E123 -> 3.1520033e-06 | D118: ='DF raw data'!F123 -> 5.3809545e-06 | F118: 8.435598857e-07 | G118: 3.163870384e-06 | H118: 5.389477932e-06 | J118: -1.314364567e-05 | K118: -0.001844120317 | L118: 5.602057662e-05 | M118: 0.002792847445 | N118: 2.266326948e-07
A119: 56.44895 | B119: ='DF raw data'!D124 -> 4.810955e-06 | C119: ='DF raw data'!E124 -> -4.4382682e-06 | D119: ='DF raw data'!F124 -> 1.4105369e-06 | F119: 4.818575553e-06 | G119: -4.454977987e-06 | H119: 1.41277119e-06 | J119: -1.073363511e-05 | K119: -0.001849488744 | L119: 5.379241938e-05 | M119: 0.002819751723 | N119: 2.281375638e-07
A120: 56.9491 | B120: ='DF raw data'!D125 -> 6.8544104e-08 | C120: ='DF raw data'!E125 -> -3.7246996e-06 | D120: ='DF raw data'!F125 -> 2.5076204e-06 | F120: 6.865267786e-08 | G120: -3.738722848e-06 | H120: 2.511592471e-06 | J120: -1.069929847e-05 | K120: -0.001854839998 | L120: 5.192249715e-05 | M120: 0.00284572076 | N120: 2.295431957e-07
A121: 57.44925 | B121: ='DF raw data'!D126 -> -7.7008981e-06 | C121: ='DF raw data'!E126 -> 2.4376343e-06 | D121: ='DF raw data'!F126 -> 1.0054989e-06 | F121: -7.713096323e-06 | G121: 2.446811832e-06 | H121: 1.00709161e-06 | J121: -1.455700359e-05 | K121: -0.001862120684 | L121: 5.314627009e-05 | M121: 0.002872301867 | N121: 2.310618674e-07
A122: 57.9494 | B122: ='DF raw data'!D127 -> -5.8990654e-06 | C122: ='DF raw data'!E127 -> -1.1952753e-05 | D122: ='DF raw data'!F127 -> -7.3033098e-06 | F122: -5.90840952e-06 | G122: -1.199775433e-05 | H122: -7.314878243e-06 | J122: -1.751209462e-05 | K122: -0.001870879358 | L122: 4.714559326e-05 | M122: 0.002895881736 | N122: 2.32326937e-07
A123: 58.44955 | B123: ='DF raw data'!D128 -> -2.9350755e-07 | C123: ='DF raw data'!E128 -> -1.3436596e-05 | D123: ='DF raw data'!F128 -> -9.4472143e-06 | F123: -2.93972466e-07 | G123: -1.34871839e-05 | H123: -9.462178687e-06 | J123: -1.765912494e-05 | K123: -0.001879711569 | L123: 4.039997824e-05 | M123: 0.002916087785 | N123: 2.3329923e-07
A124: 58.9497 | B124: ='DF raw data'!D129 -> 3.6912288e-06 | C124: ='DF raw data'!E129 -> -4.902995e-06 | D124: ='DF raw data'!F129 -> -3.188072e-06 | F124: 3.697075706e-06 | G124: -4.921454452e-06 | H124: -3.193121906e-06 | J124: -1.581003253e-05 | K124: -0.001887618957 | L124: 3.793851279e-05 | M124: 0.002935062732 | N124: 2.341441274e-07
A125: 59.44985 | B125: ='DF raw data'!D130 -> 4.5548413e-06 | C125: ='DF raw data'!E130 -> -6.4885098e-06 | D125: ='DF raw data'!F130 -> -3.9477982e-06 | F125: 4.562056169e-06 | G125: -6.512938611e-06 | H125: -3.954051512e-06 | J125: -1.352832014e-05 | K125: -0.001894385146 | L125: 3.468106655e-05 | M125: 0.002952408467 | N125: 2.348372312e-07
A126: 59.95 | B126: ='DF raw data'!D131 -> 2.9500416e-06 | C126: ='DF raw data'!E131 -> 5.4604275e-06 | D126: ='DF raw data'!F131 -> -9.1780039e-06 | F126: 2.954714466e-06 | G126: 5.480985649e-06 | H126: -9.192541858e-06 | J126: -1.20505197e-05 | K126: -0.001900412214 | L126: 3.742238152e-05 | M126: 0.002971125271 | N126: 2.356102878e-07
A127: 60.45015 | B127: ='DF raw data'!D132 -> -5.9195276e-07 | C127: ='DF raw data'!E132 -> 3.7097291e-06 | D127: ='DF raw data'!F132 -> -5.1549523e-06 | F127: -5.928904132e-07 | G127: 3.723695985e-06 | H127: -5.163117744e-06 | J127: -1.234705384e-05 | K127: -0.001906587593 | L127: 3.928478807e-05 | M127: 0.002990773558 | N127: 2.364584144e-07
A128: 60.9503 | B128: ='DF raw data'!D133 -> -3.8074022e-06 | C128: ='DF raw data'!E133 -> 2.6090339e-07 | D128: ='DF raw data'!F133 -> -3.5321666e-06 | F128: -3.813433125e-06 | G128: 2.61885674e-07 | H128: -3.537761552e-06 | J128: -1.425434241e-05 | K128: -0.001913716902 | L128: 3.941577019e-05 | M128: 0.003010487356 | N128: 2.373370725e-07
A129: 61.45045 | B129: ='DF raw data'!D134 -> -2.2106933e-06 | C129: ='DF raw data'!E134 -> -2.7241292e-06 | D129: ='DF raw data'!F134 -> -8.7082099e-06 | F129: -2.214195038e-06 | G129: -2.734385366e-06 | H129: -8.722003704e-06 | J129: -1.536177206e-05 | K129: -0.001921400092 | L129: 3.804816735e-05 | M129: 0.003029517147 | N129: 2.381791486e-07
A130: 61.9506 | B130: ='DF raw data'!D135 -> -1.476561e-08 | C130: ='DF raw data'!E135 -> -8.0616164e-06 | D130: ='DF raw data'!F135 -> -7.3418432e-06 | F130: -1.478899873e-08 | G130: -8.091967853e-06 | H130: -7.35347268e-06 | J130: -1.536916878e-05 | K130: -0.001929086982 | L130: 3.400096962e-05 | M130: 0.003046522732 | N130: 2.388754961e-07
A131: 62.45075 | B131: ='DF raw data'!D136 -> -3.3822098e-06 | C131: ='DF raw data'!E136 -> -5.1811903e-06 | D131: ='DF raw data'!F136 -> -6.2062991e-06 | F131: -3.38756722e-06 | G131: -5.200697139e-06 | H131: -6.216129878e-06 | J131: -1.706346053e-05 | K131: -0.001937621272 | L131: 3.139984095e-05 | M131: 0.003062227362 | N131: 2.395142435e-07
A132: 62.9509 | B132: ='DF raw data'!D137 -> -4.9856708e-06 | C132: ='DF raw data'!E137 -> -5.2559099e-06 | D132: ='DF raw data'!F137 -> -1.0443075e-05 | F132: -4.993568103e-06 | G132: -5.275698054e-06 | H132: -1.045961683e-05 | J132: -1.956099361e-05 | K132: -0.001947404703 | L132: 2.876120057e-05 | M132: 0.003076612276 | N132: 2.401193445e-07
A133: 63.45105 | B133: ='DF raw data'!D138 -> -2.4357993e-07 | C133: ='DF raw data'!E138 -> 8.5688798e-06 | D133: ='DF raw data'!F138 -> -7.9471592e-06 | F133: -2.439657606e-07 | G133: 8.601141066e-06 | H133: -7.9597475e-06 | J133: -1.968301309e-05 | K133: -0.001957249162 | L133: 3.306306127e-05 | M133: 0.003093148767 | N133: 2.408598601e-07
A134: 63.9512 | B134: ='DF raw data'!D139 -> 3.2558937e-06 | C134: ='DF raw data'!E139 -> 4.0980026e-06 | D134: ='DF raw data'!F139 -> -2.0269747e-06 | F134: 3.261051036e-06 | G134: 4.113431309e-06 | H134: -2.030185428e-06 | J134: -1.805199841e-05 | K134: -0.001966277869 | L134: 3.512039394e-05 | M134: 0.003110714232 | N134: 2.416397524e-07
A135: 64.45135 | B135: ='DF raw data'!D140 -> -1.0738104e-06 | C135: ='DF raw data'!E140 -> -2.7255969e-06 | D135: ='DF raw data'!F140 -> 4.0514042e-06 | F135: -1.075511316e-06 | G135: =(1-$G$1*($B$2-$G$2))*C135*$M$2/$M$1 -> -2.735858592e-06 | H135: 4.057821624e-06 | J135: -1.85899154e-05 | K135: -0.001975575615 | L135: 3.375205427e-05 | M135: 0.003127595321 | N135: 2.423823681e-07
A136: =A135+$B$1 -> 64.9515 | B136: ='DF raw data'!D141 -> -6.596335e-06 | C136: ='DF raw data'!E141 -> -1.1308754e-06 | D136: ='DF raw data'!F141 -> 1.81054e-06 | F136: -6.606783595e-06 | G136: -1.135133071e-06 | H136: 1.813407895e-06 | J136: =F136*$B$1+J135 -> -2.189429821e-05 | K136: =J136*$B$1+K135 -> -0.001986526048 | L136: =G136*$B$1+L135 -> 3.318431746e-05 | M136: =L136*$B$1+M135 -> 0.003144192458 | N136: =(J136^2+L136^2)*$B$1+N135 -> 2.431728848e-07
A137: 65.45165 | B137: ='DF raw data'!D142 -> -5.786128e-06 | C137: ='DF raw data'!E142 -> -4.0768136e-06 | D137: ='DF raw data'!F142 -> -5.6449153e-06 | F137: -5.795293227e-06 | G137: -4.092162534e-06 | H137: -5.653856846e-06 | J137: -2.479281412e-05 | K137: -0.001998926174 | L137: 3.113762237e-05 | M137: 0.00315976594 | N137: 2.439652401e-07
A138: 65.9518 | B138: ='DF raw data'!D143 -> -4.1182602e-06 | C138: ='DF raw data'!E143 -> 7.3426841e-06 | D138: ='DF raw data'!F143 -> -1.2680344e-05 | F138: -4.124783524e-06 | G138: 7.370328821e-06 | H138: -1.270042966e-05 | J138: -2.68558246e-05 | K138: -0.002012358115 | L138: 3.482389233e-05 | M138: 0.003177183109 | N138: 2.449324995e-07
A139: 66.45195 | B139: ='DF raw data'!D144 -> -2.5350264e-06 | C139: ='DF raw data'!E144 -> 5.7966631e-06 | D139: ='DF raw data'!F144 -> -1.3862484e-05 | F139: -2.539041882e-06 | G139: 5.818487154e-06 | H139: -1.388444217e-05 | J139: -2.81257264e-05 | K139: -0.002026425197 | L139: 3.773400868e-05 | M139: 0.003196055774 | N139: 2.460402877e-07
A140: 66.9521 | B140: ='DF raw data'!D145 -> 4.106686e-06 | C140: ='DF raw data'!E145 -> -1.012792e-06 | D140: ='DF raw data'!F145 -> -1.2887069e-05 | F140: 4.113190991e-06 | G140: -1.016605095e-06 | H140: -1.290748212e-05 | J140: -2.606851392e-05 | K140: -0.002039463364 | L140: 3.722555364e-05 | M140: 0.003214674135 | N140: 2.470732522e-07
A141: 67.45225 | B141: ='DF raw data'!D146 -> 8.2492234e-06 | C141: ='DF raw data'!E146 -> -2.5365307e-06 | D141: ='DF raw data'!F146 -> -1.4271858e-05 | F141: 8.26229017e-06 | G141: -2.546080571e-06 | H141: -1.429446462e-05 | J141: -2.193612949e-05 | K141: -0.002050434719 | L141: 3.595213144e-05 | M141: 0.003232655593 | N141: 2.47960393e-07
A142: 67.9524 | B142: ='DF raw data'!D147 -> 5.1940924e-06 | C142: ='DF raw data'!E147 -> -5.1561065e-06 | D142: ='DF raw data'!F147 -> -1.160065e-05 | F142: 5.202319842e-06 | G142: -5.1755189e-06 | H142: -1.161902543e-05 | J142: -1.933418922e-05 | K142: -0.002060104714 | L142: 3.336359567e-05 | M142: 0.003249342395 | N142: 2.487040862e-07
A143: 68.45255 | B143: ='DF raw data'!D148 -> 5.0722056e-06 | C143: ='DF raw data'!E148 -> 7.3981896e-06 | D143: ='DF raw data'!F148 -> -9.7821267e-06 | F143: 5.080239974e-06 | G143: 7.426043295e-06 | H143: -9.797621589e-06 | J143: -1.67933072e-05 | K143: -0.002068503887 | L143: 3.707773122e-05 | M143: 0.003267886823 | N143: 2.495327214e-07
A144: 68.9527 | B144: ='DF raw data'!D149 -> 5.0788267e-06 | C144: ='DF raw data'!E149 -> 1.0549205e-05 | D144: ='DF raw data'!F149 -> -9.3425278e-06 | F144: 5.086871561e-06 | G144: 1.058892206e-05 | H144: -9.357326364e-06 | J144: -1.424910839e-05 | K144: -0.002075630578 | L144: 4.237378059e-05 | M144: 0.003289080069 | N144: 2.505323084e-07
A145: 69.45285 | B145: ='DF raw data'!D150 -> 1.2436694e-06 | C145: ='DF raw data'!E150 -> -4.4832332e-06 | D145: ='DF raw data'!F150 -> -6.4902215e-06 | F145: 1.245639372e-06 | G145: -4.500112277e-06 | H145: -6.500502011e-06 | J145: -1.362610186e-05 | K145: -0.002082445673 | L145: 4.012304943e-05 | M145: 0.003309147612 | N145: 2.514303426e-07
A146: 69.953 | B146: ='DF raw data'!D151 -> -9.8376313e-07 | C146: ='DF raw data'!E151 -> -7.2662569e-06 | D146: ='DF raw data'!F151 -> -8.9429727e-07 | F146: -9.853214108e-07 | G146: -7.293613877e-06 | H146: -8.957138369e-07 | J146: -1.411891036e-05 | K146: -0.002089507246 | L146: 3.647514845e-05 | M146: 0.003327390658 | N146: 2.521954621e-07
A147: 70.45315 | B147: ='DF raw data'!D152 -> 2.0537309e-06 | C147: ='DF raw data'!E152 -> -1.8064171e-06 | D147: ='DF raw data'!F152 -> 6.6441626e-06 | F147: 2.05698401e-06 | G147: -1.813218141e-06 | H147: 6.654686954e-06 | J147: -1.309010981e-05 | K147: -0.002096054265 | L147: 3.55682674e-05 | M147: 0.003345180127 | N147: 2.529139039e-07
A148: 70.9533 | B148: ='DF raw data'!D153 -> 4.8468692e-06 | C148: ='DF raw data'!E153 -> -7.227215e-07 | D148: ='DF raw data'!F153 -> 6.5935801e-06 | F148: 4.854546641e-06 | G148: -7.254424987e-07 | H148: 6.604024331e-06 | J148: -1.066210831e-05 | K148: -0.002101386918 | L148: 3.520543733e-05 | M148: 0.003362788126 | N148: 2.535906585e-07
A149: 71.45345 | B149: ='DF raw data'!D154 -> 2.2252107e-06 | C149: ='DF raw data'!E154 -> -3.1835661e-08 | D149: ='DF raw data'!F154 -> -2.4146523e-06 | F149: 2.228735434e-06 | G149: -3.195552016e-08 | H149: -2.418477109e-06 | J149: -9.547406279e-06 | K149: -0.002106162053 | L149: 3.518945478e-05 | M149: 0.003380388132 | N149: 2.542555833e-07
A150: 71.9536 | B150: ='DF raw data'!D155 -> 3.8764601e-06 | C150: ='DF raw data'!E155 -> -9.9357349e-06 | D150: ='DF raw data'!F155 -> -5.3319181e-06 | F150: 3.882600413e-06 | G150: -9.973142286e-06 | H150: -5.340363858e-06 | J150: -7.605523683e-06 | K150: -0.002109965956 | L150: 3.020138767e-05 | M150: 0.003395493356 | N150: 2.547407127e-07
A151: 72.45375 | B151: ='DF raw data'!D156 -> 3.0787387e-06 | C151: ='DF raw data'!E156 -> 6.9400795e-07 | D151: ='DF raw data'!F156 -> -3.5256328e-06 | F151: =(1-$G$1*($B$2-$G$2))*B151 -> 3.083615422e-06 | G151: 6.966208441e-07 | H151: -3.531217402e-06 | J151: -6.06325343e-06 | K151: -0.002112998492 | L151: 3.054980258e-05 | M151: 0.00341077284 | N151: 2.552258849e-07
A152: 72.9539 | B152: ='DF raw data'!D157 -> -1.7895609e-06 | C152: ='DF raw data'!E157 -> 4.7371182e-06 | D152: ='DF raw data'!F157 -> -5.8501087e-07 | F152: -1.792395564e-06 | G152: 4.754953137e-06 | H152: -5.859375272e-07 | J152: -6.959720071e-06 | K152: -0.002116479396 | L152: 3.292799239e-05 | M152: 0.003427241775 | N152: 2.557924e-07
A153: 73.45405 | B153: ='DF raw data'!D158 -> 6.590754e-07 | C153: ='DF raw data'!E158 -> -4.3961049e-06 | D153: ='DF raw data'!F158 -> 2.3136142e-06 | F153: 6.601193754e-07 | G153: -4.412655945e-06 | H153: 2.317278965e-06 | J153: -6.629561366e-06 | K153: -0.002119795171 | L153: 3.072100252e-05 | M153: 0.003442606885 | N153: 2.562864137e-07
A154: 73.9542 | B154: ='DF raw data'!D159 -> 4.5525712e-06 | C154: ='DF raw data'!E159 -> -2.9201337e-06 | D154: ='DF raw data'!F159 -> 9.6422968e-07 | F154: 4.559782473e-06 | G154: -2.93112781e-06 | H154: 9.657570198e-07 | J154: -4.348986162e-06 | K154: -0.002121970317 | L154: 2.925499895e-05 | M154: 0.003457238772 | N154: 2.567239293e-07
A155: 74.45435 | B155: ='DF raw data'!D160 -> 5.9823406e-06 | C155: ='DF raw data'!E160 -> -2.34613e-06 | D155: ='DF raw data'!F160 -> -2.0617101e-06 | F155: 5.991816628e-06 | G155: -2.354963024e-06 | H155: -2.064975849e-06 | J155: -1.352179076e-06 | K155: -0.002122646609 | L155: 2.807716419e-05 | M155: 0.003471281566 | N155: 2.571191255e-07
A156: 74.9545 | B156: ='DF raw data'!D161 -> 6.3085508e-06 | C156: ='DF raw data'!E161 -> 3.6939848e-06 | D156: ='DF raw data'!F161 -> -5.4040573e-08 | F156: 6.318543544e-06 | G156: 3.707892409e-06 | H156: -5.412617327e-08 | J156: 1.808040478e-06 | K156: -0.002121742318 | L156: 2.993166658e-05 | M156: 0.003486251889 | N156: 2.575688473e-07
A157: 75.45465 | B157: ='DF raw data'!D162 -> 4.3953087e-06 | C157: ='DF raw data'!E162 -> -6.2071122e-06 | D157: ='DF raw data'!F162 -> -2.0444807e-06 | F157: 4.402270869e-06 | G157: -6.230481567e-06 | H157: -2.047719157e-06 | J157: 4.009836253e-06 | K157: -0.002119736798 | L157: 2.681549122e-05 | M157: 0.003499663657 | N157: 2.579365322e-07
A158: 75.9548 | B158: ='DF raw data'!D163 -> 1.4936422e-06 | C158: ='DF raw data'!E163 -> -1.0047946e-05 | D158: ='DF raw data'!F163 -> -6.9230246e-06 | F158: 1.496008129e-06 | G158: -1.008577585e-05 | H158: -6.933990671e-06 | J158: 4.758064719e-06 | K158: -0.002117357052 | L158: 2.177109043e-05 | M158: 0.003510552468 | N158: 2.581849165e-07
A159: 76.45495 | B159: ='DF raw data'!D164 -> -3.2533089e-06 | C159: ='DF raw data'!E164 -> 1.8536233e-06 | D159: ='DF raw data'!F164 -> -8.0519185e-06 | F159: -3.258462141e-06 | G159: 1.860602069e-06 | H159: -8.064672739e-06 | J159: 3.128344879e-06 | K159: -0.00211579241 | L159: 2.270167056e-05 | M159: 0.003521906708 | N159: 2.584475714e-07
A160: 76.9551 | B160: ='DF raw data'!D165 -> -5.6431867e-07 | C160: ='DF raw data'!E165 -> -1.1315425e-06 | D160: ='DF raw data'!F165 -> -7.2072817e-06 | F160: -5.652125508e-07 | G160: -1.135802683e-06 | H160: -7.218698034e-06 | J160: 2.845653822e-06 | K160: -0.002114369156 | L160: 2.213359884e-05 | M160: 0.003532976828 | N160: 2.586966431e-07
A161: 77.45525 | B161: ='DF raw data'!D166 -> 5.4911261e-06 | C161: ='DF raw data'!E166 -> -9.6355745e-07 | D161: ='DF raw data'!F166 -> -8.9433397e-06 | F161: 5.499824044e-06 | G161: -9.671851801e-07 | H161: -8.95750595e-06 | J161: 5.596390817e-06 | K161: -0.002111570122 | L161: 2.164986118e-05 | M161: 0.003543805006 | N161: 2.589467362e-07
A162: 77.9554 | B162: ='DF raw data'!D167 -> 4.7592957e-06 | C162: ='DF raw data'!E167 -> 5.9869303e-06 | D162: ='DF raw data'!F167 -> -1.3044739e-05 | F162: 4.766834424e-06 | G162: 6.009470697e-06 | H162: -1.306540187e-05 | J162: 7.980523055e-06 | K162: -0.002107578663 | L162: 2.465549794e-05 | M162: 0.003556136453 | N162: 2.592826281e-07
A163: 78.45555 | B163: ='DF raw data'!D168 -> 6.9832191e-07 | C163: ='DF raw data'!E168 -> 9.9514509e-06 | D163: ='DF raw data'!F168 -> -7.3629435e-06 | F163: 6.994280519e-07 | G163: 9.988917455e-06 | H163: -7.374606403e-06 | J163: 8.330341995e-06 | K163: -0.002103412242 | L163: 2.965145501e-05 | M163: 0.003570966628 | N163: 2.59757072e-07
A164: 78.9557 | B164: ='DF raw data'!D169 -> -7.8972784e-07 | C164: ='DF raw data'!E169 -> 9.7870688e-06 | D164: ='DF raw data'!F169 -> 1.7994805e-06 | F164: -7.909787689e-07 | G164: 9.823916468e-06 | H164: 1.802330877e-06 | J164: 7.934733964e-06 | K164: -0.002099443685 | L164: 3.456488683e-05 | M164: 0.003588254257 | N164: 2.603861064e-07
A165: 79.45585 | B165: ='DF raw data'!D170 -> 1.395184e-06 | C165: ='DF raw data'!E170 -> 6.8332588e-06 | D165: ='DF raw data'!F170 -> 3.8836206e-06 | F165: 1.397393971e-06 | G165: 6.858985568e-06 | H165: 3.889772255e-06 | J165: 8.633640558e-06 | K165: -0.00209512557 | L165: 3.799540846e-05 | M165: 0.00360725766 | N165: 2.611454295e-07
A166: 79.956 | B166: ='DF raw data'!D171 -> 4.7726398e-06 | C166: ='DF raw data'!E171 -> -1.4260164e-06 | D166: ='DF raw data'!F171 -> 5.8573437e-07 | F166: 4.780199661e-06 | G166: -1.431385258e-06 | H166: 5.866621732e-07 | J166: 1.102445742e-05 | K166: -0.002089611688 | L166: 3.727950113e-05 | M166: 0.003625903003 | N166: 2.619013062e-07
A167: 80.45615 | B167: ='DF raw data'!D172 -> 5.1235447e-06 | C167: ='DF raw data'!E172 -> -4.4099816e-06 | D167: ='DF raw data'!F172 -> -2.1785183e-06 | F167: 5.131660395e-06 | G167: -4.426584889e-06 | H167: -2.181969073e-06 | J167: 1.359105737e-05 | K167: -0.00208281412 | L167: 3.506554469e-05 | M167: 0.003643441035 | N167: 2.626086729e-07
A168: 80.9563 | B168: ='DF raw data'!D173 -> 2.914273e-06 | C168: ='DF raw data'!E173 -> 1.2573377e-06 | D168: ='DF raw data'!F173 -> -9.9418485e-06 | F168: 2.918889208e-06 | G168: 1.262071493e-06 | H168: -9.957596388e-06 | J168: 1.50509398e-05 | K168: -0.002075286393 | L168: 3.569676975e-05 | M168: 0.003661294774 | N168: 2.633592931e-07
A169: 81.45645 | B169: ='DF raw data'!D174 -> -1.5766955e-06 | C169: ='DF raw data'!E174 -> 2.3765244e-06 | D169: ='DF raw data'!F174 -> -1.4995627e-05 | F169: -1.579192986e-06 | G169: 2.385471857e-06 | H169: -1.501938007e-05 | J169: 1.426110643e-05 | K169: -0.0020681537 | L169: 3.68898635e-05 | M169: 0.003679745239 | N169: 2.641416484e-07
A170: 81.9566 | B170: ='DF raw data'!D175 -> -3.8154785e-06 | C170: ='DF raw data'!E175 -> -8.9144824e-06 | D170: ='DF raw data'!F175 -> -1.2446684e-05 | F170: -3.821522218e-06 | G170: -8.948044837e-06 | H170: -1.246639955e-05 | J170: 1.234977209e-05 | K170: -0.002061976962 | L170: 3.241449888e-05 | M170: 0.003695957351 | N170: 2.647434372e-07
A171: 82.45675 | B171: ='DF raw data'!D176 -> -3.4215873e-06 | C171: ='DF raw data'!E176 -> -1.00765e-05 | D171: ='DF raw data'!F176 -> -1.2633836e-05 | F171: -3.427007094e-06 | G171: -1.011443736e-05 | H171: -1.2653848e-05 | J171: 1.06357545e-05 | K171: -0.002056657489 | L171: 2.735576303e-05 | M171: 0.003709639336 | N171: 2.651742949e-07
A172: 82.9569 | B172: ='DF raw data'!D177 -> -7.9494739e-06 | C172: ='DF raw data'!E177 -> 4.1916678e-06 | D172: ='DF raw data'!F177 -> -1.0329133e-05 | F172: -7.962065867e-06 | G172: 4.207449152e-06 | H172: -1.034549435e-05 | J172: 6.653527253e-06 | K172: -0.002053329727 | L172: 2.946011873e-05 | M172: 0.003724373814 | N172: 2.656305157e-07
A173: 83.45705 | B173: ='DF raw data'!D178 -> -8.1062708e-06 | C173: ='DF raw data'!E178 -> -9.9965773e-06 | D173: ='DF raw data'!F178 -> -6.184544e-06 | F173: -8.119111133e-06 | G173: -1.003421375e-05 | H173: -6.194340318e-06 | J173: 2.59275382e-06 | K173: -0.002052032962 | L173: 2.444150672e-05 | M173: 0.003736598234 | N173: 2.659326612e-07
A174: 83.9572 | B174: ='DF raw data'!D179 -> -3.2765483e-06 | C174: ='DF raw data'!E179 -> 4.6909522e-06 | D174: ='DF raw data'!F179 -> -9.3495855e-06 | F174: -3.281738353e-06 | G174: 4.708613325e-06 | H174: -9.364395243e-06 | J174: 9.513923826e-07 | K174: -0.002051557123 | L174: 2.679651967e-05 | M174: 0.003750000513 | N174: 2.662922483e-07
A175: 84.45735 | B175: ='DF raw data'!D180 -> -8.3843553e-08 | C175: ='DF raw data'!E180 -> 1.5185e-05 | D175: ='DF raw data'!F180 -> -9.0056365e-06 | F175: -8.397636119e-08 | G175: 1.524217052e-05 | H175: -9.019901428e-06 | J175: 9.093916055e-07 | K175: -0.002051102291 | L175: 3.441989126e-05 | M175: 0.003767215622 | N175: 2.668852041e-07
A176: 84.9575 | B176: ='DF raw data'!D181 -> -1.9372192e-06 | C176: ='DF raw data'!E181 -> 1.1562e-06 | D176: ='DF raw data'!F181 -> -6.4535507e-06 | F176: -1.940287755e-06 | G176: 1.160553017e-06 | H176: -6.463773124e-06 | J176: -6.104331524e-08 | K176: -0.002051132821 | L176: 3.500034185e-05 | M176: 0.003784721043 | N176: 2.674979017e-07
A177: 85.45765 | B177: ='DF raw data'!D182 -> -4.8338798e-06 | C177: ='DF raw data'!E182 -> 5.8811233e-06 | D177: ='DF raw data'!F182 -> -6.612021e-06 | F177: -4.841536666e-06 | G177: 5.903265341e-06 | H177: -6.622494441e-06 | J177: -2.482537879e-06 | K177: -0.002052374463 | L177: 3.795286001e-05 | M177: 0.003803703166 | N177: 2.6822141e-07
A178: 85.9578 | B178: ='DF raw data'!D183 -> -1.4793141e-06 | C178: ='DF raw data'!E183 -> 4.6738737e-06 | D178: ='DF raw data'!F183 -> -4.3477139e-06 | F178: -1.481657334e-06 | G178: 4.691470526e-06 | H178: -4.354600679e-06 | J178: -3.223588794e-06 | K178: -0.002053986741 | L178: 4.029929899e-05 | M178: 0.00382385886 | N178: 2.690388676e-07
A179: 86.45795 | B179: ='DF raw data'!D184 -> -1.5528012e-06 | C179: ='DF raw data'!E184 -> 4.1342942e-06 | D179: ='DF raw data'!F184 -> 3.8671187e-06 | F179: -1.555260837e-06 | G179: 4.149859545e-06 | H179: 3.873244216e-06 | J179: -4.001452502e-06 | K179: -0.002055988067 | L179: 4.237485124e-05 | M179: 0.003845052642 | N179: 2.699449592e-07
A180: 86.9581 | B180: ='DF raw data'!D185 -> -8.5457532e-06 | C180: ='DF raw data'!E185 -> 3.6322074e-06 | D180: ='DF raw data'!F185 -> 5.9685026e-06 | F180: -8.559289673e-06 | G180: 3.645882421e-06 | H180: 5.977956708e-06 | J180: -8.282381232e-06 | K180: -0.0020601305 | L180: 4.419833934e-05 | M180: 0.003867158441 | N180: 2.70956308e-07
A181: 87.45825 | B181: ='DF raw data'!D186 -> -1.05272e-05 | C181: ='DF raw data'!E186 -> 3.7454877e-06 | D181: ='DF raw data'!F186 -> -3.2133632e-06 | F181: -1.054387508e-05 | G181: 3.759589214e-06 | H181: -3.218453167e-06 | J181: -1.355590036e-05 | K181: -0.002066910484 | L181: 4.607869788e-05 | M181: 0.003890204702 | N181: 2.721101585e-07
A182: 87.9584 | B182: ='DF raw data'!D187 -> -1.0015642e-05 | C182: ='DF raw data'!E187 -> -8.4160519e-07 | D182: ='DF raw data'!F187 -> -9.102203e-06 | F182: -1.003150678e-05 | G182: -8.447737779e-07 | H182: -9.11662089e-06 | J182: -1.857315847e-05 | K182: -0.002076199849 | L182: 4.565618428e-05 | M182: 0.003913039643 | N182: 2.733252476e-07
A183: 88.45855 | B183: ='DF raw data'!D188 -> -1.3060747e-05 | C183: ='DF raw data'!E188 -> -3.98168e-06 | D183: ='DF raw data'!F188 -> -1.1782404e-05 | F183: -1.308143522e-05 | G183: -3.996670762e-06 | H183: -1.180106733e-05 | J183: -2.51158383e-05 | K183: -0.002088761535 | L183: 4.36572494e-05 | M183: 0.003934874816 | N183: 2.745940085e-07
A184: 88.9587 | B184: ='DF raw data'!D189 -> -8.6082246e-06 | C184: ='DF raw data'!E189 -> -5.0292169e-06 | D184: ='DF raw data'!F189 -> -1.0330719e-05 | F184: -8.621860028e-06 | G184: -5.048151569e-06 | H184: -1.034708286e-05 | J184: -2.942806159e-05 | K184: -0.00210347998 | L184: 4.113241639e-05 | M184: 0.003955447194 | N184: 2.758733354e-07
A185: 89.45885 | B185: ='DF raw data'!D190 -> -7.2742359e-06 | C185: ='DF raw data'!E190 -> 1.0122372e-05 | D185: ='DF raw data'!F190 -> -1.0383907e-05 | F185: -7.28575829e-06 | G185: 1.016048206e-05 | H185: -1.040035511e-05 | J185: -3.30720336e-05 | K185: -0.002120020958 | L185: 4.621418149e-05 | M185: 0.003978561217 | N185: 2.774885748e-07
A186: 89.959 | B186: ='DF raw data'!D191 -> -7.6209935e-06 | C186: ='DF raw data'!E191 -> 9.2896535e-06 | D186: ='DF raw data'!F191 -> -7.2246421e-06 | F186: -7.633065154e-06 | G186: 9.324628432e-06 | H186: -7.236085933e-06 | J186: -3.688971113e-05 | K186: -0.002138471347 | L186: 5.08778944e-05 | M186: 0.004004007796 | N186: 2.794638727e-07
A187: 90.45915 | B187: ='DF raw data'!D192 -> -1.9633108e-06 | C187: ='DF raw data'!E192 -> -7.6917559e-06 | D187: ='DF raw data'!F192 -> -4.8743623e-06 | F187: -1.966420684e-06 | G187: -7.720714853e-06 | H187: -4.88208329e-06 | J187: -3.787321644e-05 | K187: -0.002157413636 | L187: 4.701637887e-05 | M187: 0.004027523038 | N187: 2.812868797e-07
A188: 90.9593 | B188: ='DF raw data'!D193 -> 2.8768891e-06 | C188: ='DF raw data'!E193 -> 2.774271e-06 | D188: ='DF raw data'!F193 -> -3.7664379e-06 | F188: 2.881446092e-06 | G188: 2.784715947e-06 | H188: -3.772403938e-06 | J188: -3.643206118e-05 | K188: -0.002175635132 | L188: 4.840915455e-05 | M188: 0.004051734876 | N188: 2.831228009e-07
A189: 91.45945 | B189: ='DF raw data'!D194 -> 3.8613698e-06 | C189: ='DF raw data'!E194 -> 1.2222462e-06 | D189: ='DF raw data'!F194 -> -2.6901603e-07 | F189: 3.86748621e-06 | G189: 1.226847876e-06 | H189: -2.694421514e-07 | J189: -3.449773795e-05 | K189: -0.002192889175 | L189: 4.902276251e-05 | M189: 0.004076253611 | N189: 2.849200025e-07
A190: 91.9596 | B190: ='DF raw data'!D195 -> -2.2163686e-06 | C190: ='DF raw data'!E195 -> 5.4096728e-07 | D190: ='DF raw data'!F195 -> -4.1789408e-06 | F190: -2.219879328e-06 | G190: 5.430039861e-07 | H190: -4.185560242e-06 | J190: -3.560801059e-05 | K190: -0.002210698522 | L190: 4.929434596e-05 | M190: 0.004100908178 | N190: 2.867694887e-07
A191: 92.45975 | B191: ='DF raw data'!D196 -> -7.8002149e-06 | C191: ='DF raw data'!E196 -> 3.9516322e-06 | D191: ='DF raw data'!F196 -> -1.0842467e-05 | F191: -7.81257044e-06 | G191: 3.966509834e-06 | H191: -1.085964147e-05 | J191: -3.95154677e-05 | K191: -0.002230462183 | L191: 5.127819585e-05 | M191: 0.004126554968 | N191: 2.888655801e-07
A192: 92.9599 | B192: ='DF raw data'!D197 -> -1.790565e-06 | C192: ='DF raw data'!E197 -> 1.6616217e-06 | D192: ='DF raw data'!F197 -> -8.8831093e-06 | F192: -1.793401255e-06 | G192: 1.667877596e-06 | H192: -8.897180145e-06 | J192: -4.041243734e-05 | K192: -0.002250674463 | L192: 5.211238483e-05 | M192: 0.004152618977 | N192: 2.910406653e-07
A193: 93.46005 | B193: ='DF raw data'!D198 -> 1.2233695e-06 | C193: ='DF raw data'!E198 -> 7.3205351e-06 | D193: ='DF raw data'!F198 -> -3.7193042e-06 | F193: 1.225307317e-06 | G193: 7.348096431e-06 | H193: -3.725195578e-06 | J193: -3.979959988e-05 | K193: -0.002270580233 | L193: 5.578753526e-05 | M193: 0.004180521113 | N193: 2.933894984e-07
A194: 93.9602 | B194: ='DF raw data'!D199 -> -4.029479e-06 | C194: ='DF raw data'!E199 -> 9.9048327e-07 | D194: ='DF raw data'!F199 -> -3.573625e-06 | F194: -4.035861695e-06 | G194: 9.942123741e-07 | H194: -3.579285622e-06 | J194: -4.181813611e-05 | K194: -0.002291495574 | L194: 5.628479058e-05 | M194: 0.004208671951 | N194: 2.958486029e-07
A195: 94.46035 | B195: ='DF raw data'!D200 -> -4.6298182e-06 | C195: ='DF raw data'!E200 -> -8.0744775e-07 | D195: ='DF raw data'!F200 -> -2.7735753e-06 | F195: -4.637151832e-06 | G195: -8.104877374e-07 | H195: -2.777968643e-06 | J195: -4.41374076e-05 | K195: -0.002313570898 | L195: 5.587942514e-05 | M195: 0.004236620045 | N195: 2.98384674e-07
A196: 94.9605 | B196: ='DF raw data'!D201 -> 1.0216509e-06 | C196: ='DF raw data'!E201 -> 5.569229e-08 | D196: ='DF raw data'!F201 -> 5.842774e-06 | F196: 1.023269195e-06 | G196: 5.590196779e-08 | H196: 5.852028954e-06 | J196: -4.362561951e-05 | K196: -0.002335390252 | L196: 5.590738451e-05 | M196: 0.004264582124 | N196: 3.008998435e-07
A197: 95.46065 | B197: ='DF raw data'!D202 -> 4.5305396e-06 | C197: ='DF raw data'!E202 -> 8.3888863e-06 | D197: ='DF raw data'!F202 -> 1.2500115e-05 | F197: 4.537715975e-06 | G197: 8.420469903e-06 | H197: 1.251991518e-05 | J197: -4.135608087e-05 | K197: -0.002356074496 | L197: 6.011888253e-05 | M197: 0.004294650583 | N197: 3.035629449e-07
A198: 95.9608 | B198: ='DF raw data'!D203 -> 1.0201811e-06 | C198: ='DF raw data'!E203 -> 4.007939e-06 | D198: ='DF raw data'!F203 -> 5.685049e-07 | F198: 1.021797067e-06 | G198: 4.023028626e-06 | H198: 5.694054118e-07 | J198: -4.084502906e-05 | K198: -0.002376503137 | L198: 6.21310003e-05 | M198: 0.004325725403 | N198: 3.06328063e-07
A199: 96.46095 | B199: ='DF raw data'!D204 -> -2.6179869e-06 | C199: ='DF raw data'!E204 -> -3.8288243e-07 | D199: ='DF raw data'!F204 -> -1.0523459e-05 | F199: -2.622133791e-06 | G199: =(1-$G$1*($B$2-$G$2))*C199*$M$2/$M$1 -> -3.843239571e-07 | H199: -1.054012816e-05 | J199: -4.215648928e-05 | K199: -0.002397587705 | L199: 6.193878067e-05 | M199: 0.004356704084 | N199: 3.091356961e-07
A200: =A199+$B$1 -> 96.9611 | B200: ='DF raw data'!D205 -> 3.0312121e-06 | C200: ='DF raw data'!E205 -> 5.4110052e-07 | D200: ='DF raw data'!F205 -> -5.5679211e-06 | F200: 3.03601354e-06 | G200: 5.431377277e-07 | H200: -5.576740687e-06 | J200: =F200*$B$1+J199 -> -4.063802711e-05 | K200: =J200*$B$1+K199 -> -0.002417912815 | L200: =G200*$B$1+L199 -> 6.2210431e-05 | M200: =L200*$B$1+M199 -> 0.004387818631 | N200: =(J200^2+L200^2)*$B$1+N199 -> 3.118973178e-07
A201: 97.46125 | B201: ='DF raw data'!D206 -> 5.0837598e-06 | C201: ='DF raw data'!E206 -> 2.0486943e-06 | D201: ='DF raw data'!F206 -> -3.476782e-06 | F201: 5.091812476e-06 | G201: 2.056407499e-06 | H201: -3.482289223e-06 | J201: -3.80913571e-05 | K201: -0.002436964207 | L201: 6.323894321e-05 | M201: 0.004419447588 | N201: 3.14623193e-07
... 1002 more rows

Sheet 10 x=0
A1: dz | B1: ='DF raw data'!H7 -> 0.50015 | C1: mm | F1: T_coeff | G1: -0.0008 | H1: /degC | L1: Hallref | M1: ='PI vs gap'!B44 -> 0.50517 | N1: T | P1: IBy total | Q1: =L1203*1000 -> -10.16517393 | R1: muTm | X1: DF ref | Y1: 19
A2: Tref | B2: ='DF raw data'!H8 -> 21.92 | C2: degC | F2: Tcorr | G2: 20 | H2: degC | L2: NMRref | M2: ='PI vs gap'!B45 -> 0.50627 | N2: T | P2: JBy total | Q2: =M1203 -> -2.955978075 | R2: muTm^2
A3: Encoder | B3: ='DF raw data'!H9 -> 17890872 | P3: PI total | Q3: =N1203 -> 702.2456932 | R3: T^2mm^3
A5: z [mm] | B5: Bx | C5: By | D5: Bz | F5: Bx_corr | G5: By_corr | H5: Bz_corr | J5: Ix | K5: Jx | L5: Iy | M5: Jy | N5: PI
A6: ='[1]PI vs x'!B53 -> -0.068 | B6: ='DF raw data'!G11 -> 1.7539178e-06 | C6: ='DF raw data'!H11 -> -1.0958893e-05 | D6: ='DF raw data'!I11 -> 4.8550651e-06 | F6: =(1-$G$1*($B$2-$G$2))*B6 -> 1.756611818e-06 | G6: =(1-$G$1*($B$2-$G$2))*C6*$M$2/$M$1 -> -1.099962534e-05 | H6: =(1-$G$1*($B$2-$G$2))*D6 -> 4.86252248e-06 | J6: =F6*$B$1 -> 8.785694006e-07 | K6: =J6*$B$1 -> 4.394164857e-07 | L6: =G6*$B$1 -> -5.501462612e-06 | M6: =L6*$B$1 -> -2.751556525e-06 | N6: =(J6^2+L6)^2*$B$1 -> 1.51375811e-11
A7: =A6+$B$1 -> 0.43215 | B7: ='DF raw data'!G12 -> 1.0982376e-06 | C7: ='DF raw data'!H12 -> 7.3707974e-06 | D7: ='DF raw data'!I12 -> 8.3560662e-06 | F7: =(1-$G$1*($B$2-$G$2))*B7 -> 1.099924493e-06 | G7: =(1-$G$1*($B$2-$G$2))*C7*$M$2/$M$1 -> 7.398193397e-06 | H7: 8.368901118e-06 | J7: =F7*$B$1+J6 -> 1.428696636e-06 | K7: =J7*$B$1+K6 -> 1.153979108e-06 | L7: =G7*$B$1+L6 -> -1.801256184e-06 | M7: =L7*$B$1+M6 -> -3.652454806e-06 | N7: =(J7^2+L7^2)*$B$1+N6 -> 1.778122291e-11
A8: =A7+$B$1 -> 0.9323 | B8: ='DF raw data'!G13 -> 1.1674465e-06 | C8: ='DF raw data'!H13 -> 4.5473457e-06 | D8: ='DF raw data'!I13 -> 4.142807e-06 | F8: 1.169239698e-06 | G8: 4.564247408e-06 | H8: 4.149170352e-06 | J8: =F8*$B$1+J7 -> 2.013491871e-06 | K8: =J8*$B$1+K7 -> 2.161027067e-06 | L8: =G8*$B$1+L7 -> 4.815521568e-07 | M8: =L8*$B$1+M7 -> -3.411606495e-06 | N8: =(J8^2+L8^2)*$B$1+N7 -> 1.992488682e-11
A9: 1.43245 | B9: ='DF raw data'!G14 -> 1.5716842e-06 | C9: ='DF raw data'!H14 -> -6.2605218e-06 | D9: ='DF raw data'!I14 -> 5.7211951e-06 | F9: 1.574098307e-06 | G9: -6.283791092e-06 | H9: 5.729982856e-06 | J9: 2.800777139e-06 | K9: 3.561835753e-06 | L9: -2.661285958e-06 | M9: -4.742648666e-06 | N9: 2.73905236e-11
A10: 1.9326 | B10: ='DF raw data'!G15 -> 1.4984589e-06 | C10: ='DF raw data'!H15 -> -3.9991983e-06 | D10: ='DF raw data'!I15 -> 6.7054721e-06 | F10: 1.500760533e-06 | G10: -4.014062638e-06 | H10: 6.715771705e-06 | J10: 3.551382519e-06 | K10: 5.33805972e-06 | L10: -4.668919386e-06 | M10: -7.077808697e-06 | N10: 4.460124829e-11
A11: 2.43275 | B11: ='DF raw data'!G16 -> 1.2551654e-06 | C11: ='DF raw data'!H16 -> 1.9511206e-06 | D11: ='DF raw data'!I16 -> 2.3614198e-06 | F11: 1.257093334e-06 | G11: 1.958372582e-06 | H11: 2.365046941e-06 | J11: 4.18011775e-06 | K11: 7.428745613e-06 | L11: -3.689439339e-06 | M11: -8.923081783e-06 | N11: 6.014858461e-11
A12: 2.9329 | B12: ='DF raw data'!G17 -> 1.1317361e-06 | C12: ='DF raw data'!H17 -> 5.0211461e-06 | D12: ='DF raw data'!I17 -> 1.026136e-06 | F12: 1.133474447e-06 | G12: 5.039808844e-06 | H12: 1.027712145e-06 | J12: 4.747024995e-06 | K12: 9.802970164e-06 | L12: -1.168778946e-06 | M12: -9.507646572e-06 | N12: 7.210231492e-11
A13: 3.43305 | B13: ='DF raw data'!G18 -> 1.2522842e-06 | C13: ='DF raw data'!H18 -> 2.4330591e-06 | D13: ='DF raw data'!I18 -> 5.6963113e-06 | F13: 1.254207709e-06 | G13: 2.442102366e-06 | H13: 5.705060834e-06 | J13: 5.37431698e-06 | K13: 1.24909348e-05 | L13: 5.263855239e-08 | M13: -9.4813194e-06 | N13: 8.654967474e-11
A14: 3.9332 | B14: ='DF raw data'!G19 -> 1.4484003e-06 | C14: ='DF raw data'!H19 -> -2.5799329e-06 | D14: ='DF raw data'!I19 -> 7.711431e-06 | F14: 1.450625043e-06 | G14: -2.589522071e-06 | H14: 7.723275758e-06 | J14: 6.099847096e-06 | K14: 1.554177333e-05 | L14: -1.242510911e-06 | M14: -1.010276123e-05 | N14: 1.059314715e-10
A15: 4.43335 | B15: ='DF raw data'!G20 -> 1.483776e-06 | C15: ='DF raw data'!H20 -> -4.4951471e-06 | D15: ='DF raw data'!I20 -> 1.7314819e-06 | F15: 1.48605508e-06 | G15: -4.511854795e-06 | H15: 1.734141456e-06 | J15: 6.843097544e-06 | K15: 1.896434856e-05 | L15: -3.499115087e-06 | M15: -1.185284364e-05 | N15: 1.354762275e-10
A16: 4.9335 | B16: ='DF raw data'!G21 -> 1.3201106e-06 | C16: ='DF raw data'!H21 -> -7.6452335e-07 | D16: ='DF raw data'!I21 -> -2.67932e-06 | F16: 1.32213829e-06 | G16: -7.673649529e-07 | H16: -2.683435436e-06 | J16: 7.504365009e-06 | K16: 2.271765672e-05 | L16: -3.882912668e-06 | M16: -1.379488241e-05 | N16: 1.711831888e-10
A17: 5.43365 | B17: ='DF raw data'!G22 -> 1.3683648e-06 | C17: ='DF raw data'!H22 -> -1.3017009e-06 | D17: ='DF raw data'!I22 -> 2.1837845e-06 | F17: 1.370466608e-06 | G17: -1.3065391e-06 | H17: 2.187138793e-06 | J17: 8.189803884e-06 | K17: 2.681378714e-05 | L17: -4.536378199e-06 | M17: -1.606375197e-05 | N17: 2.15022144e-10
A18: 5.9338 | B18: ='DF raw data'!G23 -> 1.6148015e-06 | C18: ='DF raw data'!H23 -> -7.1863728e-06 | D18: ='DF raw data'!I23 -> 6.9009334e-06 | F18: 1.617281835e-06 | G18: -7.213083322e-06 | H18: 6.911533234e-06 | J18: 8.998687393e-06 | K18: 3.131448064e-05 | L18: -8.144001822e-06 | M18: -2.013697448e-05 | N18: 2.886948094e-10
A19: 6.43395 | B19: ='DF raw data'!G24 -> 1.7280881e-06 | C19: ='DF raw data'!H24 -> -9.382984e-06 | D19: ='DF raw data'!I24 -> 1.1461882e-05 | F19: 1.730742443e-06 | G19: -9.417858951e-06 | H19: 1.147948745e-05 | J19: 9.864318226e-06 | K19: 3.62481194e-05 | L19: -1.285434398e-05 | M19: -2.656607462e-05 | N19: 4.200036568e-10
A20: 6.9341 | B20: ='DF raw data'!G25 -> 1.1379498e-06 | C20: ='DF raw data'!H25 -> 5.9724821e-06 | D20: ='DF raw data'!I25 -> 6.7843289e-06 | F20: 1.139697691e-06 | G20: 5.994680797e-06 | H20: 6.794749629e-06 | J20: 1.043433803e-05 | K20: 4.146685356e-05 | L20: -9.856104376e-06 | M20: -3.149560523e-05 | N20: 5.230436613e-10
A21: 7.43425 | B21: ='DF raw data'!G26 -> 1.0053236e-06 | C21: ='DF raw data'!H26 -> 8.0133832e-06 | D21: ='DF raw data'!I26 -> -1.8308269e-06 | F21: 1.006867777e-06 | G21: 8.043167578e-06 | H21: -1.83363905e-06 | J21: 1.093792295e-05 | K21: 4.693745572e-05 | L21: -5.833314112e-06 | M21: -3.441313728e-05 | N21: 5.998995671e-10
A22: 7.9344 | B22: ='DF raw data'!G27 -> 6.1536133e-07 | C22: ='DF raw data'!H27 -> 8.7414955e-06 | D22: ='DF raw data'!I27 -> -2.2933741e-06 | F22: 6.16306525e-07 | G22: 8.773986148e-06 | H22: -2.296896723e-06 | J22: 1.124616865e-05 | K22: 5.256222697e-05 | L22: -1.44500494e-06 | M22: -3.51358565e-05 | N22: 6.642010261e-10
A23: 8.43455 | B23: ='DF raw data'!G28 -> 4.667863e-07 | C23: ='DF raw data'!H28 -> -6.741393e-06 | D23: ='DF raw data'!I28 -> -1.3536405e-06 | F23: =(1-$G$1*($B$2-$G$2))*B23 -> 4.675032838e-07 | G23: -6.766449608e-06 | H23: -1.355719692e-06 | J23: 1.147999042e-05 | K23: 5.830394418e-05 | L23: -4.829244711e-06 | M23: -3.755120324e-05 | N23: 7.417801851e-10
A24: 8.9347 | B24: ='DF raw data'!G29 -> 9.3569264e-07 | C24: ='DF raw data'!H29 -> -2.845987e-06 | D24: ='DF raw data'!I29 -> -2.2551753e-06 | F24: 9.371298639e-07 | G24: -2.856565048e-06 | H24: -2.258639249e-06 | J24: 1.194869592e-05 | K24: 6.428008445e-05 | L24: -6.25795572e-06 | M24: -4.06811198e-05 | N24: 8.327741472e-10
A25: 9.43485 | B25: ='DF raw data'!G30 -> 2.4949013e-06 | C25: ='DF raw data'!H30 -> -5.7014618e-06 | D25: ='DF raw data'!I30 -> 3.0037378e-07 | F25: 2.498733468e-06 | G25: -5.722653161e-06 | H25: 3.008351541e-07 | J25: 1.319843747e-05 | K25: 7.088128295e-05 | L25: -9.120140699e-06 | M25: -4.524255817e-05 | N25: 9.615006125e-10
A26: 9.935 | B26: ='DF raw data'!G31 -> 2.7972028e-06 | C26: ='DF raw data'!H31 -> -3.0873551e-07 | D26: ='DF raw data'!I31 -> -1.2733722e-06 | F26: 2.801499304e-06 | G26: -3.098830272e-07 | H26: -1.2753281e-06 | J26: 1.459960734e-05 | K26: 7.818327656e-05 | L26: -9.275128695e-06 | M26: -4.988151378e-05 | N26: 1.111133762e-09
A27: 10.43515 | B27: ='DF raw data'!G32 -> 3.9403576e-06 | C27: ='DF raw data'!H32 -> 9.9279296e-06 | D27: ='DF raw data'!I32 -> 5.6599024e-06 | F27: 3.946409989e-06 | G27: 9.964830021e-06 | H27: 5.66859601e-06 | J27: 1.65734043e-05 | K27: 8.647246472e-05 | L27: -4.29121896e-06 | M27: -5.202776695e-05 | N27: 1.257723871e-09
A28: 10.9353 | B28: ='DF raw data'!G33 -> 3.5349849e-06 | C28: ='DF raw data'!H33 -> 1.0528085e-05 | D28: ='DF raw data'!I33 -> 6.5492573e-06 | F28: 3.540414637e-06 | G28: 1.05672161e-05 | H28: 6.559316959e-06 | J28: 1.834414268e-05 | K28: 9.564728768e-05 | L28: 9.939741706e-07 | M28: -5.153063076e-05 | N28: 1.426522273e-09
A29: 11.43545 | B29: ='DF raw data'!G34 -> -8.4604386e-07 | C29: ='DF raw data'!H34 -> 5.6120979e-07 | D29: ='DF raw data'!I34 -> -1.612068e-06 | F29: -8.473433834e-07 | G29: 5.632957111e-07 | H29: -1.614544136e-06 | J29: 1.792034389e-05 | K29: 0.0001046101477 | L29: 1.275706521e-06 | M29: -5.089258615e-05 | N29: 1.587953764e-09
A30: 11.9356 | B30: ='DF raw data'!G35 -> -6.7085157e-06 | C30: ='DF raw data'!H35 -> -5.8422274e-06 | D30: ='DF raw data'!I35 -> -1.2861487e-06 | F30: -6.71881998e-06 | G30: -5.863941963e-06 | H30: -1.288124224e-06 | J30: 1.455992607e-05 | K30: 0.0001118922947 | L30: -1.657144052e-06 | M30: -5.172140675e-05 | N30: 1.695354762e-09
A31: 12.43575 | B31: ='DF raw data'!G36 -> -1.2585074e-05 | C31: ='DF raw data'!H36 -> 2.4757562e-06 | D31: ='DF raw data'!I36 -> 5.6499198e-06 | F31: -1.260440467e-05 | G31: 2.484958163e-06 | H31: 5.658598077e-06 | J31: 8.255833076e-06 | K31: 0.0001160214496 | L31: -4.142922266e-07 | M31: -5.1928615e-05 | N31: 1.72953022e-09
A32: 12.9359 | B32: ='DF raw data'!G37 -> -1.0244107e-05 | C32: ='DF raw data'!H37 -> -2.6437112e-06 | D32: ='DF raw data'!I37 -> 3.657748e-06 | F32: -1.025984195e-05 | G32: -2.653537424e-06 | H32: 3.663366301e-06 | J32: 3.124373126e-06 | K32: 0.0001175841048 | L32: -1.741458969e-06 | M32: -5.279960571e-05 | N32: 1.735929333e-09
A33: 13.43605 | B33: ='DF raw data'!G38 -> -3.3326023e-06 | C33: ='DF raw data'!H38 -> -5.4550219e-06 | D33: ='DF raw data'!I38 -> -3.9907677e-06 | F33: -3.337721177e-06 | G33: -5.475297286e-06 | H33: -3.996897519e-06 | J33: 1.455011879e-06 | K33: 0.000118311829 | L33: -4.479928907e-06 | M33: -5.504024215e-05 | N33: 1.747026072e-09
A34: 13.9362 | B34: ='DF raw data'!G39 -> -2.531697e-07 | C34: ='DF raw data'!H39 -> -3.7616976e-06 | D34: ='DF raw data'!I39 -> -6.6312418e-06 | F34: -2.535585687e-07 | G34: -3.775679188e-06 | H34: -6.641427387e-06 | J34: 1.328194561e-06 | K34: 0.0001189761255 | L34: -6.368334853e-06 | M34: -5.822536482e-05 | N34: 1.768192315e-09
A35: 14.43635 | B35: ='DF raw data'!G40 -> -5.0889054e-07 | C35: ='DF raw data'!H40 -> -3.5700962e-06 | D35: ='DF raw data'!I40 -> -2.6525736e-06 | F35: -5.096721959e-07 | G35: -3.583365639e-06 | H35: -2.656647953e-06 | J35: 1.073282012e-06 | K35: 0.0001195129275 | L35: -8.160555177e-06 | M35: -6.23068665e-05 | N35: 1.802075774e-09
A36: 14.9365 | B36: ='DF raw data'!G41 -> 5.4941205e-07 | C36: ='DF raw data'!H41 -> -1.4079087e-05 | D36: ='DF raw data'!I41 -> -2.9312282e-06 | F36: 5.502559469e-07 | G36: -1.413141656e-05 | H36: -2.935730567e-06 | J36: 1.348492524e-06 | K36: 0.0001201873761 | L36: -1.522838317e-05 | M36: -6.992334234e-05 | N36: 1.918971876e-09
A37: 15.43665 | B37: ='DF raw data'!G42 -> 2.2351787e-06 | C37: ='DF raw data'!H42 -> -2.6278333e-06 | D37: ='DF raw data'!I42 -> -3.0449078e-06 | F37: 2.238611934e-06 | G37: -2.637600508e-06 | H37: -3.049584778e-06 | J37: 2.468134283e-06 | K37: 0.0001214218134 | L37: -1.654757907e-05 | M37: -7.819961401e-05 | N37: 2.058970893e-09
A38: 15.9368 | B38: ='DF raw data'!G43 -> 9.384284e-07 | C38: ='DF raw data'!H43 -> -3.2261258e-07 | D38: ='DF raw data'!I43 -> 3.4998889e-06 | F38: 9.39869826e-07 | G38: -3.238116759e-07 | H38: 3.505264729e-06 | J38: 2.938210177e-06 | K38: 0.0001228913593 | L38: -1.670953348e-05 | M38: -8.655688718e-05 | N38: 2.202934863e-09
A39: 16.43695 | B39: ='DF raw data'!G44 -> -4.7361345e-06 | C39: ='DF raw data'!H44 -> 5.3353665e-06 | D39: ='DF raw data'!I44 -> 9.0418398e-06 | F39: -4.743409203e-06 | G39: 5.355197147e-06 | H39: 9.055728066e-06 | J39: 5.657940639e-07 | K39: 0.0001231743412 | L39: -1.403113162e-05 | M39: -9.357455766e-05 | N39: 2.301560831e-09
A40: 16.9371 | B40: ='DF raw data'!G45 -> -5.3259964e-06 | C40: ='DF raw data'!H45 -> -7.6911274e-06 | D40: ='DF raw data'!I45 -> 6.9713501e-06 | F40: -5.33417713e-06 | G40: -7.719714009e-06 | H40: 6.982058094e-06 | J40: -2.102094628e-06 | K40: 0.0001221229785 | L40: -1.789214658e-05 | M40: -0.0001025233148 | N40: 2.463883369e-09
A41: 17.43725 | B41: ='DF raw data'!G46 -> -7.3543151e-06 | C41: ='DF raw data'!H46 -> 4.1737499e-06 | D41: ='DF raw data'!I46 -> -9.9663839e-07 | F41: -7.365611328e-06 | G41: 4.189263016e-06 | H41: -9.981692266e-07 | J41: -5.786005134e-06 | K41: 0.0001192291081 | L41: -1.579688669e-05 | M41: -0.0001104241276 | N41: 2.605435564e-09
A42: 17.9374 | B42: ='DF raw data'!G47 -> -1.0248167e-05 | C42: ='DF raw data'!H47 -> 6.0630787e-06 | D42: ='DF raw data'!I47 -> -6.3121183e-06 | F42: -1.026390818e-05 | G42: 6.085614129e-06 | H42: -6.321813714e-06 | J42: -1.091949881e-05 | K42: 0.0001137677207 | L42: -1.275316678e-05 | M42: -0.000116802624 | N42: 2.746417204e-09
A43: 18.43755 | B43: ='DF raw data'!G48 -> -8.7126054e-06 | C43: ='DF raw data'!H48 -> 6.9757202e-06 | D43: ='DF raw data'!I48 -> -3.7612986e-06 | F43: -8.725987962e-06 | G43: 7.001647762e-06 | H43: -3.767075955e-06 | J43: -1.528380169e-05 | K43: 0.0001061235273 | L43: -9.251292651e-06 | M43: -0.000121429658 | N43: 2.906055586e-09
A44: 18.9377 | B44: ='DF raw data'!G49 -> -6.0159173e-06 | C44: ='DF raw data'!H49 -> -1.129977e-07 | D44: ='DF raw data'!I49 -> -1.8773494e-06 | F44: -6.025157749e-06 | G44: -1.134176932e-07 | H44: -1.880233009e-06 | J44: -1.829728434e-05 | K44: 9.697214055e-05 | L44: -9.30801851e-06 | M44: -0.0001260850635 | N44: 3.116833712e-09
A45: 19.43785 | B45: ='DF raw data'!G50 -> -2.6791195e-06 | C45: ='DF raw data'!H50 -> 2.0389118e-07 | D45: ='DF raw data'!I50 -> 9.5972109e-07 | F45: -2.683234628e-06 | G45: 2.046490087e-07 | H45: 9.611952216e-07 | J45: -1.963930414e-05 | K45: 8.714954258e-05 | L45: -9.205663309e-06 | M45: -0.000130689276 | N45: 3.352127531e-09
A46: 19.938 | B46: ='DF raw data'!G51 -> -5.8425491e-07 | C46: ='DF raw data'!H51 -> 9.8278597e-06 | D46: ='DF raw data'!I51 -> 1.1696325e-06 | F46: -5.851523255e-07 | G46: 9.864388178e-06 | H46: 1.171429056e-06 | J46: -1.993196807e-05 | K46: 7.718056875e-05 | L46: -4.271989561e-06 | M46: -0.0001328259116 | N46: 3.559956484e-09
A47: 20.43815 | B47: ='DF raw data'!G52 -> 1.6915046e-06 | C47: ='DF raw data'!H52 -> -4.3901396e-06 | D47: ='DF raw data'!I52 -> -2.7352465e-07 | F47: 1.694102751e-06 | G47: -4.406457e-06 | H47: -2.739447839e-07 | J47: -1.908466258e-05 | K47: 6.763537476e-05 | L47: -6.47587903e-06 | M47: -0.0001360648225 | N47: 3.763098086e-09
A48: 20.9383 | B48: ='DF raw data'!G53 -> 3.4509476e-06 | C48: ='DF raw data'!H53 -> 1.1397494e-06 | D48: ='DF raw data'!I53 -> -3.5465268e-06 | F48: 3.456248256e-06 | G48: 1.143985654e-06 | H48: -3.551974265e-06 | J48: -1.735602002e-05 | K48: 5.895476135e-05 | L48: -5.903714605e-06 | M48: -0.0001390175653 | N48: 3.931191137e-09
A49: 21.43845 | B49: ='DF raw data'!G54 -> 3.5548774e-06 | C49: ='DF raw data'!H54 -> -3.0473282e-07 | D49: ='DF raw data'!I54 -> -2.2788658e-06 | F49: 3.560337692e-06 | G49: -3.058654599e-07 | H49: -2.282366138e-06 | J49: -1.557531712e-05 | K49: 5.116476649e-05 | L49: -6.056693215e-06 | M49: -0.0001420468204 | N49: 4.070870046e-09
A50: 21.9386 | B50: ='DF raw data'!G55 -> 3.3607112e-06 | C50: ='DF raw data'!H55 -> -3.7640991e-06 | D50: ='DF raw data'!I55 -> 7.5991488e-06 | F50: 3.365873252e-06 | G50: -3.778089614e-06 | H50: 7.610821093e-06 | J50: -1.389187561e-05 | K50: 4.42167449e-05 | L50: -7.946304735e-06 | M50: -0.0001460211648 | N50: 4.198972449e-09
A51: 22.43875 | B51: ='DF raw data'!G56 -> 1.4345906e-06 | C51: ='DF raw data'!H56 -> -4.4513827e-06 | D51: ='DF raw data'!I56 -> 1.1684569e-05 | F51: 1.436794131e-06 | G51: -4.46792773e-06 | H51: 1.17025165e-05 | J51: -1.317326303e-05 | K51: 3.76281374e-05 | L51: -1.018093879e-05 | M51: -0.0001511131613 | N51: 4.337607214e-09
A52: 22.9389 | B52: ='DF raw data'!G57 -> -2.3532439e-06 | C52: ='DF raw data'!H57 -> -5.953239e-06 | D52: ='DF raw data'!I57 -> 6.8855666e-06 | F52: -2.356858483e-06 | G52: -5.975366174e-06 | H52: 6.89614283e-06 | J52: -1.43520458e-05 | K52: 3.044996169e-05 | L52: -1.316951818e-05 | M52: -0.0001576998958 | N52: 4.52737284e-09
A53: 23.43905 | B53: ='DF raw data'!G58 -> -5.6128874e-06 | C53: ='DF raw data'!H58 -> -9.659982e-07 | D53: ='DF raw data'!I58 -> 2.803667e-06 | F53: -5.621508795e-06 | G53: -9.695886505e-07 | H53: 2.807973433e-06 | J53: -1.716364342e-05 | K53: 2.186556543e-05 | L53: -1.365445795e-05 | M53: -0.000164529173 | N53: 4.767962434e-09
A54: 23.9392 | B54: ='DF raw data'!G59 -> -2.7478773e-06 | C54: ='DF raw data'!H59 -> 1.2124141e-05 | D54: ='DF raw data'!I59 -> 7.0426981e-06 | F54: -2.75209804e-06 | G54: 1.216920436e-05 | H54: 7.053515684e-06 | J54: -1.854010526e-05 | K54: 1.259273179e-05 | L54: -7.568030382e-06 | M54: -0.0001683143233 | N54: 4.968527879e-09
A55: 24.43935 | B55: ='DF raw data'!G60 -> 2.4398369e-06 | C55: ='DF raw data'!H60 -> 1.1723057e-06 | D55: ='DF raw data'!I60 -> 1.1060161e-05 | F55: 2.443584489e-06 | G55: 1.17666296e-06 | H55: 1.107714941e-05 | J55: -1.731794648e-05 | K55: 3.931160857e-06 | L55: -6.979522403e-06 | M55: -0.0001718051315 | N55: 5.142892674e-09
A56: 24.9395 | B56: ='DF raw data'!G61 -> -2.3627798e-08 | C56: ='DF raw data'!H61 -> -5.1049092e-06 | D56: ='DF raw data'!I61 -> 8.1062244e-06 | F56: -2.36640903e-08 | G56: -5.123883277e-06 | H56: 8.118675561e-06 | J56: -1.732978207e-05 | K56: -4.736329645e-06 | L56: -9.542232624e-06 | M56: -0.0001765776791 | N56: 5.338639156e-09
A57: 25.43965 | B57: ='DF raw data'!G62 -> -2.4883323e-07 | C57: ='DF raw data'!H62 -> -6.1348356e-07 | D57: ='DF raw data'!I62 -> 4.2842953e-06 | F57: -2.492154378e-07 | G57: -6.157637737e-07 | H57: 4.290875978e-06 | J57: -1.745442717e-05 | K57: -1.34661614e-05 | L57: -9.850206875e-06 | M57: -0.0001815042601 | N57: 5.53954121e-09
A58: 25.9398 | B58: ='DF raw data'!G63 -> 5.3136655e-06 | C58: ='DF raw data'!H63 -> -4.501683e-07 | D58: ='DF raw data'!I63 -> 2.7731808e-06 | F58: 5.32182729e-06 | G58: -4.518414988e-07 | H58: 2.777440406e-06 | J58: -1.479271525e-05 | K58: -2.086473793e-05 | L58: -1.00761954e-05 | M58: -0.0001865438692 | N58: 5.699766332e-09
A59: 26.43995 | B59: ='DF raw data'!G64 -> 9.9498184e-06 | C59: ='DF raw data'!H64 -> -2.1869903e-06 | D59: ='DF raw data'!I64 -> -5.5660998e-06 | F59: 9.965101321e-06 | G59: -2.19511897e-06 | H59: -5.574649329e-06 | J59: -9.808669827e-06 | K59: -2.577054414e-05 | L59: -1.117408415e-05 | M59: -0.0001921325874 | N59: 5.810334573e-09
A60: 26.9401 | B60: ='DF raw data'!G65 -> 1.0459848e-05 | C60: ='DF raw data'!H65 -> 5.6957538e-06 | D60: ='DF raw data'!I65 -> -9.0352332e-06 | F60: 1.047591433e-05 | G60: 5.716923945e-06 | H60: -9.049111318e-06 | J60: -4.569141276e-06 | K60: -2.805580015e-05 | L60: -8.314764642e-06 | M60: -0.0001962912169 | N60: 5.855354256e-09
A61: 27.44025 | B61: ='DF raw data'!G66 -> 7.9119536e-06 | C61: ='DF raw data'!H66 -> 1.7048139e-06 | D61: ='DF raw data'!I66 -> -3.8891371e-06 | F61: 7.924106361e-06 | G61: 1.711150402e-06 | H61: -3.895110815e-06 | J61: -6.058994799e-07 | K61: -2.835884078e-05 | L61: -7.458932768e-06 | M61: -0.0002000218022 | N61: 5.883364053e-09
A62: 27.9404 | B62: ='DF raw data'!G67 -> 5.2559235e-06 | C62: ='DF raw data'!H67 -> 2.6438745e-06 | D62: ='DF raw data'!I67 -> 2.6735549e-07 | F62: 5.263996598e-06 | G62: 2.653701331e-06 | H62: 2.67766148e-07 | J62: 2.026888419e-06 | K62: -2.734509253e-05 | L62: -6.131684048e-06 | M62: -0.0002030885639 | N62: 5.904223222e-09
A63: 28.44055 | B63: ='DF raw data'!G68 -> 1.306621e-06 | C63: ='DF raw data'!H68 -> 7.1119498e-06 | D63: ='DF raw data'!I68 -> 4.1983662e-06 | F63: 1.30862797e-06 | G63: 7.138383704e-06 | H63: 4.20481489e-06 | J63: 2.681398698e-06 | K63: -2.600399098e-05 | L63: -2.561421438e-06 | M63: -0.0002043696589 | N63: 5.911100674e-09
A64: 28.9407 | B64: ='DF raw data'!G69 -> 3.0831595e-07 | C64: ='DF raw data'!H69 -> 4.1227809e-06 | D64: ='DF raw data'!I69 -> 7.7803779e-06 | F64: 3.087895233e-07 | G64: 4.138104573e-06 | H64: 7.79232856e-06 | J64: 2.835839778e-06 | K64: -2.458564571e-05 | L64: -4.91748436e-07 | M64: -0.0002046156069 | N64: 5.915243818e-09
A65: 29.44085 | B65: ='DF raw data'!G70 -> 5.9293683e-07 | C65: ='DF raw data'!H70 -> 4.0806176e-06 | D65: ='DF raw data'!I70 -> -3.8740794e-07 | F65: 5.93847581e-07 | G65: 4.09578456e-06 | H65: -3.880029986e-07 | J65: 3.132852646e-06 | K65: -2.301874946e-05 | L65: 1.556758212e-06 | M65: -0.0002038369942 | N65: 5.921364785e-09
A66: 29.941 | B66: ='DF raw data'!G71 -> 9.5065201e-07 | C66: ='DF raw data'!H71 -> -5.3848394e-06 | D66: ='DF raw data'!I71 -> -7.709481e-06 | F66: 9.521122115e-07 | G66: -5.40485393e-06 | H66: -7.721322763e-06 | J66: 3.609051568e-06 | K66: -2.121368232e-05 | L66: -1.146479481e-06 | M66: -0.000204410406 | N66: 5.92853677e-09
A67: 30.44115 | B67: ='DF raw data'!G72 -> 3.0740821e-06 | C67: ='DF raw data'!H72 -> -5.2702245e-07 | D67: ='DF raw data'!I72 -> 5.3863232e-07 | F67: 3.07880389e-06 | G67: -5.289813025e-07 | H67: 5.394596592e-07 | J67: 5.148915334e-06 | K67: -1.863845231e-05 | L67: -1.41104948e-06 | M67: -0.0002051161423 | N67: 5.94279224e-09
A68: 30.9413 | B68: ='DF raw data'!G73 -> 7.2872399e-06 | C68: ='DF raw data'!H73 -> 4.8133993e-06 | D68: ='DF raw data'!I73 -> 7.2110056e-06 | F68: 7.2984331e-06 | G68: 4.831289884e-06 | H68: 7.222081705e-06 | J68: 8.799226649e-06 | K68: -1.42375191e-05 | L68: 1.005320156e-06 | M68: -0.0002046133315 | N68: 5.982022535e-09
A69: 31.44145 | B69: ='DF raw data'!G74 -> 9.7865459e-06 | C69: ='DF raw data'!H74 -> 2.8775055e-06 | D69: ='DF raw data'!I74 -> 5.3738554e-06 | F69: 9.801578035e-06 | G69: 2.888200697e-06 | H69: 5.382109642e-06 | J69: 1.37014859e-05 | K69: -7.384720931e-06 | L69: 2.449853734e-06 | M69: -0.0002033880371 | N69: 6.078917844e-09
A70: 31.9416 | B70: ='DF raw data'!G75 -> 6.7412375e-06 | C70: ='DF raw data'!H75 -> -5.3945796e-06 | D70: ='DF raw data'!I75 -> -1.5097098e-06 | F70: 6.751592041e-06 | G70: -5.414630332e-06 | H70: -1.512028714e-06 | J70: 1.707829466e-05 | K70: 1.156988145e-06 | L70: -2.582736262e-07 | M70: -0.0002035172127 | N70: 6.224829032e-09
A71: 32.44175 | B71: ='DF raw data'!G76 -> 1.0318809e-06 | C71: ='DF raw data'!H76 -> -8.1801381e-06 | D71: ='DF raw data'!I76 -> -4.9121513e-06 | F71: 1.033465869e-06 | G71: =(1-$G$1*($B$2-$G$2))*C71*$M$2/$M$1 -> -8.210542278e-06 | H71: -4.919696364e-06 | J71: 1.759518262e-05 | K71: 9.95721873e-06 | L71: -4.364776347e-06 | M71: -0.0002057002556 | N71: 6.38919919e-09
A72: =A71+$B$1 -> 32.9419 | B72: ='DF raw data'!G77 -> -2.9241592e-06 | C72: ='DF raw data'!H77 -> 4.0654072e-06 | D72: ='DF raw data'!I77 -> -2.8046411e-06 | F72: -2.928650709e-06 | G72: 4.080517625e-06 | H72: -2.808949029e-06 | J72: =F72*$B$1+J71 -> 1.613041796e-05 | K72: =J72*$B$1+K71 -> 1.802484728e-05 | L72: =G72*$B$1+L71 -> -2.323905456e-06 | M72: =L72*$B$1+M71 -> -0.0002068625569 | N72: =(J72^2+L72^2)*$B$1+N71 -> 6.522034488e-09
A73: 33.44205 | B73: ='DF raw data'!G78 -> -2.9690809e-06 | C73: ='DF raw data'!H78 -> 8.4004569e-06 | D73: ='DF raw data'!I78 -> 3.0284214e-06 | F73: -2.973641408e-06 | G73: 8.431679965e-06 | H73: 3.033073055e-06 | J73: 1.464315121e-05 | K73: 2.534861936e-05 | L73: 1.893199278e-06 | M73: -0.0002059156733 | N73: 6.63107023e-09
A74: 33.9422 | B74: ='DF raw data'!G79 -> -1.6568474e-06 | C74: ='DF raw data'!H79 -> -8.5111725e-07 | D74: ='DF raw data'!I79 -> 1.295402e-05 | F74: -1.659392318e-06 | G74: -8.542807076e-07 | H74: 1.297391737e-05 | J74: 1.381320615e-05 | K74: 3.225729441e-05 | L74: 1.465930782e-06 | M74: -0.000205182488 | N74: 6.727575982e-09
A75: 34.44235 | B75: ='DF raw data'!G80 -> -3.7893578e-06 | C75: ='DF raw data'!H80 -> -1.1464448e-05 | D75: ='DF raw data'!I80 -> 1.1691569e-05 | F75: -3.795178254e-06 | G75: -1.15070594e-05 | H75: 1.170952725e-05 | J75: 1.191504774e-05 | K75: 3.821660554e-05 | L75: -4.289324975e-06 | M75: -0.0002073277939 | N75: 6.807783372e-09
A76: 34.9425 | B76: ='DF raw data'!G81 -> -3.1465706e-06 | C76: ='DF raw data'!H81 -> -3.3780946e-06 | D76: ='DF raw data'!I81 -> -1.737567e-07 | F76: -3.151403732e-06 | G76: -3.390650401e-06 | H76: -1.740235903e-07 | J76: 1.033887317e-05 | K76: 4.338759295e-05 | L76: -5.985158774e-06 | M76: -0.000210321271 | N76: 6.879161991e-09
A77: 35.44265 | B77: ='DF raw data'!G82 -> -1.7550437e-06 | C77: ='DF raw data'!H82 -> 5.1576421e-06 | D77: ='DF raw data'!I82 -> -4.0268419e-06 | F77: -1.757739447e-06 | G77: 5.176812176e-06 | H77: -4.033027129e-06 | J77: 9.459739782e-06 | K77: 4.81188818e-05 | L77: -3.395976164e-06 | M77: -0.0002120197685 | N77: 6.92968681e-09
A78: 35.9428 | B78: ='DF raw data'!G83 -> -2.7925953e-06 | C78: ='DF raw data'!H83 -> 4.0284481e-06 | D78: ='DF raw data'!I83 -> -4.0352238e-06 | F78: -2.796884726e-06 | G78: 4.043421154e-06 | H78: -4.041421904e-06 | J78: 8.060877886e-06 | K78: 5.215052988e-05 | L78: -1.373659073e-06 | M78: -0.0002127068041 | N78: 6.963129185e-09
A79: 36.44295 | B79: ='DF raw data'!G84 -> -1.180927e-06 | C79: ='DF raw data'!H84 -> -1.7917921e-05 | D79: ='DF raw data'!I84 -> 2.013338e-06 | F79: -1.182740904e-06 | G79: -1.798451886e-05 | H79: 2.016430487e-06 | J79: 7.469330023e-06 | K79: 5.588631529e-05 | L79: -1.036861618e-05 | M79: -0.0002178926675 | N79: 7.044803226e-09
A80: 36.9431 | B80: ='DF raw data'!G85 -> -1.1114416e-06 | C80: ='DF raw data'!H85 -> -3.9758484e-06 | D80: ='DF raw data'!I85 -> 1.0818408e-06 | F80: -1.113148774e-06 | G80: -3.99062595e-06 | H80: 1.083502507e-06 | J80: 6.912588664e-06 | K80: 5.934364651e-05 | L80: -1.236452775e-05 | M80: -0.000224076786 | N80: 7.14516604e-09
A81: 37.44325 | B81: ='DF raw data'!G86 -> 8.5740334e-07 | C81: ='DF raw data'!H86 -> 1.875467e-06 | D81: ='DF raw data'!I86 -> -5.4889019e-06 | F81: 8.587203115e-07 | G81: 1.882437791e-06 | H81: -5.497332853e-06 | J81: 7.342077627e-06 | K81: 6.301578664e-05 | L81: -1.142302649e-05 | M81: -0.0002297900127 | N81: 7.237389518e-09
A82: 37.9434 | B82: ='DF raw data'!G87 -> 3.0679412e-06 | C82: ='DF raw data'!H87 -> 3.6306766e-08 | D82: ='DF raw data'!I87 -> -7.2686303e-06 | F82: 3.072653558e-06 | G82: 3.644171206e-08 | H82: -7.279794916e-06 | J82: 8.878865304e-06 | K82: 6.745655112e-05 | L82: -1.140480016e-05 | M82: -0.0002354941235 | N82: 7.341872712e-09
A83: 38.44355 | B83: ='DF raw data'!G88 -> -1.3997037e-07 | C83: ='DF raw data'!H88 -> 3.3411627e-07 | D83: ='DF raw data'!I88 -> -3.9043148e-06 | F83: -1.401853645e-07 | G83: 3.353581232e-07 | H83: -3.910311828e-06 | J83: 8.808751594e-06 | K83: 7.186224823e-05 | L83: -1.12370708e-05 | M83: -0.0002411143445 | N83: 7.443836224e-09
A84: 38.9437 | B84: ='DF raw data'!G89 -> -5.2295463e-06 | C84: ='DF raw data'!H89 -> -2.1820535e-06 | D84: ='DF raw data'!I89 -> -9.3968559e-08 | F84: -5.237578883e-06 | G84: -2.190163821e-06 | H84: -9.411289471e-08 | J84: 6.189176516e-06 | K84: 7.495776486e-05 | L84: -1.233248123e-05 | M84: -0.000247282435 | N84: 7.539062783e-09
A85: 39.44385 | B85: ='DF raw data'!G90 -> -6.0379489e-06 | C85: ='DF raw data'!H90 -> -1.1553337e-07 | D85: ='DF raw data'!I90 -> 4.1253011e-06 | F85: -6.04722319e-06 | G85: -1.159627878e-07 | H85: 4.131637562e-06 | J85: 3.164657838e-06 | K85: 7.654056848e-05 | L85: -1.239048002e-05 | M85: -0.0002534795336 | N85: 7.620856841e-09
A86: 39.944 | B86: ='DF raw data'!G91 -> -4.9590844e-06 | C86: ='DF raw data'!H91 -> 3.5662558e-06 | D86: ='DF raw data'!I91 -> 3.8986113e-06 | F86: -4.966701554e-06 | G86: 3.579510964e-06 | H86: 3.904599567e-06 | J86: 6.805620555e-07 | K86: 7.688095159e-05 | L86: -1.060018761e-05 | M86: -0.0002587812174 | N86: 7.677287336e-09
A87: 40.44415 | B87: ='DF raw data'!G92 -> -1.4507341e-06 | C87: ='DF raw data'!H92 -> 4.8618335e-06 | D87: ='DF raw data'!I92 -> 2.1070377e-06 | F87: =(1-$G$1*($B$2-$G$2))*B87 -> -1.452962428e-06 | G87: 4.879904106e-06 | H87: 2.11027411e-06 | J87: -4.613710266e-08 | K87: 7.685787612e-05 | L87: -8.159503575e-06 | M87: -0.0002628621931 | N87: 7.710587137e-09
A88: 40.9443 | B88: ='DF raw data'!G93 -> -7.3584221e-07 | C88: ='DF raw data'!H93 -> 1.1937744e-05 | D88: ='DF raw data'!I93 -> 2.296722e-06 | F88: -7.369724636e-07 | G88: 1.198211456e-05 | H88: 2.300249765e-06 | J88: -4.147338804e-07 | K88: 7.665044697e-05 | L88: -2.166648979e-06 | M88: -0.0002639458426 | N88: 7.713021053e-09
A89: 41.44445 | B89: ='DF raw data'!G94 -> -5.8178075e-06 | C89: ='DF raw data'!H94 -> 7.2372382e-06 | D89: ='DF raw data'!I94 -> 4.3061232e-06 | F89: -5.826743652e-06 | G89: 7.26413778e-06 | H89: 4.312737405e-06 | J89: -3.328979718e-06 | K89: 7.498545776e-05 | L89: 1.466509531e-06 | M89: -0.0002632123679 | N89: 7.719639416e-09
A90: 41.9446 | B90: ='DF raw data'!G95 -> -7.1672212e-06 | C90: ='DF raw data'!H95 -> 1.0407335e-05 | D90: ='DF raw data'!I95 -> 4.4390258e-06 | F90: -7.178230052e-06 | G90: 1.044601729e-05 | H90: 4.445844144e-06 | J90: -6.919171478e-06 | K90: 7.152483415e-05 | L90: 6.691085079e-06 | M90: -0.0002598658217 | N90: 7.765976089e-09
A91: 42.44475 | B91: ='DF raw data'!G96 -> -3.5899093e-06 | C91: ='DF raw data'!H96 -> 1.7121517e-06 | D91: ='DF raw data'!I96 -> -6.080877e-07 | F91: -3.595423401e-06 | G91: 1.718515476e-06 | H91: -6.090217227e-07 | J91: -8.717422492e-06 | K91: 6.716481529e-05 | L91: 7.550600594e-06 | M91: -0.0002560893888 | N91: 7.832498552e-09
A92: 42.9449 | B92: ='DF raw data'!G97 -> -3.4059585e-06 | C92: ='DF raw data'!H97 -> -1.1762258e-05 | D92: ='DF raw data'!I97 -> 3.156824e-07 | F92: -3.411190052e-06 | G92: -1.180597631e-05 | H92: 3.161672882e-07 | J92: -1.04235292e-05 | K92: 6.195148716e-05 | L92: 1.645841544e-06 | M92: -0.0002552662211 | N92: 7.888194634e-09
A93: 43.44505 | B93: ='DF raw data'!G98 -> -3.3843198e-06 | C93: ='DF raw data'!H98 -> -1.1223212e-05 | D93: ='DF raw data'!I98 -> 3.4639456e-06 | F93: -3.389518115e-06 | G93: -1.126492676e-05 | H93: 3.46926622e-06 | J93: -1.211879668e-05 | K93: 5.5890271e-05 | L93: -3.988311577e-06 | M93: -0.0002572609752 | N93: 7.96960498e-09
A94: 43.9452 | B94: ='DF raw data'!G99 -> 2.4666706e-06 | C94: ='DF raw data'!H99 -> 1.4383593e-06 | D94: ='DF raw data'!I99 -> 7.3828492e-06 | F94: 2.470459406e-06 | G94: 1.443705436e-06 | H94: 7.394189256e-06 | J94: -1.088319641e-05 | K94: 5.044704032e-05 | L94: -3.266242303e-06 | M94: -0.0002588945862 | N94: 8.034180499e-09
A95: 44.44535 | B95: ='DF raw data'!G100 -> 7.37135e-06 | C95: ='DF raw data'!H100 -> 6.3630227e-06 | D95: ='DF raw data'!I100 -> 1.0941563e-05 | F95: 7.382672394e-06 | G95: 6.38667297e-06 | H95: 1.095836924e-05 | J95: -7.190752813e-06 | K95: 4.68505853e-05 | L95: -7.194781747e-08 | M95: -0.0002589305709 | N95: 8.060044307e-09
A96: 44.9455 | B96: ='DF raw data'!G101 -> 3.2678554e-06 | C96: ='DF raw data'!H101 -> -3.1344564e-06 | D96: ='DF raw data'!I101 -> 6.4638084e-06 | F96: 3.272874826e-06 | G96: -3.14610664e-06 | H96: 6.47373681e-06 | J96: -5.553824468e-06 | K96: 4.407283999e-05 | L96: -1.645473053e-06 | M96: -0.0002597535543 | N96: 8.076825614e-09
A97: 45.44565 | B97: ='DF raw data'!G102 -> -1.8285309e-06 | C97: ='DF raw data'!H102 -> -1.3988223e-05 | D97: ='DF raw data'!I102 -> -1.4200555e-06 | F97: -1.831339523e-06 | G97: -1.404021484e-05 | H97: -1.422236705e-06 | J97: -6.469768931e-06 | K97: 4.083698506e-05 | L97: -8.667686505e-06 | M97: -0.0002640886977 | N97: 8.135336511e-09
A98: 45.9458 | B98: ='DF raw data'!G103 -> -4.574943e-06 | C98: ='DF raw data'!H103 -> -1.3577935e-05 | D98: ='DF raw data'!I103 -> -4.0764203e-06 | F98: -4.581970112e-06 | G98: -1.362840187e-05 | H98: -4.082681682e-06 | J98: -8.761441283e-06 | K98: 3.64549502e-05 | L98: -1.54839317e-05 | M98: -0.0002718329861 | N98: 8.293641486e-09
A99: 46.44595 | B99: ='DF raw data'!G104 -> -6.3654252e-06 | C99: ='DF raw data'!H104 -> 9.5175045e-07 | D99: ='DF raw data'!I104 -> -3.4053587e-06 | F99: -6.375202493e-06 | G99: 9.552879441e-07 | H99: -3.410589331e-06 | J99: -1.194999881e-05 | K99: 3.04781583e-05 | L99: -1.500614443e-05 | M99: -0.0002793383093 | N99: 8.477690105e-09
A100: 46.9461 | B100: ='DF raw data'!G105 -> 2.5959613e-07 | C100: ='DF raw data'!H105 -> 1.3857896e-06 | D100: ='DF raw data'!I105 -> -5.3961335e-06 | F100: 2.599948697e-07 | G100: 1.390940344e-06 | H100: -5.404421961e-06 | J100: -1.181996238e-05 | K100: 2.456640411e-05 | L100: -1.431046562e-05 | M100: -0.0002864956887 | N100: 8.649992248e-09
A101: 47.44625 | B101: ='DF raw data'!G106 -> 1.0259803e-05 | C101: ='DF raw data'!H106 -> 3.2015994e-06 | D101: ='DF raw data'!I106 -> -5.6645436e-06 | F101: 1.027556206e-05 | G101: 3.213499199e-06 | H101: -5.673244339e-06 | J101: -6.680640013e-06 | K101: 2.122508201e-05 | L101: -1.2703234e-05 | M101: -0.0002928492111 | N101: 8.753024701e-09
A102: 47.9464 | B102: ='DF raw data'!G107 -> 1.3032176e-05 | C102: ='DF raw data'!H107 -> 5.8962968e-07 | D102: ='DF raw data'!I107 -> -6.7508295e-06 | F102: 1.305219342e-05 | G102: 5.918212329e-07 | H102: -6.761198774e-06 | J102: -1.525854726e-07 | K102: 2.114876639e-05 | L102: -1.240723461e-05 | M102: -0.0002990546895 | N102: 8.830029172e-09
A103: 48.44655 | B103: ='DF raw data'!G108 -> 9.8835926e-06 | C103: ='DF raw data'!H108 -> -3.4988459e-06 | D103: ='DF raw data'!I108 -> -4.8640281e-06 | F103: 9.898773798e-06 | G103: -3.511850513e-06 | H103: -4.871499247e-06 | J103: 4.798286243e-06 | K103: 2.354862925e-05 | L103: -1.416368664e-05 | M103: -0.0003061386574 | N103: 8.941879502e-09
A104: 48.9467 | B104: ='DF raw data'!G109 -> 4.9855926e-06 | C104: ='DF raw data'!H109 -> 3.0246754e-06 | D104: ='DF raw data'!I109 -> 1.3819449e-06 | F104: 4.99325047e-06 | G104: 3.035917603e-06 | H104: 1.384067567e-06 | J104: 7.295660465e-06 | K104: 2.719755383e-05 | L104: -1.264527245e-05 | M104: -0.0003124631904 | N104: 9.04847626e-09
A105: 49.44685 | B105: ='DF raw data'!G110 -> -2.2945123e-06 | C105: ='DF raw data'!H110 -> 1.696005e-07 | D105: ='DF raw data'!I110 -> 4.3076511e-06 | F105: -2.298036671e-06 | G105: 1.702308761e-07 | H105: 4.314267652e-06 | J105: 6.146297424e-06 | K105: 3.027162449e-05 | L105: -1.256013148e-05 | M105: -0.0003187451402 | N105: 9.146272528e-09
A106: 49.947 | B106: ='DF raw data'!G111 -> -7.1566128e-06 | C106: ='DF raw data'!H111 -> -1.0041579e-06 | D106: ='DF raw data'!I111 -> 2.0122029e-06 | F106: -7.167605357e-06 | G106: -1.007890184e-06 | H106: 2.015293644e-06 | J106: 2.561419605e-06 | K106: 3.15527185e-05 | L106: -1.306422776e-05 | M106: -0.0003252792137 | N106: 9.234916572e-09
A107: 50.44715 | B107: ='DF raw data'!G112 -> -4.6145242e-06 | C107: ='DF raw data'!H112 -> -1.000689e-05 | D107: ='DF raw data'!I112 -> -2.0685616e-06 | F107: -4.621612109e-06 | G107: -1.00440839e-05 | H107: -2.071738911e-06 | J107: 2.499203085e-07 | K107: 3.167771615e-05 | L107: -1.808777632e-05 | M107: -0.000334325815 | N107: 9.398580712e-09
A108: 50.9473 | B108: ='DF raw data'!G113 -> 1.6562599e-06 | C108: ='DF raw data'!H113 -> -5.3645585e-06 | D108: ='DF raw data'!I113 -> -4.8877187e-06 | F108: 1.658803915e-06 | G108: -5.384497649e-06 | H108: -4.895226236e-06 | J108: 1.079571087e-06 | K108: 3.221766363e-05 | L108: -2.078083282e-05 | M108: -0.0003447193486 | N108: 9.615149907e-09
A109: 51.44745 | B109: ='DF raw data'!G114 -> 1.7491011e-06 | C109: ='DF raw data'!H114 -> -4.5956176e-06 | D109: ='DF raw data'!I114 -> -4.7080898e-06 | F109: 1.751787719e-06 | G109: -4.612698727e-06 | H109: -4.715321426e-06 | J109: 1.955727715e-06 | K109: 3.319582084e-05 | L109: -2.308787409e-05 | M109: -0.0003562667488 | N109: 9.883667838e-09
A110: 51.9476 | B110: ='DF raw data'!G115 -> -2.0144898e-06 | C110: ='DF raw data'!H115 -> 2.1750085e-07 | D110: ='DF raw data'!I115 -> -4.096662e-06 | F110: -2.017584056e-06 | G110: 2.183092636e-07 | H110: -4.102954473e-06 | J110: 9.466330487e-07 | K110: 3.366927936e-05 | L110: -2.297868671e-05 | M110: -0.0003677595389 | N110: 1.014820525e-08
A111: 52.44775 | B111: ='DF raw data'!G116 -> -2.6289881e-06 | C111: ='DF raw data'!H116 -> -1.2263144e-05 | D111: ='DF raw data'!I116 -> -7.9534002e-06 | F111: -2.633026226e-06 | G111: -1.230872401e-05 | H111: -7.965616623e-06 | J111: -3.702750181e-07 | K111: 3.348408631e-05 | L111: -2.913489502e-05 | M111: -0.0003823313567 | N111: 1.057282221e-08
A112: 52.9479 | B112: ='DF raw data'!G117 -> -3.3130445e-06 | C112: ='DF raw data'!H117 -> -8.3486566e-06 | D112: ='DF raw data'!I117 -> -1.0254043e-05 | F112: -3.318133336e-06 | G112: -8.379687132e-06 | H112: -1.026979321e-05 | J112: -2.029839406e-06 | K112: 3.246886213e-05 | L112: -3.332599554e-05 | M112: -0.0003989993534 | N112: 1.113036053e-08
A113: 53.44805 | B113: ='DF raw data'!G118 -> -2.6795851e-06 | C113: ='DF raw data'!H118 -> 7.5729399e-06 | D113: ='DF raw data'!I118 -> -7.0534511e-06 | F113: -2.683700943e-06 | G113: 7.601087226e-06 | H113: -7.064285201e-06 | J113: -3.372092433e-06 | K113: 3.07823101e-05 | L113: -2.952431177e-05 | M113: -0.0004137659379 | N113: 1.157202099e-08
A114: 53.9482 | B114: ='DF raw data'!G119 -> -7.7728606e-07 | C114: ='DF raw data'!H119 -> 5.7404518e-06 | D114: ='DF raw data'!I119 -> -1.7542839e-06 | F114: -7.784799714e-07 | G114: 5.76178808e-06 | H114: -1.75697848e-06 | J114: -3.76144919e-06 | K114: 2.890102129e-05 | L114: -2.664255346e-05 | M114: -0.000427091211 | N114: 1.193411666e-08
A115: 54.44835 | B115: ='DF raw data'!G120 -> -3.0998038e-07 | C115: ='DF raw data'!H120 -> -4.5772044e-06 | D115: ='DF raw data'!I120 -> 2.0994562e-06 | F115: -3.104565099e-07 | G115: -4.594217088e-06 | H115: 2.102680965e-06 | J115: -3.916724014e-06 | K115: 2.694207177e-05 | L115: -2.894035114e-05 | M115: -0.0004415657276 | N115: 1.236068692e-08
A116: 54.9485 | B116: ='DF raw data'!G121 -> 2.3908406e-06 | C116: ='DF raw data'!H121 -> 2.6034456e-06 | D116: ='DF raw data'!I121 -> 1.8787036e-06 | F116: 2.394512931e-06 | G116: 2.613122163e-06 | H116: 1.881589289e-06 | J116: -2.719108371e-06 | K116: 2.558210972e-05 | L116: -2.763339809e-05 | M116: -0.0004553865717 | N116: 1.274630169e-08
A117: 55.44865 | B117: ='DF raw data'!G122 -> 2.4230148e-06 | C117: ='DF raw data'!H122 -> 5.9283201e-07 | D117: ='DF raw data'!I122 -> -5.4031766e-06 | F117: 2.426736551e-06 | G117: 5.950354655e-07 | H117: -5.411475879e-06 | J117: -1.505376085e-06 | K117: 2.482919587e-05 | L117: -2.73357911e-05 | M117: -0.0004690585676 | N117: 1.312116993e-08
A118: 55.9488 | B118: ='DF raw data'!G123 -> 4.2052577e-07 | C118: ='DF raw data'!H123 -> -6.509897e-06 | D118: ='DF raw data'!I123 -> -1.1753706e-05 | F118: 4.211716976e-07 | G118: -6.534093177e-06 | H118: -1.177175969e-05 | J118: -1.294727061e-06 | K118: 2.418163813e-05 | L118: -3.06038178e-05 | M118: -0.0004843650671 | N118: 1.359044566e-08
A119: 56.44895 | B119: ='DF raw data'!G124 -> 7.3430868e-07 | C119: ='DF raw data'!H124 -> 1.9180304e-06 | D119: ='DF raw data'!I124 -> -9.1091133e-06 | F119: 7.354365781e-07 | G119: 1.925159392e-06 | H119: -9.123104898e-06 | J119: -9.268984564e-07 | K119: 2.371804987e-05 | L119: -2.964094933e-05 | M119: -0.0004991899879 | N119: 1.403030009e-08
A120: 56.9491 | B120: ='DF raw data'!G125 -> 8.2282799e-07 | C120: ='DF raw data'!H125 -> -2.9672745e-07 | D120: ='DF raw data'!I125 -> -3.3555184e-06 | F120: 8.240918538e-07 | G120: -2.978303353e-07 | H120: -3.360672476e-06 | J120: -5.147289157e-07 | K120: 2.34606082e-05 | L120: -2.978990917e-05 | M120: -0.0005140894109 | N120: 1.447428506e-08
A121: 57.44925 | B121: ='DF raw data'!G126 -> 2.6120442e-06 | C121: ='DF raw data'!H126 -> 9.7055072e-06 | D121: ='DF raw data'!I126 -> -2.2361414e-06 | F121: 2.6160563e-06 | G121: 9.741580915e-06 | H121: -2.239576113e-06 | J121: 7.936916427e-07 | K121: 2.385757308e-05 | L121: -2.491765748e-05 | M121: -0.0005265519773 | N121: 1.478513809e-08
A122: 57.9494 | B122: ='DF raw data'!G127 -> 5.1608122e-06 | C122: ='DF raw data'!H127 -> 1.1700644e-05 | D122: ='DF raw data'!I127 -> -2.3409007e-06 | F122: 5.168739208e-06 | G122: 1.17441333e-05 | H122: -2.344496323e-06 | J122: 3.378836557e-06 | K122: 2.554749818e-05 | L122: -1.904382921e-05 | M122: -0.0005360767485 | N122: 1.497223619e-08
A123: 58.44955 | B123: ='DF raw data'!G128 -> 4.4678791e-06 | C123: ='DF raw data'!H128 -> 2.4550743e-06 | D123: ='DF raw data'!I128 -> -1.1491861e-06 | F123: 4.474741762e-06 | G123: 2.464199392e-06 | H123: -1.15095125e-06 | J123: 5.61687865e-06 | K123: 2.835678004e-05 | L123: -1.781135988e-05 | M123: -0.0005449851002 | N123: 1.514668544e-08
A124: 58.9497 | B124: ='DF raw data'!G129 -> 6.2156514e-06 | C124: ='DF raw data'!H129 -> 6.6015905e-06 | D124: ='DF raw data'!I129 -> -3.0427686e-06 | F124: 6.225198641e-06 | G124: 6.626127486e-06 | H124: -3.047442293e-06 | J124: 8.73041175e-06 | K124: 3.272329548e-05 | L124: -1.449730222e-05 | M124: -0.0005522359259 | N124: 1.528992433e-08
A125: 59.44985 | B125: ='DF raw data'!G130 -> 8.9196737e-06 | C125: ='DF raw data'!H130 -> 1.0711281e-05 | D125: ='DF raw data'!I130 -> -6.3318798e-06 | F125: 8.933374319e-06 | G125: 1.0751093e-05 | H125: -6.341605567e-06 | J125: 1.319843892e-05 | K125: 3.93244947e-05 | L125: -9.120143055e-06 | M125: -0.0005567973654 | N125: 1.541865083e-08
A126: 59.95 | B126: ='DF raw data'!G131 -> 5.1797588e-06 | C126: ='DF raw data'!H131 -> 7.1410373e-06 | D126: ='DF raw data'!I131 -> 4.5404201e-07 | F126: 5.18771491e-06 | G126: 7.167579318e-06 | H126: 4.547394185e-07 | J126: 1.579307453e-05 | K126: 4.722340092e-05 | L126: -5.535278259e-06 | M126: -0.0005595658348 | N126: 1.55587231e-08
A127: 60.45015 | B127: ='DF raw data'!G132 -> 1.3853178e-06 | C127: ='DF raw data'!H132 -> 1.5132147e-07 | D127: ='DF raw data'!I132 -> 1.3567529e-05 | F127: 1.387445648e-06 | G127: 1.518839061e-07 | H127: 1.358836872e-05 | J127: 1.648700547e-05 | K127: 5.546937671e-05 | L127: -5.459313524e-06 | M127: -0.0005622963105 | N127: 1.570958107e-08
A128: 60.9503 | B128: ='DF raw data'!G133 -> 1.7434986e-06 | C128: ='DF raw data'!H133 -> 2.9117962e-06 | D128: ='DF raw data'!I133 -> 1.1489909e-05 | F128: 1.746176614e-06 | G128: 2.92261885e-06 | H128: 1.15075575e-05 | J128: 1.73603557e-05 | K128: 6.415215861e-05 | L128: -3.997565706e-06 | M128: -0.000564295693 | N128: 1.586830991e-08
A129: 61.45045 | B129: ='DF raw data'!G134 -> 5.4828024e-06 | C129: ='DF raw data'!H134 -> -7.1973136e-06 | D129: ='DF raw data'!I134 -> 1.3714239e-06 | F129: 5.491223984e-06 | G129: -7.224064787e-06 | H129: 1.373530407e-06 | J129: 2.010679138e-05 | K129: 7.420857032e-05 | L129: -7.610681709e-06 | M129: -0.0005681021754 | N129: 1.609948201e-08
A130: 61.9506 | B130: ='DF raw data'!G135 -> 8.449545e-06 | C130: ='DF raw data'!H135 -> -3.6564236e-06 | D130: ='DF raw data'!I135 -> 2.3200196e-06 | F130: 8.462523501e-06 | G130: -3.670013903e-06 | H130: 2.32358315e-06 | J130: 2.433932251e-05 | K130: 8.638188247e-05 | L130: -9.446239163e-06 | M130: -0.000572826712 | N130: 1.644040128e-08
A131: 62.45075 | B131: ='DF raw data'!G136 -> 8.9159339e-06 | C131: ='DF raw data'!H136 -> -3.9782499e-06 | D131: ='DF raw data'!I136 -> 1.0955213e-05 | F131: 8.929628774e-06 | G131: -3.993036376e-06 | H131: 1.097204021e-05 | J131: 2.880547634e-05 | K131: 0.0001007889415 | L131: -1.144335631e-05 | M131: -0.0005785501066 | N131: 1.692089832e-08
A132: 62.9509 | B132: ='DF raw data'!G137 -> 4.4542003e-06 | C132: ='DF raw data'!H137 -> -9.2770433e-06 | D132: ='DF raw data'!I137 -> 6.7259612e-06 | F132: 4.461041952e-06 | G132: -9.311524488e-06 | H132: 6.736292276e-06 | J132: 3.103666647e-05 | K132: 0.0001163119302 | L132: -1.610051528e-05 | M132: -0.0005866027793 | N132: 1.753233233e-08
A133: 63.45105 | B133: ='DF raw data'!G138 -> -2.7160959e-06 | C133: ='DF raw data'!H138 -> 4.8727748e-06 | D133: ='DF raw data'!I138 -> -5.383677e-06 | F133: -2.720267823e-06 | G133: 4.890886073e-06 | H133: -5.391946328e-06 | J133: 2.967612452e-05 | K133: 0.0001311544439 | L133: -1.365433861e-05 | M133: -0.0005934319968 | N133: 1.806604906e-08
A134: 63.9512 | B134: ='DF raw data'!G139 -> -4.9674227e-06 | C134: ='DF raw data'!H139 -> 3.6576537e-06 | D134: ='DF raw data'!I139 -> -7.4512568e-06 | F134: -4.975052661e-06 | G134: 3.671248575e-06 | H134: -7.46270193e-06 | J134: 2.718785193e-05 | K134: 0.000144752448 | L134: -1.181816363e-05 | M134: -0.0005993428513 | N134: 1.850560503e-08
A135: 64.45135 | B135: ='DF raw data'!G140 -> -2.7379965e-06 | C135: ='DF raw data'!H140 -> -5.2818336e-06 | D135: ='DF raw data'!I140 -> -7.0399469e-06 | F135: -2.742202063e-06 | G135: =(1-$G$1*($B$2-$G$2))*C135*$M$2/$M$1 -> -5.301465275e-06 | H135: -7.050760258e-06 | J135: 2.581633957e-05 | K135: 0.0001576644903 | L135: -1.446969149e-05 | M135: -0.0006065798675 | N135: 1.894366409e-08
A136: =A135+$B$1 -> 64.9515 | B136: ='DF raw data'!G141 -> -1.6598597e-06 | C136: ='DF raw data'!H141 -> -1.1039613e-06 | D136: ='DF raw data'!I141 -> -4.3399118e-06 | F136: -1.662409244e-06 | G136: -1.108064536e-06 | H136: -4.346577905e-06 | J136: =F136*$B$1+J135 -> 2.498488558e-05 | K136: =J136*$B$1+K135 -> 0.0001701606808 | L136: =G136*$B$1+L135 -> -1.502388997e-05 | M136: =L136*$B$1+M135 -> -0.0006140940661 | N136: =(J136^2+L136^2)*$B$1+N135 -> 1.936877247e-08
A137: 65.45165 | B137: ='DF raw data'!G142 -> -2.3531857e-06 | C137: ='DF raw data'!H142 -> 8.1205253e-06 | D137: ='DF raw data'!I142 -> 3.5086055e-06 | F137: -2.356800193e-06 | G137: 8.150707907e-06 | H137: 3.513994718e-06 | J137: 2.380613197e-05 | K137: 0.0001820673177 | L137: -1.094731341e-05 | M137: -0.0006195693649 | N137: 1.971216325e-08
A138: 65.9518 | B138: ='DF raw data'!G143 -> -4.5083243e-06 | C138: ='DF raw data'!H143 -> 1.0812686e-05 | D138: ='DF raw data'!I143 -> 6.2600234e-06 | F138: -4.515249086e-06 | G138: 1.085287491e-05 | H138: 6.269638796e-06 | J138: 2.154783014e-05 | K138: 0.0001928444649 | L138: -5.519248024e-06 | M138: -0.0006223298168 | N138: 1.995962301e-08
A139: 66.45195 | B139: ='DF raw data'!G144 -> -2.9891771e-06 | C139: ='DF raw data'!H144 -> -1.6023139e-07 | D139: ='DF raw data'!I144 -> 4.5701386e-06 | F139: -2.993768476e-06 | G139: -1.608269427e-07 | H139: 4.577158333e-06 | J139: 2.005049683e-05 | K139: 0.0002028727209 | L139: -5.599685619e-06 | M139: -0.0006251304996 | N139: 2.017637747e-08
A140: 66.9521 | B140: ='DF raw data'!G145 -> 2.5108502e-06 | C140: ='DF raw data'!H145 -> -3.8292117e-07 | D140: ='DF raw data'!I145 -> 2.5780541e-06 | F140: 2.514706866e-06 | G140: -3.843444227e-07 | H140: 2.582013991e-06 | J140: 2.130822747e-05 | K140: 0.0002135300309 | L140: -5.791915482e-06 | M140: -0.0006280273261 | N140: 2.042024403e-08
A141: 67.45225 | B141: ='DF raw data'!G146 -> 2.89326e-06 | C141: ='DF raw data'!H146 -> -5.6310123e-06 | D141: ='DF raw data'!I146 -> 1.0459121e-06 | F141: 2.897704047e-06 | G141: -5.651941812e-06 | H141: 1.047518621e-06 | J141: 2.275751415e-05 | K141: 0.0002249122016 | L141: -8.618734179e-06 | M141: -0.000632337986 | N141: 2.071642637e-08
A142: 67.9524 | B142: ='DF raw data'!G147 -> 1.4853185e-06 | C142: ='DF raw data'!H147 -> -7.3494207e-06 | D142: ='DF raw data'!I147 -> 2.5695267e-06 | F142: 1.487599949e-06 | G142: -7.376737243e-06 | H142: 2.573473493e-06 | J142: 2.350153727e-05 | K142: 0.0002366664955 | L142: -1.230820931e-05 | M142: -0.0006384939369 | N142: 2.106843908e-08
A143: 68.45255 | B143: ='DF raw data'!G148 -> 3.9861525e-06 | C143: ='DF raw data'!H148 -> -3.5947803e-06 | D143: ='DF raw data'!I148 -> 4.5458043e-07 | F143: 3.99227523e-06 | G143: -3.608141485e-06 | H143: 4.552786655e-07 | J143: 2.549827372e-05 | K143: 0.0002494194571 | L143: -1.411282128e-05 | M143: -0.0006455524644 | N143: 2.149323332e-08
A144: 68.9527 | B144: ='DF raw data'!G149 -> 5.8909109e-06 | C144: ='DF raw data'!H149 -> -6.3652619e-06 | D144: ='DF raw data'!I149 -> -4.2847455e-06 | F144: 5.899959339e-06 | G144: -6.388920493e-06 | H144: -4.291326869e-06 | J144: 2.844913839e-05 | K144: 0.0002636482936 | L144: -1.730823986e-05 | M144: -0.0006542091806 | N144: 2.204786398e-08
A145: 69.45285 | B145: ='DF raw data'!G150 -> 6.3988746e-06 | C145: ='DF raw data'!H150 -> -4.5014181e-06 | D145: ='DF raw data'!I150 -> -1.6369518e-06 | F145: 6.408703271e-06 | G145: -4.518149103e-06 | H145: -1.639466158e-06 | J145: 3.165445133e-05 | K145: 0.0002794802675 | L145: -1.956799213e-05 | M145: -0.0006639961119 | N145: 2.274052702e-08
A146: 69.953 | B146: ='DF raw data'!G151 -> 7.4113968e-06 | C146: ='DF raw data'!H151 -> -2.6377072e-06 | D146: ='DF raw data'!I151 -> 1.8876822e-06 | F146: 7.422780705e-06 | G146: -2.647511108e-06 | H146: 1.89058168e-06 | J146: 3.53669551e-05 | K146: 0.00029716905 | L146: -2.089214481e-05 | M146: -0.0006744453181 | N146: 2.358443173e-08
A147: 70.45315 | B147: ='DF raw data'!G152 -> 4.949271e-06 | C147: ='DF raw data'!H152 -> -6.9512739e-06 | D147: ='DF raw data'!I152 -> 2.8547151e-06 | F147: 4.95687308e-06 | G147: -6.977110599e-06 | H147: 2.859099942e-06 | J147: 3.784613517e-05 | K147: 0.0003160977946 | L147: -2.438174668e-05 | M147: -0.0006866398487 | N147: 2.459813551e-08
A148: 70.9533 | B148: ='DF raw data'!G153 -> 8.0647163e-07 | C148: ='DF raw data'!H153 -> -6.9926364e-06 | D148: ='DF raw data'!I153 -> 1.0877634e-06 | F148: 8.077103704e-07 | G148: -7.018626837e-06 | H148: 1.089434205e-06 | J148: 3.825011151e-05 | K148: 0.0003352285878 | L148: -2.789211289e-05 | M148: -0.000700590089 | N148: 2.571899216e-08
A149: 71.45345 | B149: ='DF raw data'!G154 -> -2.1606233e-07 | C149: ='DF raw data'!H154 -> 5.1249513e-06 | D149: ='DF raw data'!I154 -> -2.1795636e-06 | F149: -2.163942017e-07 | G149: 5.14399987e-06 | H149: -2.18291141e-06 | J149: 3.814188195e-05 | K149: 0.0003543052501 | L149: -2.531934136e-05 | M149: -0.0007132535575 | N149: 2.676724264e-08
A150: 71.9536 | B150: ='DF raw data'!G155 -> -1.1103066e-06 | C150: ='DF raw data'!H155 -> -7.5350181e-06 | D150: ='DF raw data'!I155 -> -5.8417713e-06 | F150: -1.112012031e-06 | G150: -7.563024477e-06 | H150: -5.850744261e-06 | J150: 3.758570913e-05 | K150: 0.0003731037425 | L150: -2.910198805e-05 | M150: -0.0007278089169 | N150: 2.789738721e-08
A151: 72.45375 | B151: ='DF raw data'!G156 -> -2.3762796e-06 | C151: ='DF raw data'!H156 -> -7.2017169e-06 | D151: ='DF raw data'!I156 -> -2.897948e-06 | F151: =(1-$G$1*($B$2-$G$2))*B151 -> -2.379929565e-06 | G151: -7.228484453e-06 | H151: -2.902399248e-06 | J151: 3.639538736e-05 | K151: 0.0003913068955 | L151: -3.271731455e-05 | M151: -0.0007441724817 | N151: 2.909526991e-08
A152: 72.9539 | B152: ='DF raw data'!G157 -> -1.1901384e-06 | C152: ='DF raw data'!H157 -> 5.5062878e-06 | D152: ='DF raw data'!I157 -> 1.9397344e-06 | F152: -1.191966453e-06 | G152: 5.526753733e-06 | H152: 1.942713832e-06 | J152: 3.579922534e-05 | K152: 0.000409211878 | L152: -2.995310867e-05 | M152: -0.000759153529 | N152: 3.018498335e-08
A153: 73.45405 | B153: ='DF raw data'!G158 -> -9.8214787e-07 | C153: ='DF raw data'!H158 -> -1.3261445e-05 | D153: ='DF raw data'!I158 -> 4.9078562e-07 | F153: -9.836564491e-07 | G153: -1.331073553e-05 | H153: 4.915394667e-07 | J153: 3.530724957e-05 | K153: 0.0004268707989 | L153: -3.661047305e-05 | M153: -0.0007774642571 | N153: 3.14788357e-08
A154: 73.9542 | B154: ='DF raw data'!G159 -> -3.1096524e-06 | C154: ='DF raw data'!H159 -> -6.9856983e-06 | D154: ='DF raw data'!I159 -> -1.3653403e-06 | F154: -3.114428826e-06 | G154: -7.011662949e-06 | H154: -1.367437463e-06 | J154: 3.374956799e-05 | K154: 0.0004437506453 | L154: -4.011735627e-05 | M154: -0.0007975289529 | N154: 3.285346577e-08
A155: 74.45435 | B155: ='DF raw data'!G160 -> -1.856296e-06 | C155: ='DF raw data'!H160 -> -5.2464752e-06 | D155: ='DF raw data'!I160 -> 4.1390783e-07 | F155: -1.859147271e-06 | G155: -5.265975453e-06 | H155: 4.145435924e-07 | J155: 3.281971548e-05 | K155: 0.000460165426 | L155: -4.275113389e-05 | M155: -0.0008189109325 | N155: 3.430629807e-08
A156: 74.9545 | B156: ='DF raw data'!G161 -> -5.9132714e-07 | C156: ='DF raw data'!H161 -> -9.1450838e-06 | D156: ='DF raw data'!I161 -> -3.6574706e-06 | F156: -5.922354185e-07 | G156: -9.179074517e-06 | H156: -3.663088475e-06 | J156: 3.252350894e-05 | K156: 0.000476432059 | L156: -4.734204801e-05 | M156: -0.0008425890578 | N156: 3.5956317e-08
A157: 75.45465 | B157: ='DF raw data'!G162 -> -2.1653495e-06 | C157: ='DF raw data'!H162 -> 6.1097734e-07 | D157: ='DF raw data'!I162 -> -6.5936979e-06 | F157: -2.168675477e-06 | G157: 6.132482386e-07 | H157: -6.60382582e-06 | J157: 3.14388459e-05 | K157: 0.0004921561978 | L157: -4.70353319e-05 | M157: -0.000866113779 | N157: 3.755715885e-08
A158: 75.9548 | B158: ='DF raw data'!G163 -> -2.8983295e-06 | C158: ='DF raw data'!H163 -> -3.4177222e-06 | D158: ='DF raw data'!I163 -> -2.9826838e-06 | F158: -2.902781334e-06 | G158: -3.43042529e-06 | H158: -2.987265202e-06 | J158: 2.998701981e-05 | K158: 0.0005071542058 | L158: -4.875105911e-05 | M158: -0.0008904966213 | N158: 3.919559379e-08
A159: 76.45495 | B159: ='DF raw data'!G164 -> -3.9377437e-06 | C159: ='DF raw data'!H164 -> 1.0296857e-05 | D159: ='DF raw data'!I164 -> 1.5043265e-06 | F159: -3.943792074e-06 | G159: 1.033512866e-05 | H159: 1.506637146e-06 | J159: 2.801453221e-05 | K159: 0.0005211656741 | L159: -4.358194451e-05 | M159: -0.0009122941308 | N159: 4.053809638e-08
A160: 76.9551 | B160: ='DF raw data'!G165 -> -5.6362578e-06 | C160: ='DF raw data'!H165 -> 1.2738574e-05 | D160: ='DF raw data'!I165 -> 2.1658857e-06 | F160: -5.644915092e-06 | G160: 1.278592111e-05 | H160: 2.1692125e-06 | J160: 2.519122792e-05 | K160: 0.0005337650667 | L160: -3.718706607e-05 | M160: -0.0009308932419 | N160: 4.154713692e-08
A161: 77.45525 | B161: ='DF raw data'!G166 -> -5.7898387e-06 | C161: ='DF raw data'!H166 -> -4.333572e-07 | D161: ='DF raw data'!I166 -> -2.7987185e-06 | F161: -5.798731892e-06 | G161: -4.349679148e-07 | H161: -2.803017332e-06 | J161: 2.229099217e-05 | K161: 0.0005449139064 | L161: -3.740461528e-05 | M161: -0.0009496011602 | N161: 4.249541811e-08
A162: 77.9554 | B162: ='DF raw data'!G167 -> -3.4048817e-06 | C162: ='DF raw data'!H167 -> 1.2737107e-06 | D162: ='DF raw data'!I167 -> -5.862013e-06 | F162: -3.410111598e-06 | G162: 1.278444865e-06 | H162: -5.871017052e-06 | J162: 2.058542485e-05 | K162: 0.0005552097067 | L162: -3.676520108e-05 | M162: -0.0009679892756 | N162: 4.338340429e-08
A163: 78.45555 | B163: ='DF raw data'!G168 -> 1.4704901e-06 | C163: ='DF raw data'!H168 -> 6.6381504e-06 | D163: ='DF raw data'!I168 -> -9.0816247e-06 | F163: 1.472748773e-06 | G163: 6.662823273e-06 | H163: -9.095574076e-06 | J163: 2.132202015e-05 | K163: 0.0005658739151 | L163: -3.343279002e-05 | M163: -0.0009847106855 | N163: 4.416983014e-08
A164: 78.9557 | B164: ='DF raw data'!G169 -> 4.2375223e-06 | C164: ='DF raw data'!H169 -> 5.3805993e-06 | D164: ='DF raw data'!I169 -> -1.1547854e-05 | F164: 4.244031134e-06 | G164: 5.40059807e-06 | H164: -1.15655915e-05 | J164: 2.344467232e-05 | K164: 0.0005775997679 | L164: -3.073168089e-05 | M164: -0.001000081136 | N164: 4.491709869e-08
A165: 79.45585 | B165: ='DF raw data'!G170 -> 4.4328381e-06 | C165: ='DF raw data'!H170 -> 1.4594545e-05 | D165: ='DF raw data'!I170 -> -7.714807e-06 | F165: 4.439646939e-06 | G165: 1.464879043e-05 | H165: -7.726656944e-06 | J165: 2.566516174e-05 | K165: 0.0005904361986 | L165: -2.340508836e-05 | M165: -0.001011787191 | N165: 4.552052901e-08
A166: 79.956 | B166: ='DF raw data'!G171 -> 5.8207561e-06 | C166: ='DF raw data'!H171 -> 1.5888923e-05 | D166: ='DF raw data'!I171 -> -4.1737289e-06 | F166: 5.829696781e-06 | G166: 1.594797942e-05 | H166: -4.180139748e-06 | J166: 2.858088459e-05 | K166: 0.000604730928 | L166: -1.542870645e-05 | M166: -0.001019503858 | N166: 4.604814322e-08
A167: 80.45615 | B167: ='DF raw data'!G172 -> 3.4769228e-06 | C167: ='DF raw data'!H172 -> 7.8770208e-06 | D167: ='DF raw data'!I172 -> 8.7686249e-07 | F167: 3.482263353e-06 | G167: 7.906298343e-06 | H167: 8.782093508e-07 | J167: 3.03225386e-05 | K167: 0.0006198967457 | L167: -1.147437133e-05 | M167: -0.001025242765 | N167: 4.657385966e-08
A168: 80.9563 | B168: ='DF raw data'!G173 -> -1.7175289e-06 | C168: ='DF raw data'!H173 -> 1.0481654e-05 | D168: ='DF raw data'!I173 -> 1.9734624e-07 | F168: -1.720167024e-06 | G168: 1.052061252e-05 | H168: 1.976493638e-07 | J168: 2.946219706e-05 | K168: 0.0006346322635 | L168: -6.212486982e-06 | M168: -0.00102834994 | N168: 4.702730367e-08
A169: 81.45645 | B169: ='DF raw data'!G174 -> -3.3594361e-06 | C169: ='DF raw data'!H174 -> 1.3831075e-05 | D169: ='DF raw data'!I174 -> -2.2136442e-06 | F169: -3.364596194e-06 | G169: 1.388248275e-05 | H169: -2.217044357e-06 | J169: 2.777939428e-05 | K169: 0.0006485261276 | L169: 7.308367632e-07 | M169: -0.001027984412 | N169: 4.741353394e-08
A170: 81.9566 | B170: ='DF raw data'!G175 -> -4.7311287e-06 | C170: ='DF raw data'!H175 -> 9.5519335e-06 | D170: ='DF raw data'!I175 -> -1.5528999e-06 | F170: -4.738395714e-06 | G170: 9.587436407e-06 | H170: -1.555285154e-06 | J170: 2.540948566e-05 | K170: 0.0006612346818 | L170: 5.525993082e-06 | M170: -0.001025220587 | N170: 4.775172465e-08
A171: 82.45675 | B171: ='DF raw data'!G176 -> -2.8717577e-06 | C171: ='DF raw data'!H176 -> 1.2340961e-05 | D171: ='DF raw data'!I176 -> -7.0785563e-07 | F171: -2.87616872e-06 | G171: 1.238683025e-05 | H171: -7.089428962e-07 | J171: 2.397096988e-05 | K171: 0.0006732237624 | L171: 1.172126623e-05 | M171: -0.001019358196 | N171: 4.810782919e-08
A172: 82.9569 | B172: ='DF raw data'!G177 -> 1.1721322e-06 | C172: ='DF raw data'!H177 -> 6.5155305e-06 | D172: ='DF raw data'!I177 -> 3.6751958e-06 | F172: 1.173932595e-06 | G172: 6.539747615e-06 | H172: 3.680840901e-06 | J172: 2.455811226e-05 | K172: 0.0006855065023 | L172: 1.4992121e-05 | M172: -0.001011859886 | N172: 4.852188565e-08
A173: 83.45705 | B173: ='DF raw data'!G178 -> -1.6627846e-06 | C173: ='DF raw data'!H178 -> -9.0004487e-06 | D173: ='DF raw data'!I178 -> 3.0669548e-06 | F173: -1.665338637e-06 | G173: -9.033901833e-06 | H173: 3.071665643e-06 | J173: 2.372519314e-05 | K173: 0.0006973726576 | L173: 1.0473815e-05 | M173: -0.001006621408 | N173: 4.885827934e-08
A174: 83.9572 | B174: ='DF raw data'!G179 -> -7.7082905e-06 | C174: ='DF raw data'!H179 -> 6.4146584e-06 | D174: ='DF raw data'!I179 -> -3.0046426e-06 | F174: -7.720130434e-06 | G174: 6.438500591e-06 | H174: -3.009257731e-06 | J174: 1.986396991e-05 | K174: 0.0007073076222 | L174: 1.369403107e-05 | M174: -0.0009997723381 | N174: 4.914941855e-08
A175: 84.45735 | B175: ='DF raw data'!G180 -> -9.5790847e-06 | C175: ='DF raw data'!H180 -> 1.7945302e-05 | D175: ='DF raw data'!I180 -> -8.9907189e-06 | F175: -9.593798174e-06 | G175: 1.801200163e-05 | H175: -9.004528644e-06 | J175: 1.506563175e-05 | K175: 0.0007148426979 | L175: 2.270273368e-05 | M175: -0.0009884175658 | N175: 4.952072359e-08
A176: 84.9575 | B176: ='DF raw data'!G181 -> -8.0134005e-06 | C176: ='DF raw data'!H181 -> 8.6951968e-06 | D176: ='DF raw data'!I181 -> -9.2377668e-06 | F176: -8.025709083e-06 | G176: 8.727515363e-06 | H176: -9.25195601e-06 | J176: 1.105157335e-05 | K176: 0.0007203701423 | L176: 2.706780049e-05 | M176: -0.0009748796054 | N176: 4.994825336e-08
A177: 85.45765 | B177: ='DF raw data'!G182 -> -5.8750838e-06 | C177: ='DF raw data'!H182 -> -1.6145871e-06 | D177: ='DF raw data'!I182 -> -4.8529105e-06 | F177: -5.884107929e-06 | G177: -1.620588245e-06 | H177: -4.860364571e-06 | J177: 8.108636773e-06 | K177: 0.000724425677 | L177: 2.625726328e-05 | M177: -0.0009617470352 | N177: 5.032596357e-08
A178: 85.9578 | B178: ='DF raw data'!G183 -> -2.7851156e-06 | C178: ='DF raw data'!H183 -> -8.7155813e-06 | D178: ='DF raw data'!I183 -> -1.6780173e-06 | F178: -2.789393538e-06 | G178: -8.747975629e-06 | H178: -1.680594735e-06 | J178: 6.713521595e-06 | K178: 0.0007277834448 | L178: 2.188196327e-05 | M178: -0.0009508027712 | N178: 5.0587988e-08
A179: 86.45795 | B179: ='DF raw data'!G184 -> -1.1609036e-06 | C179: ='DF raw data'!H184 -> 7.4197665e-06 | D179: ='DF raw data'!I184 -> -1.9560171e-06 | F179: -1.162686748e-06 | G179: 7.447344506e-06 | H179: -1.959021542e-06 | J179: 6.132003818e-06 | K179: 0.0007308503665 | L179: 2.560675263e-05 | M179: -0.0009379955539 | N179: 5.093474562e-08
A180: 86.9581 | B180: ='DF raw data'!G185 -> 1.5666783e-06 | C180: ='DF raw data'!H185 -> 1.444284e-05 | D180: ='DF raw data'!I185 -> -4.4607073e-06 | F180: 1.569084718e-06 | G180: 1.449652157e-05 | H180: -4.467558946e-06 | J180: 6.916781539e-06 | K180: 0.0007343097948 | L180: 3.285718789e-05 | M180: -0.0009215620314 | N180: 5.149863307e-08
A181: 87.45825 | B181: ='DF raw data'!G186 -> 3.5723688e-06 | C181: ='DF raw data'!H186 -> 3.3946687e-06 | D181: ='DF raw data'!I186 -> -6.938651e-06 | F181: 3.577855958e-06 | G181: 3.407286105e-06 | H181: -6.949308768e-06 | J181: 8.706246197e-06 | K181: 0.0007386642238 | L181: 3.456134203e-05 | M181: -0.0009042761762 | N181: 5.213396616e-08
A182: 87.9584 | B182: ='DF raw data'!G187 -> 2.7446122e-06 | C182: ='DF raw data'!H187 -> 6.8257482e-06 | D182: ='DF raw data'!I187 -> -5.7134525e-06 | F182: 2.748827924e-06 | G182: 6.851118342e-06 | H182: -5.722228363e-06 | J182: 1.008107248e-05 | K182: 0.0007437062722 | L182: 3.798792887e-05 | M182: -0.0008852765135 | N182: 5.290655324e-08
A183: 88.45855 | B183: ='DF raw data'!G188 -> -3.0132605e-06 | C183: ='DF raw data'!H188 -> 5.4409079e-06 | D183: ='DF raw data'!I188 -> -1.6178048e-07 | F183: -3.017888868e-06 | G183: 5.461130827e-06 | H183: -1.620289748e-07 | J183: 8.571675366e-06 | K183: 0.0007479933957 | L183: 4.071931346e-05 | M183: -0.0008649107489 | N183: 5.377258103e-08
A184: 88.9587 | B184: ='DF raw data'!G189 -> -7.7108225e-06 | C184: ='DF raw data'!H189 -> 3.3176809e-06 | D184: ='DF raw data'!I189 -> 2.799869e-06 | F184: -7.722666323e-06 | G184: 3.330012154e-06 | H184: 2.804169599e-06 | J184: 4.709183804e-06 | K184: 0.000750348694 | L184: 4.238481904e-05 | M184: -0.0008437119817 | N184: 5.468217847e-08
A185: 89.45885 | B185: ='DF raw data'!G190 -> -5.446821e-06 | C185: ='DF raw data'!H190 -> 1.4873274e-06 | D185: ='DF raw data'!I190 -> -2.3731947e-07 | F185: -5.455187317e-06 | G185: 1.492855542e-06 | H185: -2.376839927e-07 | J185: 1.980771868e-06 | K185: 0.000751339377 | L185: 4.313147073e-05 | M185: -0.0008221397766 | N185: 5.561458172e-08
A186: 89.959 | B186: ='DF raw data'!G191 -> -3.2972848e-06 | C186: ='DF raw data'!H191 -> 2.0131636e-06 | D186: ='DF raw data'!I191 -> -4.728186e-06 | F186: -3.302349429e-06 | G186: 2.020646186e-06 | H186: -4.735448494e-06 | J186: 3.291018007e-07 | K186: 0.0007515039773 | L186: 4.414209692e-05 | M186: -0.0008000621068 | N186: 5.658919053e-08
A187: 90.45915 | B187: ='DF raw data'!G192 -> -1.4960488e-06 | C187: ='DF raw data'!H192 -> 8.1281305e-06 | D187: ='DF raw data'!I192 -> -8.3420819e-06 | F187: -1.498346731e-06 | G187: 8.158341375e-06 | H187: -8.354895338e-06 | J187: -4.202963168e-07 | K187: 0.0007512937661 | L187: 4.822249136e-05 | M187: -0.0007759436277 | N187: 5.775233203e-08
A188: 90.9593 | B188: ='DF raw data'!G193 -> 3.2627301e-07 | C188: ='DF raw data'!H193 -> -1.056995e-06 | D188: ='DF raw data'!I193 -> -6.2217946e-06 | F188: 3.267741653e-07 | G188: -1.06092367e-06 | H188: -6.231351277e-06 | J188: -2.56860218e-07 | K188: 0.0007511652974 | L188: 4.769187039e-05 | M188: -0.0007520905388 | N188: 5.888996346e-08
A189: 91.45945 | B189: ='DF raw data'!G194 -> -4.4729486e-06 | C189: ='DF raw data'!H194 -> 4.213111e-06 | D189: ='DF raw data'!I194 -> -3.2352468e-06 | F189: -4.479819049e-06 | G189: 4.228770415e-06 | H189: -3.240216139e-06 | J189: -2.497441715e-06 | K189: 0.000749916202 | L189: 4.980688991e-05 | M189: -0.0007271796228 | N189: 6.013381825e-08
A190: 91.9596 | B190: ='DF raw data'!G195 -> -8.9290652e-06 | C190: ='DF raw data'!H195 -> 3.373854e-06 | D190: ='DF raw data'!I195 -> -2.8699355e-06 | F190: -8.942780244e-06 | G190: 3.38639404e-06 | H190: -2.874343721e-06 | J190: -6.970173255e-06 | K190: 0.0007464300698 | L190: 5.150059489e-05 | M190: -0.0007014216002 | N190: 6.148467068e-08
A191: 92.45975 | B191: ='DF raw data'!G196 -> -6.3347934e-06 | C191: ='DF raw data'!H196 -> -2.7448489e-06 | D191: ='DF raw data'!I196 -> -4.5816337e-06 | F191: -6.344523643e-06 | G191: -2.755051035e-06 | H191: -4.588671089e-06 | J191: -1.014338675e-05 | K191: 0.0007413568549 | L191: 5.012265612e-05 | M191: -0.0006763527538 | N191: 6.279264743e-08
A192: 92.9599 | B192: ='DF raw data'!G197 -> -2.5149156e-06 | C192: ='DF raw data'!H197 -> 1.3251067e-05 | D192: ='DF raw data'!I197 -> -5.252637e-06 | F192: -2.51877851e-06 | G192: 1.330031896e-05 | H192: -5.26070505e-06 | J192: -1.140315383e-05 | K192: 0.0007356535675 | L192: 5.677481064e-05 | M192: -0.0006479568323 | N192: 6.446985596e-08
A193: 93.46005 | B193: ='DF raw data'!G198 -> 6.2344917e-08 | C193: ='DF raw data'!H198 -> 3.777469e-08 | D193: ='DF raw data'!I198 -> -5.1982565e-06 | F193: 6.244067879e-08 | G193: 3.791509208e-08 | H193: -5.206241022e-06 | J193: -1.137192412e-05 | K193: 0.0007299658997 | L193: 5.679377388e-05 | M193: -0.0006195514262 | N193: 6.61477859e-08
A194: 93.9602 | B194: ='DF raw data'!G199 -> 1.5075393e-06 | C194: ='DF raw data'!H199 -> -9.3105336e-06 | D194: ='DF raw data'!I199 -> -1.3338645e-06 | F194: 1.50985488e-06 | G194: -9.345139265e-06 | H194: -1.335913316e-06 | J194: -1.06167702e-05 | K194: 0.0007246559221 | L194: 5.211980247e-05 | M194: -0.000593483707 | N194: 6.756280508e-08
A195: 94.46035 | B195: ='DF raw data'!G200 -> 3.1737482e-06 | C195: ='DF raw data'!H200 -> 6.7126016e-06 | D195: ='DF raw data'!I200 -> 2.1145029e-06 | F195: 3.178623077e-06 | G195: 6.737551195e-06 | H195: 2.117750776e-06 | J195: -9.02698187e-06 | K195: 0.0007201410771 | L195: 5.54895887e-05 | M195: -0.0005657305893 | N195: 6.91435696e-08
A196: 94.9605 | B196: ='DF raw data'!G201 -> 4.7640542e-06 | C196: ='DF raw data'!H201 -> 1.2011129e-05 | D196: ='DF raw data'!I201 -> 1.9519725e-06 | F196: 4.771371787e-06 | G196: 1.205577232e-05 | H196: 1.95497073e-06 | J196: -6.640580271e-06 | K196: 0.0007168197909 | L196: 6.151928323e-05 | M196: -0.0005349617197 | N196: 7.105850366e-08
A197: 95.46065 | B197: ='DF raw data'!G202 -> 3.0901765e-06 | C197: ='DF raw data'!H202 -> 4.8056613e-06 | D197: ='DF raw data'!I202 -> -4.1948036e-07 | F197: 3.094923011e-06 | G197: 4.823523123e-06 | H197: -4.201246818e-07 | J197: -5.092654527e-06 | K197: 0.0007142726997 | L197: 6.393176832e-05 | M197: -0.0005029862458 | N197: 7.311572371e-08
A198: 95.9608 | B198: ='DF raw data'!G203 -> -2.4705323e-06 | C198: ='DF raw data'!H203 -> -2.4966741e-06 | D198: ='DF raw data'!I203 -> -2.2843228e-06 | F198: -2.474327038e-06 | G198: -2.505953812e-06 | H198: -2.28783152e-06 | J198: -6.330189195e-06 | K198: 0.0007111066556 | L198: 6.267841552e-05 | M198: -0.0004716376363 | N198: 7.510064654e-08
A199: 96.46095 | B199: ='DF raw data'!G204 -> -5.9730764e-06 | C199: ='DF raw data'!H204 -> 4.7317421e-06 | D199: ='DF raw data'!I204 -> -3.4600012e-06 | F199: -5.982251045e-06 | G199: =(1-$G$1*($B$2-$G$2))*C199*$M$2/$M$1 -> 4.749329178e-06 | H199: -3.465315762e-06 | J199: -9.322212055e-06 | K199: 0.0007064441512 | L199: 6.505379251e-05 | M199: -0.000439100982 | N199: 7.726074416e-08
A200: =A199+$B$1 -> 96.9611 | B200: ='DF raw data'!G205 -> -4.9220353e-06 | C200: ='DF raw data'!H205 -> 8.8976067e-06 | D200: ='DF raw data'!I205 -> -3.2514286e-06 | F200: -4.929595546e-06 | G200: 8.930677586e-06 | H200: -3.256422794e-06 | J200: =F200*$B$1+J199 -> -1.178774927e-05 | K200: =J200*$B$1+K199 -> 0.0007005485084 | L200: =G200*$B$1+L199 -> 6.95204709e-05 | M200: =L200*$B$1+M199 -> -0.0004043303185 | N200: =(J200^2+L200^2)*$B$1+N199 -> 7.974751342e-08
A201: 97.46125 | B201: ='DF raw data'!G206 -> -7.7245159e-06 | C201: ='DF raw data'!H206 -> 2.8861779e-05 | D201: ='DF raw data'!I206 -> -3.4618638e-06 | F201: -7.736380756e-06 | G201: 2.896905331e-05 | H201: -3.467181223e-06 | J201: -1.56571001e-05 | K201: 0.0006927176098 | L201: 8.400934291e-05 | M201: -0.0003623130456 | N201: 8.339996606e-08
... 1002 more rows

Sheet 10 x=1
A1: dz | B1: ='DF raw data'!K7 -> 0.50016 | C1: mm | F1: T_coeff | G1: -0.0008 | H1: /degC | L1: Hallref | M1: ='PI vs gap'!B44 -> 0.50517 | N1: T | P1: IBy total | Q1: =L1203*1000 -> -9.326606274 | R1: muTm | X1: DF ref | Y1: 20
A2: Tref | B2: ='DF raw data'!K8 -> 21.89 | C2: degC | F2: Tcorr | G2: 20 | H2: degC | L2: NMRref | M2: ='PI vs gap'!B45 -> 0.50627 | N2: T | P2: JBy total | Q2: =M1203 -> -2.74660594 | R2: muTm^2
A3: Encoder | B3: ='DF raw data'!K9 -> 17890876 | P3: PI total | Q3: =N1203 -> 702.0950697 | R3: T^2mm^3
A5: z [mm] | B5: Bx | C5: By | D5: Bz | F5: Bx_corr | G5: By_corr | H5: Bz_corr | J5: Ix | K5: Jx | L5: Iy | M5: Jy | N5: PI
A6: ='[1]PI vs x'!B53 -> -0.068 | B6: ='DF raw data'!J11 -> -1.8975669e-07 | C6: ='DF raw data'!K11 -> -3.5373851e-06 | D6: ='DF raw data'!L11 -> 2.0156465e-06 | F6: =(1-$G$1*($B$2-$G$2))*B6 -> -1.900436021e-07 | G6: =(1-$G$1*($B$2-$G$2))*C6*$M$2/$M$1 -> -3.550447875e-06 | H6: =(1-$G$1*($B$2-$G$2))*D6 -> 2.018694158e-06 | J6: =F6*$B$1 -> -9.505220803e-08 | K6: =J6*$B$1 -> -4.754131237e-08 | L6: =G6*$B$1 -> -1.775792009e-06 | M6: =L6*$B$1 -> -8.881801313e-07 | N6: =(J6^2+L6)^2*$B$1 -> 1.577223164e-12
A7: =A6+$B$1 -> 0.43216 | B7: ='DF raw data'!J12 -> -2.4496666e-07 | C7: ='DF raw data'!K12 -> -2.4504873e-06 | D7: ='DF raw data'!L12 -> -3.868893e-07 | F7: =(1-$G$1*($B$2-$G$2))*B7 -> -2.453370496e-07 | G7: =(1-$G$1*($B$2-$G$2))*C7*$M$2/$M$1 -> -2.459536404e-06 | H7: -3.874742766e-07 | J7: =F7*$B$1+J6 -> -2.177599868e-07 | K7: =J7*$B$1+K6 -> -1.564561473e-07 | L7: =G7*$B$1+L6 -> -3.005953737e-06 | M7: =L7*$B$1+M6 -> -2.391637952e-06 | N7: =(J7^2+L7^2)*$B$1+N6 -> 6.120265112e-12
A8: =A7+$B$1 -> 0.93232 | B8: ='DF raw data'!J13 -> -7.2615484e-07 | C8: ='DF raw data'!K13 -> 9.9478311e-06 | D8: ='DF raw data'!L13 -> -4.2641309e-06 | F8: -7.272527861e-07 | G8: 9.984566224e-06 | H8: -4.270578266e-06 | J8: =F8*$B$1+J7 -> -5.815027403e-07 | K8: =J8*$B$1+K7 -> -4.473005579e-07 | L8: =G8*$B$1+L7 -> 1.987926906e-06 | M8: =L8*$B$1+M7 -> -1.397356431e-06 | N8: =(J8^2+L8^2)*$B$1+N7 -> 8.265950921e-12
A9: 1.43248 | B9: ='DF raw data'!J14 -> -4.6830945e-07 | C9: ='DF raw data'!K14 -> 4.0391433e-06 | D9: ='DF raw data'!L14 -> 3.1376137e-06 | F9: -4.690175339e-07 | G9: 4.054058956e-06 | H9: 3.142357772e-06 | J9: -8.1608655e-07 | K9: -8.554744068e-07 | L9: 4.015605033e-06 | M9: 6.110885823e-07 | N9: 1.666417801e-11
A10: 1.93264 | B10: ='DF raw data'!J15 -> -3.2198994e-07 | C10: ='DF raw data'!K15 -> 5.5175695e-07 | D10: ='DF raw data'!L15 -> 6.4529472e-06 | F10: -3.224767888e-07 | G10: 5.537944655e-07 | H10: 6.462704056e-06 | J10: -9.773765407e-07 | K10: -1.344319057e-06 | L10: 4.292590873e-06 | M10: 2.758070833e-06 | N10: 2.635807972e-11
A11: 2.4328 | B11: ='DF raw data'!J16 -> -2.468293e-07 | C11: ='DF raw data'!K16 -> -3.0184867e-06 | D11: ='DF raw data'!L16 -> -2.7596082e-06 | F11: -2.472025059e-07 | G11: -3.029633299e-06 | H11: -2.763780728e-06 | J11: -1.101017346e-06 | K11: -1.895003893e-06 | L11: 2.777289482e-06 | M11: 4.147159941e-06 | N11: 3.082229585e-11
A12: 2.93296 | B12: ='DF raw data'!J17 -> -2.4783338e-07 | C12: ='DF raw data'!K17 -> -3.180601e-06 | D12: ='DF raw data'!L17 -> -4.1921862e-06 | F12: -2.482081041e-07 | G12: -3.192346251e-06 | H12: -4.198524786e-06 | J12: -1.225161111e-06 | K12: -2.507780475e-06 | L12: 1.180605582e-06 | M12: 4.737651628e-06 | N12: 3.227018367e-11
A13: 3.43312 | B13: ='DF raw data'!J18 -> -1.2194477e-07 | C13: ='DF raw data'!K18 -> -7.0677347e-06 | D13: ='DF raw data'!L18 -> -7.1982918e-06 | F13: -1.221291505e-07 | G13: -7.093834269e-06 | H13: -7.209175617e-06 | J13: -1.286245227e-06 | K13: -3.151108888e-06 | L13: -2.367446567e-06 | M13: 3.553549554e-06 | N13: 3.590096016e-11
A14: 3.93328 | B14: ='DF raw data'!J19 -> -3.5729289e-07 | C14: ='DF raw data'!K19 -> -6.5869409e-07 | D14: ='DF raw data'!L19 -> -7.2398957e-06 | F14: -3.578331168e-07 | G14: -6.611265005e-07 | H14: -7.250842422e-06 | J14: -1.465219039e-06 | K14: -3.883952842e-06 | L14: -2.698115597e-06 | M14: 2.204060057e-06 | N14: 4.061581573e-11
A15: 4.43344 | B15: ='DF raw data'!J20 -> -3.1190547e-07 | C15: ='DF raw data'!K20 -> -1.0727183e-06 | D15: ='DF raw data'!L20 -> -1.9024567e-06 | F15: -3.123770711e-07 | G15: -1.07667961e-06 | H15: -1.905333215e-06 | J15: -1.621457555e-06 | K15: -4.694941053e-06 | L15: -3.236627671e-06 | M15: 5.852283608e-07 | N15: 4.717035416e-11
A16: 4.9336 | B16: ='DF raw data'!J21 -> -1.1846685e-07 | C16: ='DF raw data'!K21 -> -6.2390186e-06 | D16: ='DF raw data'!L21 -> -9.9857903e-07 | F16: -1.186459719e-07 | G16: -6.262057905e-06 | H16: -1.000088881e-06 | J16: -1.680799524e-06 | K16: -5.535609743e-06 | L16: -6.368658553e-06 | M16: -2.600119901e-06 | N16: 6.886974514e-11
A17: 5.43376 | B17: ='DF raw data'!J22 -> 4.0323648e-08 | C17: ='DF raw data'!K22 -> -9.826208e-06 | D17: ='DF raw data'!L22 -> 3.0280087e-06 | F17: 4.038461736e-08 | G17: -9.862493997e-06 | H17: 3.032587049e-06 | J17: -1.660600754e-06 | K17: -6.366175816e-06 | L17: -1.130148355e-05 | M17: -8.252669913e-06 | N17: 1.341311848e-10
A18: 5.93392 | B18: ='DF raw data'!J23 -> 1.6021687e-07 | C18: ='DF raw data'!K23 -> -1.3143607e-05 | D18: ='DF raw data'!L23 -> 1.963667e-06 | F18: 1.604591179e-07 | G18: -1.319214341e-05 | H18: 1.966636065e-06 | J18: -1.580345522e-06 | K18: -7.156601432e-06 | L18: -1.7899666e-05 | M18: -1.720536686e-05 | N18: 2.956306155e-10
A19: 6.43408 | B19: ='DF raw data'!J24 -> -4.0649292e-07 | C19: ='DF raw data'!K24 -> 1.7315208e-06 | D19: ='DF raw data'!L24 -> -1.9589618e-06 | F19: -4.071075373e-07 | G19: 1.73791492e-06 | H19: -1.96192375e-06 | J19: -1.783964427e-06 | K19: -8.04886908e-06 | L19: -1.703043047e-05 | M19: -2.572330696e-05 | N19: 4.422865759e-10
A20: 6.93424 | B20: ='DF raw data'!J25 -> -3.2906217e-07 | C20: ='DF raw data'!K25 -> -9.6944564e-07 | D20: ='DF raw data'!L25 -> -5.3365779e-06 | F20: -3.29559712e-07 | G20: -9.730255867e-07 | H20: -5.344646806e-06 | J20: -1.948797013e-06 | K20: -9.023579394e-06 | L20: -1.751709895e-05 | M20: -3.448465917e-05 | N20: 5.976595621e-10
A21: 7.4344 | B21: ='DF raw data'!J26 -> -7.4117241e-07 | C21: ='DF raw data'!K26 -> 1.044178e-05 | D21: ='DF raw data'!L26 -> -3.7766852e-06 | F21: -7.422930627e-07 | G21: 1.048033917e-05 | H21: -3.782395548e-06 | J21: -2.320062311e-06 | K21: -1.018398176e-05 | L21: -1.227525251e-05 | M21: -4.062424947e-05 | N21: 6.757167891e-10
A22: 7.93456 | B22: ='DF raw data'!J27 -> -2.8523207e-06 | C22: ='DF raw data'!K27 -> 5.2945597e-06 | D22: ='DF raw data'!L27 -> -5.3975714e-07 | F22: -2.856633409e-06 | G22: 5.314111329e-06 | H22: -5.405732528e-07 | J22: -3.748836077e-06 | K22: -1.205899961e-05 | L22: -9.61734659e-06 | M22: -4.543446154e-05 | N22: 7.290074003e-10
A23: 8.43472 | B23: ='DF raw data'!J28 -> -6.1414753e-06 | C23: ='DF raw data'!K28 -> 4.9185619e-06 | D23: ='DF raw data'!L28 -> -8.0444192e-07 | F23: =(1-$G$1*($B$2-$G$2))*B23 -> -6.150761211e-06 | G23: 4.936725053e-06 | H23: -8.056582362e-07 | J23: -6.825200804e-06 | K23: -1.547269205e-05 | L23: -7.148194187e-06 | M23: -4.900970235e-05 | N23: 7.778630522e-10
A24: 8.93488 | B24: ='DF raw data'!J29 -> -3.1189845e-06 | C24: ='DF raw data'!K29 -> -4.7837284e-06 | D24: ='DF raw data'!L29 -> -3.020102e-06 | F24: -3.123700405e-06 | G24: -4.801393643e-06 | H24: -3.024668394e-06 | J24: -8.387550798e-06 | K24: -1.966780945e-05 | L24: -9.549659232e-06 | M24: -5.378605991e-05 | N24: 8.586623996e-10
A25: 9.43504 | B25: ='DF raw data'!J30 -> -1.085005e-06 | C25: ='DF raw data'!K30 -> 4.1841786e-06 | D25: ='DF raw data'!L30 -> 6.1922497e-06 | F25: -1.086645528e-06 | G25: 4.199629839e-06 | H25: 6.201612382e-06 | J25: -8.931047426e-06 | K25: -2.413476213e-05 | L25: -7.449172371e-06 | M25: -5.751183796e-05 | N25: 9.263109288e-10
A26: 9.9352 | B26: ='DF raw data'!J31 -> -2.1684098e-06 | C26: ='DF raw data'!K31 -> -7.8718432e-07 | D26: ='DF raw data'!L31 -> 1.2614258e-05 | F26: -2.171688436e-06 | G26: -7.900912163e-07 | H26: 1.263333076e-05 | J26: -1.001723911e-05 | K26: -2.914498445e-05 | L26: -7.844344394e-06 | M26: -6.143526525e-05 | N26: 1.007276239e-09
A27: 10.43536 | B27: ='DF raw data'!J32 -> -2.6901978e-06 | C27: ='DF raw data'!K32 -> -5.6836353e-07 | D27: ='DF raw data'!L32 -> 8.3709047e-06 | F27: -2.694265379e-06 | G27: -5.704623699e-07 | H27: 8.383561508e-06 | J27: -1.136480289e-05 | K27: -3.482920426e-05 | L27: -8.129666853e-06 | M27: -6.550139943e-05 | N27: 1.104932593e-09
A28: 10.93552 | B28: ='DF raw data'!J33 -> 5.0984119e-07 | C28: ='DF raw data'!K33 -> 4.7346994e-06 | D28: ='DF raw data'!L33 -> 6.3212378e-06 | F28: 5.106120699e-07 | G28: 4.75218359e-06 | H28: 6.330795512e-06 | J28: -1.110941515e-05 | K28: -4.038568934e-05 | L28: -5.752814709e-06 | M28: -6.837872723e-05 | N28: 1.183214626e-09
A29: 11.43568 | B29: ='DF raw data'!J34 -> 5.3878907e-06 | C29: ='DF raw data'!K34 -> -1.5449763e-05 | D29: ='DF raw data'!L34 -> 2.4969074e-06 | F29: 5.396037191e-06 | G29: -1.550681553e-05 | H29: 2.500682724e-06 | J29: -8.410533191e-06 | K29: -4.459230162e-05 | L29: -1.350870356e-05 | M29: -7.513524041e-05 | N29: 1.309866212e-09
A30: 11.93584 | B30: ='DF raw data'!J35 -> 8.024901e-06 | C30: ='DF raw data'!K35 -> -1.6093949e-05 | D30: ='DF raw data'!L35 -> -3.3304361e-06 | F30: 8.03703465e-06 | G30: -1.615338037e-05 | H30: -3.335471719e-06 | J30: -4.390729941e-06 | K30: -4.678836911e-05 | L30: -2.158797829e-05 | M30: -8.593268363e-05 | N30: 1.552603521e-09
A31: 12.436 | B31: ='DF raw data'!J36 -> 4.7089129e-06 | C31: ='DF raw data'!K36 -> 4.9333721e-06 | D31: ='DF raw data'!L36 -> 1.5769208e-06 | F31: 4.716032776e-06 | G31: 4.951589944e-06 | H31: 1.579305104e-06 | J31: -2.031958987e-06 | K31: -4.780467372e-05 | L31: -1.911139106e-05 | M31: -9.549143698e-05 | N31: 1.737349683e-09
A32: 12.93616 | B32: ='DF raw data'!J37 -> -2.411907e-06 | C32: ='DF raw data'!K37 -> 6.4008617e-07 | D32: ='DF raw data'!L37 -> -4.4948079e-06 | F32: -2.415553803e-06 | G32: 6.424498656e-07 | H32: -4.50160405e-06 | J32: -3.240122377e-06 | K32: -4.942525333e-05 | L32: -1.879006334e-05 | M32: -0.0001048894751 | N32: 1.919190291e-09
A33: 13.43632 | B33: ='DF raw data'!J38 -> -5.6756976e-06 | C33: ='DF raw data'!K38 -> 2.0745613e-06 | D33: ='DF raw data'!L38 -> -4.9154892e-06 | F33: -5.684279255e-06 | G33: 2.082222193e-06 | H33: -4.92292142e-06 | J33: -6.08317149e-06 | K33: -5.246781238e-05 | L33: -1.774861909e-05 | M33: -0.0001137666244 | N33: 2.095255841e-09
A34: 13.93648 | B34: ='DF raw data'!J39 -> -2.8373759e-06 | C34: ='DF raw data'!K39 -> -9.9362851e-06 | D34: ='DF raw data'!L39 -> -2.2061406e-06 | F34: -2.841666012e-06 | G34: -9.972977587e-06 | H34: -2.209476285e-06 | J34: -7.504459162e-06 | K34: -5.622124267e-05 | L34: -2.273670356e-05 | M34: -0.000125138614 | N34: 2.381984863e-09
A35: 14.43664 | B35: ='DF raw data'!J40 -> 2.1915332e-06 | C35: ='DF raw data'!K40 -> 2.3279401e-06 | D35: ='DF raw data'!L40 -> -1.0869674e-06 | F35: 2.194846798e-06 | G35: 2.336536664e-06 | H35: -1.088610895e-06 | J35: -6.406684588e-06 | K35: -5.942561004e-05 | L35: -2.156806138e-05 | M35: -0.0001359260956 | N35: 2.635179299e-09
A36: 14.9368 | B36: ='DF raw data'!J41 -> 5.3688714e-06 | C36: ='DF raw data'!K41 -> 4.3477603e-06 | D36: ='DF raw data'!L41 -> 3.998694e-06 | F36: 5.376989134e-06 | G36: 4.36381561e-06 | H36: 4.004740025e-06 | J36: -3.717329703e-06 | K36: -6.128486966e-05 | L36: -1.938545536e-05 | M36: -0.000145621925 | N36: 2.830048847e-09
A37: 15.43696 | B37: ='DF raw data'!J42 -> 4.8117804e-06 | C37: ='DF raw data'!K42 -> -2.480642e-06 | D37: ='DF raw data'!L42 -> 6.6269154e-06 | F37: 4.819055812e-06 | G37: -2.489802458e-06 | H37: 6.636935296e-06 | J37: -1.307030748e-06 | K37: -6.193859416e-05 | L37: -2.063075496e-05 | M37: -0.0001559406034 | N37: 3.04378541e-09
A38: 15.93712 | B38: ='DF raw data'!J43 -> -3.2893121e-07 | C38: ='DF raw data'!K43 -> -2.5580296e-06 | D38: ='DF raw data'!L43 -> 4.1208282e-06 | F38: -3.29428554e-07 | G38: -2.567475833e-06 | H38: 4.127058892e-06 | J38: -1.471797733e-06 | K38: -6.267472851e-05 | L38: -2.191490367e-05 | M38: -0.0001669015616 | N38: 3.285077195e-09
A39: 16.43728 | B39: ='DF raw data'!J44 -> 2.1231101e-06 | C39: ='DF raw data'!K44 -> 1.2305573e-07 | D39: ='DF raw data'!L44 -> -3.371036e-06 | F39: 2.126320242e-06 | G39: 1.235101474e-07 | H39: -3.376133006e-06 | J39: -4.082974008e-07 | K39: -6.287894254e-05 | L39: -2.185312884e-05 | M39: -0.0001778316225 | N39: 3.524016604e-09
A40: 16.93744 | B40: ='DF raw data'!J45 -> 8.3501654e-06 | C40: ='DF raw data'!K45 -> -6.2388849e-06 | D40: ='DF raw data'!L45 -> -9.4484249e-06 | F40: 8.36279085e-06 | G40: -6.261923712e-06 | H40: -9.462710918e-06 | J40: 3.774436071e-06 | K40: -6.09911206e-05 | L40: -2.49850926e-05 | M40: -0.0001903281664 | N40: 3.843369375e-09
A41: 17.4376 | B41: ='DF raw data'!J46 -> 6.7856895e-06 | C41: ='DF raw data'!K46 -> 1.5200387e-06 | D41: ='DF raw data'!L46 -> -4.0287828e-06 | F41: 6.795949463e-06 | G41: 1.525651864e-06 | H41: -4.03487432e-06 | J41: 7.173498154e-06 | K41: -5.740322376e-05 | L41: -2.422202257e-05 | M41: -0.0002024430532 | N41: 4.162554208e-09
A42: 17.93776 | B42: ='DF raw data'!J47 -> 5.6048307e-06 | C42: ='DF raw data'!K47 -> 6.3673142e-06 | D42: ='DF raw data'!L47 -> -3.8734726e-08 | F42: 5.613305204e-06 | G42: 6.390827272e-06 | H42: -3.879329291e-08 | J42: 9.981048885e-06 | K42: -5.241110235e-05 | L42: -2.10255864e-05 | M42: -0.0002129592105 | N42: 4.433489189e-09
A43: 18.43792 | B43: ='DF raw data'!J48 -> 4.3773766e-06 | C43: ='DF raw data'!K48 -> -3.6554682e-06 | D43: ='DF raw data'!L48 -> -6.9184293e-06 | F43: 4.383995193e-06 | G43: -3.668967029e-06 | H43: -6.928889965e-06 | J43: 1.217374792e-05 | K43: -4.632228059e-05 | L43: -2.286065695e-05 | M43: -0.0002243931967 | N43: 4.769001406e-09
A44: 18.93808 | B44: ='DF raw data'!J49 -> -1.3517271e-06 | C44: ='DF raw data'!K49 -> -6.133285e-07 | D44: ='DF raw data'!L49 -> -5.0553913e-06 | F44: -1.353770911e-06 | G44: -6.155933855e-07 | H44: -5.063035052e-06 | J44: 1.149664586e-05 | K44: -4.057211819e-05 | L44: -2.316855213e-05 | M44: -0.0002359811797 | N44: 5.103585776e-09
A45: 19.43824 | B45: ='DF raw data'!J50 -> -4.1341841e-06 | C45: ='DF raw data'!K50 -> 2.5647735e-06 | D45: ='DF raw data'!L50 -> 2.2653574e-06 | F45: -4.140434986e-06 | G45: 2.574244637e-06 | H45: 2.26878262e-06 | J45: 9.425765899e-06 | K45: -3.585772712e-05 | L45: -2.188101794e-05 | M45: -0.0002469251897 | N45: 5.3874886e-09
A46: 19.9384 | B46: ='DF raw data'!J51 -> 1.4368565e-06 | C46: ='DF raw data'!K51 -> 1.6585357e-06 | D46: ='DF raw data'!L51 -> 1.0173414e-06 | F46: 1.439029027e-06 | G46: 1.664660303e-06 | H46: 1.01887962e-06 | J46: 1.014551066e-05 | K46: -3.078334851e-05 | L46: -2.104842144e-05 | M46: -0.0002574527681 | N46: 5.66055967e-09
A47: 20.43856 | B47: ='DF raw data'!J52 -> 6.5815116e-06 | C47: ='DF raw data'!K52 -> 7.3984393e-06 | D47: ='DF raw data'!L52 -> -1.686288e-06 | F47: 6.591462846e-06 | G47: 7.425760088e-06 | H47: -1.688837667e-06 | J47: 1.344229671e-05 | K47: -2.406004939e-05 | L47: -1.733435327e-05 | M47: -0.0002661227183 | N47: 5.901224231e-09
A48: 20.93872 | B48: ='DF raw data'!J53 -> 5.4069246e-06 | C48: ='DF raw data'!K53 -> -1.255466e-05 | D48: ='DF raw data'!L53 -> -2.859769e-06 | F48: 5.41509987e-06 | G48: -1.260102156e-05 | H48: -2.864092971e-06 | J48: 1.615071306e-05 | K48: -1.598210874e-05 | L48: -2.363688022e-05 | M48: -0.0002779449403 | N48: 6.311129178e-09
A49: 21.43888 | B49: ='DF raw data'!J54 -> -6.5339526e-07 | C49: ='DF raw data'!K54 -> -7.055267e-07 | D49: ='DF raw data'!L54 -> -5.4546376e-06 | F49: -6.543831936e-07 | G49: -7.081320529e-07 | H49: -5.462885012e-06 | J49: 1.582341677e-05 | K49: -8.067868612e-06 | L49: -2.399105955e-05 | M49: -0.0002899443086 | N49: 6.724237058e-09
A50: 21.93904 | B50: ='DF raw data'!J55 -> -3.4298573e-08 | C50: ='DF raw data'!K55 -> 1.3285701e-06 | D50: ='DF raw data'!L55 -> -5.7995908e-06 | F50: -3.435043244e-08 | G50: 1.333476213e-06 | H50: -5.808359781e-06 | J50: 1.580623605e-05 | K50: -1.622215868e-07 | L50: -2.332410808e-05 | M50: -0.0003016100945 | N50: 7.121289632e-09
A51: 22.4392 | B51: ='DF raw data'!J56 -> 3.0875092e-06 | C51: ='DF raw data'!K56 -> 7.6030409e-07 | D51: ='DF raw data'!L56 -> -4.2878214e-06 | F51: 3.092177514e-06 | G51: 7.631117236e-07 | H51: -4.294304586e-06 | J51: 1.735281956e-05 | K51: 8.516964644e-06 | L51: -2.294243012e-05 | M51: -0.0003130849804 | N51: 7.535159752e-09
A52: 22.93936 | B52: ='DF raw data'!J57 -> 5.1912531e-07 | C52: ='DF raw data'!K57 -> 1.0747328e-05 | D52: ='DF raw data'!L57 -> -6.6368498e-06 | F52: 5.199102275e-07 | G52: 1.078701549e-05 | H52: -6.646884717e-06 | J52: 1.761285786e-05 | K52: 1.732621163e-05 | L52: -1.754719646e-05 | M52: -0.0003218613861 | N52: 7.844317083e-09
A53: 23.43952 | B53: ='DF raw data'!J58 -> -2.265602e-06 | C53: ='DF raw data'!K58 -> 1.0226295e-05 | D53: ='DF raw data'!L58 -> -5.8267447e-06 | F53: -2.26902759e-06 | G53: 1.026405843e-05 | H53: -5.835554738e-06 | J53: 1.647798102e-05 | K53: 2.556783862e-05 | L53: -1.241352499e-05 | M53: -0.0003280701348 | N53: 8.057194913e-09
A54: 23.93968 | B54: ='DF raw data'!J59 -> -1.0520886e-06 | C54: ='DF raw data'!K59 -> 1.8656711e-07 | D54: ='DF raw data'!L59 -> -7.2766975e-06 | F54: -1.053679358e-06 | G54: 1.872560608e-07 | H54: -7.287699867e-06 | J54: 1.595097275e-05 | K54: 3.354587715e-05 | L54: -1.2319867e-05 | M54: -0.0003342320395 | N54: 8.260366234e-09
A55: 24.43984 | B55: ='DF raw data'!J60 -> -7.8603597e-07 | C55: ='DF raw data'!K60 -> -1.8526192e-05 | D55: ='DF raw data'!L60 -> -2.6825994e-06 | F55: -7.872244564e-07 | G55: -1.85946051e-05 | H55: -2.68665549e-06 | J55: 1.555723457e-05 | K55: 4.132698359e-05 | L55: -2.162014469e-05 | M55: -0.0003450455711 | N55: 8.615208849e-09
A56: 24.94 | B56: ='DF raw data'!J61 -> -1.695356e-06 | C56: ='DF raw data'!K61 -> -9.2648797e-06 | D56: ='DF raw data'!L61 -> 4.0073523e-06 | F56: -1.697919378e-06 | G56: -9.299092836e-06 | H56: 4.013411417e-06 | J56: 1.470800321e-05 | K56: 4.868333848e-05 | L56: -2.627117896e-05 | M56: -0.0003581853639 | N56: 9.068603991e-09
A57: 25.44016 | B57: ='DF raw data'!J62 -> 9.4839226e-07 | C57: ='DF raw data'!K62 -> 6.251099e-06 | D57: ='DF raw data'!L62 -> 5.9066683e-06 | F57: 9.498262291e-07 | G57: 6.274182916e-06 | H57: 5.915599182e-06 | J57: 1.51830683e-05 | K57: 5.627730192e-05 | L57: -2.313308363e-05 | M57: -0.000369755607 | N57: 9.451559058e-09
A58: 25.94032 | B58: ='DF raw data'!J63 -> 1.294757e-06 | C58: ='DF raw data'!K63 -> 8.7972165e-07 | D58: ='DF raw data'!L63 -> 6.7381939e-06 | F58: 1.296714673e-06 | G58: 8.82970266e-07 | H58: 6.748382049e-06 | J58: 1.583163311e-05 | K58: 6.419565153e-05 | L58: -2.269145723e-05 | M58: -0.0003811049663 | N58: 9.834452964e-09
A59: 26.44048 | B59: ='DF raw data'!J64 -> -3.4883849e-06 | C59: ='DF raw data'!K64 -> -7.1886944e-07 | D59: ='DF raw data'!L64 -> 3.9073225e-06 | F59: -3.493659338e-06 | G59: -7.215240647e-07 | H59: 3.913230372e-06 | J59: 1.408424445e-05 | K59: 7.124002724e-05 | L59: -2.30523347e-05 | M59: -0.000392634822 | N59: 1.019945777e-08
A60: 26.94064 | B60: ='DF raw data'!J65 -> -1.8685092e-06 | C60: ='DF raw data'!K65 -> -1.5845451e-06 | D60: ='DF raw data'!L65 -> -2.4616431e-06 | F60: -1.871334386e-06 | G60: -1.590396472e-06 | H60: -2.465365104e-06 | J60: 1.314827785e-05 | K60: 7.781626989e-05 | L60: -2.38477874e-05 | M60: -0.0004045625314 | N60: 1.057037351e-08
A61: 27.4408 | B61: ='DF raw data'!J66 -> 1.7262795e-06 | C61: ='DF raw data'!K66 -> -1.6361812e-06 | D61: ='DF raw data'!L66 -> -4.7678745e-06 | F61: 1.728889635e-06 | G61: -1.642223253e-06 | H61: -4.775083526e-06 | J61: 1.401299929e-05 | K61: 8.482501161e-05 | L61: -2.466916178e-05 | M61: -0.0004169010593 | N61: 1.097296814e-08
A62: 27.94096 | B62: ='DF raw data'!J67 -> 2.8402721e-06 | C62: ='DF raw data'!K67 -> 1.1439815e-05 | D62: ='DF raw data'!L67 -> -8.8295319e-06 | F62: 2.844566591e-06 | G62: 1.148205969e-05 | H62: -8.842882152e-06 | J62: 1.543573771e-05 | K62: 9.254535019e-05 | L62: -1.892629481e-05 | M62: -0.0004263672349 | N62: 1.12712969e-08
A63: 28.44112 | B63: ='DF raw data'!J68 -> 6.0811585e-06 | C63: ='DF raw data'!K68 -> 1.1348817e-05 | D63: ='DF raw data'!L68 -> -4.5568281e-06 | F63: 6.090353212e-06 | G63: 1.139072565e-05 | H63: -4.563718024e-06 | J63: 1.848188878e-05 | K63: 0.0001017892517 | L63: -1.322910947e-05 | M63: -0.0004329839063 | N63: 1.152967432e-08
A64: 28.94128 | B64: ='DF raw data'!J69 -> 6.0635944e-06 | C64: ='DF raw data'!K69 -> -8.5437059e-06 | D64: ='DF raw data'!L69 -> 8.4625381e-06 | F64: 6.072762555e-06 | G64: -8.575255902e-06 | H64: 8.475333458e-06 | J64: 2.15192417e-05 | K64: 0.0001125523156 | L64: -1.751810946e-05 | M64: -0.0004417457639 | N64: 1.191477848e-08
A65: 29.44144 | B65: ='DF raw data'!J70 -> 4.7975632e-06 | C65: ='DF raw data'!K70 -> -1.0826779e-05 | D65: ='DF raw data'!L70 -> 8.1488133e-06 | F65: 4.804817116e-06 | G65: -1.086675988e-05 | H65: 8.161134306e-06 | J65: 2.392241902e-05 | K65: 0.0001245173527 | L65: -2.295322808e-05 | M65: -0.0004532260505 | N65: 1.246452075e-08
A66: 29.9416 | B66: ='DF raw data'!J71 -> 4.3486657e-06 | C66: ='DF raw data'!K71 -> -1.109411e-06 | D66: ='DF raw data'!L71 -> 2.6148584e-07 | F66: 4.355240883e-06 | G66: -1.113507808e-06 | H66: 2.618812066e-07 | J66: 2.61007363e-05 | K66: 0.000137571897 | L66: -2.351016015e-05 | M66: -0.0004649848922 | N66: 1.308170622e-08
A67: 30.44176 | B67: ='DF raw data'!J72 -> 1.2601089e-06 | C67: ='DF raw data'!K72 -> 6.073962e-07 | D67: ='DF raw data'!L72 -> -4.5218162e-06 | F67: 1.262014185e-06 | G67: 6.096391788e-07 | H67: -4.528653186e-06 | J67: 2.673194532e-05 | K67: 0.0001509421467 | L67: -2.320524302e-05 | M67: -0.0004765912265 | N67: 1.370844681e-08
A68: 30.94192 | B68: ='DF raw data'!J73 -> -4.9473306e-06 | C68: ='DF raw data'!K73 -> -2.3401433e-06 | D68: ='DF raw data'!L73 -> -2.1130375e-06 | F68: -4.954810964e-06 | G68: -2.348784928e-06 | H68: -2.116232413e-06 | J68: 2.425374707e-05 | K68: 0.0001630729009 | L68: -2.438001129e-05 | M68: -0.000488785133 | N68: 1.429995063e-08
A69: 31.44208 | B69: ='DF raw data'!J74 -> -7.0427191e-06 | C69: ='DF raw data'!K74 -> -2.6374189e-06 | D69: ='DF raw data'!L74 -> -4.0556165e-06 | F69: -7.053367691e-06 | G69: -2.6471583e-06 | H69: -4.061748592e-06 | J69: 2.072593468e-05 | K69: 0.0001734391844 | L69: -2.570401398e-05 | M69: -0.0005016412526 | N69: 1.484525542e-08
A70: 31.94224 | B70: ='DF raw data'!J75 -> -4.8233774e-06 | C70: ='DF raw data'!K75 -> -2.7258809e-06 | D70: ='DF raw data'!L75 -> -2.0125274e-06 | F70: -4.830670347e-06 | G70: -2.735946971e-06 | H70: -2.015570341e-06 | J70: 1.83098266e-05 | K70: 0.0001825970272 | L70: -2.707242522e-05 | M70: -0.0005151817968 | N70: 1.537950931e-08
A71: 32.4424 | B71: ='DF raw data'!J76 -> 1.5536065e-06 | C71: ='DF raw data'!K76 -> -4.6828573e-06 | D71: ='DF raw data'!L76 -> 8.0609634e-06 | F71: 1.555955553e-06 | G71: =(1-$G$1*($B$2-$G$2))*C71*$M$2/$M$1 -> -4.700150049e-06 | H71: 8.073151577e-06 | J71: 1.908805333e-05 | K71: 0.000192144108 | L71: -2.942325227e-05 | M71: -0.0005298981307 | N71: 1.59947469e-08
A72: =A71+$B$1 -> 32.94256 | B72: ='DF raw data'!J77 -> 3.8322328e-06 | C72: ='DF raw data'!K77 -> -3.3186977e-06 | D72: ='DF raw data'!L77 -> 7.7299801e-06 | F72: 3.838027136e-06 | G72: -3.330952911e-06 | H72: 7.74166783e-06 | J72: =F72*$B$1+J71 -> 2.100768098e-05 | K72: =J72*$B$1+K71 -> 0.0002026513097 | L72: =G72*$B$1+L71 -> -3.108926167e-05 | M72: =L72*$B$1+M71 -> -0.0005454477358 | N72: =(J72^2+L72^2)*$B$1+N71 -> 1.669890458e-08
A73: 33.44272 | B73: ='DF raw data'!J78 -> 3.5107662e-06 | C73: ='DF raw data'!K78 -> 3.3110312e-06 | D73: ='DF raw data'!L78 -> 1.8709568e-06 | F73: 3.516074478e-06 | G73: 3.3232581e-06 | H73: 1.873785687e-06 | J73: 2.276628079e-05 | K73: 0.0002140380927 | L73: -2.94271009e-05 | M73: -0.0005601659946 | N73: 1.739125497e-08
A74: 33.94288 | B74: ='DF raw data'!J79 -> 4.5906349e-06 | C74: ='DF raw data'!K79 -> 4.3675072e-06 | D74: ='DF raw data'!L79 -> 6.3519133e-06 | F74: 4.59757594e-06 | G74: 4.383635431e-06 | H74: 6.361517393e-06 | J74: 2.506580438e-05 | K74: 0.0002265750054 | L74: -2.723458181e-05 | M74: -0.000573787643 | N74: 1.807648267e-08
A75: 34.44304 | B75: ='DF raw data'!J80 -> 1.1145315e-06 | C75: ='DF raw data'!K80 -> 1.3163961e-05 | D75: ='DF raw data'!L80 -> 5.3845456e-06 | F75: 1.116216672e-06 | G75: 1.321257257e-05 | H75: 5.392687033e-06 | J75: 2.562409131e-05 | K75: 0.0002393911509 | L75: -2.062618151e-05 | M75: -0.000584104034 | N75: 1.86176725e-08
A76: 34.9432 | B76: ='DF raw data'!J81 -> -4.9208898e-06 | C76: ='DF raw data'!K81 -> -2.7949961e-06 | D76: ='DF raw data'!L81 -> 9.7433103e-06 | F76: -4.928330185e-06 | G76: -2.805317398e-06 | H76: 9.758042185e-06 | J76: 2.315913768e-05 | K76: 0.0002509744252 | L76: -2.202928906e-05 | M76: -0.0005951222032 | N76: 1.912865358e-08
A77: 35.44336 | B77: ='DF raw data'!J82 -> -7.2319522e-06 | C77: ='DF raw data'!K82 -> 6.9762755e-06 | D77: ='DF raw data'!L82 -> 9.9416384e-06 | F77: -7.242886912e-06 | G77: 7.002037331e-06 | H77: 9.956670157e-06 | J77: 1.953653536e-05 | K77: 0.0002607458188 | L77: -1.852715006e-05 | M77: -0.0006043887425 | N77: 1.949123532e-08
A78: 35.94352 | B78: ='DF raw data'!J83 -> 3.1106202e-07 | C78: ='DF raw data'!K83 -> 9.9663775e-06 | D78: ='DF raw data'!L83 -> -2.4209123e-06 | F78: 3.115323458e-07 | G78: 1.000318111e-05 | H78: -2.424572719e-06 | J78: 1.969235138e-05 | K78: 0.0002705951452 | L78: -1.3523959e-05 | M78: -0.0006111528859 | N78: 1.977666972e-08
A79: 36.44368 | B79: ='DF raw data'!J84 -> 5.6614958e-06 | C79: ='DF raw data'!K84 -> -4.3701043e-06 | D79: ='DF raw data'!L84 -> -6.3712337e-06 | F79: 5.670055982e-06 | G79: -4.386242121e-06 | H79: -6.380867005e-06 | J79: 2.252828658e-05 | K79: 0.0002818628931 | L79: -1.571778186e-05 | M79: -0.0006190142917 | N79: 2.015407663e-08
A80: 36.94384 | B80: ='DF raw data'!J85 -> 8.8592351e-08 | C80: ='DF raw data'!K85 -> -1.1077488e-05 | D80: ='DF raw data'!L85 -> -1.2590729e-06 | F80: 8.872630263e-08 | G80: -1.111839469e-05 | H80: -1.260976618e-06 | J80: 2.257266393e-05 | K80: 0.0002931528366 | L80: -2.127875815e-05 | M80: -0.0006296570753 | N80: 2.063538595e-08
A81: 37.444 | B81: ='DF raw data'!J86 -> -4.8540091e-06 | C81: ='DF raw data'!K86 -> -1.2086805e-06 | D81: ='DF raw data'!L86 -> 3.4286666e-06 | F81: -4.861348362e-06 | G81: -1.213143888e-06 | H81: 3.433850744e-06 | J81: 2.014121193e-05 | K81: 0.0003032266652 | L81: -2.18855242e-05 | M81: -0.0006406033391 | N81: 2.107784979e-08
A82: 37.94416 | B82: ='DF raw data'!J87 -> -1.1145414e-05 | C82: ='DF raw data'!K87 -> 1.0375654e-06 | D82: ='DF raw data'!L87 -> 3.3410058e-06 | F82: -1.116226587e-05 | G82: 1.041396898e-06 | H82: 3.346057401e-06 | J82: 1.455829304e-05 | K82: 0.0003105081411 | L82: -2.136465912e-05 | M82: -0.000651289087 | N82: 2.141215301e-08
A83: 38.44432 | B83: ='DF raw data'!J88 -> -7.0178935e-06 | C83: ='DF raw data'!K88 -> 1.7949579e-07 | D83: ='DF raw data'!L88 -> 3.9793254e-06 | F83: -7.028504555e-06 | G83: 1.80158628e-07 | H83: 3.98534214e-06 | J83: 1.10429162e-05 | K83: 0.000316031366 | L83: -2.127455098e-05 | M83: -0.0006619297664 | N83: 2.16995212e-08
A84: 38.94448 | B84: ='DF raw data'!J89 -> 3.5982087e-06 | C84: ='DF raw data'!K89 -> -1.4763357e-06 | D84: ='DF raw data'!L89 -> 6.0375774e-06 | F84: 3.603649192e-06 | G84: -1.481787479e-06 | H84: 6.046706217e-06 | J84: 1.284531738e-05 | K84: 0.00032245608 | L84: -2.201568181e-05 | M84: -0.0006729411299 | N84: 2.202447136e-08
A85: 39.44464 | B85: ='DF raw data'!J90 -> 6.1920878e-06 | C85: ='DF raw data'!K90 -> 1.1300383e-05 | D85: ='DF raw data'!L90 -> 4.3608184e-06 | F85: 6.201450237e-06 | G85: 1.13421128e-05 | H85: 4.367411957e-06 | J85: 1.594703473e-05 | K85: 0.0003304321489 | L85: -1.634281067e-05 | M85: -0.00068111515 | N85: 2.228525247e-08
A86: 39.9448 | B86: ='DF raw data'!J91 -> 2.2214374e-06 | C86: ='DF raw data'!K91 -> -7.7517581e-07 | D86: ='DF raw data'!L91 -> 6.3239008e-06 | F86: 2.224796213e-06 | G86: -7.780383615e-07 | H86: 6.333462538e-06 | J86: 1.70597888e-05 | K86: 0.0003389647728 | L86: -1.673195434e-05 | M86: -0.0006894838043 | N86: 2.257084118e-08
A87: 40.44496 | B87: ='DF raw data'!J92 -> -1.3443929e-06 | C87: ='DF raw data'!K92 -> -1.2712771e-05 | D87: ='DF raw data'!L92 -> 4.8594397e-06 | F87: =(1-$G$1*($B$2-$G$2))*B87 -> -1.346425622e-06 | G87: -1.275971643e-05 | H87: 4.866787173e-06 | J87: 1.638636056e-05 | K87: 0.0003471605749 | L87: -2.311385411e-05 | M87: -0.0007010444296 | N87: 2.297235115e-08
A88: 40.94512 | B88: ='DF raw data'!J93 -> -2.9949003e-06 | C88: ='DF raw data'!K93 -> 3.751474e-06 | D88: ='DF raw data'!L93 -> 3.7210291e-06 | F88: -2.999428589e-06 | G88: 3.765327358e-06 | H88: 3.726655296e-06 | J88: 1.488616636e-05 | K88: 0.0003546060399 | L88: -2.123058798e-05 | M88: -0.0007116631205 | N88: 2.330862663e-08
A89: 41.44528 | B89: ='DF raw data'!J94 -> -4.9647492e-06 | C89: ='DF raw data'!K94 -> 1.1529803e-06 | D89: ='DF raw data'!L94 -> 4.3723289e-06 | F89: -4.972255901e-06 | G89: 1.157237999e-06 | H89: 4.378939861e-06 | J89: 1.239924285e-05 | K89: 0.0003608076452 | L89: -2.065178382e-05 | M89: -0.0007219923167 | N89: 2.359883817e-08
A90: 41.94544 | B90: ='DF raw data'!J95 -> -5.1041129e-06 | C90: ='DF raw data'!K95 -> 3.5988335e-06 | D90: ='DF raw data'!L95 -> 2.2349438e-06 | F90: -5.111830319e-06 | G90: 3.61212319e-06 | H90: 2.238323035e-06 | J90: 9.842509797e-06 | K90: 0.0003657304749 | L90: -1.884514429e-05 | M90: -0.000731417904 | N90: 2.382491772e-08
A91: 42.4456 | B91: ='DF raw data'!J96 -> -2.6610212e-06 | C91: ='DF raw data'!K96 -> 2.3751729e-06 | D91: ='DF raw data'!L96 -> 8.2325305e-06 | F91: -2.665044664e-06 | G91: 2.383943884e-06 | H91: 8.244978086e-06 | J91: 8.509561058e-06 | K91: 0.0003699866169 | L91: -1.765279091e-05 | M91: -0.0007402471239 | N91: 2.4016996e-08
A92: 42.94576 | B92: ='DF raw data'!J97 -> -6.9271454e-07 | C92: ='DF raw data'!K97 -> -6.5056061e-06 | D92: ='DF raw data'!L97 -> 1.4454202e-05 | F92: -6.937619244e-07 | G92: -6.529629854e-06 | H92: 1.447605675e-05 | J92: 8.162569094e-06 | K92: 0.0003740692075 | L92: -2.091865058e-05 | M92: -0.0007507097962 | N92: 2.426918541e-08
A93: 43.44592 | B93: ='DF raw data'!J98 -> 2.4406329e-06 | C93: ='DF raw data'!K98 -> -4.6779205e-06 | D93: ='DF raw data'!L98 -> 1.0839855e-05 | F93: 2.444323137e-06 | G93: -4.695195018e-06 | H93: 1.085624486e-05 | J93: 9.385121754e-06 | K93: 0.00037876327 | L93: -2.326699932e-05 | M93: -0.0007623470186 | N93: 2.4584003e-08
A94: 43.94608 | B94: ='DF raw data'!J99 -> 1.302033e-06 | C94: ='DF raw data'!K99 -> -1.1728345e-05 | D94: ='DF raw data'!L99 -> 7.1886921e-06 | F94: 1.304001674e-06 | G94: -1.177165516e-05 | H94: 7.199561402e-06 | J94: 1.003733123e-05 | K94: 0.0003837835416 | L94: -2.915471037e-05 | M94: -0.0007769290385 | N94: 2.50595277e-08
A95: 44.44624 | B95: ='DF raw data'!J100 -> 6.0562189e-07 | C95: ='DF raw data'!K100 -> -8.7884865e-07 | D95: ='DF raw data'!L100 -> 7.2756916e-07 | F95: 6.065375903e-07 | G95: -8.820940422e-07 | H95: 7.286692446e-07 | J95: 1.034069707e-05 | K95: 0.0003889555446 | L95: -2.959589853e-05 | M95: -0.0007917317231 | N95: 2.555110857e-08
A96: 44.9464 | B96: ='DF raw data'!J101 -> 3.125024e-06 | C96: ='DF raw data'!K101 -> 2.8835304e-06 | D96: ='DF raw data'!L101 -> -3.1474749e-06 | F96: 3.129749036e-06 | G96: 2.894178635e-06 | H96: -3.152233882e-06 | J96: 1.190607235e-05 | K96: 0.0003949104858 | L96: -2.814834614e-05 | M96: -0.0008058104 | N96: 2.60183e-08
A97: 45.44656 | B97: ='DF raw data'!J102 -> 5.3720146e-06 | C97: ='DF raw data'!K102 -> -6.783268e-06 | D97: ='DF raw data'!L102 -> -2.328464e-06 | F97: 5.380137086e-06 | G97: -6.808317097e-06 | H97: -2.331984638e-06 | J97: 1.459700172e-05 | K97: 0.0004022113222 | L97: -3.155359402e-05 | M97: -0.0008215922455 | N97: 2.662284427e-08
A98: 45.94672 | B98: ='DF raw data'!J103 -> 4.5425118e-06 | C98: ='DF raw data'!K103 -> 3.9797399e-08 | D98: ='DF raw data'!L103 -> -6.0879079e-06 | F98: 4.549380078e-06 | G98: 3.994436193e-08 | H98: -6.097112817e-06 | J98: 1.687241966e-05 | K98: 0.0004106502316 | L98: -3.153361545e-05 | M98: -0.0008373640986 | N98: 2.726257264e-08
A99: 46.44688 | B99: ='DF raw data'!J104 -> 3.4486877e-06 | C99: ='DF raw data'!K104 -> -1.0899305e-06 | D99: ='DF raw data'!L104 -> -7.4266404e-06 | F99: 3.453902116e-06 | G99: -1.09395537e-06 | H99: -7.43786948e-06 | J99: 1.859992334e-05 | K99: 0.0004199531692 | L99: -3.208076816e-05 | M99: -0.0008534096156 | N99: 2.795035908e-08
A100: 46.94704 | B100: ='DF raw data'!J105 -> 6.8725814e-07 | C100: ='DF raw data'!K105 -> 7.9530955e-06 | D100: ='DF raw data'!L105 -> -3.631588e-06 | F100: 6.882972743e-07 | G100: 7.982464509e-06 | H100: -3.637078961e-06 | J100: 1.89441821e-05 | K100: 0.0004294282914 | L100: -2.808825872e-05 | M100: -0.0008674582391 | N100: 2.852445888e-08
A101: 47.4472 | B101: ='DF raw data'!J106 -> -2.6492778e-06 | C101: ='DF raw data'!K106 -> 1.1124393e-05 | D101: ='DF raw data'!L106 -> -2.349637e-06 | F101: -2.653283508e-06 | G101: 1.11654729e-05 | H101: -2.353189651e-06 | J101: 1.761711582e-05 | K101: 0.000438239668 | L101: -2.250373579e-05 | M101: -0.0008787137076 | N101: 2.893298002e-08
A102: 47.94736 | B102: ='DF raw data'!J107 -> -2.9168002e-06 | C102: ='DF raw data'!K107 -> 2.7348926e-06 | D102: ='DF raw data'!L107 -> -4.0351856e-06 | F102: -2.921210402e-06 | G102: 2.744991949e-06 | H102: -4.041286801e-06 | J102: 1.615604323e-05 | K102: 0.0004463202746 | L102: -2.113080061e-05 | M102: -0.0008892824888 | N102: 2.928685746e-08
A103: 48.44752 | B103: ='DF raw data'!J108 -> -2.6540799e-06 | C103: ='DF raw data'!K108 -> -2.8229604e-07 | D103: ='DF raw data'!L108 -> 5.3888903e-07 | F103: -2.658092869e-06 | G103: -2.833384964e-07 | H103: 5.397038302e-07 | J103: 1.48265715e-05 | K103: 0.0004537359326 | L103: -2.12725152e-05 | M103: -0.00089992215 | N103: 2.962313859e-08
A104: 48.94768 | B104: ='DF raw data'!J109 -> -2.5425395e-06 | C104: ='DF raw data'!K109 -> -4.760112e-06 | D104: ='DF raw data'!L109 -> -5.1100255e-07 | F104: -2.54638382e-06 | G104: -4.777690033e-06 | H104: -5.117751859e-07 | J104: 1.355297217e-05 | K104: 0.0004605145872 | L104: -2.366212464e-05 | M104: -0.0009117569983 | N104: 2.999504716e-08
A105: 49.44784 | B105: ='DF raw data'!J110 -> -2.4374165e-06 | C105: ='DF raw data'!K110 -> 3.6391286e-06 | D105: ='DF raw data'!L110 -> 4.0537518e-07 | F105: -2.441101874e-06 | G105: 3.652567091e-06 | H105: 4.059881073e-07 | J105: 1.233203065e-05 | K105: 0.0004666825756 | L105: -2.183525669e-05 | M105: -0.0009226781203 | N105: 3.030957649e-08
A106: 49.948 | B106: ='DF raw data'!J111 -> -1.2637607e-06 | C106: ='DF raw data'!K111 -> 9.741882e-07 | D106: ='DF raw data'!L111 -> 5.0657568e-06 | F106: -1.265671506e-06 | G106: 9.777856599e-07 | H106: 5.073416224e-06 | J106: 1.169899239e-05 | K106: 0.0004725339436 | L106: -2.134620741e-05 | M106: -0.0009333546394 | N106: 3.060593479e-08
A107: 50.44816 | B107: ='DF raw data'!J112 -> -9.3928219e-07 | C107: ='DF raw data'!K112 -> 1.9899692e-06 | D107: ='DF raw data'!L112 -> 1.9383176e-06 | F107: -9.407023847e-07 | G107: 1.997317713e-06 | H107: 1.941248336e-06 | J107: 1.122849069e-05 | K107: 0.0004781499855 | L107: -2.034722898e-05 | M107: -0.0009435315094 | N107: 3.087606557e-08
A108: 50.94832 | B108: ='DF raw data'!J113 -> 4.2413041e-07 | C108: ='DF raw data'!K113 -> 4.4630415e-06 | D108: ='DF raw data'!L113 -> -1.1997156e-06 | F108: 4.247716952e-07 | G108: 4.479522518e-06 | H108: -1.20152957e-06 | J108: 1.14409445e-05 | K108: 0.0004838722883 | L108: -1.8106751e-05 | M108: -0.000952587782 | N108: 3.110551379e-08
A109: 51.44848 | B109: ='DF raw data'!J114 -> -6.5112516e-07 | C109: ='DF raw data'!K114 -> -2.1985197e-07 | D109: ='DF raw data'!L114 -> 1.0651299e-06 | F109: -6.521096612e-07 | G109: -2.206638343e-07 | H109: 1.066740376e-06 | J109: 1.111478533e-05 | K109: 0.0004894314594 | L109: -1.821711823e-05 | M109: -0.0009616992559 | N109: 3.133328758e-08
A110: 51.94864 | B110: ='DF raw data'!J115 -> -2.1870362e-06 | C110: ='DF raw data'!K115 -> 5.3671438e-06 | D110: ='DF raw data'!L115 -> 5.9551844e-06 | F110: -2.190342999e-06 | G110: 5.386963466e-06 | H110: 5.964188639e-06 | J110: 1.001926338e-05 | K110: 0.0004944426941 | L110: -1.552277458e-05 | M110: -0.0009694631268 | N110: 3.150401328e-08
A111: 52.4488 | B111: ='DF raw data'!J116 -> -2.1184094e-06 | C111: ='DF raw data'!K116 -> 1.2776087e-05 | D111: ='DF raw data'!L116 -> 4.972851e-07 | F111: -2.121612435e-06 | G111: 1.282326624e-05 | H111: 4.980369951e-07 | J111: 8.958117703e-06 | K111: 0.0004989231863 | L111: -9.109089734e-06 | M111: -0.0009740191291 | N111: 3.158565109e-08
A112: 52.94896 | B112: ='DF raw data'!J117 -> -4.253813e-07 | C112: ='DF raw data'!K117 -> 3.4767475e-06 | D112: ='DF raw data'!L117 -> -1.062956e-05 | F112: -4.260244765e-07 | G112: 3.489586354e-06 | H112: -1.064563189e-05 | J112: 8.7450373e-06 | K112: 0.0005032971042 | L112: -7.363738223e-06 | M112: -0.0009777021764 | N112: 3.165102216e-08
A113: 53.44912 | B113: ='DF raw data'!J118 -> 5.858878e-06 | C113: ='DF raw data'!K118 -> -1.0004007e-06 | D113: ='DF raw data'!L118 -> -1.0694447e-05 | F113: 5.867736624e-06 | G113: -1.004094957e-06 | H113: -1.0710617e-05 | J113: 1.167984445e-05 | K113: 0.0005091388952 | L113: -7.865946357e-06 | M113: -0.0009816364082 | N113: 3.175019983e-08
A114: 53.94928 | B114: ='DF raw data'!J119 -> 7.7637087e-06 | C114: ='DF raw data'!K119 -> 6.547707e-06 | D114: ='DF raw data'!L119 -> -4.3314044e-06 | F114: 7.775447428e-06 | G114: 6.571886223e-06 | H114: -4.337953483e-06 | J114: 1.556881224e-05 | K114: 0.0005169257923 | L114: -4.578951744e-06 | M114: -0.0009839266167 | N114: 3.188191932e-08
A115: 54.44944 | B115: ='DF raw data'!J120 -> -1.6035043e-06 | C115: ='DF raw data'!K120 -> 3.6140448e-06 | D115: ='DF raw data'!L120 -> 4.5383305e-07 | F115: -1.605928799e-06 | G115: 3.627390662e-06 | H115: 4.545192456e-07 | J115: 1.476559089e-05 | K115: 0.0005243109502 | L115: -2.76467603e-06 | M115: -0.000985309397 | N115: 3.199478848e-08
A116: 54.9496 | B116: ='DF raw data'!J121 -> -7.847324e-06 | C116: ='DF raw data'!K121 -> 1.9950967e-07 | D116: ='DF raw data'!L121 -> -2.0540003e-06 | F116: -7.859189154e-06 | G116: 2.002464148e-07 | H116: -2.057105948e-06 | J116: 1.083473884e-05 | K116: 0.0005297300532 | L116: -2.664520784e-06 | M116: -0.0009866420838 | N116: 3.205705402e-08
A117: 55.44976 | B117: ='DF raw data'!J122 -> -5.8312285e-06 | C117: ='DF raw data'!K122 -> 1.3725688e-05 | D117: ='DF raw data'!L122 -> -5.3400995e-06 | F117: -5.840045317e-06 | G117: 1.377637391e-05 | H117: -5.34817373e-06 | J117: 7.913781774e-06 | K117: 0.0005336882103 | L117: 4.22587039e-06 | M117: -0.0009845284724 | N117: 3.209730986e-08
A118: 55.94992 | B118: ='DF raw data'!J123 -> -6.7705255e-06 | C118: ='DF raw data'!K123 -> 3.0225622e-06 | D118: ='DF raw data'!L123 -> -1.2056382e-06 | F118: -6.780762535e-06 | G118: 3.033723849e-06 | H118: -1.207461125e-06 | J118: 4.522315585e-06 | K118: 0.0005359500917 | L118: 5.74321771e-06 | M118: -0.0009816559446 | N118: 3.212403635e-08
A119: 56.45008 | B119: ='DF raw data'!J124 -> -4.9024088e-06 | C119: ='DF raw data'!K124 -> -1.2625243e-05 | D119: ='DF raw data'!L124 -> 5.4481166e-07 | F119: -4.909821242e-06 | G119: -1.267186521e-05 | H119: 5.456354152e-07 | J119: 2.066619393e-06 | K119: 0.000536983732 | L119: -5.947423929e-07 | M119: -0.000981953411 | N119: 3.212634941e-08
A120: 56.95024 | B120: ='DF raw data'!J125 -> 4.2420317e-07 | C120: ='DF raw data'!K125 -> -7.6724264e-06 | D120: ='DF raw data'!L125 -> -5.5133401e-06 | F120: 4.248445652e-07 | G120: -7.700758961e-06 | H120: -5.52167627e-06 | J120: 2.27910965e-06 | K120: 0.0005381236515 | L120: -4.446353995e-06 | M120: -0.0009841772994 | N120: 3.21388356e-08
A121: 57.4504 | B121: ='DF raw data'!J126 -> 1.4058172e-06 | C121: ='DF raw data'!K126 -> 1.33244e-06 | D121: ='DF raw data'!L126 -> -7.4000832e-06 | F121: 1.407942796e-06 | G121: 1.337360404e-06 | H121: -7.411272126e-06 | J121: 2.983306319e-06 | K121: 0.000539615782 | L121: -3.777459815e-06 | M121: -0.0009860666337 | N121: 3.215042397e-08
A122: 57.95056 | B122: ='DF raw data'!J127 -> -1.6720122e-07 | C122: ='DF raw data'!K127 -> -4.276038e-06 | D122: ='DF raw data'!L127 -> -3.047576e-06 | F122: -1.674540282e-07 | G122: -4.291828455e-06 | H122: -3.052183935e-06 | J122: 2.899552512e-06 | K122: 0.0005410660222 | L122: -5.924060735e-06 | M122: -0.0009890296119 | N122: 3.217218188e-08
A123: 58.45072 | B123: ='DF raw data'!J128 -> -4.0512818e-06 | C123: ='DF raw data'!K128 -> 7.1044988e-06 | D123: ='DF raw data'!L128 -> -3.5634414e-06 | F123: -4.057407338e-06 | G123: 7.130734131e-06 | H123: -3.568829323e-06 | J123: 8.70199658e-07 | K123: 0.0005415012612 | L123: -2.357552753e-06 | M123: -0.0009902087655 | N123: 3.217534054e-08
A124: 58.95088 | B124: ='DF raw data'!J129 -> -8.5935753e-06 | C124: ='DF raw data'!K129 -> 4.5921988e-06 | D124: ='DF raw data'!L129 -> -8.9289651e-06 | F124: -8.606568786e-06 | G124: 4.609156767e-06 | H124: -8.942465695e-06 | J124: -3.434461786e-06 | K124: 0.0005397834808 | L124: -5.223690401e-08 | M124: -0.0009902348923 | N124: 3.218124156e-08
A125: 59.45104 | B125: ='DF raw data'!J130 -> -1.0973061e-05 | C125: ='DF raw data'!K130 -> -1.4734726e-05 | D125: ='DF raw data'!L130 -> -1.2289614e-05 | F125: -1.098965227e-05 | G125: -1.478913806e-05 | H125: -1.23081959e-05 | J125: -8.931046264e-06 | K125: 0.0005353165287 | L125: -7.449172196e-06 | M125: -0.0009939606703 | N125: 3.224889008e-08
A126: 59.9512 | B126: ='DF raw data'!J131 -> -1.05699e-05 | C126: ='DF raw data'!K131 -> -2.1449393e-06 | D126: ='DF raw data'!L131 -> -9.5320111e-06 | F126: -1.058588169e-05 | G126: -2.152860083e-06 | H126: -9.546423501e-06 | J126: -1.422568085e-05 | K126: 0.0005282014122 | L126: -8.525946695e-06 | M126: -0.0009982250078 | N126: 3.238646497e-08
A127: 60.45136 | B127: ='DF raw data'!J132 -> -4.2610768e-06 | C127: ='DF raw data'!K132 -> -3.1457764e-06 | D127: ='DF raw data'!L132 -> -6.9093198e-06 | F127: -4.267519548e-06 | G127: -3.157393051e-06 | H127: -6.919766692e-06 | J127: -1.636012343e-05 | K127: 0.0005200187329 | L127: -1.01051484e-05 | M127: -0.001003279199 | N127: 3.257140796e-08
A128: 60.95152 | B128: ='DF raw data'!J133 -> 1.2026434e-06 | C128: ='DF raw data'!K133 -> 5.0894814e-06 | D128: ='DF raw data'!L133 -> -5.3356466e-06 | F128: 1.204461797e-06 | G128: 5.108275721e-06 | H128: -5.343714098e-06 | J128: -1.575769981e-05 | K128: 0.0005121373617 | L128: -7.550193219e-06 | M128: -0.001007055503 | N128: 3.272411207e-08
A129: 61.45168 | B129: ='DF raw data'!J134 -> 2.382498e-06 | C129: ='DF raw data'!K134 -> 8.3228224e-06 | D129: ='DF raw data'!L134 -> -6.496613e-06 | F129: 2.386100337e-06 | G129: 8.353556728e-06 | H129: -6.506435879e-06 | J129: -1.456426787e-05 | K129: 0.0005048528975 | L129: -3.372078286e-06 | M129: -0.001008742082 | N129: 3.283589224e-08
A130: 61.95184 | B130: ='DF raw data'!J135 -> 4.0667223e-06 | C130: ='DF raw data'!K135 -> -1.2214898e-06 | D130: ='DF raw data'!L135 -> -1.8637922e-06 | F130: 4.072871184e-06 | G130: -1.22600049e-06 | H130: -1.866610254e-06 | J130: -1.252718062e-05 | K130: 0.0004985873028 | L130: -3.985274691e-06 | M130: -0.001010735357 | N130: 3.292232622e-08
A131: 62.452 | B131: ='DF raw data'!J136 -> 2.9924561e-06 | C131: ='DF raw data'!K136 -> -4.2570914e-06 | D131: ='DF raw data'!L136 -> 7.7518807e-06 | F131: 2.996980694e-06 | G131: -4.27281189e-06 | H131: 7.763601544e-06 | J131: -1.102821076e-05 | K131: 0.0004930714329 | L131: -6.122364285e-06 | M131: -0.001013797519 | N131: 3.300190407e-08
A132: 62.95216 | B132: ='DF raw data'!J137 -> 2.7599019e-06 | C132: ='DF raw data'!K137 -> 2.6563041e-06 | D132: ='DF raw data'!L137 -> 1.0461491e-05 | F132: 2.764074872e-06 | G132: 2.666113239e-06 | H132: 1.047730877e-05 | J132: -9.645731067e-06 | K132: 0.0004882470241 | L132: -4.788881088e-06 | M132: -0.001016192726 | N132: 3.305990938e-08
A133: 63.45232 | B133: ='DF raw data'!J138 -> 5.1915126e-06 | C133: ='DF raw data'!K138 -> 1.8055728e-06 | D133: ='DF raw data'!L138 -> 5.0467956e-06 | F133: 5.199362167e-06 | G133: 1.812240378e-06 | H133: 5.054426355e-06 | J133: -7.045218086e-06 | K133: 0.0004847232878 | L133: -3.88247094e-06 | M133: -0.001018134582 | N133: 3.309227407e-08
A134: 63.95248 | B134: ='DF raw data'!J139 -> 5.6313297e-06 | C134: ='DF raw data'!K139 -> -6.5266872e-06 | D134: ='DF raw data'!L139 -> 5.0514313e-07 | F134: 5.639844271e-06 | G134: -6.550788801e-06 | H134: 5.059069064e-07 | J134: -4.224393575e-06 | K134: 0.0004826104151 | L134: -7.158913467e-06 | M134: -0.001021715184 | N134: 3.31268329e-08
A135: 64.45264 | B135: ='DF raw data'!J140 -> 2.5327465e-06 | C135: ='DF raw data'!K140 -> -3.7316549e-06 | D135: ='DF raw data'!L140 -> -3.0914355e-06 | F135: 2.536576013e-06 | G135: =(1-$G$1*($B$2-$G$2))*C135*$M$2/$M$1 -> -3.74543507e-06 | H135: -3.09610975e-06 | J135: -2.955699717e-06 | K135: 0.0004811320924 | L135: -9.032230272e-06 | M135: -0.001026232745 | N135: 3.317200602e-08
A136: =A135+$B$1 -> 64.9528 | B136: ='DF raw data'!J141 -> -1.1561493e-06 | C136: ='DF raw data'!K141 -> 8.364654e-10 | D136: ='DF raw data'!L141 -> -5.8402634e-06 | F136: -1.157897398e-06 | G136: 8.395542803e-10 | H136: -5.849093878e-06 | J136: =F136*$B$1+J135 -> -3.534833679e-06 | K136: =J136*$B$1+K135 -> 0.0004793641099 | L136: =G136*$B$1+L135 -> -9.03181036e-06 | M136: =L136*$B$1+M135 -> -0.001030750095 | N136: =(J136^2+L136^2)*$B$1+N135 -> 3.321905539e-08
A137: 65.45296 | B137: ='DF raw data'!J142 -> -1.5457769e-06 | C137: ='DF raw data'!K142 -> 4.0105897e-06 | D137: ='DF raw data'!L142 -> -6.2942249e-06 | F137: -1.548114115e-06 | G137: 4.025399914e-06 | H137: -6.303741768e-06 | J137: -4.309138435e-06 | K137: 0.0004772088513 | L137: -7.018466339e-06 | M137: -0.001034260451 | N137: 3.325298002e-08
A138: 65.95312 | B138: ='DF raw data'!J143 -> 1.1912929e-06 | C138: ='DF raw data'!K143 -> 3.9239958e-06 | D138: ='DF raw data'!L143 -> -7.0679212e-06 | F138: 1.193094135e-06 | G138: 3.938486242e-06 | H138: -7.078607897e-06 | J138: -3.712400472e-06 | K138: 0.000475352057 | L138: -5.048593061e-06 | M138: -0.001036785555 | N138: 3.327262141e-08
A139: 66.45328 | B139: ='DF raw data'!J144 -> 1.0872903e-06 | C139: ='DF raw data'!K144 -> 7.5721609e-06 | D139: ='DF raw data'!L144 -> -1.6599345e-06 | F139: 1.088934283e-06 | G139: 7.600123203e-06 | H139: -1.662444321e-06 | J139: -3.167759101e-06 | K139: 0.0004737676706 | L139: -1.247315439e-06 | M139: -0.001037409413 | N139: 3.327841851e-08
A140: 66.95344 | B140: ='DF raw data'!J145 -> -1.0617074e-06 | C140: ='DF raw data'!K145 -> 5.494433e-06 | D140: ='DF raw data'!L145 -> 1.9790484e-06 | F140: -1.063312702e-06 | G140: 5.514722717e-06 | H140: 1.982040721e-06 | J140: -3.699585582e-06 | K140: 0.0004719172859 | L140: 1.510928275e-06 | M140: -0.001036653707 | N140: 3.328640598e-08
A141: 67.4536 | B141: ='DF raw data'!J146 -> 5.9668702e-07 | C141: ='DF raw data'!K146 -> 1.0618303e-05 | D141: ='DF raw data'!L146 -> -2.3030418e-06 | F141: 5.975892108e-07 | G141: 1.065751403e-05 | H141: -2.306523999e-06 | J141: -3.400695363e-06 | K141: 0.0004702163941 | L141: 6.84139049e-06 | M141: -0.001033231917 | N141: 3.33156e-08
A142: 67.95376 | B142: ='DF raw data'!J147 -> 3.4838597e-06 | C142: ='DF raw data'!K147 -> 3.8216567e-06 | D142: ='DF raw data'!L147 -> -4.4290477e-06 | F142: 3.489127296e-06 | G142: 3.835769227e-06 | H142: -4.43574442e-06 | J142: -1.655573454e-06 | K142: 0.0004693883425 | L142: 8.759888827e-06 | M142: -0.001028850571 | N142: 3.3355351e-08
A143: 68.45392 | B143: ='DF raw data'!J148 -> -1.6838745e-06 | C143: ='DF raw data'!K148 -> 7.4636846e-06 | D143: ='DF raw data'!L148 -> -1.0301109e-05 | F143: -1.686420518e-06 | G143: 7.491246324e-06 | H143: -1.031668428e-05 | J143: -2.499053541e-06 | K143: 0.0004681384159 | L143: 1.250671059e-05 | M143: -0.001022595215 | N143: 3.343670857e-08
A144: 68.95408 | B144: ='DF raw data'!J149 -> -7.0876408e-06 | C144: ='DF raw data'!K149 -> 8.1728504e-06 | D144: ='DF raw data'!L149 -> -1.1474386e-05 | F144: -7.098357313e-06 | G144: 8.203030915e-06 | H144: -1.149173527e-05 | J144: -6.049367934e-06 | K144: 0.000465112764 | L144: 1.660953853e-05 | M144: -0.001014287788 | N144: 3.359299437e-08
A145: 69.45424 | B145: ='DF raw data'!J150 -> -3.6134004e-06 | C145: ='DF raw data'!K150 -> -4.0865123e-07 | D145: ='DF raw data'!L150 -> -8.229018e-06 | F145: -3.618863861e-06 | G145: -4.101602879e-07 | H145: -8.241460275e-06 | J145: -7.859378883e-06 | K145: 0.0004611818171 | L145: 1.640439276e-05 | M145: -0.001006082967 | N145: 3.375848428e-08
A146: 69.9544 | B146: ='DF raw data'!J151 -> 6.7492074e-08 | C146: ='DF raw data'!K151 -> -1.2044969e-05 | D146: ='DF raw data'!L151 -> -3.8112314e-06 | F146: 6.759412202e-08 | G146: -1.208944839e-05 | H146: -3.816993982e-06 | J146: -7.825571007e-06 | K146: 0.0004572677795 | L146: 1.035773426e-05 | M146: -0.001000902442 | N146: 3.384277235e-08
A147: 70.45456 | B147: ='DF raw data'!J152 -> -6.4531895e-07 | C147: ='DF raw data'!K152 -> -7.1792797e-06 | D147: ='DF raw data'!L152 -> -1.7338e-06 | F147: -6.462946723e-07 | G147: -7.20579118e-06 | H147: -1.736421506e-06 | J147: -8.148821751e-06 | K147: 0.0004531920648 | L147: 6.753685739e-06 | M147: -0.0009975245189 | N147: 3.389879806e-08
A148: 70.95472 | B148: ='DF raw data'!J153 -> -2.2465099e-06 | C148: ='DF raw data'!K153 -> 1.1087166e-05 | D148: ='DF raw data'!L153 -> -2.3468285e-06 | F148: -2.249906623e-06 | G148: 1.112810843e-05 | H148: -2.350376905e-06 | J148: -9.274135047e-06 | K148: 0.0004485535134 | L148: 1.231952045e-05 | M148: -0.0009913627876 | N148: 3.401772619e-08
A149: 71.45488 | B149: ='DF raw data'!J154 -> -2.4974868e-06 | C149: ='DF raw data'!K154 -> 7.6802371e-06 | D149: ='DF raw data'!L154 -> -4.2140723e-06 | F149: -2.501263e-06 | G149: 7.708598504e-06 | H149: -4.220443977e-06 | J149: -1.052516675e-05 | K149: 0.000443289246 | L149: 1.617505308e-05 | M149: -0.000983272673 | N149: 3.420399151e-08
A150: 71.95504 | B150: ='DF raw data'!J155 -> -3.282126e-06 | C150: ='DF raw data'!K155 -> 5.2571995e-06 | D150: ='DF raw data'!L155 -> -8.9677023e-06 | F150: -3.287088575e-06 | G150: 5.276613166e-06 | H150: -8.981261466e-06 | J150: -1.216923697e-05 | K150: 0.0004372026805 | L150: 1.881420392e-05 | M150: -0.0009738625608 | N150: 3.445510414e-08
A151: 72.4552 | B151: ='DF raw data'!J156 -> -1.430904e-06 | C151: ='DF raw data'!K156 -> -6.3254203e-07 | D151: ='DF raw data'!L156 -> -9.1239754e-06 | F151: =(1-$G$1*($B$2-$G$2))*B151 -> -1.433067527e-06 | G151: -6.348778668e-07 | H151: -9.137770851e-06 | J151: -1.288600002e-05 | K151: 0.0004307576187 | L151: 1.849666341e-05 | M151: -0.0009646112696 | N151: 3.470927323e-08
A152: 72.95536 | B152: ='DF raw data'!J157 -> 3.2967657e-06 | C152: ='DF raw data'!K157 -> 9.0971007e-06 | D152: ='DF raw data'!L157 -> -6.7260239e-06 | F152: 3.30175041e-06 | G152: 9.130694266e-06 | H152: -6.736193648e-06 | J152: -1.123459654e-05 | K152: 0.0004251385229 | L152: 2.306347145e-05 | M152: -0.0009530758437 | N152: 3.503844847e-08
A153: 73.45552 | B153: ='DF raw data'!J158 -> 1.2856038e-06 | C153: ='DF raw data'!K158 -> 1.9918845e-05 | D153: ='DF raw data'!L158 -> -2.5423772e-06 | F153: 1.287547633e-06 | G153: 1.999240086e-05 | H153: -2.546221274e-06 | J153: -1.059061672e-05 | K153: 0.00041984152 | L153: 3.306287066e-05 | M153: -0.0009365391183 | N153: 3.564129861e-08
A154: 73.95568 | B154: ='DF raw data'!J159 -> -4.1100134e-06 | C154: ='DF raw data'!K159 -> 1.1225797e-05 | D154: ='DF raw data'!L159 -> 2.6384685e-06 | F154: -4.11622774e-06 | G154: 1.126725137e-05 | H154: 2.642457864e-06 | J154: -1.264938918e-05 | K154: 0.0004135148015 | L154: 3.869829911e-05 | M154: -0.000917183777 | N154: 3.647034652e-08
A155: 74.45584 | B155: ='DF raw data'!J160 -> -7.1888348e-06 | C155: ='DF raw data'!K160 -> 1.2964354e-05 | D155: ='DF raw data'!L160 -> -9.5918699e-07 | F155: -7.199704318e-06 | G155: 1.301222847e-05 | H155: -9.606372807e-07 | J155: -1.625039329e-05 | K155: 0.0004053870048 | L155: 4.52064953e-05 | M155: -0.0008945732964 | N155: 3.7624567e-08
A156: 74.956 | B156: ='DF raw data'!J161 -> -6.1501482e-06 | C156: ='DF raw data'!K161 -> 1.0284068e-05 | D156: ='DF raw data'!L161 -> -8.2620945e-06 | F156: -6.159447224e-06 | G156: 1.032204477e-05 | H156: -8.274586787e-06 | J156: -1.933110242e-05 | K156: 0.0003957183606 | L156: 5.036916921e-05 | M156: -0.0008693806527 | N156: 3.908040508e-08
A157: 75.45616 | B157: ='DF raw data'!J162 -> -3.506211e-06 | C157: ='DF raw data'!K162 -> 1.2906021e-07 | D157: ='DF raw data'!L162 -> -7.2478119e-06 | F157: -3.511512391e-06 | G157: 1.295368006e-07 | H157: -7.258770592e-06 | J157: -2.108742046e-05 | K157: 0.0003851712764 | L157: 5.043395834e-05 | M157: -0.0008441556041 | N157: 4.057501493e-08
A158: 75.95632 | B158: ='DF raw data'!J163 -> -4.2650786e-06 | C158: ='DF raw data'!K163 -> 6.0125312e-06 | D158: ='DF raw data'!L163 -> -1.5001322e-07 | F158: -4.271527399e-06 | G158: 6.034734138e-06 | H158: -1.5024004e-07 | J158: -2.32238676e-05 | K158: 0.0003735556268 | L158: 5.345229097e-05 | M158: -0.0008174209062 | N158: 4.227380609e-08
A159: 76.45648 | B159: ='DF raw data'!J164 -> -6.0971502e-06 | C159: ='DF raw data'!K164 -> 7.6175265e-06 | D159: ='DF raw data'!L164 -> 3.4868888e-06 | F159: -6.106369091e-06 | G159: 7.645656328e-06 | H159: 3.492160976e-06 | J159: -2.627802916e-05 | K159: 0.0003604124077 | L159: 5.727634243e-05 | M159: -0.0007887735708 | N159: 4.425999858e-08
A160: 76.95664 | B160: ='DF raw data'!J165 -> -7.3815459e-06 | C160: ='DF raw data'!K165 -> -6.2568979e-06 | D160: ='DF raw data'!L165 -> 7.1270647e-06 | F160: -7.392706797e-06 | G160: -6.28000323e-06 | H160: 7.137840822e-06 | J160: -2.99755654e-05 | K160: 0.0003454198289 | L160: 5.413533602e-05 | M160: -0.0007616972411 | N160: 4.617519581e-08
A161: 77.4568 | B161: ='DF raw data'!J166 -> -1.0039104e-05 | C161: ='DF raw data'!K166 -> -3.2373075e-06 | D161: ='DF raw data'!L166 -> 4.7670642e-06 | F161: -1.005428313e-05 | G161: -3.249262155e-06 | H161: 4.774272001e-06 | J161: -3.500431564e-05 | K161: 0.0003279120704 | L161: 5.251018506e-05 | M161: -0.000735433747 | N161: 4.816714385e-08
A162: 77.95696 | B162: ='DF raw data'!J167 -> -1.0389471e-05 | C162: ='DF raw data'!K167 -> 7.3788251e-06 | D162: ='DF raw data'!L167 -> -3.337421e-06 | F162: -1.040517988e-05 | G162: 7.406073457e-06 | H162: -3.342467181e-06 | J162: -4.020857041e-05 | K162: 0.0003078013519 | L162: 5.621440676e-05 | M162: -0.0007073175493 | N162: 5.055630247e-08
A163: 78.45712 | B163: ='DF raw data'!J168 -> -7.3746628e-06 | C163: ='DF raw data'!K168 -> -2.7480298e-06 | D163: ='DF raw data'!L168 -> -8.739019e-06 | F163: -7.38581329e-06 | G163: -2.758177662e-06 | H163: -8.752232397e-06 | J163: -4.390265879e-05 | K163: 0.000285842998 | L163: 5.483487662e-05 | M163: -0.0006798913374 | N163: 5.302424553e-08
A164: 78.95728 | B164: ='DF raw data'!J169 -> -2.2327583e-06 | C164: ='DF raw data'!K169 -> -1.1214195e-06 | D164: ='DF raw data'!L169 -> -1.7014287e-05 | F164: -2.236134231e-06 | G164: -1.125560652e-06 | H164: -1.70400126e-05 | J164: -4.502108368e-05 | K164: 0.0002633252528 | L164: 5.42719162e-05 | M164: -0.0006527466958 | N164: 5.551121054e-08
A165: 79.45744 | B165: ='DF raw data'!J170 -> 3.767753e-06 | C165: ='DF raw data'!K170 -> 6.9083608e-06 | D165: ='DF raw data'!L170 -> -2.0304722e-05 | F165: 3.773449843e-06 | G165: 6.933871837e-06 | H165: -2.033542274e-05 | J165: -4.313375501e-05 | K165: 0.0002417514739 | L165: 5.773996154e-05 | M165: -0.0006238674766 | N165: 5.810925363e-08
A166: 79.9576 | B166: ='DF raw data'!J171 -> 5.7265138e-06 | C166: ='DF raw data'!K171 -> 4.9066866e-06 | D166: ='DF raw data'!L171 -> -9.0548829e-06 | F166: 5.735172289e-06 | G166: 4.9248059e-06 | H166: -9.068573883e-06 | J166: -4.026525124e-05 | K166: 0.0002216124059 | L166: 6.020315246e-05 | M166: -0.0005937562679 | N166: 6.073294796e-08
A167: 80.45776 | B167: ='DF raw data'!J172 -> 5.7959992e-06 | C167: ='DF raw data'!K172 -> 1.8394633e-06 | D167: ='DF raw data'!L172 -> 4.6447408e-06 | F167: 5.804762751e-06 | G167: 1.846256028e-06 | H167: 4.651763648e-06 | J167: -3.73619411e-05 | K167: 0.0002029254574 | L167: 6.112657588e-05 | M167: -0.0005631831997 | N167: 6.32999556e-08
A168: 80.95792 | B168: ='DF raw data'!J173 -> 1.5525296e-06 | C168: ='DF raw data'!K173 -> 2.5859883e-06 | D168: ='DF raw data'!L173 -> -4.8309716e-06 | F168: 1.554877025e-06 | G168: 2.595537779e-06 | H168: -4.838276029e-06 | J168: -3.658425381e-05 | K168: 0.000184627477 | L168: 6.242476005e-05 | M168: -0.0005319608317 | N168: 6.591842239e-08
A169: 81.45808 | B169: ='DF raw data'!J174 -> -2.8098145e-06 | C169: ='DF raw data'!K174 -> -4.7657159e-06 | D169: ='DF raw data'!L174 -> -8.5967304e-06 | F169: -2.81406294e-06 | G169: -4.783314627e-06 | H169: -8.609728656e-06 | J169: -3.799173553e-05 | K169: 0.0001656255306 | L169: 6.003233741e-05 | M169: -0.0005019350578 | N169: 6.84428567e-08
A170: 81.95824 | B170: ='DF raw data'!J175 -> -1.4352987e-06 | C170: ='DF raw data'!K175 -> -9.6570989e-07 | D170: ='DF raw data'!L175 -> -5.6594267e-06 | F170: -1.437468872e-06 | G170: -9.692760414e-07 | H170: -5.667983753e-06 | J170: -3.871069996e-05 | K170: 0.0001462639869 | L170: 5.95475443e-05 | M170: -0.0004721517581 | N170: 7.096587797e-08
A171: 82.4584 | B171: ='DF raw data'!J176 -> -6.747694e-08 | C171: ='DF raw data'!K176 -> 1.0097938e-05 | D171: ='DF raw data'!L176 -> -6.809159e-06 | F171: -6.757896513e-08 | G171: 1.013522743e-05 | H171: -6.819454448e-06 | J171: -3.874450025e-05 | K171: 0.0001268855376 | L171: 6.461677966e-05 | M171: -0.0004398330296 | N171: 7.380501846e-08
A172: 82.95856 | B172: ='DF raw data'!J177 -> -8.8641508e-07 | C172: ='DF raw data'!K177 -> 5.4066386e-06 | D172: ='DF raw data'!L177 -> -6.9151115e-06 | F172: -8.877553396e-07 | G172: 5.426604112e-06 | H172: -6.925567149e-06 | J172: -3.918851997e-05 | K172: 0.0001072850075 | L172: 6.733094997e-05 | M172: -0.0004061567816 | N172: 7.684058799e-08
A173: 83.45872 | B173: ='DF raw data'!J178 -> -6.4632303e-07 | C173: ='DF raw data'!K178 -> 6.4345613e-06 | D173: ='DF raw data'!L178 -> -3.1721695e-06 | F173: -6.473002704e-07 | G173: 6.458322701e-06 | H173: -3.17696582e-06 | J173: -3.951227367e-05 | K173: 8.752254868e-05 | L173: 7.056114465e-05 | M173: -0.0003708649195 | N173: 8.011168186e-08
A174: 83.95888 | B174: ='DF raw data'!J179 -> -1.117514e-06 | C174: ='DF raw data'!K179 -> 1.2038903e-05 | D174: ='DF raw data'!L179 -> 5.1452248e-06 | F174: -1.119203681e-06 | G174: 1.208335999e-05 | H174: 5.15300438e-06 | J174: -4.007205458e-05 | K174: 6.748010986e-05 | L174: 7.660475798e-05 | M174: -0.0003325502838 | N174: 8.384990696e-08
A175: 84.45904 | B175: ='DF raw data'!J180 -> -1.9839206e-06 | C175: ='DF raw data'!K180 -> 3.2532573e-06 | D175: ='DF raw data'!L180 -> 3.2078995e-06 | F175: -1.986920288e-06 | G175: 3.265270854e-06 | H175: 3.212749844e-06 | J175: -4.106583263e-05 | K175: 4.694062301e-05 | L175: 7.823791585e-05 | M175: -0.0002934188078 | N175: 8.775494322e-08
A176: 84.9592 | B176: ='DF raw data'!J181 -> -3.2707756e-06 | C176: ='DF raw data'!K181 -> -3.4259733e-06 | D176: ='DF raw data'!L181 -> -1.6932729e-06 | F176: -3.275721013e-06 | G176: -3.438624656e-06 | H176: -1.695833129e-06 | J176: -4.270421725e-05 | K176: 2.558168171e-05 | L176: 7.651805335e-05 | M176: -0.0002551475382 | N176: 9.159550313e-08
A177: 85.45936 | B177: ='DF raw data'!J182 -> -6.2147587e-06 | C177: ='DF raw data'!K182 -> -8.2427715e-07 | D177: ='DF raw data'!L182 -> 3.5345463e-06 | F177: -6.224155415e-06 | G177: -8.273210218e-07 | H177: 3.539890534e-06 | J177: -4.581729083e-05 | K177: 2.66570553e-06 | L177: 7.610426046e-05 | M177: -0.0002170832313 | N177: 9.554230701e-08
A178: 85.95952 | B178: ='DF raw data'!J183 -> -4.8562065e-06 | C178: ='DF raw data'!K183 -> -2.5576294e-06 | D178: ='DF raw data'!L183 -> 3.0190884e-06 | F178: -4.863549084e-06 | G178: -2.567074155e-06 | H178: 3.023653262e-06 | J178: -4.824984354e-05 | K178: -2.146693621e-05 | L178: 7.482031265e-05 | M178: -0.0001796611037 | N178: 9.950663848e-08
A179: 86.45968 | B179: ='DF raw data'!J184 -> -1.903623e-06 | C179: ='DF raw data'!K184 -> -6.8000795e-06 | D179: ='DF raw data'!L184 -> -3.1654465e-06 | F179: -1.906501278e-06 | G179: -6.825190678e-06 | H179: -3.170232655e-06 | J179: -4.920339922e-05 | K179: -4.607650837e-05 | L179: 7.140662528e-05 | M179: -0.000143946366 | N179: 1.03267782e-07
A180: 86.95984 | B180: ='DF raw data'!J185 -> -1.7033013e-06 | C180: ='DF raw data'!K185 -> 2.4121321e-06 | D180: ='DF raw data'!L185 -> 2.9278478e-06 | F180: -1.705876692e-06 | G180: 2.421039566e-06 | H180: 2.932274706e-06 | J180: -5.00566105e-05 | K180: -7.111282267e-05 | L180: 7.261753243e-05 | M180: -0.000107625981 | N180: 1.071585117e-07
A181: 87.46 | B181: ='DF raw data'!J186 -> 2.5639895e-06 | C181: ='DF raw data'!K186 -> 2.8192192e-06 | D181: ='DF raw data'!L186 -> 5.5241858e-06 | F181: 2.567866252e-06 | G181: 2.829629948e-06 | H181: 5.532538369e-06 | J181: -4.877226652e-05 | K181: -9.55067595e-05 | L181: 7.403280015e-05 | M181: -7.059773567e-05 | N181: 1.11089564e-07
A182: 87.96016 | B182: ='DF raw data'!J187 -> 5.8120208e-06 | C182: ='DF raw data'!K187 -> 9.7907887e-06 | D182: ='DF raw data'!L187 -> -9.4328175e-07 | F182: 5.820808575e-06 | G182: 9.826943901e-06 | H182: -9.44707992e-07 | J182: -4.58609309e-05 | K182: -0.0001184445627 | L182: 7.894784441e-05 | M182: -3.111118181e-05 | N182: 1.152588913e-07
A183: 88.46032 | B183: ='DF raw data'!J188 -> 5.3340074e-07 | C183: ='DF raw data'!K188 -> 1.261304e-05 | D183: ='DF raw data'!L188 -> -4.1671569e-06 | F183: 5.342072419e-07 | G183: 1.265961715e-05 | H183: -4.173457641e-06 | J183: -4.559374181e-05 | K183: -0.0001412487286 | L183: 8.527967852e-05 | M183: 1.15423022e-05 | N183: 1.19936094e-07
A184: 88.96048 | B184: ='DF raw data'!J189 -> -3.1814704e-06 | C184: ='DF raw data'!K189 -> 1.4538584e-06 | D184: ='DF raw data'!L189 -> -4.8303605e-06 | F184: -3.186280783e-06 | G184: 1.459227175e-06 | H184: -4.837664005e-06 | J184: -4.7187392e-05 | K184: -0.0001648499746 | L184: 8.600952559e-05 | M184: 5.456082651e-05 | N184: 1.247497781e-07
A185: 89.46064 | B185: ='DF raw data'!J190 -> -3.2240494e-06 | C185: ='DF raw data'!K190 -> 8.2250208e-06 | D185: ='DF raw data'!L190 -> -5.3551462e-06 | F185: -3.228924163e-06 | G185: 8.255393969e-06 | H185: -5.363243181e-06 | J185: -4.880237071e-05 | K185: -0.0001892589683 | L185: 9.013854343e-05 | M185: 9.96445204e-05 | N185: 1.300047734e-07
A186: 89.9608 | B186: ='DF raw data'!J191 -> -3.0954977e-06 | C186: ='DF raw data'!K191 -> 5.8099886e-06 | D186: ='DF raw data'!L191 -> -5.4838579e-06 | F186: -3.100178093e-06 | G186: 5.831443593e-06 | H186: -5.492149493e-06 | J186: -5.035295579e-05 | K186: -0.0002144435027 | L186: 9.305519826e-05 | M186: 0.0001461870084 | N186: 1.356039096e-07
A187: 90.46096 | B187: ='DF raw data'!J192 -> -4.6009659e-06 | C187: ='DF raw data'!K192 -> 8.5899428e-06 | D187: ='DF raw data'!L192 -> -6.369126e-08 | F187: -4.60792256e-06 | G187: 8.621663545e-06 | H187: -6.378756119e-08 | J187: -5.265765433e-05 | K187: -0.0002407807551 | L187: 9.73674095e-05 | M187: 0.0001948862919 | N187: 1.417324906e-07
A188: 90.96112 | B188: ='DF raw data'!J193 -> -8.9703826e-06 | C188: ='DF raw data'!K193 -> 5.304093e-07 | D188: ='DF raw data'!L193 -> -1.1242348e-06 | F188: -8.983945818e-06 | G188: 5.323679834e-07 | H188: -1.125934643e-06 | J188: -5.715106468e-05 | K188: -0.0002693654316 | L188: 9.763367867e-05 | M188: 0.0002437187526 | N188: 1.48133828e-07
A189: 91.46128 | B189: ='DF raw data'!J194 -> -9.6576987e-06 | C189: ='DF raw data'!K194 -> 2.0738946e-06 | D189: ='DF raw data'!L194 -> -9.4737743e-06 | F189: -9.67230114e-06 | G189: 2.081553031e-06 | H189: -9.488098647e-06 | J189: -6.198876281e-05 | K189: -0.0003003697312 | L189: 9.867478823e-05 | M189: 0.0002930719347 | N189: 1.54925661e-07
A190: 91.96144 | B190: ='DF raw data'!J195 -> -1.4569956e-06 | C190: ='DF raw data'!K195 -> 5.6355993e-06 | D190: ='DF raw data'!L195 -> -6.8158092e-06 | F190: -1.459198577e-06 | G190: 5.656410312e-06 | H190: -6.826114704e-06 | J190: -6.271859557e-05 | K190: -0.000331739064 | L190: 0.0001015038984 | M190: 0.0003438401245 | N190: 1.620462707e-07
A191: 92.4616 | B191: ='DF raw data'!J196 -> 4.8067018e-06 | C191: ='DF raw data'!K196 -> -3.1785996e-06 | D191: ='DF raw data'!L196 -> -1.0743217e-06 | F191: 4.813969533e-06 | G191: -3.19033746e-06 | H191: -1.075946074e-06 | J191: -6.031084057e-05 | K191: -0.000361904134 | L191: 9.990821923e-05 | M191: 0.0003938102195 | N191: 1.688579746e-07
A192: 92.96176 | B192: ='DF raw data'!J197 -> 3.1200182e-06 | C192: ='DF raw data'!K197 -> 1.168992e-06 | D192: ='DF raw data'!L197 -> 1.1109103e-06 | F192: 3.124735668e-06 | G192: 1.173308827e-06 | H192: 1.112589996e-06 | J192: -5.874797278e-05 | K192: -0.00039128752 | L192: 0.0001004950614 | M192: 0.0004440738294 | N192: 1.756354335e-07
A193: 93.46192 | B193: ='DF raw data'!J198 -> 7.4600422e-07 | C193: ='DF raw data'!K198 -> 5.7523484e-06 | D193: ='DF raw data'!L198 -> -2.5338497e-06 | F193: 7.471321784e-07 | G193: 5.773590541e-06 | H193: -2.537680881e-06 | J193: -5.837428715e-05 | K193: -0.0004204840035 | L193: 0.0001033827804 | M193: 0.0004957817608 | N193: 1.826854672e-07
A194: 93.96208 | B194: ='DF raw data'!J199 -> -3.4815429e-07 | C194: ='DF raw data'!K199 -> 1.2505154e-06 | D194: ='DF raw data'!L199 -> -1.1506007e-05 | F194: -3.486806993e-07 | G194: 1.255133275e-06 | H194: -1.152340408e-05 | J194: -5.854868329e-05 | K194: -0.0004497677129 | L194: 0.0001040105479 | M194: 0.0005478036764 | N194: 1.898108178e-07
A195: 94.46224 | B195: ='DF raw data'!J200 -> 2.2534662e-06 | C195: ='DF raw data'!K200 -> 1.8521389e-06 | D195: ='DF raw data'!L200 -> -1.1205976e-05 | F195: 2.256873441e-06 | G195: 1.858978436e-06 | H195: -1.122291944e-05 | J195: -5.741988547e-05 | K195: -0.0004784868429 | L195: 0.0001049403345 | M195: 0.0006002906342 | N195: 1.969678658e-07
A196: 94.9624 | B196: ='DF raw data'!J201 -> 7.644092e-06 | C196: ='DF raw data'!K201 -> 1.0268992e-05 | D196: ='DF raw data'!L201 -> -7.0755755e-06 | F196: 7.655649867e-06 | G196: 1.03069131e-05 | H196: -7.08627377e-06 | J196: -5.359083563e-05 | K196: -0.0005052908352 | L196: 0.0001100954402 | M196: 0.0006553559695 | N196: 2.044667565e-07
A197: 95.46256 | B197: ='DF raw data'!J202 -> 7.5984431e-06 | C197: ='DF raw data'!K202 -> -2.8292873e-06 | D197: ='DF raw data'!L202 -> -8.4540343e-06 | F197: 7.609931946e-06 | G197: -2.839735228e-06 | H197: -8.4668168e-06 | J197: -4.978465207e-05 | K197: -0.0005301911268 | L197: 0.0001086751182 | M197: 0.0007097109167 | N197: 2.116134391e-07
A198: 95.96272 | B198: ='DF raw data'!J203 -> 3.1451057e-06 | C198: ='DF raw data'!K203 -> -5.4738139e-06 | D198: ='DF raw data'!L203 -> -4.2488805e-06 | F198: 3.1498611e-06 | G198: -5.494027475e-06 | H198: -4.255304807e-06 | J198: -4.820921754e-05 | K198: -0.000554303449 | L198: 0.0001059272254 | M198: 0.0007626914777 | N198: 2.183879592e-07
A199: 96.46288 | B199: ='DF raw data'!J204 -> 3.0343801e-06 | C199: ='DF raw data'!K204 -> 7.8415505e-06 | D199: ='DF raw data'!L204 -> -3.2681394e-06 | F199: 3.038968083e-06 | G199: =(1-$G$1*($B$2-$G$2))*C199*$M$2/$M$1 -> 7.870507599e-06 | H199: -3.273080827e-06 | J199: -4.668924727e-05 | K199: -0.0005776555429 | L199: 0.0001098637385 | M199: 0.0008176409252 | N199: 2.255152026e-07
A200: =A199+$B$1 -> 96.96304 | B200: ='DF raw data'!J205 -> 4.431568e-06 | C200: ='DF raw data'!K205 -> 6.7321034e-06 | D200: ='DF raw data'!L205 -> -4.4320454e-06 | F200: 4.438268531e-06 | G200: 6.756963558e-06 | H200: -4.438746653e-06 | J200: =F200*$B$1+J199 -> -4.446940288e-05 | K200: =J200*$B$1+K199 -> -0.0005998973595 | L200: =G200*$B$1+L199 -> 0.0001132433014 | M200: =L200*$B$1+M199 -> 0.0008742806948 | N200: =(J200^2+L200^2)*$B$1+N199 -> 2.329183574e-07
A201: 97.4632 | B201: ='DF raw data'!J206 -> 7.3291744e-06 | C201: ='DF raw data'!K206 -> 3.8380686e-06 | D201: ='DF raw data'!L206 -> -8.0410723e-07 | F201: 7.340256112e-06 | G201: 3.852241732e-06 | H201: -8.053230401e-07 | J201: -4.079810038e-05 | K201: -0.0006203029374 | L201: 0.0001151700386 | M201: 0.0009318841413 | N201: 2.403850574e-07
... 1002 more rows

Sheet 10 x=2
A1: dz | B1: ='DF raw data'!N7 -> 0.50016 | C1: mm | F1: T_coeff | G1: -0.0008 | H1: /degC | L1: Hallref | M1: ='PI vs gap'!B44 -> 0.50517 | N1: T | P1: IBy total | Q1: =L1203*1000 -> -10.80314132 | R1: muTm | X1: DF ref | Y1: 21
A2: Tref | B2: ='DF raw data'!N8 -> 22.04 | C2: degC | F2: Tcorr | G2: 20 | H2: degC | L2: NMRref | M2: ='PI vs gap'!B45 -> 0.50627 | N2: T | P2: JBy total | Q2: =M1203 -> -3.178527479 | R2: muTm^2
A3: Encoder | B3: ='DF raw data'!N9 -> 17890877 | P3: PI total | Q3: =N1203 -> 701.9639828 | R3: T^2mm^3
A5: z [mm] | B5: Bx | C5: By | D5: Bz | F5: Bx_corr | G5: By_corr | H5: Bz_corr | J5: Ix | K5: Jx | L5: Iy | M5: Jy | N5: PI
A6: ='[1]PI vs x'!B53 -> -0.068 | B6: ='DF raw data'!M11 -> -6.9069229e-06 | C6: ='DF raw data'!N11 -> -1.4420333e-05 | D6: ='DF raw data'!O11 -> -8.5931051e-06 | F6: =(1-$G$1*($B$2-$G$2))*B6 -> -6.918194998e-06 | G6: =(1-$G$1*($B$2-$G$2))*C6*$M$2/$M$1 -> -1.447531828e-05 | H6: =(1-$G$1*($B$2-$G$2))*D6 -> -8.607129048e-06 | J6: =F6*$B$1 -> -3.46020441e-06 | K6: =J6*$B$1 -> -1.730655838e-06 | L6: =G6*$B$1 -> -7.239975193e-06 | M6: =L6*$B$1 -> -3.621145993e-06 | N6: =(J6^2+L6)^2*$B$1 -> 2.621692044e-11
A7: =A6+$B$1 -> 0.43216 | B7: ='DF raw data'!M12 -> -7.0786646e-06 | C7: ='DF raw data'!N12 -> -9.1689071e-06 | D7: ='DF raw data'!O12 -> -5.2104974e-06 | F7: =(1-$G$1*($B$2-$G$2))*B7 -> -7.090216981e-06 | G7: =(1-$G$1*($B$2-$G$2))*C7*$M$2/$M$1 -> -9.203868495e-06 | H7: -5.219000932e-06 | J7: =F7*$B$1+J6 -> -7.006447335e-06 | K7: =J7*$B$1+K6 -> -5.235000537e-06 | L7: =G7*$B$1+L6 -> -1.184338206e-05 | M7: =L7*$B$1+M6 -> -9.544731964e-06 | N7: =(J7^2+L7^2)*$B$1+N6 -> 1.209252188e-10
A8: =A7+$B$1 -> 0.93232 | B8: ='DF raw data'!M13 -> -7.3273713e-06 | C8: ='DF raw data'!N13 -> -1.5419432e-06 | D8: ='DF raw data'!O13 -> 5.7863218e-08 | F8: -7.33932957e-06 | G8: -1.547822689e-06 | H8: 5.795765077e-08 | J8: =F8*$B$1+J7 -> -1.067728641e-05 | K8: =J8*$B$1+K7 -> -1.057535211e-05 | L8: =G8*$B$1+L7 -> -1.261754106e-05 | M8: =L8*$B$1+M7 -> -1.58555213e-05 | N8: =(J8^2+L8^2)*$B$1+N7 -> 2.575723256e-10
A9: 1.43248 | B9: ='DF raw data'!M14 -> -7.547178e-06 | C9: ='DF raw data'!N14 -> 5.96974e-06 | D9: ='DF raw data'!O14 -> 9.7113852e-06 | F9: -7.559494994e-06 | G9: 5.992502848e-06 | H9: 9.727234181e-06 | J9: -1.445824343e-05 | K9: -1.780678714e-05 | L9: -9.620330831e-06 | M9: -2.066722597e-05 | N9: 4.084163645e-10
A10: 1.93264 | B10: ='DF raw data'!M15 -> -7.4379805e-06 | C10: ='DF raw data'!N15 -> 2.12637e-06 | D10: ='DF raw data'!O15 -> 4.9965652e-06 | F10: -7.450119284e-06 | G10: 2.134477931e-06 | H10: 5.004719594e-06 | J10: -1.818449509e-05 | K10: -2.690194421e-05 | L10: -8.552750349e-06 | M10: -2.494496958e-05 | N10: 6.103936767e-10
A11: 2.4328 | B11: ='DF raw data'!M16 -> -7.4382424e-06 | C11: ='DF raw data'!N16 -> 4.382496e-07 | D11: ='DF raw data'!O16 -> -5.1915217e-06 | F11: -7.450381612e-06 | G11: 4.399206626e-07 | H11: -5.199994263e-06 | J11: -2.191087796e-05 | K11: -3.786088893e-05 | L11: -8.332719631e-06 | M11: -2.911266263e-05 | N11: 8.852419947e-10
A12: 2.93296 | B12: ='DF raw data'!M17 -> -7.5272274e-06 | C12: ='DF raw data'!N17 -> 3.2164703e-06 | D12: ='DF raw data'!O17 -> -3.2065534e-06 | F12: -7.539511835e-06 | G12: 3.228734825e-06 | H12: -3.211786495e-06 | J12: -2.56818402e-05 | K12: -5.070591812e-05 | L12: -6.717835621e-06 | M12: -3.24726553e-05 | N12: 1.23769786e-09
A13: 3.43312 | B13: ='DF raw data'!M18 -> -7.6171291e-06 | C13: ='DF raw data'!N18 -> 7.1401632e-06 | D13: ='DF raw data'!O18 -> 5.855783e-06 | F13: -7.629560255e-06 | G13: 7.167388917e-06 | H13: 5.865339638e-06 | J13: -2.949784105e-05 | K13: -6.54595583e-05 | L13: -3.13299438e-06 | M13: -3.403965377e-05 | N13: 1.677807791e-09
A14: 3.93328 | B14: ='DF raw data'!M19 -> -7.5708831e-06 | C14: ='DF raw data'!N19 -> 4.4761559e-06 | D14: ='DF raw data'!O19 -> -2.4705321e-06 | F14: -7.583238781e-06 | G14: 4.493223655e-06 | H14: -2.474564008e-06 | J14: -3.329067376e-05 | K14: -8.211022169e-05 | L14: -8.85663637e-07 | M14: -3.448262729e-05 | N14: 2.232511919e-09
A15: 4.43344 | B15: ='DF raw data'!M20 -> -7.273311e-06 | C15: ='DF raw data'!N20 -> -4.7089702e-06 | D15: ='DF raw data'!O20 -> -9.3594817e-06 | F15: -7.285181044e-06 | G15: -4.726925684e-06 | H15: -9.374756374e-06 | J15: -3.693442991e-05 | K15: -0.0001005833462 | L15: -3.249882787e-06 | M15: -3.610808866e-05 | N15: 2.920088799e-09
A16: 4.9336 | B16: ='DF raw data'!M21 -> -7.771263e-06 | C16: ='DF raw data'!N21 -> 9.6954263e-06 | D16: ='DF raw data'!O21 -> -4.3957357e-06 | F16: -7.783945701e-06 | G16: 9.732395333e-06 | H16: -4.402909541e-06 | J16: -4.08276482e-05 | K16: -0.0001210037027 | L16: 1.617872063e-06 | M16: -3.529889377e-05 | N16: 3.755113105e-09
A17: 5.43376 | B17: ='DF raw data'!M22 -> -7.9987385e-06 | C17: ='DF raw data'!N22 -> 1.8084393e-05 | D17: ='DF raw data'!O22 -> 9.6654012e-06 | F17: -8.011792441e-06 | G17: 1.815334949e-05 | H17: 9.681175135e-06 | J17: -4.48348263e-05 | K17: -0.0001434282894 | L17: 1.069745134e-05 | M17: -2.994845651e-05 | N17: 4.817751598e-09
A18: 5.93392 | B18: ='DF raw data'!M23 -> -7.0861443e-06 | C18: ='DF raw data'!N23 -> -7.443427e-06 | D18: ='DF raw data'!O23 -> 6.1990627e-06 | F18: -7.097708887e-06 | G18: -7.471809073e-06 | H18: 6.20917957e-06 | J18: -4.838481638e-05 | K18: -0.0001676284392 | L18: 6.960351315e-06 | M18: -2.64671672e-05 | N18: 6.012902397e-09
A19: 6.43408 | B19: ='DF raw data'!M24 -> -7.1237901e-06 | C19: ='DF raw data'!N24 -> -7.7090799e-06 | D19: ='DF raw data'!O24 -> -2.1868716e-06 | F19: -7.135416125e-06 | G19: -7.738474918e-06 | H19: -2.190440574e-06 | J19: -5.195366611e-05 | K19: -0.0001936135848 | L19: 3.0898757e-06 | M19: -2.492173497e-05 | N19: 7.367701171e-09
A20: 6.93424 | B20: ='DF raw data'!M25 -> -7.6314191e-06 | C20: ='DF raw data'!N25 -> 6.3633502e-06 | D20: ='DF raw data'!O25 -> -1.0333704e-06 | F20: -7.643873576e-06 | G20: 6.387613899e-06 | H20: -1.03505686e-06 | J20: -5.577682592e-05 | K20: -0.0002215109221 | L20: 6.284704668e-06 | M20: -2.177837708e-05 | N20: 8.94348117e-09
A21: 7.4344 | B21: ='DF raw data'!M26 -> -7.1750565e-06 | C21: ='DF raw data'!N26 -> -6.3885518e-06 | D21: ='DF raw data'!O26 -> -2.5995203e-06 | F21: -7.186766192e-06 | G21: -6.412911594e-06 | H21: -2.603762717e-06 | J21: -5.93713589e-05 | K21: -0.0002512061009 | L21: 3.077222805e-06 | M21: -2.023927332e-05 | N21: 1.071126046e-08
A22: 7.93456 | B22: ='DF raw data'!M27 -> -3.4092536e-06 | C22: ='DF raw data'!N27 -> -8.6420032e-06 | D22: ='DF raw data'!O27 -> -6.3351276e-06 | F22: -3.414817502e-06 | G22: -8.674955491e-06 | H22: -6.345466528e-06 | J22: -6.107931402e-05 | K22: -0.0002817555306 | L22: -1.261642933e-06 | M22: -2.087029665e-05 | N22: 1.257799479e-08
A23: 8.43472 | B23: ='DF raw data'!M28 -> 3.5852991e-06 | C23: ='DF raw data'!N28 -> -2.9878934e-06 | D23: ='DF raw data'!O28 -> -8.0355194e-06 | F23: =(1-$G$1*($B$2-$G$2))*B23 -> 3.591150308e-06 | G23: -2.999286352e-06 | H23: -8.048633368e-06 | J23: -5.928316428e-05 | K23: -0.0003114065981 | L23: -2.761765995e-06 | M23: -2.225162153e-05 | N23: 1.433961879e-08
A24: 8.93488 | B24: ='DF raw data'!M29 -> 1.6455577e-06 | C24: ='DF raw data'!N29 -> -6.4895562e-06 | D24: ='DF raw data'!O29 -> -6.6484013e-06 | F24: 1.64824325e-06 | G24: -6.514301127e-06 | H24: -6.659251491e-06 | J24: -5.845877894e-05 | K24: -0.0003406453409 | L24: -6.019958847e-06 | M24: -2.526256415e-05 | N24: 1.606700575e-08
A25: 9.43504 | B25: ='DF raw data'!M30 -> -4.8015809e-06 | C25: ='DF raw data'!N30 -> 2.1399796e-06 | D25: ='DF raw data'!O30 -> 8.6056139e-07 | F25: -4.80941708e-06 | G25: 2.148139425e-06 | H25: 8.619658262e-07 | J25: -6.086425698e-05 | K25: -0.0003710872077 | L25: -4.945545432e-06 | M25: -2.773612815e-05 | N25: 1.793206047e-08
A26: 9.9352 | B26: ='DF raw data'!M31 -> -4.0820178e-06 | C26: ='DF raw data'!N31 -> 8.6002565e-06 | D26: ='DF raw data'!O31 -> 5.8573837e-06 | F26: -4.088679653e-06 | G26: 8.633049609e-06 | H26: 5.86694295e-06 | J26: -6.2909251e-05 | K26: -0.0004025518987 | L26: -6.276393399e-07 | M26: -2.805004824e-05 | N26: 1.991167764e-08
A27: 10.43536 | B27: ='DF raw data'!M32 -> -2.6081852e-06 | C27: ='DF raw data'!N32 -> -1.3250444e-05 | D27: ='DF raw data'!O32 -> 1.3342262e-06 | F27: -2.612441758e-06 | G27: -1.330096845e-05 | H27: 1.336403657e-06 | J27: -6.421588987e-05 | K27: -0.0004346701182 | L27: -7.280251721e-06 | M27: -3.169133894e-05 | N27: 2.20006872e-08
A28: 10.93552 | B28: ='DF raw data'!M33 -> -6.4921351e-06 | C28: ='DF raw data'!N33 -> 1.0489457e-06 | D28: ='DF raw data'!O33 -> -5.6703816e-06 | F28: -6.502730264e-06 | G28: 1.05294537e-06 | H28: -5.679635663e-06 | J28: -6.746829544e-05 | K28: -0.0004684150608 | L28: -6.753610565e-06 | M28: -3.50692248e-05 | N28: 2.430021389e-08
A29: 11.43568 | B29: ='DF raw data'!M34 -> -6.6130178e-06 | C29: ='DF raw data'!N34 -> -1.8338111e-08 | D29: ='DF raw data'!O34 -> -2.3746204e-06 | F29: -6.623810245e-06 | G29: -1.840803492e-08 | H29: -2.37849578e-06 | J29: -7.078126037e-05 | K29: -0.000503817016 | L29: -6.762817527e-06 | M29: -3.845171562e-05 | N29: 2.682888406e-08
A30: 11.93584 | B30: ='DF raw data'!M35 -> -2.3930497e-06 | C30: ='DF raw data'!N35 -> 1.7770576e-06 | D30: ='DF raw data'!O35 -> -7.8751577e-07 | F30: -2.396955157e-06 | G30: 1.783833589e-06 | H30: -7.888009957e-07 | J30: -7.198012146e-05 | K30: -0.0005398185935 | L30: -5.87061532e-06 | M30: -4.138796258e-05 | N30: 2.943751956e-08
A31: 12.436 | B31: ='DF raw data'!M36 -> 1.7885303e-06 | C31: ='DF raw data'!N36 -> 9.2596547e-06 | D31: ='DF raw data'!O36 -> 4.4070962e-06 | F31: 1.791449181e-06 | G31: 9.29496212e-06 | H31: 4.414288581e-06 | J31: -7.108411024e-05 | K31: -0.0005753720221 | L31: -1.221647066e-06 | M31: -4.199898157e-05 | N31: 3.196554985e-08
A32: 12.93616 | B32: ='DF raw data'!M37 -> 4.8628117e-06 | C32: ='DF raw data'!N37 -> -1.443474e-06 | D32: ='DF raw data'!O37 -> 7.0233996e-06 | F32: 4.870747809e-06 | G32: -1.448978022e-06 | H32: 7.034861788e-06 | J32: -6.864795701e-05 | K32: -0.0006097069843 | L32: -1.946367913e-06 | M32: -4.297247695e-05 | N32: 3.432446964e-08
A33: 13.43632 | B33: ='DF raw data'!M38 -> 2.7469196e-06 | C33: ='DF raw data'!N38 -> -8.8985835e-06 | D33: ='DF raw data'!O38 -> 6.4052488e-06 | F33: 2.751402573e-06 | G33: -8.932514141e-06 | H33: 6.415702166e-06 | J33: -6.72718155e-05 | K33: -0.0006433536555 | L33: -6.414054186e-06 | M33: -4.618053029e-05 | N33: 3.660851893e-08
A34: 13.93648 | B34: ='DF raw data'!M39 -> -2.6332873e-06 | C34: ='DF raw data'!N39 -> 4.5803622e-06 | D34: ='DF raw data'!O39 -> 3.2490545e-06 | F34: -2.637584825e-06 | G34: 4.597827297e-06 | H34: 3.254356957e-06 | J34: -6.859102993e-05 | K34: -0.0006776601451 | L34: -4.114404885e-06 | M34: -4.823839104e-05 | N34: 3.897010325e-08
A35: 14.43664 | B35: ='DF raw data'!M40 -> -6.4595679e-06 | C35: ='DF raw data'!N40 -> -2.2134823e-06 | D35: ='DF raw data'!O40 -> 5.1780567e-06 | F35: -6.470109915e-06 | G35: -2.221922393e-06 | H35: 5.186507289e-06 | J35: -7.18271201e-05 | K35: -0.0007135851975 | L35: -5.225721589e-06 | M35: -5.085208795e-05 | N35: 4.156415475e-08
A36: 14.9368 | B36: ='DF raw data'!M41 -> -7.3526771e-06 | C36: ='DF raw data'!N41 -> 2.0049515e-06 | D36: ='DF raw data'!O41 -> -3.345005e-08 | F36: -7.364676669e-06 | G36: 2.012596457e-06 | H36: -3.350464048e-08 | J36: -7.551063679e-05 | K36: -0.0007513525976 | L36: -4.219101345e-06 | M36: -5.296231368e-05 | N36: 4.442489844e-08
A37: 15.43696 | B37: ='DF raw data'!M42 -> -2.7577062e-06 | C37: ='DF raw data'!N42 -> -1.2053869e-05 | D37: ='DF raw data'!O42 -> 3.7201291e-06 | F37: -2.762206777e-06 | G37: -1.209983087e-05 | H37: 3.726200351e-06 | J37: -7.689218213e-05 | K37: -0.0007898109914 | L37: -1.027095275e-05 | M37: -5.809943341e-05 | N37: 4.743481138e-08
A38: 15.93712 | B38: ='DF raw data'!M43 -> 1.7548281e-06 | C38: ='DF raw data'!N43 -> -1.733812e-05 | D38: ='DF raw data'!O43 -> -1.5496869e-06 | F38: 1.757691979e-06 | G38: -1.740423092e-05 | H38: -1.552215989e-06 | J38: -7.601305491e-05 | K38: -0.0008278296809 | L38: -1.897585289e-05 | M38: -6.759039599e-05 | N38: 5.050482722e-08
A39: 16.43728 | B39: ='DF raw data'!M44 -> 4.8029451e-06 | C39: ='DF raw data'!N44 -> -3.9709848e-06 | D39: ='DF raw data'!O44 -> -3.0944746e-06 | F39: 4.810783506e-06 | G39: -3.986126318e-06 | H39: -3.099524783e-06 | J39: -7.360689343e-05 | K39: -0.0008646449047 | L39: -2.096955383e-05 | M39: -7.807852803e-05 | N39: 5.343461293e-08
A40: 16.93744 | B40: ='DF raw data'!M45 -> 2.6762991e-06 | C40: ='DF raw data'!N45 -> -1.2342739e-05 | D40: ='DF raw data'!O45 -> 2.4314406e-06 | F40: 2.68066682e-06 | G40: -1.238980234e-05 | H40: 2.435408711e-06 | J40: -7.226613111e-05 | K40: -0.0009007895329 | L40: -2.716643736e-05 | M40: -9.166609334e-05 | N40: 5.64157711e-08
A41: 17.4376 | B41: ='DF raw data'!M46 -> 2.0982534e-06 | C41: ='DF raw data'!N46 -> 4.3696814e-06 | D41: ='DF raw data'!O46 -> 8.9574651e-06 | F41: 2.10167775e-06 | G41: 4.386343163e-06 | H41: 8.972083683e-06 | J41: -7.121495597e-05 | K41: -0.0009364084052 | L41: -2.497256397e-05 | M41: -0.0001041563709 | N41: 5.926428179e-08
A42: 17.93776 | B42: ='DF raw data'!M47 -> 1.6665853e-06 | C42: ='DF raw data'!N47 -> 5.492871e-06 | D42: ='DF raw data'!O47 -> 1.0719556e-05 | F42: 1.669305167e-06 | G42: 5.513815528e-06 | H42: 1.073705032e-05 | J42: -7.03800363e-05 | K42: -0.0009716096842 | L42: -2.221477399e-05 | M42: -0.0001152673123 | N42: 6.198857613e-08
A43: 18.43792 | B43: ='DF raw data'!M48 -> 3.3622182e-06 | C43: ='DF raw data'!N48 -> 2.4626065e-06 | D43: ='DF raw data'!O48 -> 4.9053829e-06 | F43: 3.36770534e-06 | G43: 2.471996513e-06 | H43: 4.913388485e-06 | J43: -6.869564479e-05 | K43: -0.001005968498 | L43: -2.097838022e-05 | M43: -0.0001257598589 | N43: 6.456899362e-08
A44: 18.93808 | B44: ='DF raw data'!M49 -> 6.8029603e-06 | C44: ='DF raw data'!N49 -> 4.6037126e-06 | D44: ='DF raw data'!O49 -> 5.8591736e-06 | F44: 6.814062731e-06 | G44: 4.621266733e-06 | H44: 5.868735771e-06 | J44: -6.528752318e-05 | K44: -0.001038622705 | L44: -1.866700745e-05 | M44: -0.0001350963494 | N44: 6.68751903e-08
A45: 19.43824 | B45: ='DF raw data'!M50 -> 2.7190817e-06 | C45: ='DF raw data'!N50 -> 6.9709772e-06 | D45: ='DF raw data'!O50 -> -2.3151322e-06 | F45: 2.723519241e-06 | G45: 6.997557804e-06 | H45: -2.318910496e-06 | J45: -6.392532779e-05 | K45: -0.001070595597 | L45: -1.516710894e-05 | M45: -0.0001426823306 | N45: 6.90341253e-08
A46: 19.9384 | B46: ='DF raw data'!M51 -> -6.8463723e-06 | C46: ='DF raw data'!N51 -> 5.2349565e-06 | D46: ='DF raw data'!O51 -> -6.517464e-07 | F46: -6.85754558e-06 | G46: 5.25491759e-06 | H46: -6.528100501e-07 | J46: -6.735519779e-05 | K46: -0.001104283973 | L46: -1.253880935e-05 | M46: -0.0001489537415 | N46: 7.138184853e-08
A47: 20.43856 | B47: ='DF raw data'!M52 -> -1.4682026e-05 | C47: ='DF raw data'!N52 -> 2.3150365e-06 | D47: ='DF raw data'!O52 -> 5.136802e-06 | F47: -1.470598707e-05 | G47: 2.323863823e-06 | H47: 5.145185261e-06 | J47: -7.471054428e-05 | K47: -0.001141651199 | L47: -1.137650562e-05 | M47: -0.0001546438145 | N47: 7.423830746e-08
A48: 20.93872 | B48: ='DF raw data'!M53 -> -1.1521175e-05 | C48: ='DF raw data'!N53 -> 8.1835642e-06 | D48: ='DF raw data'!O53 -> 5.6659678e-06 | F48: -1.153997756e-05 | G48: 8.214768445e-06 | H48: 5.675214659e-06 | J48: -8.048237946e-05 | K48: -0.001181905266 | L48: -7.267807039e-06 | M48: -0.0001582788809 | N48: 7.750446951e-08
A49: 21.43888 | B49: ='DF raw data'!M54 -> -5.6164445e-06 | C49: ='DF raw data'!N54 -> -8.9161898e-07 | D49: ='DF raw data'!O54 -> 1.9196352e-06 | F49: -5.625610537e-06 | G49: -8.950187575e-07 | H49: 1.922768045e-06 | J49: -8.329608482e-05 | K49: -0.001223566636 | L49: -7.715459621e-06 | M49: -0.0001621378452 | N49: 8.100447219e-08
A50: 21.93904 | B50: ='DF raw data'!M55 -> -4.5276411e-06 | C50: ='DF raw data'!N55 -> -2.9964326e-06 | D50: ='DF raw data'!O55 -> -9.65151e-07 | F50: -4.53503021e-06 | G50: -3.007858113e-06 | H50: -9.667261264e-07 | J50: -8.556432553e-05 | K50: -0.001266362489 | L50: -9.219869934e-06 | M50: -0.0001667492553 | N50: 8.470878709e-08
A51: 22.4392 | B51: ='DF raw data'!M56 -> 5.373858e-07 | C51: ='DF raw data'!N56 -> 1.2556638e-05 | D51: ='DF raw data'!O56 -> 4.3215746e-06 | F51: 5.382628136e-07 | G51: 1.260451694e-05 | H51: 4.32862741e-06 | J51: -8.5295108e-05 | K51: -0.00130902369 | L51: -2.91559474e-06 | M51: -0.0001682075192 | N51: 8.835183056e-08
A52: 22.93936 | B52: ='DF raw data'!M57 -> 2.8761551e-06 | C52: ='DF raw data'!N57 -> 1.2762917e-05 | D52: ='DF raw data'!O57 -> 1.8626645e-06 | F52: 2.880848985e-06 | G52: 1.281158249e-05 | H52: 1.865704368e-06 | J52: -8.385422258e-05 | K52: -0.001350964218 | L52: 3.49224636e-06 | M52: -0.0001664608373 | N52: 9.187482077e-08
A53: 23.43952 | B53: ='DF raw data'!M58 -> -1.3750561e-06 | C53: ='DF raw data'!N58 -> 6.6598254e-06 | D53: ='DF raw data'!O58 -> -7.3195938e-06 | F53: -1.377300192e-06 | G53: 6.68521957e-06 | H53: -7.331539377e-06 | J53: -8.454309304e-05 | K53: -0.001393249291 | L53: 6.83592578e-06 | M53: -0.0001630417806 | N53: 9.547310409e-08
A54: 23.93968 | B54: ='DF raw data'!M59 -> -6.4372744e-06 | C54: ='DF raw data'!N59 -> 9.8747532e-06 | D54: ='DF raw data'!O59 -> -7.6340029e-06 | F54: -6.447780032e-06 | G54: 9.912406014e-06 | H54: -7.646461593e-06 | J54: -8.77680147e-05 | K54: -0.001437147342 | L54: 1.179371477e-05 | M54: -0.0001571430362 | N54: 9.939551691e-08
A55: 24.43984 | B55: ='DF raw data'!M60 -> -8.7659591e-06 | C55: ='DF raw data'!N60 -> -7.6899954e-07 | D55: ='DF raw data'!O60 -> 1.6833703e-06 | F55: -8.780265145e-06 | G55: -7.719317648e-07 | H55: 1.68611756e-06 | J55: -9.215955212e-05 | K55: -0.001483241863 | L55: 1.140762538e-05 | M55: -0.0001514373983 | N55: 1.037086552e-07
A56: 24.94 | B56: ='DF raw data'!M61 -> -7.933997e-06 | C56: ='DF raw data'!N61 -> 2.9783027e-06 | D56: ='DF raw data'!O61 -> 4.6116816e-06 | F56: -7.946945283e-06 | G56: 2.989659083e-06 | H56: 4.619207864e-06 | J56: -9.613429627e-05 | K56: -0.001531324393 | L56: 1.290293327e-05 | M56: -0.0001449838672 | N56: 1.084143048e-07
A57: 25.44016 | B57: ='DF raw data'!M62 -> -6.6048833e-06 | C57: ='DF raw data'!N62 -> -1.9182075e-06 | D57: ='DF raw data'!O62 -> 6.7798878e-06 | F57: -6.61566247e-06 | G57: -1.925521699e-06 | H57: 6.790952577e-06 | J57: -9.944318601e-05 | K57: -0.001581061897 | L57: 1.193986433e-05 | M57: -0.0001390120247 | N57: 1.134316636e-07
A58: 25.94032 | B58: ='DF raw data'!M63 -> -2.6260695e-06 | C58: ='DF raw data'!N63 -> -7.4488976e-06 | D58: ='DF raw data'!O63 -> 6.3120729e-06 | F58: -2.630355245e-06 | G58: -7.477300533e-06 | H58: 6.322374203e-06 | J58: -0.0001007587845 | K58: -0.00163145741 | L58: 8.2000177e-06 | M58: -0.0001349107038 | N58: 1.185430852e-07
A59: 26.44048 | B59: ='DF raw data'!M64 -> -2.1489559e-06 | C59: ='DF raw data'!N64 -> -2.9203793e-06 | D59: ='DF raw data'!O64 -> -2.2742704e-06 | F59: -2.152462996e-06 | G59: -2.931514819e-06 | H59: -2.277982009e-06 | J59: -0.0001018353604 | K59: -0.001682391384 | L59: 6.733791248e-06 | M59: -0.0001315427308 | N59: 1.23752644e-07
A60: 26.94064 | B60: ='DF raw data'!M65 -> -3.7963346e-06 | C60: ='DF raw data'!N65 -> 4.057862e-06 | D60: ='DF raw data'!O65 -> -5.9992258e-06 | F60: -3.802530218e-06 | G60: 4.073334784e-06 | H60: -6.009016537e-06 | J60: -0.0001037372339 | K60: -0.001734276599 | L60: 8.771110374e-06 | M60: -0.0001271557722 | N60: 1.291735512e-07
A61: 27.4408 | B61: ='DF raw data'!M66 -> -2.0557654e-06 | C61: ='DF raw data'!N66 -> 1.0770987e-06 | D61: ='DF raw data'!O66 -> -1.9422976e-06 | F61: -2.059120409e-06 | G61: 1.081205719e-06 | H61: -1.94546743e-06 | J61: -0.0001047671236 | K61: -0.001786676924 | L61: 9.311886226e-06 | M61: -0.0001224983392 | N61: 1.34706752e-07
A62: 27.94096 | B62: ='DF raw data'!M67 -> 2.5594909e-06 | C62: ='DF raw data'!N67 -> 3.3545671e-06 | D62: ='DF raw data'!O67 -> 8.9676655e-07 | F62: 2.563667989e-06 | G62: 3.367358193e-06 | H62: 8.98230073e-07 | J62: -0.0001034848794 | K62: -0.001838435921 | L62: 1.09961041e-05 | M62: -0.0001169985278 | N62: 1.401235021e-07
A63: 28.44112 | B63: ='DF raw data'!M68 -> 3.9040297e-06 | C63: ='DF raw data'!N68 -> -1.3424697e-06 | D63: ='DF raw data'!O68 -> -2.7887243e-06 | F63: 3.910401076e-06 | G63: -1.347588589e-06 | H63: -2.793275498e-06 | J63: -0.0001015290532 | K63: -0.001889216692 | L63: 1.032209419e-05 | M63: -0.0001118358292 | N63: 1.453325155e-07
A64: 28.94128 | B64: ='DF raw data'!M69 -> 2.0497228e-06 | C64: ='DF raw data'!N69 -> -2.0713824e-06 | D64: ='DF raw data'!O69 -> -4.8055758e-06 | F64: 2.053067948e-06 | G64: -2.079280661e-06 | H64: -4.8134185e-06 | J64: -0.0001005021907 | K64: -0.001939483868 | L64: 9.282121176e-06 | M64: -0.0001071932834 | N64: 1.504275695e-07
A65: 29.44144 | B65: ='DF raw data'!M70 -> 3.5042012e-06 | C65: ='DF raw data'!N70 -> -8.5101774e-06 | D65: ='DF raw data'!O70 -> 2.6723617e-07 | F65: 3.509920056e-06 | G65: -8.542627034e-06 | H65: 2.676722994e-07 | J65: -9.874666909e-05 | K65: -0.001988873002 | L65: 5.009440839e-06 | M65: -0.0001046877615 | N65: 1.553171332e-07
A66: 29.9416 | B66: ='DF raw data'!M71 -> 9.7713007e-07 | C66: ='DF raw data'!N71 -> -1.7982566e-06 | D66: ='DF raw data'!O71 -> 2.5295351e-06 | F66: 9.787247463e-07 | G66: -1.805113422e-06 | H66: 2.533663301e-06 | J66: -9.825715013e-05 | K66: -0.002038017298 | L66: 4.10659531e-06 | M66: -0.0001026338068 | N66: 1.601543465e-07
A67: 30.44176 | B67: ='DF raw data'!M72 -> -5.2263076e-06 | C67: ='DF raw data'!N72 -> -6.7310593e-06 | D67: ='DF raw data'!O72 -> -3.8133974e-06 | F67: -5.234836934e-06 | G67: -6.756725088e-06 | H67: -3.819620865e-06 | J67: -0.0001008754062 | K67: -0.002088471141 | L67: 7.271516903e-07 | M67: -0.0001022701146 | N67: 1.652441629e-07
A68: 30.94192 | B68: ='DF raw data'!M73 -> -1.313516e-06 | C68: ='DF raw data'!N73 -> -1.4454754e-06 | D68: ='DF raw data'!O73 -> -4.363867e-06 | F68: -1.315659658e-06 | G68: -1.450987053e-06 | H68: -4.370988831e-06 | J68: -0.0001015334465 | K68: -0.00213925411 | L68: 1.426005703e-09 | M68: -0.0001022694014 | N68: 1.704003327e-07
A69: 31.44208 | B69: ='DF raw data'!M74 -> 6.1974697e-06 | C69: ='DF raw data'!N74 -> 1.4816501e-06 | D69: ='DF raw data'!O74 -> 1.0210254e-06 | F69: 6.207583971e-06 | G69: 1.487299689e-06 | H69: 1.022691713e-06 | J69: -9.84286613e-05 | K69: -0.002188484189 | L69: 7.453138181e-07 | M69: -0.0001018966252 | N69: 1.752462613e-07
A70: 31.94224 | B70: ='DF raw data'!M75 -> 4.2502488e-06 | C70: ='DF raw data'!N75 -> -1.477605e-05 | D70: ='DF raw data'!O75 -> 1.9567135e-06 | F70: 4.257185206e-06 | G70: -1.483239165e-05 | H70: 1.959906856e-06 | J70: -9.629938755e-05 | K70: -0.002236649291 | L70: -6.673255188e-06 | M70: -0.0001052343205 | N70: 1.799068044e-07
A71: 32.4424 | B71: ='DF raw data'!M76 -> 8.6291215e-07 | C71: ='DF raw data'!N76 -> -3.0790241e-06 | D71: ='DF raw data'!O76 -> 6.7034175e-06 | F71: 8.643204226e-07 | G71: =(1-$G$1*($B$2-$G$2))*C71*$M$2/$M$1 -> -3.090764537e-06 | H71: 6.714357477e-06 | J71: -9.586708905e-05 | K71: -0.002284598174 | L71: -8.219131979e-06 | M71: -0.0001093452016 | N71: 1.845373121e-07
A72: =A71+$B$1 -> 32.94256 | B72: ='DF raw data'!M77 -> -1.5277784e-06 | C72: ='DF raw data'!N77 -> 1.1947818e-06 | D72: ='DF raw data'!O77 -> 4.9839196e-06 | F72: -1.530271734e-06 | G72: 1.199337549e-06 | H72: 4.992053357e-06 | J72: =F72*$B$1+J71 -> -9.663246976e-05 | K72: =J72*$B$1+K71 -> -0.00233292987 | L72: =G72*$B$1+L71 -> -7.619271311e-06 | M72: =L72*$B$1+M71 -> -0.0001131560563 | N72: =(J72^2+L72^2)*$B$1+N71 -> 1.892367592e-07
A73: 33.44272 | B73: ='DF raw data'!M78 -> -4.8565144e-06 | C73: ='DF raw data'!N78 -> 3.4136751e-06 | D73: ='DF raw data'!O78 -> 2.2313081e-06 | F73: -4.864440232e-06 | G73: 3.426691574e-06 | H73: 2.234949595e-06 | J73: -9.906546818e-05 | K73: -0.002382478455 | L73: -5.905377253e-06 | M73: -0.0001161096898 | N73: 1.941627553e-07
A74: 33.94288 | B74: ='DF raw data'!M79 -> -1.0164096e-06 | C74: ='DF raw data'!N79 -> 6.726405e-06 | D74: ='DF raw data'!O79 -> 1.0313704e-05 | F74: -1.01806838e-06 | G74: 6.752053041e-06 | H74: 1.033053596e-05 | J74: -9.957466527e-05 | K74: -0.002432281719 | L74: -2.528270404e-06 | M74: -0.0001173742295 | N74: 1.991250958e-07
A75: 34.44304 | B75: ='DF raw data'!M80 -> 3.9687248e-07 | C75: ='DF raw data'!N80 -> 6.3350631e-06 | D75: ='DF raw data'!O80 -> 9.5012847e-06 | F75: 3.975201759e-07 | G75: 6.359218939e-06 | H75: 9.516790797e-06 | J75: -9.937584157e-05 | K75: -0.00248198554 | L75: 6.523565409e-07 | M75: -0.0001170479469 | N75: 2.040646677e-07
A76: 34.9432 | B76: ='DF raw data'!M81 -> -2.5922945e-06 | C76: ='DF raw data'!N81 -> 1.6096069e-06 | D76: ='DF raw data'!O81 -> -5.9842819e-07 | F76: -2.596525125e-06 | G76: 1.615744393e-06 | H76: -5.994048248e-07 | J76: -0.0001006745196 | K76: -0.002532338908 | L76: 1.460487257e-06 | M76: -0.0001163174696 | N76: 2.091350356e-07
A77: 35.44336 | B77: ='DF raw data'!M82 -> -2.7749211e-06 | C77: ='DF raw data'!N82 -> 2.5812281e-07 | D77: ='DF raw data'!O82 -> -4.290991e-06 | F77: -2.779449771e-06 | G77: 2.591070422e-07 | H77: -4.297993897e-06 | J77: -0.0001020646892 | K77: -0.002583387583 | L77: 1.590082235e-06 | M77: -0.000115522174 | N77: 2.143465674e-07
A78: 35.94352 | B78: ='DF raw data'!M83 -> -4.1539042e-06 | C78: ='DF raw data'!N83 -> -4.4285066e-06 | D78: ='DF raw data'!O83 -> 3.6980975e-06 | F78: -4.160683372e-06 | G78: -4.445392666e-06 | H78: 3.704132795e-06 | J78: -0.0001041456966 | K78: -0.002635477094 | L78: -6.333253611e-07 | M78: -0.0001158389381 | N78: 2.197716664e-07
A79: 36.44368 | B79: ='DF raw data'!M84 -> -3.7597511e-06 | C79: ='DF raw data'!N84 -> -4.7626081e-06 | D79: ='DF raw data'!O84 -> 6.8477725e-06 | F79: -3.765887014e-06 | G79: -4.780768108e-06 | H79: 6.858948065e-06 | J79: -0.0001060292426 | K79: -0.00268850868 | L79: -3.024474338e-06 | M79: -0.0001173516591 | N79: 2.253991405e-07
A80: 36.94384 | B80: ='DF raw data'!M85 -> -3.6330621e-06 | C80: ='DF raw data'!N85 -> 1.998151e-07 | D80: ='DF raw data'!O85 -> -3.1657211e-07 | F80: -3.638991257e-06 | G80: 2.005770027e-07 | H80: -3.170887557e-07 | J80: -0.0001078493205 | K80: -0.002742450596 | L80: -2.924153744e-06 | M80: -0.0001188142039 | N80: 2.312210162e-07
A81: 37.444 | B81: ='DF raw data'!M86 -> -3.652809e-06 | C81: ='DF raw data'!N86 -> -4.0566447e-06 | D81: ='DF raw data'!O86 -> -3.7087109e-06 | F81: -3.658770384e-06 | G81: -4.072112842e-06 | H81: -3.714763516e-06 | J81: -0.0001096792911 | K81: -0.002797307791 | L81: -4.960861703e-06 | M81: -0.0001212954285 | N81: 2.372500234e-07
A82: 37.94416 | B82: ='DF raw data'!M87 -> -1.2843394e-06 | C82: ='DF raw data'!N87 -> 8.2310635e-06 | D82: ='DF raw data'!O87 -> -8.5474558e-06 | F82: -1.286435442e-06 | G82: 8.262448862e-06 | H82: -8.561405248e-06 | J82: -0.0001103227146 | K82: -0.0028524868 | L82: -8.283152807e-07 | M82: -0.0001217097186 | N82: 2.433378646e-07
A83: 38.44432 | B83: ='DF raw data'!M88 -> 1.3661149e-07 | C83: ='DF raw data'!N88 -> 5.0643025e-06 | D83: ='DF raw data'!O88 -> -9.4099914e-06 | F83: 1.3683444e-07 | G83: 5.08361288e-06 | H83: -9.425348506e-06 | J83: -0.0001102542755 | K83: -0.002907631578 | L83: 1.714304537e-06 | M83: -0.0001208522921 | N83: 2.494192821e-07
